Workbook

Sheet Instructions
A1: Instructions
A3: Purpose
A4: This rating model is prepared to determine the rates sought by each rating category/TA to cover funding requirements for the forthcoming year.
A6: Conventions
A7: All yellow cells are input cells.
A8: The majority of tabs in this spreadhseet have been protected to ensure that values aren't inadvertantly changed.
A9: Should a user need to amend the content of a tab the password required is "gwrcrates".
A11: Process
A12: To run the rates model the following actions should be completed
B13: 1) | C13: On each of the tabs shaded green in the structure diagram below delete all values in the shaded yellow cell
B14: 2) | C14: In the control tab;
C15: a) | D15: In cell B5 enter the current rating year in the YYYY/YY date format
C16: b) | D16: Adjust the WRS rating basis if required by the rates funding policy
C17: c) | D17: Obtain "Flood protection" and "Pest rate" information from the Landcare & Wairarapa Accountant and enter in the relevant cells
C18: d) | D18: Obtian Water levy split from the water supply accountant and enter in the relevant cells
B19: 3) | C19: Obtain Capital Values (CVs) & corresponding assessments from each Territorial Authority (TA) and Equalised Capital Values (ECVs) & corresponding assessments from Quotable Value and enter into the relevant yellow cells on the "UHCC Adjustments" and "Capital values" tab
B20: 4) | C20: Select the cells to be updated in the ESSBase tab and retrieve the information from the ESSbase system
B21: 5) | C21: Email the ESSBase extract to the respective management accountants and obtain confirmation that these rates values are correct before proceeding further.
B22: 6) | C22: Populate the "Class rates" tab with data provided by the Landcare & Wairarapa Accountant
B23: 7) | C23: Use the rating model from the previous year to populate the yellow cells using the PASTE SPECIAL>>VALUES comand in the "Comparison - TA" and "Comparison - Category" tabs.
B24: 8) | C24: On the "Check" tab if cell B7 says "Error" then a rounding/check total error occurs within the model and the error should be investigated and reconciled where possible. Explanations of the difference can be entered in the "Check" tab for future reference. If cell B7 reads "OK" then no rounding/check total errors have been found in the data that has been entered.
B25: 9) | C25: Once all checks have been completed the individual that has completed steps 1 through 9 above should forward the model to their manager for reivew and approval.
B26: 10) | C26: Once approval of the results is obtained the values can be used for distribution as required.
A28: Strucutre diagram
A29: The flow diagram below sets out the structure of this excel spreadsheet.

Sheet >>Input tabs

Sheet Control
A1: Control
A2: =check_total -> 0
A4: Years
A5: Current rating year | B5: 2018/19
A6: Previous rating year | B6: =VALUE(LEFT(year_current,4))-1&"/"&VALUE(RIGHT(year_current,2))-1 -> 2017/18
A9: GST
A10: GST % | B10: 0.15
A12: Error tolerance
A13: $ error tolerance | B13: 2
A15: TA's
A16: TA full name | B16: TA short name
A17: Wellington city | B17: Wellington
A18: Hutt city | B18: Hutt
A19: Upper Hutt city | B19: Upper Hutt
A20: Porirua city | B20: Porirua
A21: Kāpiti Coast district | B21: Kapiti
A22: Masterton district | B22: Masterton
A23: Carterton district | B23: Carterton
A24: South Wairarapa district | B24: South Wairarapa
A25: Tararua district | B25: Tararua
A28: TA's for rates check tab
A29: Excludes KCDC and UHC as they have their own rates check tab
A30: TA full name
A31: Wellington city
A32: Hutt city
A33: Porirua city
A34: Masterton district
A35: Carterton district
A36: South Wairarapa district
A37: Tararua district
A40: TA's
A41: TA full name | B41: Category group | C41: Concatenated row
A42: Wellington city | B42: District wide | C42: =A42&B42 -> Wellington cityDistrict wide
A43: Hutt city | B43: District wide | C43: Hutt cityDistrict wide
A44: Upper Hutt city | B44: District wide | C44: Upper Hutt cityDistrict wide
A45: Porirua city | B45: District wide | C45: Porirua cityDistrict wide
A46: Kāpiti Coast district | B46: District wide | C46: Kāpiti Coast districtDistrict wide
A47: Masterton district | B47: District wide | C47: Masterton districtDistrict wide
A48: Carterton district | B48: District wide | C48: Carterton districtDistrict wide
A49: South Wairarapa district | B49: District wide | C49: South Wairarapa districtDistrict wide
A50: Tararua district | B50: District wide | C50: Tararua districtDistrict wide
A51: Region wide | C51: Region wide
A54: PT target differentials
A55: Category group | B55: Differential
A56: Regional CBD | B56: 7
A57: Business - excl Wairarapa | B57: 1.4
A58: Business - Wairarapa | B58: 1
A59: Residential - excl Wairarapa & Otaki | B59: 1
A60: Residential - Wairarapa & Otaki | B60: 0.5
A61: Rural | B61: 0.25
A62: Tararua | B62: 0
A65: TA & Category | H65: PT differentials to use for rating model transition | P65: Calculation of differentials using the 2017/18 Transport rate
A66: TA full name | B66: Rating area | C66: Category group | D66: Concatenated name | E66: PT differential category | F66: PT differential | H66: 2017/18 | I66: 2018/19 | J66: 2019/20 | K66: 2020/21 | L66: 2021/22 | M66: 2022/23 | N66: 2023/24 onwards | P66: Rate levied | Q66: ECV | R66: Cents/ECV$
A67: Wellington city | B67: Wellington city | C67: Regional CBD | D67: =B67&C67 -> Wellington cityRegional CBD | E67: Regional CBD | F67: =IF(VALUE(LEFT(year_current,4))>2022,N67,INDEX($H67:$M67,,MATCH(year_current,$H$66:$M$66,0))) -> 6.786004276 | H67: =R67/R$96 -> 6.743205131 | I67: =($N67-$H67)/6+H67 -> 6.786004276 | J67: 6.82880342 | K67: 6.871602565 | L67: 6.91440171 | M67: 6.957200855 | N67: =INDEX($B$56:$B$62,MATCH(E67,$A$56:$A$62,0),) -> 7 | P67: 25019166.08 | Q67: 9699270191 | R67: =(P67*100)/Q67 -> 0.2579489548
A68: Wellington city | B68: Wellington city | C68: Business | D68: =B68&C68 -> Wellington cityBusiness | E68: Business - excl Wairarapa | F68: 0.7841851849 | H68: 0.6610222218 | I68: 0.7841851849 | J68: 0.9073481479 | K68: 1.030511111 | L68: 1.153674074 | M68: 1.276837037 | N68: =INDEX($B$56:$B$62,MATCH(E68,$A$56:$A$62,0),) -> 1.4 | P68: 1192769.666 | Q68: 4717078733 | R68: 0.02528619372
A69: Wellington city | B69: Wellington city | C69: Residential | D69: Wellington cityResidential | E69: Residential - excl Wairarapa & Otaki | F69: 0.7175185182 | H69: 0.6610222218 | I69: 0.7175185182 | J69: 0.7740148146 | K69: 0.8305111109 | L69: 0.8870074073 | M69: 0.9435037036 | N69: 1 | P69: 12199002 | Q69: 4.824372595e+10 | R69: 0.02528619372
A70: Wellington city | B70: Wellington city | C70: Rural | D70: Wellington cityRural | E70: Rural | F70: 0.1831485174 | H70: 0.1697782208 | I70: 0.1831485174 | J70: 0.1965188139 | K70: 0.2098891104 | L70: 0.2232594069 | M70: 0.2366297035 | N70: 0.25 | P70: 46420.2668 | Q70: 714756729.4 | R70: 0.006494554705
A71: Hutt city | B71: Hutt city | C71: Business | D71: Hutt cityBusiness | E71: Business - excl Wairarapa | F71: 1.416944362 | H71: 1.420333234 | I71: 1.416944362 | J71: 1.413555489 | K71: 1.410166617 | L71: 1.406777745 | M71: 1.403388872 | N71: 1.4 | P71: 2092334.59 | Q71: 3850999697 | R71: 0.05433224499
A72: Hutt city | B72: Hutt city | C72: Residential | D72: Hutt cityResidential | E72: Residential - excl Wairarapa & Otaki | F72: 1.350277695 | H72: 1.420333234 | I72: 1.350277695 | J72: 1.280222156 | K72: 1.210166617 | L72: 1.140111078 | M72: 1.070055539 | N72: 1 | P72: 9399014.05 | Q72: 1.729914538e+10 | R72: 0.05433224499
A73: Hutt city | B73: Hutt city | C73: Rural | D73: Hutt cityRural | E73: Rural | F73: 0.3433027628 | H73: 0.3619633154 | I73: 0.3433027628 | J73: 0.3246422102 | K73: 0.3059816577 | L73: 0.2873211051 | M73: 0.2686605526 | N73: 0.25 | P73: 44664.56015 | Q73: 322575294.9 | R73: 0.0138462433
A74: Upper Hutt city | B74: Upper Hutt city | C74: Business | D74: Upper Hutt cityBusiness | E74: Business - excl Wairarapa | F74: 1.563988865 | H74: 1.596786638 | I74: 1.563988865 | J74: 1.531191092 | K74: 1.498393319 | L74: 1.465595546 | M74: 1.432797773 | N74: 1.4 | P74: 725473.2635 | Q74: 1187700996 | R74: 0.0610821466
A75: Upper Hutt city | B75: Upper Hutt city | C75: Residential | D75: Upper Hutt cityResidential | E75: Residential - excl Wairarapa & Otaki | F75: 1.497322199 | H75: 1.596786638 | I75: 1.497322199 | J75: 1.397857759 | K75: 1.298393319 | L75: 1.198928879 | M75: 1.09946444 | N75: 1 | P75: 3744588.865 | Q75: 6130414651 | R75: 0.0610821466
A76: Upper Hutt city | B76: Upper Hutt city | C76: Rural | D76: Upper Hutt cityRural | E76: Rural | F76: 0.3808005875 | H76: 0.406960705 | I76: 0.3808005875 | J76: 0.35464047 | K76: 0.3284803525 | L76: 0.302320235 | M76: 0.2761601175 | N76: 0.25 | P76: 126321.4349 | Q76: 811441419.6 | R76: 0.01556753598
A77: Porirua city | B77: Porirua city | C77: Business | D77: Porirua cityBusiness | E77: Business - excl Wairarapa | F77: 1.606506931 | H77: 1.647808317 | I77: =($N77-$H77)/6+H77 -> 1.606506931 | J77: 1.565205544 | K77: 1.523904158 | L77: 1.482602772 | M77: 1.441301386 | N77: 1.4 | P77: 691972.2213 | Q77: 1097778116 | R77: 0.0630338874
A78: Porirua city | B78: Porirua city | C78: Residential | D78: Porirua cityResidential | E78: Residential - excl Wairarapa & Otaki | F78: 1.539840264 | H78: 1.647808317 | I78: 1.539840264 | J78: 1.431872211 | K78: 1.323904158 | L78: 1.215936106 | M78: 1.107968053 | N78: 1 | P78: 5277337.683 | Q78: 8372223102 | R78: 0.0630338874
A79: Porirua city | B79: Porirua city | C79: Rural | D79: Porirua cityRural | E79: Rural | F79: 0.3915430753 | H79: 0.4198516904 | I79: 0.3915430753 | J79: 0.3632344603 | K79: 0.3349258452 | L79: 0.3066172301 | M79: 0.2783086151 | N79: 0.25 | P79: 96761.34374 | Q79: 602474380.3 | R79: 0.016060657
A80: Kāpiti Coast district | B80: Kāpiti Coast district | C80: Business | D80: Kāpiti Coast districtBusiness | E80: Business - excl Wairarapa | F80: 0.8199804755 | H80: 0.7039765706 | I80: 0.8199804755 | J80: 0.9359843804 | K80: 1.051988285 | L80: 1.16799219 | M80: 1.283996095 | N80: 1.4 | P80: 403085.5329 | Q80: 1496826987 | R80: 0.02692933361
A81: Kāpiti Coast district | B81: Kāpiti Coast district excl Ōtaki | C81: Residential | D81: Kāpiti Coast district excl Ōtaki Residential | E81: Residential - excl Wairarapa & Otaki | F81: 0.7533138088 | H81: 0.7039765706 | I81: 0.7533138088 | J81: 0.802651047 | K81: 0.8519882853 | L81: 0.9013255235 | M81: 0.9506627618 | N81: 1 | P81: 2549190.973 | Q81: 9466223746 | R81: 0.02692933361 | T81: Green cells not consistent with formulas above and below due to Otaki carveout
A82: Kāpiti Coast district | B82: Ōtaki rating area | C82: Residential | D82: Ōtaki rating areaResidential | E82: Residential - Wairarapa & Otaki | F82: 0.6699804755 | H82: =H81 -> 0.7039765706 | I82: 0.6699804755 | J82: 0.6359843804 | K82: 0.6019882853 | L82: 0.5679921902 | M82: 0.5339960951 | N82: 0.5
A83: Kāpiti Coast district | B83: Kāpiti Coast district | C83: Rural | D83: Kāpiti Coast districtRural | E83: Rural | F83: 0.1934367293 | H83: =R83/R$96 -> 0.1821240752 | I83: 0.1934367293 | J83: 0.2047493834 | K83: 0.2160620376 | L83: 0.2273746917 | M83: 0.2386873459 | N83: =INDEX($B$56:$B$62,MATCH(E83,$A$56:$A$62,0),) -> 0.25 | P83: 138343.5821 | Q83: 1985748559 | R83: 0.006966822737
A84: Masterton district | B84: Masterton district | C84: Business | D84: Masterton districtBusiness | E84: Business - Wairarapa | F84: 0.3741561856 | H84: 0.2489874227 | I84: 0.3741561856 | J84: 0.4993249485 | K84: 0.6244937114 | L84: 0.7496624742 | M84: 0.8748312371 | N84: 1 | P84: 38506.17602 | Q84: 404283094.1 | R84: 0.009524557565
A85: Masterton district | B85: Masterton district | C85: Residential | D85: Masterton districtResidential | E85: Residential - Wairarapa & Otaki | F85: 0.2908228523 | H85: 0.2489874227 | I85: 0.2908228523 | J85: 0.3326582818 | K85: 0.3744937114 | L85: 0.4163291409 | M85: 0.4581645705 | N85: 0.5 | P85: 199517.2283 | Q85: 2094766366 | R85: 0.009524557565
A86: Masterton district | B86: Masterton district | C86: Rural | D86: Masterton districtRural | E86: Rural | F86: 0.1012741662 | H86: 0.07152899945 | I86: 0.1012741662 | J86: 0.131019333 | K86: 0.1607644997 | L86: 0.1905096665 | M86: 0.2202548332 | N86: 0.25 | P86: 68725.16171 | Q86: 2511691056 | R86: 0.002736210791
A87: Carterton district | B87: Carterton district | C87: Business | D87: Carterton districtBusiness | E87: Business - Wairarapa | F87: 0.538918437 | H87: 0.4467021244 | I87: =($N87-$H87)/6+H87 -> 0.538918437 | J87: 0.6311347496 | K87: 0.7233510622 | L87: 0.8155673748 | M87: 0.9077836874 | N87: 1 | P87: 16823.53518 | Q87: 98453654.54 | R87: 0.01708777115
A88: Carterton district | B88: Carterton district | C88: Residential | D88: Carterton districtResidential | E88: Residential - Wairarapa & Otaki | F88: 0.4555851037 | H88: 0.4467021244 | I88: 0.4555851037 | J88: 0.4644680829 | K88: 0.4733510622 | L88: 0.4822340415 | M88: 0.4911170207 | N88: 0.5 | P88: 109887.4071 | Q88: 643076303.8 | R88: 0.01708777115
A89: Carterton district | B89: Carterton district | C89: Rural | D89: Carterton districtRural | E89: Rural | F89: 0.141430663 | H89: 0.1197167956 | I89: 0.141430663 | J89: 0.1631445304 | K89: 0.1848583978 | L89: 0.2065722652 | M89: 0.2282861326 | N89: 0.25 | P89: 72077.97135 | Q89: 1573910635 | R89: 0.004579546625
A90: South Wairarapa district | B90: South Wairarapa district | C90: Business | D90: South Wairarapa districtBusiness | E90: Business - Wairarapa | F90: 0.6585414391 | H90: 0.5902497269 | I90: 0.6585414391 | J90: 0.7268331513 | K90: 0.7951248635 | L90: 0.8634165756 | M90: 0.9317082878 | N90: 1 | P90: 44332.49903 | Q90: 196344625.2 | R90: 0.02257892162
A91: South Wairarapa district | B91: South Wairarapa district | C91: Residential | D91: South Wairarapa districtResidential | E91: Residential - Wairarapa & Otaki | F91: 0.5752081058 | H91: 0.5902497269 | I91: 0.5752081058 | J91: 0.5601664846 | K91: 0.5451248635 | L91: 0.5300832423 | M91: 0.5150416212 | N91: 0.5 | P91: 206694.8687 | Q91: 915432863.5 | R91: 0.02257892162
A92: South Wairarapa district | B92: South Wairarapa district | C92: Rural | D92: South Wairarapa districtRural | E92: Rural | F92: 0.1695356303 | H92: 0.1534427564 | I92: 0.1695356303 | J92: 0.1856285043 | K92: 0.2017213782 | L92: 0.2178142521 | M92: 0.2339071261 | N92: 0.25 | P92: 153385.1807 | Q92: 2613181710 | R92: 0.005869671448
A93: Tararua district | B93: Tararua district | C93: Rural | D93: Tararua districtRural | E93: Tararua | F93: 0 | H93: 0 | I93: 0 | J93: 0 | K93: 0 | L93: 0 | M93: 0 | N93: 0 | P93: 0 | Q93: 7041800 | R93: 0
A94: Region wide | D94: =A94&C94 -> Region wide | P94: =SUM(P67:P93) -> 64656396.14 | Q94: =SUM(Q67:Q93) -> 1.27056566e+11
P96: =SUMIF($C$67:$C$79,"Residential",P$67:P$79) -> 30619942.6 | Q96: =SUMIF($C$67:$C$79,"Residential",Q$67:Q$79) -> 8.004550909e+10 | R96: =(P96*100)/Q96 -> 0.03825316741
A99: WRS rates
A100: Category group | B100: Rating basis
A101: Regional CBD | B101: Remainder
A102: Business | B102: Remainder
A103: Residential | B103: 14
A104: Rural | B104: 28
A107: Flood protection
A108: From Essbase / Landcare & Wairarapa Accountant
A109: TA full name | B109: [not used] | C109: River management | D109: [not used] | E109: Total
A110: Wellington city | C110: 42679 | E110: =SUM(B110:D110) -> 42679
A111: Hutt city | C111: 4356562 | E111: =SUM(B111:D111) -> 4356562
A112: Upper Hutt city | C112: 667062 | E112: 667062
A113: Porirua city | C113: 33588 | E113: 33588
A114: Kāpiti Coast district | C114: 1335375 | E114: 1335375
A115: Masterton district | E115: 0
A116: Carterton district | C116: 23705 | E116: 23705
A117: South Wairarapa district | E117: 0
A118: Tararua district | E118: 0
A119: Non district Wide | E119: 0
A120: Special Rates | E120: 0
A121: External Revenue | E121: 0
A122: Total | C122: =SUM(C110:C121) -> 6458971 | E122: =SUM(B122:D122) -> 6458971
A124: Non district-wide breakdown
A125: Greytown River Management Rate | D125: 92549
A126: Donalds Creek Stopbank River Management Rate | D126: 2615
A127: South Wairarapa district River Management Rates | D127: =SUM(D125:D126) -> 95164
A130: Stadium Rate (ex-GST)
A131: Stadium rate allocations
A132: =B66 -> Rating area | B132: =C66 -> Category group | C132: Concatenated name | D132: CV | E132: Stadium allocation
A133: =B67 -> Wellington city | B133: Regional CBD | C133: Wellington cityRegional CBD | D133: =INDEX(capital_values,MATCH($C133,capital_values_rows,0),MATCH(D$132&" "&year_current,capital_values_header,0)) -> 7963363000 | E133: =0.2055*D133/SUM($D$133:$D$134) -> 0.13798828
A134: =B68 -> Wellington city | B134: Business | C134: Wellington cityBusiness | D134: 3896130400 | E134: =0.2055*D134/SUM($D$133:$D$134) -> 0.06751171995
A135: =B69 -> Wellington city | B135: Residential | C135: Wellington cityResidential | D135: 39537398501 | E135: 0.3856
A136: =B70 -> Wellington city | B136: Rural | C136: Wellington cityRural | D136: 595945550 | E136: 0.0029
A137: =B71 -> Hutt city | B137: Business | C137: Hutt cityBusiness | D137: 3789029500 | E137: 0.0509
A138: =B72 -> Hutt city | B138: Residential | C138: Hutt cityResidential | D138: 17301952000 | E138: 0.142
A139: =B73 -> Hutt city | B139: Rural | C139: Hutt cityRural | D139: 311549000 | E139: 0.0023
A140: =B74 -> Upper Hutt city | B140: Business | C140: Upper Hutt cityBusiness | D140: 1174676500 | E140: 0.0079
A141: =B75 -> Upper Hutt city | B141: Residential | C141: Upper Hutt cityResidential | D141: 6156988420 | E141: 0.0427
A142: =B76 -> Upper Hutt city | B142: Rural | C142: Upper Hutt cityRural | D142: 854712340 | E142: 0.002
A143: =B77 -> Porirua city | B143: Business | C143: Porirua cityBusiness | D143: 1099995500 | E143: 0.0124
A144: =B78 -> Porirua city | B144: Residential | C144: Porirua cityResidential | D144: 8551317050 | E144: 0.058
A145: =B79 -> Porirua city | B145: Rural | C145: Porirua cityRural | D145: 625816700 | E145: 0.0014
A146: =B80 -> Kāpiti Coast district | B146: Business | C146: Kāpiti Coast districtBusiness | D146: 1479149500 | E146: =0.0441*D146/SUM($D$146:$D$148) -> 0.005094576068
A147: =B81 -> Kāpiti Coast district excl Ōtaki | B147: Residential | C147: Kāpiti Coast district excl Ōtaki Residential | D147: 10219999500 | E147: =0.0441*D147/SUM($D$146:$D$148) -> 0.0352003397
A148: =B82 -> Ōtaki rating area | B148: Residential | C148: Ōtaki rating areaResidential | D148: 1104760900 | E148: =0.0441*D148/SUM($D$146:$D$148) -> 0.003805084234
A149: =B83 -> Kāpiti Coast district | B149: Rural | C149: Kāpiti Coast districtRural | D149: 1966405700 | E149: 0.0043
A150: =B84 -> Masterton district | B150: Business | C150: Masterton districtBusiness | D150: 433363100 | E150: =0.0147*D150/SUM($D$150:$D$151) -> 0.002097181305
A151: =B85 -> Masterton district | B151: Residential | C151: Masterton districtResidential | D151: 2604255800 | E151: =0.0147*D151/SUM($D$150:$D$151) -> 0.01260281869
A152: =B86 -> Masterton district | B152: Rural | C152: Masterton districtRural | D152: 2808895600 | E152: 0.0053
A153: =B87 -> Carterton district | B153: Business | C153: Carterton districtBusiness | D153: 96652500 | E153: =0.0039*D153/SUM($D$153:$D$154) -> 0.0004007637423
A154: =B88 -> Carterton district | B154: Residential | C154: Carterton districtResidential | D154: 843913500 | E154: =0.0039*D154/SUM($D$153:$D$154) -> 0.003499236258
A155: =B89 -> Carterton district | B155: Rural | C155: Carterton districtRural | D155: 1744267200 | E155: 0.0031
A156: =B90 -> South Wairarapa district | B156: Business | C156: South Wairarapa districtBusiness | D156: 206493600 | E156: =0.0072*D156/SUM($D$156:$D$157) -> 0.0009746779245
A157: =B91 -> South Wairarapa district | B157: Residential | C157: South Wairarapa districtResidential | D157: 1318886100 | E157: =0.0072*D157/SUM($D$156:$D$157) -> 0.006225322076
A158: =B92 -> South Wairarapa district | B158: Rural | C158: South Wairarapa districtRural | D158: 2982290600 | E158: 0.0038
A159: =B93 -> Tararua district | B159: Rural | C159: Tararua districtRural | D159: 10760500 | E159: 0
A162: Pest Rate property areas
A163: TA full name | B163: TA code | C163: Range | D163: Area ha
A164: Wellington city | B164: WCC | C164: 16690 | D164: 34055
A165: Hutt city | B165: HCC | C165: 15780 to 15890, 16031 to 16600 | D165: 15578
A166: Upper Hutt city | B166: UHCC | C166: 15170 to 15230, 1590 to 16016 | D166: 54326.2119
A167: Porirua city | B167: PCC | D167: 11858
A168: Kāpiti Coast district | B168: KCDC | C168: 14860 to 15150, 15251 to 15410 | D168: 29205.9985
A169: Masterton district | B169: MDC | C169: 17870 to 18130 | D169: 207207.7345
A170: Carterton district | B170: CDC | C170: 18140 to 18190 | D170: 78106.069
A171: South Wairarapa district | B171: SWDC | C171: 18230 to 18480 | D171: 178090.1371
A172: Tararua district | B172: TDC | C172: 11130 to 17750 | D172: 5307.8223
A173: Region wide | D173: =SUM(D164:D172) -> 613734.9733
A176: Water levy
A177: Need numbers for each city - March 31 comes from Wellington Water
A178: TA full name | B178: Share of levy | C178: =year_current -> 2018/19
A179: Wellington city | B179: =C179/$C$188 -> 0.535142175 | C179: 17696562
A180: Hutt city | B180: =C180/$C$188 -> 0.2481588591 | C180: 8206340
A181: Upper Hutt city | B181: 0.1003228774 | C181: 3317567
A182: Porirua city | B182: 0.1163760885 | C182: 3848429
A183: Kāpiti Coast district
A184: Masterton district
A185: Carterton district
A186: South Wairarapa district
A187: Tararua district
A188: Region wide | B188: =SUM(B179:B187) -> 1 | C188: =SUM(C179:C187) -> 33068898
A190: Water levy evidence

Sheet UHCC Adjustments
A1: Wellington Regional Council
A2: ="UHCC Adjustments "&year_current -> UHCC Adjustments 2018/19
A3: Printed: | B3: =NOW() -> 2018-11-12T16:52:19.590
A4: =check_total -> 0
A6: TA full name | B6: Category group | C6: Sub category group | D6: CV | E6: Rateable Land Value
A8: Trentham Military Camp
A9: Upper Hutt city | B9: Business | C9: Trentham Military Camp | D9: 56325000 | E9: 19235000
A10: Upper Hutt city | B10: Residential | C10: Trentham Military Camp | D10: 26720000 | E10: 9495000
A11: Upper Hutt city | B11: Rural | C11: Trentham Military Camp | D11: 4676000 | E11: 2720500
A12: Upper Hutt city | B12: Business & Residential | C12: Trentham Military Camp | D12: =D10+D9 -> 83045000 | E12: =E10+E9 -> 28730000
A13: Upper Hutt | B13: Total | C13: Trentham Military Camp | D13: =+D9+D10+D11 -> 87721000 | E13: =+E9+E10+E11 -> 31450500
A15: Rest of Upper Hutt
A16: Upper Hutt city | B16: Business | C16: Rest of Upper Hutt city | D16: =+D23-D9 -> 1118351500 | E16: 269945200
A17: Upper Hutt city | B17: Residential | C17: Rest of Upper Hutt city | D17: 6130268420 | E17: 2965504620
A18: Upper Hutt city | B18: Rural | C18: Rest of Upper Hutt city | D18: 850036340 | E18: 419021740
A19: Upper Hutt city | B19: Business & Residential | C19: Rest of Upper Hutt city | D19: 7248619920 | E19: 3235449820
A20: Upper Hutt | B20: Total | C20: Rest of Upper Hutt city | D20: =+D27-D13 -> 8098656260 | E20: 3654471560
A22: All Upper Hutt
A23: Upper Hutt city | B23: Business | C23: Total | D23: =INDEX(capital_values,MATCH($A16&B16,capital_values_rows,0),MATCH(D$6&" "&year_current,capital_values_header,0)) -> 1174676500 | E23: 289180200
A24: Upper Hutt city | B24: Residential | C24: Total | D24: =INDEX(capital_values,MATCH($A17&B17,capital_values_rows,0),MATCH(D$6&" "&year_current,capital_values_header,0)) -> 6156988420 | E24: 2974999620
A25: Upper Hutt city | B25: Rural | C25: Total | D25: =INDEX(capital_values,MATCH($A18&B18,capital_values_rows,0),MATCH(D$6&" "&year_current,capital_values_header,0)) -> 854712340 | E25: 421742240
A26: Upper Hutt city | B26: Business & Residential | C26: Total | D26: =D24+D23 -> 7331664920 | E26: =E24+E23 -> 3264179820
A27: Upper Hutt | B27: All | C27: Total | D27: =+'Capital values'!F10 -> 8186377260 | E27: =+E23+E24+E25 -> 3685922060
A29: Trentham Military Camp share of rates
A30: Upper Hutt city | B30: Business | C30: Trentham % of Share | D30: =+D9/D23 -> 0.04794937159 | E30: =+E9/E23 -> 0.06651561898
A31: Upper Hutt city | B31: Residential | C31: Trentham % of Share | D31: =+D10/D24 -> 0.004339784027 | E31: 0.003191597046
A32: Upper Hutt city | B32: Rural | C32: Trentham % of Share | D32: =+D11/D25 -> 0.005470846484 | E32: 0.006450622541
A33: Upper Hutt city | B33: Business & Residential | C33: % of Share | D33: =+D12/D26 -> 0.01132689517 | E33: 0.008801598436
A34: Upper Hutt | B34: All | C34: % of Share | D34: =+D13/D27 -> 0.01071548467 | E34: =+E13/E27 -> 0.008532600388

Sheet Capital values
A1: Wellington Regional Council
A2: Rateable values
A3: =check_total -> 0
A5: Capital values
A6: =Control!A41 -> TA full name | B6: Rating area | C6: =Control!B41 -> Category group | D6: =Control!C41 -> Concatenated row | E6: ="CV "&year_previous -> CV 2017/18 | F6: ="CV "&year_current -> CV 2018/19 | G6: ="ECV "&year_previous -> ECV 2017/18 | H6: ="ECV "&year_current -> ECV 2018/19 | J6: Check CV | K6: Check ECV
A7: =Control!A52 -> 0 | C7: =Control!B52 -> 0 | D7: =Control!C52 -> 0
A8: =Control!A42 -> Wellington city | C8: =Control!B42 -> District wide | D8: =Control!C42 -> Wellington cityDistrict wide | E8: =SUMIF($A$19:$A$45,$A8,E$19:E$45) -> 51319125451 | F8: 51992837451 | G8: 63374831603 | H8: 68975077410 | K8: =ISBLANK(G8)+ISBLANK(H8) -> 0
A9: =Control!A43 -> Hutt city | C9: =Control!B43 -> District wide | D9: =Control!C43 -> Hutt cityDistrict wide | E9: 21170821500 | F9: 21402530500 | G9: 21472720375 | H9: 24118117072 | K9: =ISBLANK(G9)+ISBLANK(H9) -> 0
A10: =Control!A44 -> Upper Hutt city | C10: =Control!B44 -> District wide | D10: =Control!C44 -> Upper Hutt cityDistrict wide | E10: 8012247760 | F10: 8186377260 | G10: 8129557067 | H10: 9172479133 | K10: 0
A11: =Control!A45 -> Porirua city | C11: =Control!B45 -> District wide | D11: =Control!C45 -> Porirua cityDistrict wide | E11: 10044595300 | F11: 10277129250 | G11: 10072475598 | H11: 11429809803 | K11: 0
A12: =Control!A46 -> Kāpiti Coast district | C12: =Control!B46 -> District wide | D12: =Control!C46 -> Kāpiti Coast districtDistrict wide | E12: 10974506450 | F12: 14770315600 | G12: 12948799292 | H12: 14678791680 | K12: 0
A13: =Control!A47 -> Masterton district | C13: =Control!B47 -> District wide | D13: =Control!C47 -> Masterton districtDistrict wide | E13: 4724008400 | F13: 5846514500 | G13: 5010740516 | H13: 5891731979 | K13: 0
A14: =Control!A48 -> Carterton district | C14: =Control!B48 -> District wide | D14: =Control!C48 -> Carterton districtDistrict wide | E14: 2188251200 | F14: 2684833200 | G14: 2315440593 | H14: 2715649450 | K14: 0
A15: =Control!A49 -> South Wairarapa district | C15: =Control!B49 -> District wide | D15: =Control!C49 -> South Wairarapa districtDistrict wide | E15: 3612556200 | F15: 4507670300 | G15: 3724959199 | H15: 4514129051 | K15: 0
A16: =Control!A50 -> Tararua district | C16: =Control!B50 -> District wide | D16: =Control!C50 -> Tararua districtDistrict wide | E16: 6806000 | F16: 10760500 | G16: 7041800 | H16: 7041800 | K16: 0
A17: =Control!A51 -> Region wide | C17: =Control!B51 -> 0 | D17: =Control!C51 -> Region wide | E17: =SUM(E8:E16) -> 112052918261 | F17: =SUM(F8:F16) -> 119678968561 | G17: =SUM(G8:G16) -> 127056566043 | H17: =SUM(H8:H16) -> 141502827378
A19: =Control!A67 -> Wellington city | B19: =Control!B67 -> Wellington city | C19: =Control!C67 -> Regional CBD | D19: =Control!D67 -> Wellington cityRegional CBD | E19: 7854191500 | F19: 7963363000 | G19: =E19 * (INDEX(G$8:G$16,MATCH($A19&"District wide",$D$8:$D$16,0))/INDEX(E$8:E$16,MATCH($A19&"District wide",$D$8:$D$16,0))) -> 9699270191 | H19: =F19 * (INDEX(H$8:H$16,MATCH($A19&"District wide",$D$8:$D$16,0))/INDEX(F$8:F$16,MATCH($A19&"District wide",$D$8:$D$16,0))) -> 1.056440861e+10 | J19: =ISBLANK(E19)+ISBLANK(F19) -> 0
A20: =Control!A68 -> Wellington city | B20: =Control!B68 -> Wellington city | C20: =Control!C68 -> Business | D20: =Control!D68 -> Wellington cityBusiness | E20: 3819755400 | F20: 3896130400 | G20: 4717078733 | H20: 5168709944 | J20: =ISBLANK(E20)+ISBLANK(F20) -> 0
A21: =Control!A69 -> Wellington city | B21: =Control!B69 -> Wellington city | C21: =Control!C69 -> Residential | D21: =Control!D69 -> Wellington cityResidential | E21: 39066389001 | F21: 39537398501 | G21: 4.824372595e+10 | H21: 5.245136169e+10 | J21: =ISBLANK(E21)+ISBLANK(F21) -> 0
A22: =Control!A70 -> Wellington city | B22: =Control!B70 -> Wellington city | C22: =Control!C70 -> Rural | D22: =Control!D70 -> Wellington cityRural | E22: 578789550 | F22: 595945550 | G22: 714756729.4 | H22: 790597175.7 | J22: =ISBLANK(E22)+ISBLANK(F22) -> 0
A23: =Control!A71 -> Hutt city | B23: =Control!B71 -> Hutt city | C23: =Control!C71 -> Business | D23: =Control!D71 -> Hutt cityBusiness | E23: 3796856000 | F23: =754379000+3034650500 -> 3789029500 | G23: 3850999697 | H23: 4269787494 | J23: =ISBLANK(E23)+ISBLANK(F23) -> 0
A24: =Control!A72 -> Hutt city | B24: =Control!B72 -> Hutt city | C24: =Control!C72 -> Residential | D24: =Control!D72 -> Hutt cityResidential | E24: 17055925500 | F24: 17301952000 | G24: 1.729914538e+10 | H24: 1.949725075e+10 | J24: =ISBLANK(E24)+ISBLANK(F24) -> 0
A25: =Control!A73 -> Hutt city | B25: =Control!B73 -> Hutt city | C25: =Control!C73 -> Rural | D25: =Control!D73 -> Hutt cityRural | E25: 318040000 | F25: 311549000 | G25: 322575294.9 | H25: 351078824.8 | J25: 0
A26: =Control!A74 -> Upper Hutt city | B26: =Control!B74 -> Upper Hutt city | C26: =Control!C74 -> Business | D26: =Control!D74 -> Upper Hutt cityBusiness | E26: 1170562500 | F26: 1174676500 | G26: 1187700996 | H26: 1316173851 | J26: =ISBLANK(E26)+ISBLANK(F26) -> 0
A27: =Control!A75 -> Upper Hutt city | B27: =Control!B75 -> Upper Hutt city | C27: =Control!C75 -> Residential | D27: =Control!D75 -> Upper Hutt cityResidential | E27: 6041952920 | F27: 6156988420 | G27: 6130414651 | H27: 6898637335 | J27: =ISBLANK(E27)+ISBLANK(F27) -> 0
A28: =Control!A76 -> Upper Hutt city | B28: =Control!B76 -> Upper Hutt city | C28: =Control!C76 -> Rural | D28: =Control!D76 -> Upper Hutt cityRural | E28: 799732340 | F28: 854712340 | G28: 811441419.6 | H28: 957667946.9 | J28: 0
A29: =Control!A77 -> Porirua city | B29: =Control!B77 -> Porirua city | C29: =Control!C77 -> Business | D29: =Control!D77 -> Porirua cityBusiness | E29: 1094739500 | F29: 1099995500 | G29: 1097778116 | H29: 1223370753 | J29: =ISBLANK(E29)+ISBLANK(F29) -> 0
A30: =Control!A78 -> Porirua city | B30: =Control!B78 -> Porirua city | C30: =Control!C78 -> Residential | D30: =Control!D78 -> Porirua cityResidential | E30: 8349049050 | F30: 8551317050 | G30: 8372223102 | H30: 9510430887 | J30: =ISBLANK(E30)+ISBLANK(F30) -> 0
A31: =Control!A79 -> Porirua city | B31: =Control!B79 -> Porirua city | C31: =Control!C79 -> Rural | D31: =Control!D79 -> Porirua cityRural | E31: 600806750 | F31: 625816700 | G31: 602474380.3 | H31: 696008163.2 | J31: 0
A32: =Control!A80 -> Kāpiti Coast district | B32: =Control!B80 -> Kāpiti Coast district | C32: =Control!C80 -> Business | D32: =Control!D80 -> Kāpiti Coast districtBusiness | E32: 1268607000 | F32: 1479149500 | G32: 1496826987 | H32: 1469983984 | J32: =ISBLANK(E32)+ISBLANK(F32) -> 0
A33: =Control!A81 -> Kāpiti Coast district | B33: =Control!B81 -> Kāpiti Coast district excl Ōtaki | C33: =Control!C81 -> Residential | D33: =Control!D81 -> Kāpiti Coast district excl Ōtaki Residential | E33: =8022916350-E34 -> 7258515350 | F33: =11324760400-F34 -> 10219999500 | G33: 8564308459 | H33: 1.015667151e+10 | J33: =ISBLANK(E33)+ISBLANK(F33) -> 0
A34: =Control!A82 -> Kāpiti Coast district | B34: =Control!B82 -> Ōtaki rating area | C34: =Control!C82 -> Residential | D34: =Control!D82 -> Ōtaki rating areaResidential | E34: 764401000 | F34: 1104760900 | G34: 901915286.4 | H34: 1097915275 | J34: 0
A35: =Control!A83 -> Kāpiti Coast district | B35: =Control!B83 -> Kāpiti Coast district | C35: =Control!C83 -> Rural | D35: =Control!D83 -> Kāpiti Coast districtRural | E35: 1682983100 | F35: 1966405700 | G35: 1985748559 | H35: 1954220912 | J35: 0
A36: =Control!A84 -> Masterton district | B36: =Control!B84 -> Masterton district | C36: =Control!C84 -> Business | D36: =Control!D84 -> Masterton districtBusiness | E36: 381148600 | F36: 433363100 | G36: 404283094.1 | H36: 436714769.9 | J36: =ISBLANK(E36)+ISBLANK(F36) -> 0
A37: =Control!A85 -> Masterton district | B37: =Control!B85 -> Masterton district | C37: =Control!C85 -> Residential | D37: =Control!D85 -> Masterton districtResidential | E37: 1974896500 | F37: 2604255800 | G37: 2094766366 | H37: 2624397353 | J37: =ISBLANK(E37)+ISBLANK(F37) -> 0
A38: =Control!A86 -> Masterton district | B38: =Control!B86 -> Masterton district | C38: =Control!C86 -> Rural | D38: =Control!D86 -> Masterton districtRural | E38: 2367963300 | F38: 2808895600 | G38: 2511691056 | H38: 2830619856 | J38: 0
A39: =Control!A87 -> Carterton district | B39: =Control!B87 -> Carterton district | C39: =Control!C87 -> Business | D39: =Control!D87 -> Carterton districtBusiness | E39: 93045500 | F39: 96652500 | G39: 98453654.54 | H39: 97761867.84 | J39: =ISBLANK(E39)+ISBLANK(F39) -> 0
A40: =Control!A88 -> Carterton district | B40: =Control!B88 -> Carterton district | C40: =Control!C88 -> Residential | D40: =Control!D88 -> Carterton districtResidential | E40: 607751500 | F40: 843913500 | G40: 643076303.8 | H40: 853599855.7 | J40: =ISBLANK(E40)+ISBLANK(F40) -> 0
A41: =Control!A89 -> Carterton district | B41: =Control!B89 -> Carterton district | C41: =Control!C89 -> Rural | D41: =Control!D89 -> Carterton districtRural | E41: 1487454200 | F41: 1744267200 | G41: 1573910635 | H41: 1764287726 | J41: 0
A42: =Control!A90 -> South Wairarapa district | B42: =Control!B90 -> South Wairarapa district | C42: =Control!C90 -> Business | D42: =Control!D90 -> South Wairarapa districtBusiness | E42: 190419802 | F42: 206493600 | G42: 196344625.2 | H42: 206789471.4 | J42: =ISBLANK(E42)+ISBLANK(F42) -> 0
A43: =Control!A91 -> South Wairarapa district | B43: =Control!B91 -> South Wairarapa district | C43: =Control!C91 -> Residential | D43: =Control!D91 -> South Wairarapa districtResidential | E43: 887809098 | F43: 1318886100 | G43: 915432863.5 | H43: 1320775847 | J43: =ISBLANK(E43)+ISBLANK(F43) -> 0
A44: =Control!A92 -> South Wairarapa district | B44: =Control!B92 -> South Wairarapa district | C44: =Control!C92 -> Rural | D44: =Control!D92 -> South Wairarapa districtRural | E44: 2534327300 | F44: 2982290600 | G44: 2613181710 | H44: 2986563732 | J44: 0
A45: =Control!A93 -> Tararua district | B45: =Control!B93 -> Tararua district | C45: =Control!C93 -> Rural | D45: =Control!D93 -> Tararua districtRural | E45: 6806000 | F45: 10760500 | G45: 7041800 | H45: 7041800 | J45: =ISBLANK(E45)+ISBLANK(F45) -> 0
A46: =Control!A94 -> Region wide | C46: =Control!C94 -> 0 | D46: =Control!D94 -> Region wide | E46: =SUM(E19:E45) -> 112052918261 | F46: =SUM(F19:F45) -> 119678968561 | G46: =SUM(G19:G45) -> 1.27056566e+11 | H46: =SUM(H19:H45) -> 1.415028274e+11
A48: Greytown Urban -CV | E48: 535058000 | F48: 739130000 | J48: =ISBLANK(E48)+ISBLANK(F48) -> 0
A49: Featherston Urban - LV | E49: 78778700 | F49: 162213500 | J49: =ISBLANK(E49)+ISBLANK(F49) -> 0
A51: Check totals | E51: =Total_CV-E17 -> 0 | F51: =F17-F46 -> 0
A54: No. of Assessments (#)
A55: =Control!A41 -> TA full name | B55: Rating area | C55: =Control!B41 -> Category group | D55: =Control!C41 -> Concatenated row | E55: ="CV assessments "&year_previous -> CV assessments 2017/18 | F55: ="CV assessments "&year_current -> CV assessments 2018/19 | G55: ="ECV assessments "&year_previous -> ECV assessments 2017/18 | H55: ="ECV assessments "&year_current -> ECV assessments 2018/19
A56: =Control!A52 -> 0 | C56: =Control!B52 -> 0 | D56: =Control!C52 -> 0
A57: =Control!A42 -> Wellington city | C57: =Control!B42 -> District wide | D57: =Control!C42 -> Wellington cityDistrict wide | E57: =SUMIF($A$68:$A$94,$A57,E$68:E$94) -> 76971 | F57: 77369 | G57: 77487 | H57: 77786 | K57: =ISBLANK(G57)+ISBLANK(H57) -> 0
A58: =Control!A43 -> Hutt city | C58: =Control!B43 -> District wide | D58: =Control!C43 -> Hutt cityDistrict wide | E58: 39049 | F58: 39287 | G58: 39674 | H58: 39853 | K58: 0
A59: =Control!A44 -> Upper Hutt city | C59: =Control!B44 -> District wide | D59: =Control!C44 -> Upper Hutt cityDistrict wide | E59: 16570 | F59: 16792 | G59: 16638 | H59: 16793 | K59: 0
A60: =Control!A45 -> Porirua city | C60: =Control!B45 -> District wide | D60: =Control!C45 -> Porirua cityDistrict wide | E60: 18514 | F60: 18675 | G60: 18501 | H60: 18614 | K60: 0
A61: =Control!A46 -> Kāpiti Coast district | C61: =Control!B46 -> District wide | D61: =Control!C46 -> Kāpiti Coast districtDistrict wide | E61: 24761 | F61: 25013 | G61: 24679 | H61: 24776 | K61: 0
A62: =Control!A47 -> Masterton district | C62: =Control!B47 -> District wide | D62: =Control!C47 -> Masterton districtDistrict wide | E62: 12296 | F62: 12342 | G62: 12273 | H62: 12285 | K62: 0
A63: =Control!A48 -> Carterton district | C63: =Control!B48 -> District wide | D63: =Control!C48 -> Carterton districtDistrict wide | E63: 4561 | F63: 4662 | G63: 4619 | H63: 4662 | K63: 0
A64: =Control!A49 -> South Wairarapa district | C64: =Control!B49 -> District wide | D64: =Control!C49 -> South Wairarapa districtDistrict wide | E64: 6598 | F64: 6657 | G64: 6556 | H64: 6596 | K64: 0
A65: =Control!A50 -> Tararua district | C65: =Control!B50 -> District wide | D65: =Control!C50 -> Tararua districtDistrict wide | E65: 12 | F65: 10 | G65: 10 | H65: 10 | K65: 0
A66: =Control!A51 -> Region wide | C66: =Control!B51 -> 0 | D66: =Control!C51 -> Region wide | E66: =SUM(E57:E65) -> 199332 | F66: =SUM(F57:F65) -> 200807 | G66: 200437 | H66: 201375
A68: =Control!A67 -> Wellington city | B68: =Control!B67 -> Wellington city | C68: =Control!C67 -> Regional CBD | D68: =Control!D67 -> Wellington cityRegional CBD | E68: 3401 | F68: 3381 | J68: =ISBLANK(E68)+ISBLANK(F68) -> 0
A69: =Control!A68 -> Wellington city | B69: =Control!B68 -> Wellington city | C69: =Control!C68 -> Business | D69: =Control!D68 -> Wellington cityBusiness | E69: 1907 | F69: 1899 | J69: =ISBLANK(E69)+ISBLANK(F69) -> 0
A70: =Control!A69 -> Wellington city | B70: =Control!B69 -> Wellington city | C70: =Control!C69 -> Residential | D70: =Control!D69 -> Wellington cityResidential | E70: 70889 | F70: 71308 | J70: 0
A71: =Control!A70 -> Wellington city | B71: =Control!B70 -> Wellington city | C71: =Control!C70 -> Rural | D71: =Control!D70 -> Wellington cityRural | E71: 774 | F71: 781 | J71: 0
A72: =Control!A71 -> Hutt city | B72: =Control!B71 -> Hutt city | C72: =Control!C71 -> Business | D72: =Control!D71 -> Hutt cityBusiness | E72: 2357 | F72: =368+2003 -> 2371 | J72: =ISBLANK(E72)+ISBLANK(F72) -> 0
A73: =Control!A72 -> Hutt city | B73: =Control!B72 -> Hutt city | C73: =Control!C72 -> Residential | D73: =Control!D72 -> Hutt cityResidential | E73: 36202 | F73: 36436 | J73: =ISBLANK(E73)+ISBLANK(F73) -> 0
A74: =Control!A73 -> Hutt city | B74: =Control!B73 -> Hutt city | C74: =Control!C73 -> Rural | D74: =Control!D73 -> Hutt cityRural | E74: 490 | F74: 480 | J74: 0
A75: =Control!A74 -> Upper Hutt city | B75: =Control!B74 -> Upper Hutt city | C75: =Control!C74 -> Business | D75: =Control!D74 -> Upper Hutt cityBusiness | E75: 722 | F75: 716 | J75: =ISBLANK(E75)+ISBLANK(F75) -> 0
A76: =Control!A75 -> Upper Hutt city | B76: =Control!B75 -> Upper Hutt city | C76: =Control!C75 -> Residential | D76: =Control!D75 -> Upper Hutt cityResidential | E76: 14604 | F76: 14823 | J76: =ISBLANK(E76)+ISBLANK(F76) -> 0
A77: =Control!A76 -> Upper Hutt city | B77: =Control!B76 -> Upper Hutt city | C77: =Control!C76 -> Rural | D77: =Control!D76 -> Upper Hutt cityRural | E77: 1244 | F77: 1253 | J77: 0
A78: =Control!A77 -> Porirua city | B78: =Control!B77 -> Porirua city | C78: =Control!C77 -> Business | D78: =Control!D77 -> Porirua cityBusiness | E78: 796 | F78: 797 | J78: =ISBLANK(E78)+ISBLANK(F78) -> 0
A79: =Control!A78 -> Porirua city | B79: =Control!B78 -> Porirua city | C79: =Control!C78 -> Residential | D79: =Control!D78 -> Porirua cityResidential | E79: 17106 | F79: 17255 | J79: =ISBLANK(E79)+ISBLANK(F79) -> 0
A80: =Control!A79 -> Porirua city | B80: =Control!B79 -> Porirua city | C80: =Control!C79 -> Rural | D80: =Control!D79 -> Porirua cityRural | E80: 612 | F80: 623 | J80: 0
A81: =Control!A80 -> Kāpiti Coast district | B81: =Control!B80 -> Kāpiti Coast district | C81: =Control!C80 -> Business | D81: =Control!D80 -> Kāpiti Coast districtBusiness | E81: 1389 | F81: 1334 | J81: 0
A82: =Control!A81 -> Kāpiti Coast district | B82: =Control!B81 -> Kāpiti Coast district excl Ōtaki | C82: =Control!C81 -> Residential | D82: =Control!D81 -> Kāpiti Coast district excl Ōtaki Residential | E82: =20583-E83 -> 17518 | F82: =21036-F83 -> 17885 | J82: 0
A83: =Control!A82 -> Kāpiti Coast district | B83: =Control!B82 -> Ōtaki rating area | C83: =Control!C82 -> Residential | D83: =Control!D82 -> Ōtaki rating areaResidential | E83: 3065 | F83: 3151 | J83: 0
A84: =Control!A83 -> Kāpiti Coast district | B84: =Control!B83 -> Kāpiti Coast district | C84: =Control!C83 -> Rural | D84: =Control!D83 -> Kāpiti Coast districtRural | E84: 2789 | F84: 2643 | J84: 0
A85: =Control!A84 -> Masterton district | B85: =Control!B84 -> Masterton district | C85: =Control!C84 -> Business | D85: =Control!D84 -> Masterton districtBusiness | E85: 546 | F85: 550 | J85: =ISBLANK(E85)+ISBLANK(F85) -> 0
A86: =Control!A85 -> Masterton district | B86: =Control!B85 -> Masterton district | C86: =Control!C85 -> Residential | D86: =Control!D85 -> Masterton districtResidential | E86: 7842 | F86: 7912 | J86: =ISBLANK(E86)+ISBLANK(F86) -> 0
A87: =Control!A86 -> Masterton district | B87: =Control!B86 -> Masterton district | C87: =Control!C86 -> Rural | D87: =Control!D86 -> Masterton districtRural | E87: 3908 | F87: 3880 | J87: 0
A88: =Control!A87 -> Carterton district | B88: =Control!B87 -> Carterton district | C88: =Control!C87 -> Business | D88: =Control!D87 -> Carterton districtBusiness | E88: 225 | F88: 227 | J88: =ISBLANK(E88)+ISBLANK(F88) -> 0
A89: =Control!A88 -> Carterton district | B89: =Control!B88 -> Carterton district | C89: =Control!C88 -> Residential | D89: =Control!D88 -> Carterton districtResidential | E89: 2299 | F89: 2392 | J89: =ISBLANK(E89)+ISBLANK(F89) -> 0
A90: =Control!A89 -> Carterton district | B90: =Control!B89 -> Carterton district | C90: =Control!C89 -> Rural | D90: =Control!D89 -> Carterton districtRural | E90: 2037 | F90: 2043 | J90: 0
A91: =Control!A90 -> South Wairarapa district | B91: =Control!B90 -> South Wairarapa district | C91: =Control!C90 -> Business | D91: =Control!D90 -> South Wairarapa districtBusiness | E91: 312 | F91: 304 | J91: =ISBLANK(E91)+ISBLANK(F91) -> 0
A92: =Control!A91 -> South Wairarapa district | B92: =Control!B91 -> South Wairarapa district | C92: =Control!C91 -> Residential | D92: =Control!D91 -> South Wairarapa districtResidential | E92: 3147 | F92: 3229 | J92: =ISBLANK(E92)+ISBLANK(F92) -> 0
A93: =Control!A92 -> South Wairarapa district | B93: =Control!B92 -> South Wairarapa district | C93: =Control!C92 -> Rural | D93: =Control!D92 -> South Wairarapa districtRural | E93: 3139 | F93: 3124 | J93: 0
A94: =Control!A93 -> Tararua district | B94: =Control!B93 -> Tararua district | C94: =Control!C93 -> Rural | D94: =Control!D93 -> Tararua districtRural | E94: 12 | F94: 10 | J94: =ISBLANK(E94)+ISBLANK(F94) -> 0
A95: =Control!A94 -> Region wide | C95: =Control!C94 -> 0 | D95: =Control!D94 -> Region wide | E95: =SUM(E68:E94) -> 199332 | F95: =SUM(F68:F94) -> 200807
A97: Check totals | E97: =Total_assessments-E66 -> 0 | F97: =F66-F95 -> 0
A100: Number of Assessments Contiguous for WRS
A101: =Control!A41 -> TA full name | C101: =Control!B41 -> Category group | D101: =Control!C41 -> Concatenated row | E101: ="Contiguous assements "&year_previous -> Contiguous assements 2017/18 | F101: ="Contiguous assements "&year_current -> Contiguous assements 2018/19
A102: =Control!A52 -> 0 | C102: =Control!B52 -> 0 | D102: =Control!C52 -> 0
A103: =Control!A42 -> Wellington city | C103: =Control!B42 -> District wide | D103: =Control!C42 -> Wellington cityDistrict wide | E103: =SUMIF($A$114:$A$140,$A103,E$114:E$140) -> 0 | F103: =SUMIF($A$114:$A$140,$A103,F$114:F$140) -> 0
A104: =Control!A43 -> Hutt city | C104: =Control!B43 -> District wide | D104: =Control!C43 -> Hutt cityDistrict wide | E104: =SUMIF($A$114:$A$140,$A104,E$114:E$140) -> 125 | F104: 125
A105: =Control!A44 -> Upper Hutt city | C105: =Control!B44 -> District wide | D105: =Control!C44 -> Upper Hutt cityDistrict wide | E105: 78 | F105: 124
A106: =Control!A45 -> Porirua city | C106: =Control!B45 -> District wide | D106: =Control!C45 -> Porirua cityDistrict wide | E106: 0 | F106: 0
A107: =Control!A46 -> Kāpiti Coast district | C107: =Control!B46 -> District wide | D107: =Control!C46 -> Kāpiti Coast districtDistrict wide | E107: 425 | F107: 369
A108: =Control!A47 -> Masterton district | C108: =Control!B47 -> District wide | D108: =Control!C47 -> Masterton districtDistrict wide | E108: 498 | F108: 453
A109: =Control!A48 -> Carterton district | C109: =Control!B48 -> District wide | D109: =Control!C48 -> Carterton districtDistrict wide | E109: 293 | F109: 331
A110: =Control!A49 -> South Wairarapa district | C110: =Control!B49 -> District wide | D110: =Control!C49 -> South Wairarapa districtDistrict wide | E110: 445 | F110: 406
A111: =Control!A50 -> Tararua district | C111: =Control!B50 -> District wide | D111: =Control!C50 -> Tararua districtDistrict wide | E111: 3 | F111: 1
A112: =Control!A51 -> Region wide | C112: =Control!B51 -> 0 | D112: =Control!C51 -> Region wide | E112: =SUM(E103:E111) -> 1867 | F112: =SUM(F103:F111) -> 1809
A114: =Control!A67 -> Wellington city | B114: =Control!B67 -> Wellington city | C114: =Control!C67 -> Regional CBD | D114: =Control!D67 -> Wellington cityRegional CBD
A115: =Control!A68 -> Wellington city | B115: =Control!B68 -> Wellington city | C115: =Control!C68 -> Business | D115: =Control!D68 -> Wellington cityBusiness
A116: =Control!A69 -> Wellington city | B116: =Control!B69 -> Wellington city | C116: =Control!C69 -> Residential | D116: =Control!D69 -> Wellington cityResidential
A117: =Control!A70 -> Wellington city | B117: =Control!B70 -> Wellington city | C117: =Control!C70 -> Rural | D117: =Control!D70 -> Wellington cityRural
A118: =Control!A71 -> Hutt city | B118: =Control!B71 -> Hutt city | C118: =Control!C71 -> Business | D118: =Control!D71 -> Hutt cityBusiness
A119: =Control!A72 -> Hutt city | B119: =Control!B72 -> Hutt city | C119: =Control!C72 -> Residential | D119: =Control!D72 -> Hutt cityResidential | E119: 125 | F119: 125
A120: =Control!A73 -> Hutt city | B120: =Control!B73 -> Hutt city | C120: =Control!C73 -> Rural | D120: =Control!D73 -> Hutt cityRural
A121: =Control!A74 -> Upper Hutt city | B121: =Control!B74 -> Upper Hutt city | C121: =Control!C74 -> Business | D121: =Control!D74 -> Upper Hutt cityBusiness
A122: =Control!A75 -> Upper Hutt city | B122: =Control!B75 -> Upper Hutt city | C122: =Control!C75 -> Residential | D122: =Control!D75 -> Upper Hutt cityResidential | E122: 12 | F122: =14823-14780 -> 43
A123: =Control!A76 -> Upper Hutt city | B123: =Control!B76 -> Upper Hutt city | C123: =Control!C76 -> Rural | D123: =Control!D76 -> Upper Hutt cityRural | E123: 66 | F123: =1253-1172 -> 81
A124: =Control!A77 -> Porirua city | B124: =Control!B77 -> Porirua city | C124: =Control!C77 -> Business | D124: =Control!D77 -> Porirua cityBusiness
A125: =Control!A78 -> Porirua city | B125: =Control!B78 -> Porirua city | C125: =Control!C78 -> Residential | D125: =Control!D78 -> Porirua cityResidential
A126: =Control!A79 -> Porirua city | B126: =Control!B79 -> Porirua city | C126: =Control!C79 -> Rural | D126: =Control!D79 -> Porirua cityRural
A127: =Control!A80 -> Kāpiti Coast district | B127: =Control!B80 -> Kāpiti Coast district | C127: =Control!C80 -> Business | D127: =Control!D80 -> Kāpiti Coast districtBusiness
A128: =Control!A81 -> Kāpiti Coast district | B128: =Control!B81 -> Kāpiti Coast district excl Ōtaki | C128: =Control!C81 -> Residential | D128: =Control!D81 -> Kāpiti Coast district excl Ōtaki Residential | E128: 255 | F128: =212-F129 -> 166
A129: =Control!A82 -> Kāpiti Coast district | B129: =Control!B82 -> Ōtaki rating area | C129: =Control!C82 -> Residential | D129: =Control!D82 -> Ōtaki rating areaResidential | F129: 46
A130: =Control!A83 -> Kāpiti Coast district | B130: =Control!B83 -> Kāpiti Coast district | C130: =Control!C83 -> Rural | D130: =Control!D83 -> Kāpiti Coast districtRural | E130: 170 | F130: 157
A131: =Control!A84 -> Masterton district | B131: =Control!B84 -> Masterton district | C131: =Control!C84 -> Business | D131: =Control!D84 -> Masterton districtBusiness
A132: =Control!A85 -> Masterton district | B132: =Control!B85 -> Masterton district | C132: =Control!C85 -> Residential | D132: =Control!D85 -> Masterton districtResidential | E132: 17 | F132: 15
A133: =Control!A86 -> Masterton district | B133: =Control!B86 -> Masterton district | C133: =Control!C86 -> Rural | D133: =Control!D86 -> Masterton districtRural | E133: 481 | F133: 438
A134: =Control!A87 -> Carterton district | B134: =Control!B87 -> Carterton district | C134: =Control!C87 -> Business | D134: =Control!D87 -> Carterton districtBusiness
A135: =Control!A88 -> Carterton district | B135: =Control!B88 -> Carterton district | C135: =Control!C88 -> Residential | D135: =Control!D88 -> Carterton districtResidential | E135: 79 | F135: 37
A136: =Control!A89 -> Carterton district | B136: =Control!B89 -> Carterton district | C136: =Control!C89 -> Rural | D136: =Control!D89 -> Carterton districtRural | E136: 214 | F136: 294
A137: =Control!A90 -> South Wairarapa district | B137: =Control!B90 -> South Wairarapa district | C137: =Control!C90 -> Business | D137: =Control!D90 -> South Wairarapa districtBusiness
A138: =Control!A91 -> South Wairarapa district | B138: =Control!B91 -> South Wairarapa district | C138: =Control!C91 -> Residential | D138: =Control!D91 -> South Wairarapa districtResidential | E138: 75 | F138: 69
A139: =Control!A92 -> South Wairarapa district | B139: =Control!B92 -> South Wairarapa district | C139: =Control!C92 -> Rural | D139: =Control!D92 -> South Wairarapa districtRural | E139: 370 | F139: 337
A140: =Control!A93 -> Tararua district | B140: =Control!B93 -> Tararua district | C140: =Control!C93 -> Rural | D140: =Control!D93 -> Tararua districtRural | E140: 3 | F140: 1
A141: =Control!A94 -> Region wide | C141: =Control!C94 -> 0 | D141: =Control!D94 -> Region wide | E141: =SUM(E114:E140) -> 1867 | F141: =SUM(F114:F140) -> 1809
A143: Check totals | E143: =E112-E141 -> 0 | F143: =F112-F141 -> 0

Sheet ESSbase
A1: Wellington Regional Council
A2: ESSBase values
A3: =check_total -> 0
B5: Model naming convention | C5: Essbase name | D5: Essbase name | F5: Last Year Base | G5: Current Year Base | H5: total | J5: Proposed Budget Base
F6: =year_previous -> 2017/18 | G6: =year_current -> 2018/19 | H6: =year_current -> 2018/19 | J6: =year_current -> 2018/19
B8: General rate | C8: WRC - Mgmt | D8: General Rates | F8: =42481670.5205436 -> 42481670.52 | G8: 47283313.91 | H8: =+G8/F8-1 -> 0.1130285916 | J8: 36441465.13 | K8: =+G8-J8 -> 10841848.78
B9: Remission of rates | D9: Remission of Regional Rates | F9: 0 | G9: 0 | J9: 0 | K9: 0
B10: Public transport rate | D10: Transport Rate | F10: 64656396.13 | G10: 68109677.79 | H10: =+G10/F10-1 -> 0.05340974557 | J10: 67273010.4 | K10: 836667.3917
B11: River management rate | D11: River Rate | F11: 5826660.417 | G11: 6458970.807 | H11: =+G11/F11-1 -> 0.1085202061 | J11: 0 | K11: 6458970.807
B12: Stadium purposes rate | D12: Stadium Rate | F12: 978091.35 | G12: 0 | H12: -1 | J12: 0 | K12: 0
B13: Wellington regional strategy rate | D13: WRS Rate | F13: 4822017.219 | G13: 4907860.821 | H13: 0.01780242545 | J13: 4907860.821 | K13: 0
B14: District-Wide Rates | D14: District-Wide Rates | F14: =SUM(F8:F13) -> 118764835.6 | G14: 126759823.3 | H14: 0.06731780204 | J14: 126743425.3 | K14: 16398.06047
B15: Rates penalties | D15: Rates Penalties | F15: 0 | G15: 0 | J15: 0 | K15: 0
B16: Remission of rates penalties | D16: Remission of Rates Penalties | F16: 0 | G16: 0 | J16: 0 | K16: 0
B17: Pest management rate | D17: Pest Rate | F17: 472000 | G17: 532000 | H17: 0.1271186441 | J17: 532000 | K17: 0
B18: River management rate - Non district wide | D18: River Mgmt Rates - Non District Wide | F18: 93297.36 | G18: 95164 | H18: 0.02000742572 | J18: 95164 | K18: 0
B19: Special Rates | D19: Special Rates | F19: 1451756.116 | G19: 1487363 | H19: 0.024526767 | J19: 1480589 | K19: 6774
B20: Total Other Rates | D20: Total Other Rates | F20: =SUM(F15:F19) -> 2017053.476 | G20: 2114527 | H20: 0.04832470986 | J20: 2107753 | K20: 6774
B21: Total Regnl Rates | D21: Total Regnl Rates | F21: =F20+F14 -> 120781889.1 | G21: 128874350.3 | H21: =+G21/F21-1 -> 0.06700061804 | J21: 128851178.3 | K21: 23172.06047
B22: Bulk water levies | D22: Bulk Water Levies | F22: 30862765.44 | G22: 33068898.04 | H22: 0.07148201307 | J22: 33068898.04 | K22: 0
B23: Total Regnl Rates & levies | D23: Total Regnl Rates & levies | F23: =SUM(F21:F22) -> 151644654.5 | G23: 161943248.4 | H23: =+G23/F23-1 -> 0.0679126729 | K23: 161943248.4
B24: Warm Greater Wellington rate | D24: Warm Greater Wellington rate | F24: 3181767 | G24: 3237058 | H24: 0.01737745096 | J24: 3237058 | K24: 0
B25: Total Rates & Levies | D25: Total Rates & Levies | F25: =SUM(F23:F24) -> 154826421.5 | G25: 165180306.4 | H25: 0.06687414666 | J25: 165157134.3 | K25: 23172.06047
B30: Total River, Drainage etc | D30: Total River, Drainage etc
B32: General Rates | C32: Te Hunga Whiriwhiri Department | D32: General Rates | F32: 1033308.058 | G32: 1322264.75 | H32: =+G32/F32-1 -> 0.2796423479 | J32: 1322264.75 | K32: =+G32-J32 -> 0
B33: General Rates | C33: Managing Emergencies | D33: General Rates | F33: 1303299.144 | G33: 1473476.593 | H33: =+G33/F33-1 -> 0.1305743583 | J33: 1454741.32 | K33: 18735.27371
B34: General Rates | C34: Rates Collection.. | D34: General Rates | F34: 0 | G34: 0 | H34: 0 | J34: 0 | K34: 0
B35: General Rates | C35: Old 30000 | D35: General Rates | F35: 16860390.21 | G35: 18396134.63 | H35: =+G35/F35-1 -> 0.09108593572 | J35: 18407195.97 | K35: -11061.34089
B36: General Rates | C36: Parks & Forests Group | D36: General Rates | F36: 5882830.082 | G36: 5783725.697 | H36: =+G36/F36-1 -> -0.01684637892 | J36: 5919808.138 | K36: -136082.4408
B37: General Rates | C37: Wairarapa Water Use (was Env Edu) activity | D37: General Rates | F37: 361326.3535 | G37: 423791.4757 | H37: =+G37/F37-1 -> 0.1728772937 | J37: 423791.4757 | K37: 0
B38: General Rates | C38: Catchment Management (excluding forests) | D38: General Rates | F38: 21662719.48 | G38: 22664845.33 | H38: =+G38/F38-1 -> 0.04626039015 | J38: 11132110.55 | K38: 11532734.79
B39: General Rates | C39: Strategy Group | D39: General Rates | F39: 5273359.228 | G39: 6358568.064 | H39: =+G39/F39-1 -> 0.2057908041 | J39: 6446744.482 | K39: -88176.41856
K40: 0
B41: General Rates | C41: Investment Management. | D41: General Rates | F41: -9897893.768 | G41: -9139492.638 | H41: =+G41/F41-1 -> -0.07662247626 | J41: -8665191.554 | K41: -474301.0838
B43: General Rates | C43: WRC - Mgmt | D43: General Rates | F43: =SUM(F32:F41) -> 42479338.79 | G43: 47283313.91 | H43: =+G43/F43-1 -> 0.1130896868 | J43: 36441465.13 | K43: =+G43-J43 -> 10841848.78
F45: 0 | G45: 0 | K45: =+G45-J45 -> 0
B51: Warm Greater Wellington rate | C51: Warm Greater Wellington management | D51: Warm Greater Wellington rate | F51: 3181767 | G51: 3237058 | H51: =+G51/F51-1 -> 0.01737745096 | J51: 3237058
B52: External Income | C52: Warm Greater Wellington management | D52: External Income | F52: 0 | G52: 0 | H52: 0 | J52: 0

Sheet Class Rates
A1: Wellington Regional Council
A2: ="Class rates "&year_current -> Class rates 2018/19
A3: Printed : | B3: =NOW() -> 2018-11-12T16:52:19.590
A4: =check_total -> 0
A6: 2016-12-01 | B6: Revenue Required | D6: Class | E6: $ per Hectare | F6: Class Total | G6: Class Areas | H6: Scheme Total | I6: Var
A7: Draft | B7: ex gst | E7: ex gst | F7: ex gst | G7: Hectares | H7: ex gst | I7: $ | K7: Lookup index
A8: River Management | K8: Scheme | L8: Class | M8: Concat
A9: Waingawa | B9: 40635 | D9: A | E9: 146.8098727 | F9: =E9*G9 -> 4979.952374 | G9: 33.9211 | H9: =SUM(F9:F16) -> 40635 | I9: =B9-H9 -> 0 | K9: =A9 -> Waingawa | L9: =D9 -> A | M9: =K9&L9 -> WaingawaA
D10: B | E10: 95.42641728 | F10: =E10*G10 -> 12423.79429 | G10: 130.1924 | K10: =K9 -> Waingawa | L10: B | M10: =K10&L10 -> WaingawaB
D11: C | E11: 73.40493637 | F11: =SUM(E11*G11) -> 8381.001269 | G11: 114.1749 | K11: Waingawa | L11: C | M11: WaingawaC
D12: D | E12: 66.06444273 | F12: =E12*G12 -> 153.9565773 | G12: 2.3304 | K12: Waingawa | L12: D | M12: WaingawaD
D13: E | E13: 58.72394909 | F13: =E13*G13 -> 9854.260363 | G13: 167.8065 | K13: Waingawa | L13: E | M13: WaingawaE
D14: F | E14: 51.38345546 | F14: =E14*G14 -> 1333.750077 | G14: 25.9568 | K14: Waingawa | L14: F | M14: WaingawaF
D15: G | E15: 22.02148091 | F15: =E15*G15 -> 1030.134399 | G15: 46.778616 | K15: Waingawa | L15: G | M15: WaingawaG
D16: H | E16: 14.68098727 | F16: =E16*G16 -> 2478.150652 | G16: 168.8 | K16: Waingawa | L16: H | M16: WaingawaH
A17: Lower Wairarapa Valley Development Scheme | B17: 769460 | D17: A | E17: 0.2341872774 | F17: =E17*G17+J17 -> 676524.1077 | G17: 2888816.657 | H17: =SUM(F17:F19) -> 769459.6032 | I17: =B17-H17 -> 0.3967528765 | K17: =A17 -> Lower Wairarapa Valley Development Scheme | L17: A | M17: Lower Wairarapa Valley Development SchemeA
D18: Sa | E18: 18.80247294 | F18: =E18*G18 -> 7840.631216 | G18: 417 | K18: Lower Wairarapa Valley Development Scheme | L18: Sa | M18: Lower Wairarapa Valley Development SchemeSa
D19: Sb | E19: 37.6193034 | F19: 85094.86429 | G19: 2262 | K19: Lower Wairarapa Valley Development Scheme | L19: Sb | M19: Lower Wairarapa Valley Development SchemeSb
A20: Upper Ruamahanga | B20: 42007 | D20: A | E20: 132.7757248 | F20: =E20*G20+J20 -> 11819.57655 | G20: 89.01910773 | H20: =SUM(F20:F26) -> 42007 | I20: =B20-H20 -> 0 | K20: =A20 -> Upper Ruamahanga | L20: A | M20: Upper RuamahangaA
A21: (Mt Bruce - Te Ore Ore) | D21: B | E21: 110.6464373 | F21: 729.5067109 | G21: 6.593133305 | K21: =K20 -> Upper Ruamahanga | L21: B | M21: Upper RuamahangaB
D22: C | E22: 88.51714984 | F22: 11043.78113 | G22: 124.7643101 | K22: Upper Ruamahanga | L22: C | M22: Upper RuamahangaC
D23: D | E23: 66.38786238 | F23: 1169.435473 | G23: 17.6152 | K23: Upper Ruamahanga | L23: D | M23: Upper RuamahangaD
D24: E | E24: 44.25857492 | F24: 13130.68114 | G24: 296.6810649 | K24: Upper Ruamahanga | L24: E | M24: Upper RuamahangaE
D25: F | E25: 22.12928746 | F25: 872.4043693 | G25: 39.42306641 | K25: Upper Ruamahanga | L25: F | M25: Upper RuamahangaF
D26: S | E26: 1246.774858 | F26: 3241.61463 | G26: 2.6 | K26: Upper Ruamahanga | L26: S | M26: Upper RuamahangaS
A27: Middle Ruamahanga | B27: 29642 | D27: A | E27: 130.9622033 | F27: =E27*G27+J27 -> 5283.166748 | G27: 40.34115657 | H27: =SUM(F27:F33) -> 29642 | I27: =B27-H27 -> 0 | K27: =A27 -> Middle Ruamahanga | L27: A | M27: Middle RuamahangaA
A28: (Te Ore Ore - Gladstone) | D28: B | E28: 109.1351694 | F28: 5956.552732 | G28: 54.57958936 | K28: =K27 -> Middle Ruamahanga | L28: B | M28: Middle RuamahangaB
D29: C | E29: 87.30813553 | F29: 446.4326894 | G29: 5.1133 | K29: Middle Ruamahanga | L29: C | M29: Middle RuamahangaC
D30: D | E30: 65.48110165 | F30: 7412.989876 | G30: 113.2080812 | K30: Middle Ruamahanga | L30: D | M30: Middle RuamahangaD
D31: E | E31: 43.65406777 | F31: 1316.35349 | G31: 30.1542 | K31: Middle Ruamahanga | L31: E | M31: Middle RuamahangaE
D32: F | E32: 21.82703388 | F32: 6452.973489 | G32: 295.6413374 | K32: Middle Ruamahanga | L32: F | M32: Middle RuamahangaF
D33: S | E33: 1320.729036 | F33: 2773.530975 | G33: 2.1 | K33: Middle Ruamahanga | L33: S | M33: Middle RuamahangaS
A34: Lower Ruamahanga | B34: 68591 | D34: A | E34: 63.01058251 | F34: =E34*G34+J34 -> 7906.166579 | G34: 125.473631 | H34: =SUM(F34:F41) -> 68591 | I34: =B34-H34 -> 0 | K34: =A34 -> Lower Ruamahanga | L34: A | M34: Lower RuamahangaA
A35: (Gladstone - Waiohine) | D35: B | E35: 54.00907073 | F35: 2907.367687 | G35: 53.8311 | K35: =K34 -> Lower Ruamahanga | L35: B | M35: Lower RuamahangaB
D36: C | E36: 45.00755894 | F36: 10080.64903 | G36: 223.9768 | K36: Lower Ruamahanga | L36: C | M36: Lower RuamahangaC
D37: D | E37: 36.00604715 | F37: 11468.35449 | G37: 318.5119 | K37: Lower Ruamahanga | L37: D | M37: Lower RuamahangaD
D38: E | E38: 27.00453536 | F38: 8736.613868 | G38: 323.523947 | K38: Lower Ruamahanga | L38: E | M38: Lower RuamahangaE
D39: F | E39: 18.00302358 | F39: 22040.94694 | G39: 1224.2914 | K39: Lower Ruamahanga | L39: F | M39: Lower RuamahangaF
D40: SA | E40: 1579.97137 | F40: 4107.925562 | G40: 2.6 | K40: Lower Ruamahanga | L40: SA | M40: Lower RuamahangaSA
D41: SB | E41: 789.9857943 | F41: 1342.97585 | G41: 1.7 | K41: Lower Ruamahanga | L41: =D41 -> SB | M41: Lower RuamahangaSB
A42: Waiohine Rural | B42: 92549 | D42: A | E42: 45.78519365 | F42: =E42*G42 -> 5150.211607 | G42: 112.4864 | H42: =SUM(F42:F47) -> 92549 | I42: =B42-H42 -> 0 | K42: =A42 -> Waiohine Rural | L42: A | M42: Waiohine RuralA
D43: B | E43: 38.15432804 | F43: =E43*G43 -> 14613.98901 | G43: 383.0231 | K43: =K42 -> Waiohine Rural | L43: B | M43: Waiohine RuralB
D44: C | E44: 30.52346243 | F44: 39000.59809 | G44: 1277.725231 | K44: Waiohine Rural | L44: C | M44: Waiohine RuralC
D45: D | E45: 22.89259683 | F45: 8505.107936 | G45: 371.5222 | K45: Waiohine Rural | L45: D | M45: Waiohine RuralD
D46: E | E46: 15.26173122 | F46: 12230.31317 | G46: 801.371286 | K46: Waiohine Rural | L46: E | M46: Waiohine RuralE
D47: S | E47: 763.0865608 | F47: 13048.78019 | G47: 17.1 | K47: Waiohine Rural | L47: S | M47: Waiohine RuralS
A48: Mangatarere | B48: 9907 | D48: A | E48: 34.61407718 | F48: 742.7142541 | G48: 21.457 | H48: =SUM(F48:F51) -> 9906.999517 | I48: =B48-H48 -> 0.0004825546348 | K48: =A48 -> Mangatarere | L48: A | M48: MangatarereA
D49: B | E49: 33.1091173 | F49: 6937.9758 | G49: 209.5488 | K49: =K48 -> Mangatarere | L49: B | M49: MangatarereB
D50: C | E50: 28.056752 | F50: 442.4100883 | G50: 15.7684 | K50: Mangatarere | L50: C | M50: MangatarereC
D51: D | E51: 24.83183798 | F51: 1783.899375 | G51: 71.8392 | K51: Mangatarere | L51: D | M51: MangatarereD
A52: Waipoua | B52: 51896 | D52: A | E52: 111.4783952 | F52: 9754.181216 | G52: 87.4984 | H52: =SUM(F52:F57) -> 51896 | I52: =B52-H52 -> 0 | K52: =A52 -> Waipoua | L52: A | M52: WaipouaA
D53: B | E53: 89.18271617 | F53: 26784.19164 | G53: 300.3294 | K53: =K52 -> Waipoua | L53: B | M53: WaipouaB
D54: C | E54: 66.88703713 | F54: 1501.727692 | G54: 22.4517 | K54: =K53 -> Waipoua | L54: C | M54: WaipouaC
D55: D | E55: 44.59135809 | F55: 13253.91612 | G55: 297.2306 | K55: Waipoua | L55: D | M55: WaipouaD
D56: SA | E56: 3767.969758 | F56: 376.7969758 | G56: 0.1 | K56: Waipoua | L56: SA | M56: WaipouaSA
D57: SC | E57: 2251.863583 | F57: 225.1863583 | G57: 0.1 | K57: Waipoua | L57: SC | M57: WaipouaSC
A58: Kopuaranga | B58: 21919 | D58: A2 | E58: 122.7145 | F58: 3197.203583 | G58: 26.054 | H58: =SUM(F58:F69) -> 21918.58165 | I58: =B58-H58 -> 0.41835343 | K58: =A58 -> Kopuaranga | L58: A2 | M58: KopuarangaA2
D59: A3 | E59: 110.5441 | F59: 7616.875394 | G59: 68.9035 | K59: =K58 -> Kopuaranga | L59: A3 | M59: KopuarangaA3
D60: A4 | E60: 61.4583 | F60: 693.538478 | G60: 11.2847 | K60: Kopuaranga | L60: A4 | M60: KopuarangaA4
D61: A5 | E61: 42.9509 | F61: 2479.297752 | G61: 57.724 | K61: Kopuaranga | L61: A5 | M61: KopuarangaA5
D62: A6 | E62: 24.5439 | F62: =E62*G62 -> 1991.271151 | G62: 81.131 | K62: Kopuaranga | L62: A6 | M62: KopuarangaA6
D63: B2 | E63: 24.5439 | F63: 1503.979015 | G63: 61.2771 | K63: Kopuaranga | L63: B2 | M63: KopuarangaB2
D64: B3 | E64: 22.0896 | F64: 1622.28894 | G64: 73.4413 | K64: Kopuaranga | L64: B3 | M64: KopuarangaB3
D65: B4 | E65: 12.2725 | F65: 113.878982 | G65: 9.2792 | K65: Kopuaranga | L65: B4 | M65: KopuarangaB4
D66: B5 | E66: 8.591 | F66: 266.913779 | G66: 31.069 | K66: Kopuaranga | L66: B5 | M66: KopuarangaB5
D67: B6 | E67: 4.9094 | F67: 590.4245725 | G67: 120.2641 | K67: Kopuaranga | L67: B6 | M67: KopuarangaB6
D68: SA | E68: 153.57 | F68: 767.85 | G68: 5 | K68: Kopuaranga | L68: SA | M68: KopuarangaSA
D69: SB | E69: 76.79 | F69: 1075.06 | G69: 14 | K69: Kopuaranga | L69: SB | M69: KopuarangaSB
A70: Lower Taueru | B70: 2263 | D70: A | E70: 4.058768509 | F70: =E70*G70+J70 -> 1653.678543 | G70: 407.43357 | H70: =SUM(F70:F73) -> 2263 | I70: =B70-H70 -> 0 | K70: =A70 -> Lower Taueru | L70: =D70 -> A | M70: Lower TaueruA
D71: B | E71: 0.8117537017 | F71: 228.9494607 | G71: 282.043014 | K71: =K70 -> Lower Taueru | L71: B | M71: =K71&L71 -> Lower TaueruB
D72: C | E72: 0.4058768509 | F72: =E72*G72 -> 72.31146622 | G72: 178.1611 | K72: Lower Taueru | L72: C | M72: Lower TaueruC
D73: S | E73: 202.9384254 | F73: 308.0605298 | G73: 1.518 | K73: Lower Taueru | L73: S | M73: Lower TaueruS
A74: Lower Whangaehu | B74: 4114 | D74: A | E74: 21.62306943 | F74: =E74*G74+J74 -> 721.9964505 | G74: 33.3901 | H74: =SUM(F74:F79) -> 4114 | I74: =B74-H74 -> 0 | K74: =A74 -> Lower Whangaehu | L74: A | M74: Lower WhangaehuA
D75: B | E75: 17.29845554 | F75: =E75*G75 -> 1125.835382 | G75: 65.083 | K75: =K74 -> Lower Whangaehu | L75: B | M75: Lower WhangaehuB
D76: C | E76: 12.97384166 | F76: =E76*G76 -> 705.8366658 | G76: 54.4046 | K76: Lower Whangaehu | L76: C | M76: Lower WhangaehuC
D77: D | E77: 8.649227772 | F77: =E77*G77 -> 662.2609914 | G77: 76.5688 | K77: Lower Whangaehu | L77: D | M77: Lower WhangaehuD
D78: E | E78: 4.324613886 | F78: =E78*G78 -> 753.5311025 | G78: 174.2424 | K78: Lower Whangaehu | L78: E | M78: Lower WhangaehuE
D79: S | E79: 108.1153471 | F79: =E79*G79 -> 144.5394076 | G79: 1.3369 | K79: Lower Whangaehu | L79: S | M79: Lower WhangaehuS
A80: Catchment Schemes | K80: Lower Whangaehu | L80: 0 | M80: Lower Whangaehu0
A81: Awhea-Opouawe | B81: 22344 | D81: A | F81: =E81*G81 -> 0 | G81: 2224.6093 | H81: =H149 -> 22343.7 | I81: =B81-H81 -> 0.3 | K81: =A81 -> Awhea-Opouawe | L81: A | M81: Awhea-OpouaweA
D82: B | F82: =E82*G82 -> 0 | G82: 1956.3707 | H82: see bottom of sheet | K82: =K81 -> Awhea-Opouawe | L82: B | M82: Awhea-OpouaweB
A83: see bottom of sheet | D83: C | F83: 0 | G83: 1789.5901 | K83: Awhea-Opouawe | L83: C | M83: Awhea-OpouaweC
D84: D | F84: 0 | G84: 685.6269 | K84: Awhea-Opouawe | L84: D | M84: Awhea-OpouaweD
D85: E | F85: 0 | G85: 31708.3607 | K85: Awhea-Opouawe | L85: E | M85: Awhea-OpouaweE
D86: F | F86: 0 | G86: 3356.5217 | K86: Awhea-Opouawe | L86: F | M86: Awhea-OpouaweF
D87: SA | F87: 0 | G87: 0.65 | K87: Awhea-Opouawe | L87: SA | M87: Awhea-OpouaweSA
D88: SB | F88: 0 | G88: 0.21 | K88: Awhea-Opouawe | L88: SB | M88: Awhea-OpouaweSB
A89: Whareama | B89: 19016 | D89: A | E89: 4.459205 | F89: =E89*G89+J89 -> 3190.052994 | G89: 715.3860372 | H89: =SUM(F89:F94) -> 19016.37885 | I89: =B89-H89 -> -0.3788514064 | K89: =A89 -> Whareama | L89: A | M89: WhareamaA
D90: B | E90: 1.718925 | F90: 1637.38769 | G90: 952.5649402 | K90: =K89 -> Whareama | L90: B | M90: WhareamaB
D91: C | E91: 0.3008538 | F91: 13711.44805 | G91: 45575.12003 | K91: Whareama | L91: C | M91: WhareamaC
D92: D | E92: 0.2578108 | F92: 0 | G92: 0 | K92: Whareama | L92: D | M92: WhareamaD
D93: E | E93: 0.2148796 | F93: 3.309683039 | G93: 15.4025 | K93: Whareama | L93: E | M93: WhareamaE
D94: F | E94: 0.1718366 | F94: 474.1804381 | G94: 2759.484523 | K94: Whareama | L94: F | M94: WhareamaF
A95: Homewood | B95: 11566 | D95: A | E95: 1.97 | F95: 4520.625139 | G95: 2294.733573 | H95: =SUM(F95:F98) -> 11566.23262 | I95: =B95-H95 -> -0.2326157993 | K95: =A95 -> Homewood | L95: A | M95: HomewoodA
D96: B | E96: 1.71061 | F96: 944.9959516 | G96: 552.432145 | K96: =K95 -> Homewood | L96: B | M96: HomewoodB
D97: C | E97: 1.5598 | F97: 5712.726761 | G97: 3662.473882 | K97: Homewood | L97: C | M97: HomewoodC
D98: D | E98: 0.223 | F98: 387.8847643 | G98: 1739.393562 | K98: Homewood | L98: D | M98: HomewoodD
A99: Mataikona-Whakataki | B99: 6553 | D99: A | F99: 0 | G99: 4067.5168 | H99: =H153 -> 6553.14 | I99: =B99-H99 -> -0.14 | K99: =A99 -> Mataikona-Whakataki | L99: A | M99: Mataikona-WhakatakiA
D100: B | F100: 0 | G100: 7767.279 | H100: see bottom of sheet | K100: =K99 -> Mataikona-Whakataki | L100: B | M100: Mataikona-WhakatakiB
A101: see bottom of sheet | D101: C | F101: 0 | G101: 11511.3636 | K101: Mataikona-Whakataki | L101: C | M101: Mataikona-WhakatakiC
D102: S | F102: 0 | G102: 12.2 | K102: Mataikona-Whakataki | L102: =D102 -> S | M102: Mataikona-WhakatakiS
A103: Maungaraki | B103: 6835 | D103: A | F103: - | G103: 3305.4718 | H103: =SUM(H155:H158) -> 6835.445963 | I103: =B103-H103 -> -0.445963 | K103: =A103 -> Maungaraki | L103: A | M103: MaungarakiA
D104: B | F104: - | G104: 2971.2169 | H104: see bottom of sheet | K104: =K103 -> Maungaraki | L104: B | M104: MaungarakiB
D105: C | F105: - | K105: =K104 -> Maungaraki | L105: C | M105: MaungarakiC
A106: Upper Kaiwhata | B106: 2444 | D106: A | E106: 9.8 | F106: =E106*G106 -> 319.61818 | G106: 32.6141 | H106: =SUM(F106:F111) -> 2443.925305 | I106: =B106-H106 -> 0.074695 | K106: =A106 -> Upper Kaiwhata | L106: A | M106: Upper KaiwhataA
D107: B | E107: 4.2 | F107: 220.95276 | G107: 52.6078 | K107: =K106 -> Upper Kaiwhata | L107: B | M107: Upper KaiwhataB
D108: C | E108: 0.62 | F108: 594.079412 | G108: 958.1926 | K108: Upper Kaiwhata | L108: C | M108: Upper KaiwhataC
D109: D | E109: 0.39 | F109: 800.544693 | G109: 2052.6787 | K109: Upper Kaiwhata | L109: D | M109: Upper KaiwhataD
D110: E | E110: 0.27 | F110: 443.12994 | G110: 1641.222 | K110: Upper Kaiwhata | L110: E | M110: Upper KaiwhataE
D111: F | E111: 0.145 | F111: 65.60032 | G111: 452.416 | K111: Upper Kaiwhata | L111: F | M111: Upper KaiwhataF
A112: Lower Kaiwhata | B112: 4203 | D112: A | E112: 16.19 | F112: 743.619652 | G112: 45.9308 | H112: =SUM(F112:F117) -> 4202.988572 | I112: =B112-H112 -> 0.011428236 | K112: =A112 -> Lower Kaiwhata | L112: A | M112: Lower KaiwhataA
D113: B | E113: 7.1 | F113: 315.28828 | G113: 44.4068 | K113: =K112 -> Lower Kaiwhata | L113: B | M113: Lower KaiwhataB
D114: C | E114: 1.01901 | F114: 1180.666664 | G114: 1158.6409 | K114: Lower Kaiwhata | L114: C | M114: Lower KaiwhataC
D115: D | E115: 0.638575 | F115: 1889.633592 | G115: 2959.1412 | K115: Lower Kaiwhata | L115: D | M115: Lower KaiwhataD
D116: E | F116: 0 | G116: 0 | K116: Lower Kaiwhata | L116: E | M116: Lower KaiwhataE
D117: F | E117: 0.211825 | F117: 73.78038446 | G117: 348.3082 | K117: Lower Kaiwhata | L117: F | M117: Lower KaiwhataF
A118: Pump Drainage | L118: 0 | M118: 0
A119: Te Hopai | B119: 55200 | D119: A | E119: 44.2801 | F119: =E119*G119 -> 55200.33709 | G119: 1246.617264 | H119: =F119 -> 55200.33709 | I119: =B119-H119 -> -0.3370946105 | K119: =A119 -> Te Hopai | L119: A | M119: Te HopaiA
A120: Moonmoot Pump | B120: 29700 | D120: A | E120: 130.4217 | F120: =E120*G120 -> 29699.99275 | G120: 227.722785 | H120: =F120 -> 29699.99275 | I120: =B120-H120 -> 0.007251565501 | K120: =A120 -> Moonmoot Pump | L120: A | M120: Moonmoot PumpA
A121: Onoke Pump | B121: 51732 | D121: A | E121: 72.5117 | F121: =E121*G121 -> 51731.84448 | G121: 713.42755 | H121: =F121 -> 51731.84448 | I121: =B121-H121 -> 0.155522665 | K121: =A121 -> Onoke Pump | L121: A | M121: Onoke PumpA
A122: Pouawha Pump | B122: 103430 | D122: A | E122: 109.3922 | F122: =E122*G122 -> 103430.3516 | G122: 945.500242 | H122: =F122 -> 103430.3516 | I122: =B122-H122 -> -0.3515729124 | K122: =A122 -> Pouawha Pump | L122: A | M122: Pouawha PumpA
A123: Gravity Drainage | L123: 0 | M123: 0
A124: Okawa | B124: 1976 | D124: A | E124: 7.0071 | F124: =E124*G124 -> 1976.00963 | G124: 282.0010603 | H124: =F124 -> 1976.00963 | I124: =B124-H124 -> -0.009629960399 | K124: =A124 -> Okawa | L124: A | M124: OkawaA
A125: Taumata | B125: 1834 | D125: A | E125: 6.3119 | F125: 1834.002706 | G125: 290.5627 | H125: =F125 -> 1834.002706 | I125: =B125-H125 -> -0.00270613 | K125: =A125 -> Taumata | L125: A | M125: TaumataA
A126: East Pukio | B126: 3150 | D126: A | E126: 27.7403 | F126: 3149.998172 | G126: 113.5531401 | H126: =F126 -> 3149.998172 | I126: 0.001827885136 | K126: =A126 -> East Pukio | L126: A | M126: East PukioA
A127: Longbush | B127: 4427 | D127: A | E127: 15.7545 | F127: 3436.78622 | G127: 218.1463214 | H127: =SUM(F127:F128) -> 4426.997453 | I127: 0.002546515785 | K127: =A127 -> Longbush | L127: A | M127: LongbushA
D128: B | E128: 7.8773 | F128: 990.2112337 | G128: 125.7043954 | I128: 0 | K128: =K127 -> Longbush | L128: B | M128: LongbushB
A129: Otahoua | B129: 3000 | D129: A | E129: 32.3574 | F129: 2999.997807 | G129: 92.7144272 | H129: =F129 -> 2999.997807 | I129: =B129-H129 -> 0.002193227476 | K129: =A129 -> Otahoua | L129: A | M129: OtahouaA
A130: Te Whiti | B130: 1348 | D130: A | E130: 9.5417 | F130: 1347.994126 | G130: 141.274 | H130: =F130 -> 1347.994126 | I130: 0.0058742 | K130: =A130 -> Te Whiti | L130: A | M130: Te WhitiA
A131: Ahikouka | B131: 3048 | D131: A | E131: 27.1664 | F131: 3048.274779 | G131: 112.207535 | H131: =F131 -> 3048.274779 | I131: -0.274778824 | K131: =A131 -> Ahikouka | L131: A | M131: AhikoukaA
A132: Battersea | B132: 10332 | D132: A | E132: 15.0373 | F132: =E132*G132 -> 2536.809823 | G132: 168.7011513 | H132: =SUM(F132:F137) -> 10332.00382 | I132: -0.003824242869 | K132: =A132 -> Battersea | L132: A | M132: BatterseaA
D133: B | E133: 12.4258 | F133: 2427.513604 | G133: 195.3607497 | K133: =K132 -> Battersea | L133: B | M133: BatterseaB
D134: C | E134: 9.7245 | F134: 3092.501236 | G134: 318.0113359 | K134: =K133 -> Battersea | L134: =D134 -> C | M134: BatterseaC
D135: D | E135: 5.8792 | F135: =E135*G135 -> 897.9722551 | G135: 152.7371505 | K135: Battersea | L135: D | M135: =K135&L135 -> BatterseaD
D136: E | E136: 5.028 | F136: 1020.155218 | G136: 202.8948324 | K136: Battersea | L136: E | M136: BatterseaE
D137: F | E137: 5.069 | F137: 357.0516893 | G137: 70.43828946 | K137: Battersea | L137: F | M137: BatterseaF
A138: Manaia | B138: 3969 | D138: A | E138: 22.7528 | F138: 3969.004915 | G138: 174.4402849 | H138: =F138 -> 3969.004915 | I138: =B138-H138 -> -0.004914695824 | K138: =A138 -> Manaia | L138: A | M138: ManaiaA
A139: Whakawiriwiri | B139: 8273 | D139: A | E139: 11.4764 | F139: 8273.015647 | G139: 720.8720197 | H139: =F139 -> 8273.015647 | I139: =B139-H139 -> -0.01564696084 | K139: =A139 -> Whakawiriwiri | L139: A | M139: WhakawiriwiriA
A140: Total Scheme Rates | B140: =SUM(B9:B139) -> 1487363 | F140: =SUM(F8:F139)+H149+H153+H155+H156+H157+H158 -> 1487363.821 | H140: =SUM(H8:H139) -> 1487363.821 | I140: =SUM(I8:I139) -> -0.8206703866
A141: Checks | B141: =IF(ABS(INDEX(ESSbase!$G$8:$G$25,MATCH("Special Rates",ESSbase!$B$8:$B$25,0),)-B140)>tolerance_dollar,1,0) -> 0 | F141: =IF(ABS(INDEX(ESSbase!$G$8:$G$25,MATCH("Special Rates",ESSbase!$B$8:$B$25,0),)-F140)>tolerance_dollar,1,0) -> 0 | H141: =IF(ABS(INDEX(ESSbase!$G$8:$G$25,MATCH("Special Rates",ESSbase!$B$8:$B$25,0),)-H140)>tolerance_dollar,1,0) -> 0
A145: Revised
A146: Catchment Schemes | B146: $GST Excl | E146: Rate Base | K146: 67774000
A147: Awhea-Opouawe Catchment Scheme | B147: =B81 -> 22344 | E147: land value | F147: =DOLLAR(K146,0)&" x "&ROUND(K147,5)&" cents" -> $67,774,000 x 0.00016 cents | H147: =K148 -> 10523 | K147: 0.0001552660312
E148: charge per dwelling | F148: $114.54 / $57.27 | H148: 11820.7 | K148: =K146*K147 -> 10523
H149: =SUM(H147:H148) -> 22343.7
A151: Mataikona Whakataki Catchment Scheme | B151: =B99 -> 6553 | E151: land value within scheme area | F151: =DOLLAR(K151,0)&" x "&ROUND(K152,9)&" cents" -> $74,213,500 x 0.000052349 cents | H151: =K153 -> 3885 | K151: 74213500
E152: charge per dwelling | F152: 15.3 | H152: 2668.14 | K152: 5.234896616e-05
H153: =SUM(H151:H152) -> 6553.14 | K153: =K151*K152 -> 3885
A155: Maungaraki Catchment Scheme | B155: =B103 -> 6835 | E155: Class A | F155: 0.99 | G155: 3305.4718 | H155: =F155*G155 -> 3272.417082
E156: Class B | F156: 0.49 | G156: 2971.2169 | H156: =F156*G156 -> 1455.896281
E157: Charge per dwelling | F157: 22.18 | G157: 19 | H157: 421.42
E158: River frontage | F158: 0.0354 | G158: 47619 | H158: =F158*G158 -> 1685.7126
A162: Notes
A163: All River Management schemes have hectare adjustments which in turn affect the $/ha and total columns
A164: Upper Mangatarere River scheme on rates holiday
A165: Bovine Tb rate has been deleted

Sheet >>District wide rates
L7: New category to be added in GL
L8: New category to be added in GL, was "River Mgmt Rates"

Sheet Gen
A1: Wellington Regional Council
A2: ="General rate "&year_current -> General rate 2018/19
A3: Printed: | B3: =NOW() -> 2018-11-12T16:52:19.590
A4: =check_total -> 0
B6: CV | C6: ="ECV "&year_current -> ECV 2018/19 | D6: General Rate | E6: Rates sought
B7: $ | C7: $ | D7: $ | E7: Cents per $
A9: By TA
A10: Wellington city | B10: =INDEX(capital_values,MATCH($A10&"district wide",capital_values_rows,0),MATCH(B$6&" "&year_current,capital_values_header,0)) -> 51992837451 | C10: =INDEX(capital_values,MATCH($A10&"district wide",capital_values_rows,0),MATCH(C$6,capital_values_header,0)) -> 68975077410 | D10: =C10/C$19*D$19 -> 23048092.38 | E10: =D10/B10*100 -> 0.04432936056
A11: Hutt city | B11: 21402530500 | C11: 24118117072 | D11: =C11/C$19*D$19 -> 8059093.387 | E11: =D11/B11*100 -> 0.03765486229
A12: Upper Hutt city | B12: 8186377260 | C12: 9172479133 | D12: 3064993.246 | E12: 0.03744016612
A13: Porirua city | B13: 10277129250 | C13: 11429809803 | D13: 3819282.588 | E13: 0.03716293233
A14: Kāpiti Coast district | B14: 14770315600 | C14: 14678791680 | D14: 4904933.192 | E14: 0.03320804595
A15: Masterton district | B15: 5846514500 | C15: 5891731979 | D15: 1968728.242 | E15: 0.03367353732
A16: Carterton district | B16: 2684833200 | C16: 2715649450 | D16: 907437.03 | E16: 0.0337986371
A17: South Wairarapa district | B17: 4507670300 | C17: 4514129051 | D17: 1508400.821 | E17: 0.03346298021
A18: Tararua district | B18: 10760500 | C18: 7041800 | D18: 2353.024643 | E18: 0.02186724263
A19: Region wide | B19: =SUM(B10:B18) -> 119678968561 | C19: =SUM(C10:C18) -> 141502827378 | D19: =INDEX(ess_base_estract,MATCH(D6,ESSbase!$B$8:$B$25,0),MATCH(year_current,ESSbase!$F$6:$G$6,0)) -> 47283313.91 | E19: 0.03950845706
A22: Upper Hutt breakdown
A23: Trentham Military Camp | B23: =SUMIFS('UHCC Adjustments'!$D$9:$D$27,'UHCC Adjustments'!$B$9:$B$27,"Total",'UHCC Adjustments'!$C$9:$C$27,A23) -> 87721000 | D23: =+D12*'UHCC Adjustments'!$E$34 -> 26152.36256 | E23: =D23/B23*100 -> 0.02981311494
A24: Rest of Upper Hutt city | B24: =SUMIFS('UHCC Adjustments'!$D$9:$D$27,'UHCC Adjustments'!$B$9:$B$27,"Total",'UHCC Adjustments'!$C$9:$C$27,A24) -> 8098656260 | D24: =+D12-D23 -> 3038840.883 | E24: =D24/B24*100 -> 0.03752277891
A25: Total Upper Hutt city | B25: =+B24+B23 -> 8186377260 | D25: =+D24+D23 -> 3064993.246 | E25: =D25/B25*100 -> 0.03744016612
A28: Check Upper Hutt total | B28: =B25-B12 -> 0 | D28: =D25-D12 -> 0
A29: Check totals | B29: =B19-SUM(B10:B18) -> 0 | C29: =C19-SUM(C10:C18) -> 0 | D29: =D19-SUM(D10:D18) -> 0

Sheet River management
A1: Wellington Regional Council
A2: ="River management rate "&year_current -> River management rate 2018/19
A3: Printed: | B3: =NOW() -> 2018-11-12T16:52:19.590
A4: =check_total -> 0
B6: CV | C6: River management rate | D6: Rates sought
B7: $ | C7: $ | D7: Cents per $
A9: By TA
A10: Wellington city | B10: =INDEX(capital_values,MATCH($A10&"district wide",capital_values_rows,0),MATCH(B$6&" "&year_current,capital_values_header,0)) -> 51992837451 | C10: =INDEX(Control!$C$110:$C$121,MATCH(A10,Control!$A$110:$A$121,0),) -> 42679 | D10: =C10/B10*100 -> 8.208630668e-05
A11: Hutt city | B11: 21402530500 | C11: =INDEX(Control!$C$110:$C$121,MATCH(A11,Control!$A$110:$A$121,0),) -> 4356562 | D11: 0.02035535938
A12: Upper Hutt city | B12: 8186377260 | C12: =INDEX(Control!$C$110:$C$121,MATCH(A12,Control!$A$110:$A$121,0),) -> 667062 | D12: 0.008148439521
A13: Porirua city | B13: 10277129250 | C13: =INDEX(Control!$C$110:$C$121,MATCH(A13,Control!$A$110:$A$121,0),) -> 33588 | D13: 0.0003268227847
A14: Kāpiti Coast district | B14: 14770315600 | C14: =INDEX(Control!$C$110:$C$121,MATCH(A14,Control!$A$110:$A$121,0),) -> 1335375 | D14: 0.009040937487
A15: Masterton district | B15: 5846514500 | C15: =INDEX(Control!$C$110:$C$121,MATCH(A15,Control!$A$110:$A$121,0),) -> 0 | D15: =C15/B15*100 -> 0
A16: Carterton district | B16: 2684833200 | C16: =INDEX(Control!$C$110:$C$121,MATCH(A16,Control!$A$110:$A$121,0),) -> 23705 | D16: 0.0008829226337
A17: South Wairarapa district | B17: 4507670300 | C17: =INDEX(Control!$C$110:$C$121,MATCH(A17,Control!$A$110:$A$121,0),) -> 0 | D17: 0
A18: Tararua district | B18: 10760500 | C18: =INDEX(Control!$C$110:$C$121,MATCH(A18,Control!$A$110:$A$121,0),) -> 0 | D18: 0
A19: Region wide | B19: =SUM(B10:B18) -> 119678968561 | C19: =INDEX(ess_base_estract,MATCH(C6,ESSbase!$B$8:$B$25,0),MATCH(year_current,ESSbase!$F$6:$G$6,0)) -> 6458970.807 | D19: 0.005396913831
A22: Upper Hutt breakdown
A23: Trentham Military Camp | B23: =SUMIFS('UHCC Adjustments'!$D$9:$D$27,'UHCC Adjustments'!$B$9:$B$27,"Total",'UHCC Adjustments'!$C$9:$C$27,A23) -> 87721000 | C23: =+C12*'UHCC Adjustments'!$E$34 -> 5691.77348 | D23: =C23/B23*100 -> 0.006488495891
A24: Rest of Upper Hutt city | B24: =SUMIFS('UHCC Adjustments'!$D$9:$D$27,'UHCC Adjustments'!$B$9:$B$27,"Total",'UHCC Adjustments'!$C$9:$C$27,A24) -> 8098656260 | C24: =+C12-C23 -> 661370.2265 | D24: =C24/B24*100 -> 0.008166419283
A25: Total Upper Hutt city | B25: =+B24+B23 -> 8186377260 | C25: =+C24+C23 -> 667062 | D25: =C25/B25*100 -> 0.008148439521
A28: Non district wide
A29: Greytown River Management Rate | B29: =INDEX('Capital values'!$F$48:$F$49,MATCH("Greytown Urban -CV",'Capital values'!$A$48:$A$49,0),) -> 739130000 | C29: =INDEX(Control!$D$125:$D$126,MATCH(A29,Control!$A$125:$A$126,0),) -> 92549 | D29: =C29/B29*100 -> 0.01252134266
A30: Donalds Creek Stopbank River Management Rate | B30: =INDEX('Capital values'!$F$48:$F$49,MATCH("Featherston Urban - LV",'Capital values'!$A$48:$A$49,0),) -> 162213500 | C30: =INDEX(Control!$D$125:$D$126,MATCH(A30,Control!$A$125:$A$126,0),) -> 2615 | D30: =C30/B30*100 -> 0.001612072978
A31: Total non-district wide rates | C31: =INDEX(ess_base_estract,MATCH(C6&" - Non district Wide",ESSbase!$B$8:$B$25,0),MATCH(year_current,ESSbase!$F$6:$G$6,0)) -> 95164
A34: Check Upper Hutt total | B34: =B25-B12 -> 0 | C34: =C25-C12 -> 0
A35: Check Non district Wide total | C35: =IF(ABS(C31-SUM(C29:C30))>tolerance_dollar,1,0) -> 0
A36: Check totals | B36: =B19-SUM(B10:B18) -> 0 | C36: =IF(ABS(C19-SUM(C10:C18))>tolerance_dollar,1,0) -> 0

Sheet Stadium
A1: Wellington Regional Council
A2: ="Stadium purposes rate "&year_current -> Stadium purposes rate 2018/19
A3: Printed: | C3: =NOW() -> 2018-11-12T16:52:19.590
A4: =check_total -> 0
A6: =Control!A66 -> TA full name | B6: =Control!B66 -> Rating area | C6: =Control!C66 -> Category group | D6: =Control!D66 -> Concatenated name | E6: ="Allocation "&year_current -> Allocation 2018/19 | F6: CV | G6: Stadium purposes rate | H6: Rates sought
A7: =Control!A52 -> 0 | C7: =Control!B52 -> 0 | D7: =Control!C52 -> 0 | E7: % | F7: $ | G7: $ | H7: Cents per $
A9: By TA
A10: =Control!A42 -> Wellington city | C10: =Control!B42 -> District wide | D10: =Control!C42 -> Wellington cityDistrict wide | E10: =SUMIF($A$23:$A$49,$A10,$E$23:$E$49) -> 0.594 | F10: =INDEX(capital_values,MATCH($D10,capital_values_rows,0),MATCH(F$6&" "&year_current,capital_values_header,0)) -> 51992837451 | G10: =SUMIF($A$23:$A$49,$A10,$G$23:$G$49) -> 0
A11: =Control!A43 -> Hutt city | C11: =Control!B43 -> District wide | D11: =Control!C43 -> Hutt cityDistrict wide | E11: 0.1952 | F11: 21402530500 | G11: =SUMIF($A$23:$A$49,$A11,$G$23:$G$49) -> 0
A12: =Control!A44 -> Upper Hutt city | C12: =Control!B44 -> District wide | D12: =Control!C44 -> Upper Hutt cityDistrict wide | E12: 0.0526 | F12: 8186377260 | G12: 0
A13: =Control!A45 -> Porirua city | C13: =Control!B45 -> District wide | D13: =Control!C45 -> Porirua cityDistrict wide | E13: 0.0718 | F13: 10277129250 | G13: 0
A14: =Control!A46 -> Kāpiti Coast district | C14: =Control!B46 -> District wide | D14: =Control!C46 -> Kāpiti Coast districtDistrict wide | E14: 0.0484 | F14: 14770315600 | G14: 0
A15: =Control!A47 -> Masterton district | C15: =Control!B47 -> District wide | D15: =Control!C47 -> Masterton districtDistrict wide | E15: 0.02 | F15: 5846514500 | G15: 0
A16: =Control!A48 -> Carterton district | C16: =Control!B48 -> District wide | D16: =Control!C48 -> Carterton districtDistrict wide | E16: 0.007 | F16: 2684833200 | G16: 0
A17: =Control!A49 -> South Wairarapa district | C17: =Control!B49 -> District wide | D17: =Control!C49 -> South Wairarapa districtDistrict wide | E17: 0.011 | F17: 4507670300 | G17: 0
A18: =Control!A50 -> Tararua district | C18: =Control!B50 -> District wide | D18: =Control!C50 -> Tararua districtDistrict wide | E18: 0 | F18: 10760500 | G18: =SUMIF($A$23:$A$49,$A18,$G$23:$G$49) -> 0
A19: Region wide | E19: =SUM(E10:E18) -> 1 | F19: =SUM(F10:F18) -> 119678968561 | G19: =SUM(G10:G18) -> 0
A22: By TA & Category
A23: =Control!A67 -> Wellington city | B23: =Control!B67 -> Wellington city | C23: =Control!C67 -> Regional CBD | D23: =Control!D67 -> Wellington cityRegional CBD | E23: =INDEX(stadium_rate_allocation,MATCH(D23,Control!$C$133:$C$159,0),) -> 0.13798828 | F23: =INDEX(capital_values,MATCH($D23,capital_values_rows,0),MATCH(F$6&" "&year_current,capital_values_header,0)) -> 7963363000 | G23: =$G$50*E23 -> 0 | H23: =G23/F23*100 -> 0
A24: =Control!A68 -> Wellington city | B24: =Control!B68 -> Wellington city | C24: =Control!C68 -> Business | D24: =Control!D68 -> Wellington cityBusiness | E24: =INDEX(stadium_rate_allocation,MATCH(D24,Control!$C$133:$C$159,0),) -> 0.06751171995 | F24: 3896130400 | G24: 0 | H24: 0
A25: =Control!A69 -> Wellington city | B25: =Control!B69 -> Wellington city | C25: =Control!C69 -> Residential | D25: =Control!D69 -> Wellington cityResidential | E25: =INDEX(stadium_rate_allocation,MATCH(D25,Control!$C$133:$C$159,0),) -> 0.3856 | F25: 39537398501 | G25: 0 | H25: 0
A26: =Control!A70 -> Wellington city | B26: =Control!B70 -> Wellington city | C26: =Control!C70 -> Rural | D26: =Control!D70 -> Wellington cityRural | E26: =INDEX(stadium_rate_allocation,MATCH(D26,Control!$C$133:$C$159,0),) -> 0.0029 | F26: 595945550 | G26: 0 | H26: 0
A27: =Control!A71 -> Hutt city | B27: =Control!B71 -> Hutt city | C27: =Control!C71 -> Business | D27: =Control!D71 -> Hutt cityBusiness | E27: =INDEX(stadium_rate_allocation,MATCH(D27,Control!$C$133:$C$159,0),) -> 0.0509 | F27: 3789029500 | G27: 0 | H27: 0
A28: =Control!A72 -> Hutt city | B28: =Control!B72 -> Hutt city | C28: =Control!C72 -> Residential | D28: =Control!D72 -> Hutt cityResidential | E28: =INDEX(stadium_rate_allocation,MATCH(D28,Control!$C$133:$C$159,0),) -> 0.142 | F28: 17301952000 | G28: 0 | H28: 0
A29: =Control!A73 -> Hutt city | B29: =Control!B73 -> Hutt city | C29: =Control!C73 -> Rural | D29: =Control!D73 -> Hutt cityRural | E29: =INDEX(stadium_rate_allocation,MATCH(D29,Control!$C$133:$C$159,0),) -> 0.0023 | F29: 311549000 | G29: 0 | H29: 0
A30: =Control!A74 -> Upper Hutt city | B30: =Control!B74 -> Upper Hutt city | C30: =Control!C74 -> Business | D30: =Control!D74 -> Upper Hutt cityBusiness | E30: =INDEX(stadium_rate_allocation,MATCH(D30,Control!$C$133:$C$159,0),) -> 0.0079 | F30: 1174676500 | G30: 0 | H30: 0
A31: =Control!A75 -> Upper Hutt city | B31: =Control!B75 -> Upper Hutt city | C31: =Control!C75 -> Residential | D31: =Control!D75 -> Upper Hutt cityResidential | E31: =INDEX(stadium_rate_allocation,MATCH(D31,Control!$C$133:$C$159,0),) -> 0.0427 | F31: 6156988420 | G31: 0 | H31: 0
A32: =Control!A76 -> Upper Hutt city | B32: =Control!B76 -> Upper Hutt city | C32: =Control!C76 -> Rural | D32: =Control!D76 -> Upper Hutt cityRural | E32: =INDEX(stadium_rate_allocation,MATCH(D32,Control!$C$133:$C$159,0),) -> 0.002 | F32: 854712340 | G32: 0 | H32: 0
A33: =Control!A77 -> Porirua city | B33: =Control!B77 -> Porirua city | C33: =Control!C77 -> Business | D33: =Control!D77 -> Porirua cityBusiness | E33: =INDEX(stadium_rate_allocation,MATCH(D33,Control!$C$133:$C$159,0),) -> 0.0124 | F33: 1099995500 | G33: 0 | H33: 0
A34: =Control!A78 -> Porirua city | B34: =Control!B78 -> Porirua city | C34: =Control!C78 -> Residential | D34: =Control!D78 -> Porirua cityResidential | E34: =INDEX(stadium_rate_allocation,MATCH(D34,Control!$C$133:$C$159,0),) -> 0.058 | F34: 8551317050 | G34: =$G$50*E34 -> 0 | H34: =G34/F34*100 -> 0
A35: =Control!A79 -> Porirua city | B35: =Control!B79 -> Porirua city | C35: =Control!C79 -> Rural | D35: =Control!D79 -> Porirua cityRural | E35: =INDEX(stadium_rate_allocation,MATCH(D35,Control!$C$133:$C$159,0),) -> 0.0014 | F35: 625816700 | G35: 0 | H35: 0
A36: =Control!A80 -> Kāpiti Coast district | B36: =Control!B80 -> Kāpiti Coast district | C36: =Control!C80 -> Business | D36: =Control!D80 -> Kāpiti Coast districtBusiness | E36: =INDEX(stadium_rate_allocation,MATCH(D36,Control!$C$133:$C$159,0),) -> 0.005094576068 | F36: 1479149500 | G36: 0 | H36: 0
A37: =Control!A81 -> Kāpiti Coast district | B37: =Control!B81 -> Kāpiti Coast district excl Ōtaki | C37: =Control!C81 -> Residential | D37: =Control!D81 -> Kāpiti Coast district excl Ōtaki Residential | E37: =INDEX(stadium_rate_allocation,MATCH(D37,Control!$C$133:$C$159,0),) -> 0.0352003397 | F37: 10219999500 | G37: 0 | H37: 0
A38: =Control!A82 -> Kāpiti Coast district | B38: =Control!B82 -> Ōtaki rating area | C38: =Control!C82 -> Residential | D38: =Control!D82 -> Ōtaki rating areaResidential | E38: =INDEX(stadium_rate_allocation,MATCH(D38,Control!$C$133:$C$159,0),) -> 0.003805084234 | F38: 1104760900 | G38: 0 | H38: 0
A39: =Control!A83 -> Kāpiti Coast district | B39: =Control!B83 -> Kāpiti Coast district | C39: =Control!C83 -> Rural | D39: =Control!D83 -> Kāpiti Coast districtRural | E39: =INDEX(stadium_rate_allocation,MATCH(D39,Control!$C$133:$C$159,0),) -> 0.0043 | F39: 1966405700 | G39: 0 | H39: 0
A40: =Control!A84 -> Masterton district | B40: =Control!B84 -> Masterton district | C40: =Control!C84 -> Business | D40: =Control!D84 -> Masterton districtBusiness | E40: =INDEX(stadium_rate_allocation,MATCH(D40,Control!$C$133:$C$159,0),) -> 0.002097181305 | F40: 433363100 | G40: 0 | H40: 0
A41: =Control!A85 -> Masterton district | B41: =Control!B85 -> Masterton district | C41: =Control!C85 -> Residential | D41: =Control!D85 -> Masterton districtResidential | E41: =INDEX(stadium_rate_allocation,MATCH(D41,Control!$C$133:$C$159,0),) -> 0.01260281869 | F41: 2604255800 | G41: 0 | H41: 0
A42: =Control!A86 -> Masterton district | B42: =Control!B86 -> Masterton district | C42: =Control!C86 -> Rural | D42: =Control!D86 -> Masterton districtRural | E42: =INDEX(stadium_rate_allocation,MATCH(D42,Control!$C$133:$C$159,0),) -> 0.0053 | F42: 2808895600 | G42: 0 | H42: 0
A43: =Control!A87 -> Carterton district | B43: =Control!B87 -> Carterton district | C43: =Control!C87 -> Business | D43: =Control!D87 -> Carterton districtBusiness | E43: =INDEX(stadium_rate_allocation,MATCH(D43,Control!$C$133:$C$159,0),) -> 0.0004007637423 | F43: 96652500 | G43: 0 | H43: 0
A44: =Control!A88 -> Carterton district | B44: =Control!B88 -> Carterton district | C44: =Control!C88 -> Residential | D44: =Control!D88 -> Carterton districtResidential | E44: =INDEX(stadium_rate_allocation,MATCH(D44,Control!$C$133:$C$159,0),) -> 0.003499236258 | F44: 843913500 | G44: 0 | H44: 0
A45: =Control!A89 -> Carterton district | B45: =Control!B89 -> Carterton district | C45: =Control!C89 -> Rural | D45: =Control!D89 -> Carterton districtRural | E45: =INDEX(stadium_rate_allocation,MATCH(D45,Control!$C$133:$C$159,0),) -> 0.0031 | F45: 1744267200 | G45: 0 | H45: 0
A46: =Control!A90 -> South Wairarapa district | B46: =Control!B90 -> South Wairarapa district | C46: =Control!C90 -> Business | D46: =Control!D90 -> South Wairarapa districtBusiness | E46: =INDEX(stadium_rate_allocation,MATCH(D46,Control!$C$133:$C$159,0),) -> 0.0009746779245 | F46: 206493600 | G46: 0 | H46: 0
A47: =Control!A91 -> South Wairarapa district | B47: =Control!B91 -> South Wairarapa district | C47: =Control!C91 -> Residential | D47: =Control!D91 -> South Wairarapa districtResidential | E47: =INDEX(stadium_rate_allocation,MATCH(D47,Control!$C$133:$C$159,0),) -> 0.006225322076 | F47: 1318886100 | G47: 0 | H47: 0
A48: =Control!A92 -> South Wairarapa district | B48: =Control!B92 -> South Wairarapa district | C48: =Control!C92 -> Rural | D48: =Control!D92 -> South Wairarapa districtRural | E48: =INDEX(stadium_rate_allocation,MATCH(D48,Control!$C$133:$C$159,0),) -> 0.0038 | F48: 2982290600 | G48: 0 | H48: 0
A49: =Control!A93 -> Tararua district | B49: =Control!B93 -> Tararua district | C49: =Control!C93 -> Rural | D49: =Control!D93 -> Tararua districtRural | E49: =INDEX(stadium_rate_allocation,MATCH(D49,Control!$C$133:$C$159,0),) -> 0 | F49: 10760500 | G49: 0 | H49: 0
A50: Region wide | E50: =SUM(E23:E49) -> 1 | F50: =SUM(F23:F49) -> 119678968561 | G50: =INDEX(ess_base_estract,MATCH(G6,ESSbase!$B$8:$B$25,0),MATCH(year_current,ESSbase!$F$6:$G$6,0)) -> 0
A53: Upper Hutt breakdown
A54: =$A$12 -> Upper Hutt city | B54: Trentham Military Camp | C54: Business | D54: =B54&C54 -> Trentham Military CampBusiness | E54: =SUMIFS($E$23:$E$49,$A$23:$A$49,A54,$C$23:$C$49,C54) * IF(B54="Trentham Military Camp", INDEX('UHCC Adjustments'!$E$30:$E$32,MATCH(C54,'UHCC Adjustments'!$B$30:$B$32,0),), 1-INDEX('UHCC Adjustments'!$E$30:$E$32,MATCH(C54,'UHCC Adjustments'!$B$30:$B$32,0),)) -> 0.0005254733899 | F54: =SUMIFS('UHCC Adjustments'!$D$9:$D$27,'UHCC Adjustments'!$B$9:$B$27,C54,'UHCC Adjustments'!$C$9:$C$27,B54) -> 56325000 | G54: =$G$50*E54 -> 0 | H54: =G54/F54*100 -> 0
A55: Upper Hutt city | B55: Rest of Upper Hutt City | C55: Business | D55: =B55&C55 -> Rest of Upper Hutt CityBusiness | E55: =SUMIFS($E$23:$E$49,$A$23:$A$49,A55,$C$23:$C$49,C55) * IF(B55="Trentham Military Camp", INDEX('UHCC Adjustments'!$E$30:$E$32,MATCH(C55,'UHCC Adjustments'!$B$30:$B$32,0),), 1-INDEX('UHCC Adjustments'!$E$30:$E$32,MATCH(C55,'UHCC Adjustments'!$B$30:$B$32,0),)) -> 0.00737452661 | F55: =SUMIFS('UHCC Adjustments'!$D$9:$D$27,'UHCC Adjustments'!$B$9:$B$27,C55,'UHCC Adjustments'!$C$9:$C$27,B55) -> 1118351500 | G55: =$G$50*E55 -> 0 | H55: 0
A56: Upper Hutt city | B56: Trentham Military Camp | C56: Residential | D56: Trentham Military CampResidential | E56: =SUMIFS($E$23:$E$49,$A$23:$A$49,A56,$C$23:$C$49,C56) * IF(B56="Trentham Military Camp", INDEX('UHCC Adjustments'!$E$30:$E$32,MATCH(C56,'UHCC Adjustments'!$B$30:$B$32,0),), 1-INDEX('UHCC Adjustments'!$E$30:$E$32,MATCH(C56,'UHCC Adjustments'!$B$30:$B$32,0),)) -> 0.0001362811939 | F56: =SUMIFS('UHCC Adjustments'!$D$9:$D$27,'UHCC Adjustments'!$B$9:$B$27,C56,'UHCC Adjustments'!$C$9:$C$27,B56) -> 26720000 | G56: 0 | H56: 0
A57: Upper Hutt city | B57: Rest of Upper Hutt City | C57: Residential | D57: Rest of Upper Hutt CityResidential | E57: =SUMIFS($E$23:$E$49,$A$23:$A$49,A57,$C$23:$C$49,C57) * IF(B57="Trentham Military Camp", INDEX('UHCC Adjustments'!$E$30:$E$32,MATCH(C57,'UHCC Adjustments'!$B$30:$B$32,0),), 1-INDEX('UHCC Adjustments'!$E$30:$E$32,MATCH(C57,'UHCC Adjustments'!$B$30:$B$32,0),)) -> 0.04256371881 | F57: =SUMIFS('UHCC Adjustments'!$D$9:$D$27,'UHCC Adjustments'!$B$9:$B$27,C57,'UHCC Adjustments'!$C$9:$C$27,B57) -> 6130268420 | G57: 0 | H57: 0
A58: Upper Hutt city | B58: Trentham Military Camp | C58: Rural | D58: Trentham Military CampRural | E58: =SUMIFS($E$23:$E$49,$A$23:$A$49,A58,$C$23:$C$49,C58) * IF(B58="Trentham Military Camp", INDEX('UHCC Adjustments'!$E$30:$E$32,MATCH(C58,'UHCC Adjustments'!$B$30:$B$32,0),), 1-INDEX('UHCC Adjustments'!$E$30:$E$32,MATCH(C58,'UHCC Adjustments'!$B$30:$B$32,0),)) -> 1.290124508e-05 | F58: =SUMIFS('UHCC Adjustments'!$D$9:$D$27,'UHCC Adjustments'!$B$9:$B$27,C58,'UHCC Adjustments'!$C$9:$C$27,B58) -> 4676000 | G58: 0 | H58: 0
A59: Upper Hutt city | B59: Rest of Upper Hutt City | C59: Rural | D59: Rest of Upper Hutt CityRural | E59: =SUMIFS($E$23:$E$49,$A$23:$A$49,A59,$C$23:$C$49,C59) * IF(B59="Trentham Military Camp", INDEX('UHCC Adjustments'!$E$30:$E$32,MATCH(C59,'UHCC Adjustments'!$B$30:$B$32,0),), 1-INDEX('UHCC Adjustments'!$E$30:$E$32,MATCH(C59,'UHCC Adjustments'!$B$30:$B$32,0),)) -> 0.001987098755 | F59: =SUMIFS('UHCC Adjustments'!$D$9:$D$27,'UHCC Adjustments'!$B$9:$B$27,C59,'UHCC Adjustments'!$C$9:$C$27,B59) -> 850036340 | G59: 0 | H59: 0
A60: Total | E60: =SUM(E54:E59) -> 0.0526 | F60: =SUM(F54:F59) -> 8186377260 | G60: =SUM(G54:G59) -> 0
A63: Check Upper Hutt total | E63: =E60-E12 -> 0 | F63: =F60-F12 -> 0 | G63: =G60-G12 -> 0
A64: Check TA totals | E64: =E19-SUM(E10:E18) -> 0 | F64: =F19-SUM(F10:F18) -> 0 | G64: =G19-SUM(G10:G18) -> 0
A65: Check category totals | E65: =E50-SUM(E23:E49) -> 0 | F65: =F50-SUM(F23:F49) -> 0 | G65: =G50-SUM(G23:G49) -> 0
A66: Category matches TA | F66: =F50-F19 -> 0 | G66: =G50-G19 -> 0

Sheet WRS
A1: Wellington Regional Council
A2: ="Wellington regional strategy rate "&year_current -> Wellington regional strategy rate 2018/19
A3: Printed: | B3: =NOW() -> 2018-11-12T16:52:19.590
A4: =check_total -> 0
A6: =Control!A66 -> TA full name | B6: =Control!B66 -> Rating area | C6: =Control!C66 -> Category group | D6: =Control!D66 -> Concatenated name | E6: CV assessments | F6: Contiguous assements | G6: Rateable properties | H6: Rating basis | I6: CV | J6: ECV | K6: Wellington regional strategy rate | L6: Rates sought
A7: =Control!A52 -> 0 | C7: =Control!B52 -> 0 | D7: =Control!C52 -> 0 | E7: # | F7: # | G7: # | H7: $ | I7: $ | J7: $ | K7: $ | L7: Cents per $
A9: By TA
A10: =Control!A42 -> Wellington city | C10: =Control!B42 -> District wide | D10: =Control!C42 -> Wellington cityDistrict wide | I10: =INDEX(capital_values,MATCH($D10,capital_values_rows,0),MATCH(I$6&" "&year_current,capital_values_header,0)) -> 51992837451 | J10: 68975077410 | K10: =SUMIF($A$23:$A$49,$A10,$K$23:$K$49) -> 2351472.423
A11: =Control!A43 -> Hutt city | C11: =Control!B43 -> District wide | D11: =Control!C43 -> Hutt cityDistrict wide | I11: 21402530500 | J11: 24118117072 | K11: =SUMIF($A$23:$A$49,$A11,$K$23:$K$49) -> 883091.458
A12: =Control!A44 -> Upper Hutt city | C12: =Control!B44 -> District wide | D12: =Control!C44 -> Upper Hutt cityDistrict wide | I12: 8186377260 | J12: 9172479133 | K12: 351106.9446
A13: =Control!A45 -> Porirua city | C13: =Control!B45 -> District wide | D13: =Control!C45 -> Porirua cityDistrict wide | I13: 10277129250 | J13: 11429809803 | K13: 362532.2064
A14: =Control!A46 -> Kāpiti Coast district | C14: =Control!B46 -> District wide | D14: =Control!C46 -> Kāpiti Coast districtDistrict wide | I14: 14770315600 | J14: 14678791680 | K14: 485529.9273
A15: =Control!A47 -> Masterton district | C15: =Control!B47 -> District wide | D15: =Control!C47 -> Masterton districtDistrict wide | I15: 5846514500 | J15: 5891731979 | K15: 243887.5806
A16: =Control!A48 -> Carterton district | C16: =Control!B48 -> District wide | D16: =Control!C48 -> Carterton districtDistrict wide | I16: 2684833200 | J16: 2715649450 | K16: 90214.33542
A17: =Control!A49 -> South Wairarapa district | C17: =Control!B49 -> District wide | D17: =Control!C49 -> South Wairarapa districtDistrict wide | I17: 4507670300 | J17: 4514129051 | K17: 139773.9458
A18: =Control!A50 -> Tararua district | C18: =Control!B50 -> District wide | D18: =Control!C50 -> Tararua districtDistrict wide | I18: 10760500 | J18: 7041800 | K18: 252
A19: Region wide | I19: =SUM(I10:I18) -> 119678968561 | J19: =SUM(J10:J18) -> 141502827378 | K19: =SUM(K10:K18) -> 4907860.821
A22: By TA & Category
A23: =Control!A67 -> Wellington city | B23: =Control!B67 -> Wellington city | C23: =Control!C67 -> Regional CBD | D23: =Control!D67 -> Wellington cityRegional CBD | E23: =INDEX(assessments,MATCH($D23,assessments_rows,0),MATCH(E$6&" "&year_current,assessments_header,0)) -> 3381 | F23: =INDEX(assessments_contiguous,MATCH($D23,assessments_contiguous_rows,0),MATCH(F$6&" "&year_current,assessments_contiguous_header,0)) -> 0 | G23: =E23-F23 -> 3381 | H23: =INDEX(WRS_value,MATCH($C23,WRS_categories,0),) -> Remainder | I23: =INDEX(capital_values,MATCH($D23,capital_values_rows,0),MATCH(I$6&" "&year_current,capital_values_header,0)) -> 7963363000 | J23: =INDEX($J$10:$J$18,MATCH(A23,$A$10:$A$18,0),)/INDEX($I$10:$I$18,MATCH(A23,$A$10:$A$18,0),)*I23 -> 1.056440861e+10 | K23: =IF(H23="Remainder", J23/(SUMIF($C$23:$C$49,"Business",$J$23:$J$49) +SUMIF($C$23:$C$49,"Regional CBD",$J$23:$J$49)) *($K$50-SUMPRODUCT($H$23:$H$49,$G$23:$G$49)), H23*G23) -> 893930.665 | L23: =K23/I23*100 -> 0.01122554209
A24: =Control!A68 -> Wellington city | B24: =Control!B68 -> Wellington city | C24: =Control!C68 -> Business | D24: =Control!D68 -> Wellington cityBusiness | E24: 1899 | F24: 0 | G24: =E24-F24 -> 1899 | H24: Remainder | I24: 3896130400 | J24: =INDEX($J$10:$J$18,MATCH(A24,$A$10:$A$18,0),)/INDEX($I$10:$I$18,MATCH(A24,$A$10:$A$18,0),)*I24 -> 5168709944 | K24: =IF(H24="Remainder", J24/(SUMIF($C$23:$C$49,"Business",$J$23:$J$49) +SUMIF($C$23:$C$49,"Regional CBD",$J$23:$J$49)) *($K$50-SUMPRODUCT($H$23:$H$49,$G$23:$G$49)), H24*G24) -> 437361.7578 | L24: 0.01122554209
A25: =Control!A69 -> Wellington city | B25: =Control!B69 -> Wellington city | C25: =Control!C69 -> Residential | D25: =Control!D69 -> Wellington cityResidential | E25: 71308 | F25: 0 | G25: 71308 | H25: 14 | I25: 39537398501 | J25: 5.245136169e+10 | K25: 998312 | L25: 0.002524981506
A26: =Control!A70 -> Wellington city | B26: =Control!B70 -> Wellington city | C26: =Control!C70 -> Rural | D26: =Control!D70 -> Wellington cityRural | E26: 781 | F26: 0 | G26: 781 | H26: 28 | I26: 595945550 | J26: 790597175.7 | K26: 21868 | L26: 0.003669462755
A27: =Control!A71 -> Hutt city | B27: =Control!B71 -> Hutt city | C27: =Control!C71 -> Business | D27: =Control!D71 -> Hutt cityBusiness | E27: 2371 | F27: 0 | G27: 2371 | H27: Remainder | I27: 3789029500 | J27: 4269787494 | K27: 361297.458 | L27: 0.009535356163
A28: =Control!A72 -> Hutt city | B28: =Control!B72 -> Hutt city | C28: =Control!C72 -> Residential | D28: =Control!D72 -> Hutt cityResidential | E28: 36436 | F28: 125 | G28: 36311 | H28: 14 | I28: =INDEX(capital_values,MATCH($D28,capital_values_rows,0),MATCH(I$6&" "&year_current,capital_values_header,0)) -> 17301952000 | J28: 1.949725075e+10 | K28: =IF(H28="Remainder", J28/(SUMIF($C$23:$C$49,"Business",$J$23:$J$49) +SUMIF($C$23:$C$49,"Regional CBD",$J$23:$J$49)) *($K$50-SUMPRODUCT($H$23:$H$49,$G$23:$G$49)), H28*G28) -> 508354 | L28: 0.002938130911
A29: =Control!A73 -> Hutt city | B29: =Control!B73 -> Hutt city | C29: =Control!C73 -> Rural | D29: =Control!D73 -> Hutt cityRural | E29: 480 | F29: 0 | G29: 480 | H29: 28 | I29: 311549000 | J29: 351078824.8 | K29: 13440 | L29: 0.004313928146
A30: =Control!A74 -> Upper Hutt city | B30: =Control!B74 -> Upper Hutt city | C30: =Control!C74 -> Business | D30: =Control!D74 -> Upper Hutt cityBusiness | E30: 716 | F30: 0 | G30: 716 | H30: Remainder | I30: 1174676500 | J30: 1316173851 | K30: 111370.9446 | L30: 0.009480988565
A31: =Control!A75 -> Upper Hutt city | B31: =Control!B75 -> Upper Hutt city | C31: =Control!C75 -> Residential | D31: =Control!D75 -> Upper Hutt cityResidential | E31: 14823 | F31: 43 | G31: 14780 | H31: 14 | I31: 6156988420 | J31: 6898637335 | K31: 206920 | L31: 0.003360733948
A32: =Control!A76 -> Upper Hutt city | B32: =Control!B76 -> Upper Hutt city | C32: =Control!C76 -> Rural | D32: =Control!D76 -> Upper Hutt cityRural | E32: 1253 | F32: 81 | G32: 1172 | H32: 28 | I32: 854712340 | J32: 957667946.9 | K32: 32816 | L32: 0.003839420407
A33: =Control!A77 -> Porirua city | B33: =Control!B77 -> Porirua city | C33: =Control!C77 -> Business | D33: =Control!D77 -> Porirua cityBusiness | E33: 797 | F33: 0 | G33: 797 | H33: Remainder | I33: 1099995500 | J33: 1223370753 | K33: 103518.2064 | L33: 0.009410784537
A34: =Control!A78 -> Porirua city | B34: =Control!B78 -> Porirua city | C34: =Control!C78 -> Residential | D34: =Control!D78 -> Porirua cityResidential | E34: 17255 | F34: 0 | G34: 17255 | H34: 14 | I34: 8551317050 | J34: 9510430887 | K34: 241570 | L34: 0.00282494496
A35: =Control!A79 -> Porirua city | B35: =Control!B79 -> Porirua city | C35: =Control!C79 -> Rural | D35: =Control!D79 -> Porirua cityRural | E35: 623 | F35: 0 | G35: 623 | H35: 28 | I35: 625816700 | J35: 696008163.2 | K35: 17444 | L35: 0.002787397652
A36: =Control!A80 -> Kāpiti Coast district | B36: =Control!B80 -> Kāpiti Coast district | C36: =Control!C80 -> Business | D36: =Control!D80 -> Kāpiti Coast districtBusiness | E36: 1334 | F36: 0 | G36: 1334 | H36: Remainder | I36: 1479149500 | J36: 1469983984 | K36: 124385.9273 | L36: 0.008409287045
A37: =Control!A81 -> Kāpiti Coast district | B37: =Control!B81 -> Kāpiti Coast district excl Ōtaki | C37: =Control!C81 -> Residential | D37: =Control!D81 -> Kāpiti Coast district excl Ōtaki Residential | E37: 17885 | F37: 166 | G37: 17719 | H37: 14 | I37: 10219999500 | J37: 1.015667151e+10 | K37: 248066 | L37: 0.002427260393
A38: =Control!A82 -> Kāpiti Coast district | B38: =Control!B82 -> Ōtaki rating area | C38: =Control!C82 -> Residential | D38: =Control!D82 -> Ōtaki rating areaResidential | E38: 3151 | F38: 46 | G38: =E38-F38 -> 3105 | H38: 14 | I38: 1104760900 | J38: =INDEX($J$10:$J$18,MATCH(A38,$A$10:$A$18,0),)/INDEX($I$10:$I$18,MATCH(A38,$A$10:$A$18,0),)*I38 -> 1097915275 | K38: =IF(H38="Remainder", J38/(SUMIF($C$23:$C$49,"Business",$J$23:$J$49) +SUMIF($C$23:$C$49,"Regional CBD",$J$23:$J$49)) *($K$50-SUMPRODUCT($H$23:$H$49,$G$23:$G$49)), H38*G38) -> 43470 | L38: =K38/I38*100 -> 0.003934788061
A39: =Control!A83 -> Kāpiti Coast district | B39: =Control!B83 -> Kāpiti Coast district | C39: =Control!C83 -> Rural | D39: =Control!D83 -> Kāpiti Coast districtRural | E39: 2643 | F39: 157 | G39: 2486 | H39: 28 | I39: 1966405700 | J39: 1954220912 | K39: 69608 | L39: 0.003539859552
A40: =Control!A84 -> Masterton district | B40: =Control!B84 -> Masterton district | C40: =Control!C84 -> Business | D40: =Control!D84 -> Masterton districtBusiness | E40: 550 | F40: 0 | G40: 550 | H40: Remainder | I40: 433363100 | J40: 436714769.9 | K40: 36953.58058 | L40: 0.008527163615
A41: =Control!A85 -> Masterton district | B41: =Control!B85 -> Masterton district | C41: =Control!C85 -> Residential | D41: =Control!D85 -> Masterton districtResidential | E41: 7912 | F41: 15 | G41: 7897 | H41: 14 | I41: 2604255800 | J41: 2624397353 | K41: 110558 | L41: 0.004245281896
A42: =Control!A86 -> Masterton district | B42: =Control!B86 -> Masterton district | C42: =Control!C86 -> Rural | D42: =Control!D86 -> Masterton districtRural | E42: 3880 | F42: 438 | G42: 3442 | H42: 28 | I42: 2808895600 | J42: 2830619856 | K42: 96376 | L42: 0.003431099397
A43: =Control!A87 -> Carterton district | B43: =Control!B87 -> Carterton district | C43: =Control!C87 -> Business | D43: =Control!D87 -> Carterton districtBusiness | E43: 227 | F43: 0 | G43: 227 | H43: Remainder | I43: 96652500 | J43: 97761867.84 | K43: 8272.335423 | L43: 0.008558842682
A44: =Control!A88 -> Carterton district | B44: =Control!B88 -> Carterton district | C44: =Control!C88 -> Residential | D44: =Control!D88 -> Carterton districtResidential | E44: 2392 | F44: 37 | G44: 2355 | H44: 14 | I44: 843913500 | J44: 853599855.7 | K44: 32970 | L44: 0.003906798505
A45: =Control!A89 -> Carterton district | B45: =Control!B89 -> Carterton district | C45: =Control!C89 -> Rural | D45: =Control!D89 -> Carterton districtRural | E45: 2043 | F45: 294 | G45: 1749 | H45: 28 | I45: 1744267200 | J45: 1764287726 | K45: 48972 | L45: 0.002807597368
A46: =Control!A90 -> South Wairarapa district | B46: =Control!B90 -> South Wairarapa district | C46: =Control!C90 -> Business | D46: =Control!D90 -> South Wairarapa districtBusiness | E46: 304 | F46: 0 | G46: 304 | H46: Remainder | I46: 206493600 | J46: 206789471.4 | K46: 17497.94585 | L46: 0.008473844152
A47: =Control!A91 -> South Wairarapa district | B47: =Control!B91 -> South Wairarapa district | C47: =Control!C91 -> Residential | D47: =Control!D91 -> South Wairarapa districtResidential | E47: 3229 | F47: 69 | G47: 3160 | H47: 14 | I47: 1318886100 | J47: 1320775847 | K47: 44240 | L47: 0.003354345762
A48: =Control!A92 -> South Wairarapa district | B48: =Control!B92 -> South Wairarapa district | C48: =Control!C92 -> Rural | D48: =Control!D92 -> South Wairarapa districtRural | E48: 3124 | F48: 337 | G48: 2787 | H48: 28 | I48: 2982290600 | J48: 2986563732 | K48: 78036 | L48: 0.002616646413
A49: =Control!A93 -> Tararua district | B49: =Control!B93 -> Tararua district | C49: =Control!C93 -> Rural | D49: =Control!D93 -> Tararua districtRural | E49: 10 | F49: 1 | G49: 9 | H49: 28 | I49: 10760500 | J49: 7041800 | K49: 252 | L49: 0.002341898611
A50: Region wide | E50: =SUM(E23:E49) -> 200807 | F50: =SUM(F23:F49) -> 1809 | G50: =SUM(G23:G49) -> 198998 | I50: =SUM(I23:I49) -> 119678968561 | J50: =SUM(J23:J49) -> 1.415028274e+11 | K50: =INDEX(ess_base_estract,MATCH(K6,ESSbase!$B$8:$B$25,0),MATCH(year_current,ESSbase!$F$6:$G$6,0)) -> 4907860.821
A52: Check TA totals | I52: =INDEX(capital_values,MATCH("Region wide",capital_values_rows,0),MATCH(I6&" "&year_current,capital_values_header,0))-SUM(I10:I18) -> 0 | J52: =INDEX(capital_values,MATCH("Region wide",capital_values_rows,0),MATCH(J6&" "&year_current,capital_values_header,0))-SUM(J10:J18) -> 0 | K52: =INDEX(ess_base_estract,MATCH(K6,ESSbase!$B$8:$B$25,0),MATCH(year_current,ESSbase!$F$6:$G$6,0))-SUM(K10:K18) -> 0
A53: Check category totals | E53: =INDEX(assessments,MATCH("region wide",assessments_rows,0),MATCH("CV assessments "&year_current,assessments_header,0))-SUM(E23:E49) -> 0 | F53: =INDEX(assessments_contiguous,MATCH("region wide",assessments_contiguous_rows,0),MATCH("Contiguous assements "&year_current,assessments_contiguous_header,0))-SUM(F23:F49) -> 0 | G53: =G50-SUM(G23:G49) -> 0 | I53: =INDEX(capital_values,MATCH("Region wide",capital_values_rows,0),MATCH(I6&" "&year_current,capital_values_header,0))-SUM(I23:I49) -> 0 | J53: =INDEX(capital_values,MATCH("Region wide",capital_values_rows,0),MATCH(J6&" "&year_current,capital_values_header,0))-SUM(J23:J49) -> 0 | K53: =INDEX(ess_base_estract,MATCH(K6,ESSbase!$B$8:$B$25,0),MATCH(year_current,ESSbase!$F$6:$G$6,0))-SUM(K23:K49) -> 0
A54: Category matches TA | I54: =I50-I19 -> 0 | J54: =J50-J19 -> 0 | K54: =K50-K19 -> 0

Sheet Public transport
A1: Wellington Regional Council
A2: ="Public transport rate "&year_current -> Public transport rate 2018/19
A3: Printed: | B3: =NOW() -> 2018-11-12T16:52:19.590
A4: =check_total -> 0
A6: =Control!A41 -> TA full name | C6: =Control!B41 -> Category group | D6: =Control!C41 -> Concatenated row | E6: ="CV" -> CV | F6: ECV | G6: Differential | H6: ECV multiplied | I6: Public transport rate | J6: Rates sought
E7: $ | F7: $ | G7: # | H7: # | I7: $ | J7: Cents/$
A9: By TA
A10: =Control!A42 -> Wellington city | C10: =Control!B42 -> District wide | D10: =Control!C42 -> Wellington cityDistrict wide | E10: =INDEX(capital_values,MATCH($D10,capital_values_rows,0),MATCH(E$6&" "&year_current,capital_values_header,0)) -> 51992837451 | F10: 68975077410 | I10: =SUMIF($A$23:$A$49,$A10,$I$23:$I$49) -> 40924832.41
A11: =Control!A43 -> Hutt city | C11: =Control!B43 -> District wide | D11: =Control!C43 -> Hutt cityDistrict wide | E11: 21402530500 | F11: 24118117072 | I11: 11715213.08
A12: =Control!A44 -> Upper Hutt city | C12: =Control!B44 -> District wide | D12: =Control!C44 -> Upper Hutt cityDistrict wide | E12: 8186377260 | F12: 9172479133 | I12: 4597306.191
A13: =Control!A45 -> Porirua city | C13: =Control!B45 -> District wide | D13: =Control!C45 -> Porirua cityDistrict wide | E13: 10277129250 | F13: 11429809803 | I13: 6086081.306
A14: =Control!A46 -> Kāpiti Coast district | C14: =Control!B46 -> District wide | D14: =Control!C46 -> Kāpiti Coast districtDistrict wide | E14: 14770315600 | F14: 14678791680 | I14: 3594210.545
A15: =Control!A47 -> Masterton district | C15: =Control!B47 -> District wide | D15: =Control!C47 -> Masterton districtDistrict wide | E15: 5846514500 | F15: 5891731979 | I15: 437393.5929
A16: =Control!A48 -> Carterton district | C16: =Control!B48 -> District wide | D16: =Control!C48 -> Carterton districtDistrict wide | E16: 2684833200 | F16: 2715649450 | I16: 249139.4231
A17: =Control!A49 -> South Wairarapa district | C17: =Control!B49 -> District wide | D17: =Control!C49 -> South Wairarapa districtDistrict wide | E17: 4507670300 | F17: 4514129051 | I17: 505501.2503
A18: =Control!A50 -> Tararua district | C18: =Control!B50 -> District wide | D18: =Control!C50 -> Tararua districtDistrict wide | E18: 10760500 | F18: 7041800 | I18: 0
A19: Region wide | E19: =SUM(E10:E18) -> 119678968561 | F19: =SUM(F10:F18) -> 141502827378 | I19: =SUM(I10:I18) -> 68109677.79
A22: By TA & Category
A23: =Control!A67 -> Wellington city | B23: =Control!B67 -> Wellington city | C23: =Control!C67 -> Regional CBD | D23: =Control!D67 -> Wellington cityRegional CBD | E23: =INDEX(capital_values,MATCH($D23,capital_values_rows,0),MATCH(E$6&" "&year_current,capital_values_header,0)) -> 7963363000 | F23: 1.056440861e+10 | G23: =INDEX(PT_differentials,MATCH($D23,Concat_rating_category,0),) -> 6.786004276 | H23: =F23*G23 -> 7.169012196e+10 | I23: =I$50*H23/H$50 -> 25844164.27 | J23: =I23/E23*100 -> 0.3245383172
A24: =Control!A68 -> Wellington city | B24: =Control!B68 -> Wellington city | C24: =Control!C68 -> Business | D24: =Control!D68 -> Wellington cityBusiness | E24: 3896130400 | F24: 5168709944 | G24: =INDEX(PT_differentials,MATCH($D24,Concat_rating_category,0),) -> 0.7841851849 | H24: =F24*G24 -> 4053225763 | I24: 1461180.837 | J24: 0.03750338637
A25: =Control!A69 -> Wellington city | B25: =Control!B69 -> Wellington city | C25: =Control!C69 -> Residential | D25: =Control!D69 -> Wellington cityResidential | E25: 39537398501 | F25: 5.245136169e+10 | G25: 0.7175185182 | H25: 3.763482331e+10 | I25: 13567288.34 | J25: 0.034315076
A26: =Control!A70 -> Wellington city | B26: =Control!B70 -> Wellington city | C26: =Control!C70 -> Rural | D26: =Control!D70 -> Wellington cityRural | E26: 595945550 | F26: 790597175.7 | G26: 0.1831485174 | H26: 144796700.6 | I26: 52198.95869 | J26: 0.00875901476
A27: =Control!A71 -> Hutt city | B27: =Control!B71 -> Hutt city | C27: =Control!C71 -> Business | D27: =Control!D71 -> Hutt cityBusiness | E27: 3789029500 | F27: 4269787494 | G27: 1.416944362 | H27: 6050051316 | I27: 2181032.976 | J27: 0.05756178398
A28: =Control!A72 -> Hutt city | B28: =Control!B72 -> Hutt city | C28: =Control!C72 -> Residential | D28: =Control!D72 -> Hutt cityResidential | E28: 17301952000 | F28: 1.949725075e+10 | G28: 1.350277695 | H28: 2.632670281e+10 | I28: 9490730.569 | J28: 0.05485352502
A29: =Control!A73 -> Hutt city | B29: =Control!B73 -> Hutt city | C29: =Control!C73 -> Rural | D29: =Control!D73 -> Hutt cityRural | E29: 311549000 | F29: 351078824.8 | G29: 0.3433027628 | H29: =F29*G29 -> 120526330.5 | I29: =I$50*H29/H$50 -> 43449.53251 | J29: =I29/E29*100 -> 0.01394629176
A30: =Control!A74 -> Upper Hutt city | B30: =Control!B74 -> Upper Hutt city | C30: =Control!C74 -> Business | D30: =Control!D74 -> Upper Hutt cityBusiness | E30: 1174676500 | F30: 1316173851 | G30: 1.563988865 | H30: 2058481248 | I30: 742078.9093 | J30: 0.0631730446
A31: =Control!A75 -> Upper Hutt city | B31: =Control!B75 -> Upper Hutt city | C31: =Control!C75 -> Residential | D31: =Control!D75 -> Upper Hutt cityResidential | E31: 6156988420 | F31: 6898637335 | G31: 1.497322199 | H31: 1.032948282e+10 | I31: 3723760.59 | J31: 0.06048022728
A32: =Control!A76 -> Upper Hutt city | B32: =Control!B76 -> Upper Hutt city | C32: =Control!C76 -> Rural | D32: =Control!D76 -> Upper Hutt cityRural | E32: 854712340 | F32: 957667946.9 | G32: 0.3808005875 | H32: 364680516.8 | I32: 131466.692 | J32: 0.01538139627
A33: =Control!A77 -> Porirua city | B33: =Control!B77 -> Porirua city | C33: =Control!C77 -> Business | D33: =Control!D77 -> Porirua cityBusiness | E33: 1099995500 | F33: 1223370753 | G33: 1.606506931 | H33: 1965353593 | I33: 708506.5518 | J33: 0.06440995003
A34: =Control!A78 -> Porirua city | B34: =Control!B78 -> Porirua city | C34: =Control!C78 -> Residential | D34: =Control!D78 -> Porirua cityResidential | E34: 8551317050 | F34: 9510430887 | G34: 1.539840264 | H34: 1.464454441e+10 | I34: 5279332.786 | J34: 0.06173707225
A35: =Control!A79 -> Porirua city | B35: =Control!B79 -> Porirua city | C35: =Control!C79 -> Rural | D35: =Control!D79 -> Porirua cityRural | E35: 625816700 | F35: 696008163.2 | G35: 0.3915430753 | H35: 272517176.7 | I35: 98241.96818 | J35: 0.01569820175
A36: =Control!A80 -> Kāpiti Coast district | B36: =Control!B80 -> Kāpiti Coast district | C36: =Control!C80 -> Business | D36: =Control!D80 -> Kāpiti Coast districtBusiness | E36: 1479149500 | F36: 1469983984 | G36: 0.8199804755 | H36: 1205358166 | I36: 434529.5224 | J36: 0.0293769847
A37: =Control!A81 -> Kāpiti Coast district | B37: =Control!B81 -> Kāpiti Coast district excl Ōtaki | C37: =Control!C81 -> Residential | D37: =Control!D81 -> Kāpiti Coast district excl Ōtaki Residential | E37: 10219999500 | F37: 1.015667151e+10 | G37: 0.7533138088 | H37: 7651160899 | I37: 2758230.196 | J37: 0.02698855509
A38: =Control!A82 -> Kāpiti Coast district | B38: =Control!B82 -> Ōtaki rating area | C38: =Control!C82 -> Residential | D38: =Control!D82 -> Ōtaki rating areaResidential | E38: 1104760900 | F38: 1097915275 | G38: 0.6699804755 | H38: 735581797.7 | I38: 265175.9586 | J38: 0.02400301808
A39: =Control!A83 -> Kāpiti Coast district | B39: =Control!B83 -> Kāpiti Coast district | C39: =Control!C83 -> Rural | D39: =Control!D83 -> Kāpiti Coast districtRural | E39: 1966405700 | F39: 1954220912 | G39: 0.1934367293 | H39: 378018101.6 | I39: 136274.8681 | J39: 0.006930150177
A40: =Control!A84 -> Masterton district | B40: =Control!B84 -> Masterton district | C40: =Control!C84 -> Business | D40: =Control!D84 -> Masterton districtBusiness | E40: 433363100 | F40: 436714769.9 | G40: 0.3741561856 | H40: 163399532.5 | I40: 58905.24725 | J40: 0.01359258489
A41: =Control!A85 -> Masterton district | B41: =Control!B85 -> Masterton district | C41: =Control!C85 -> Residential | D41: =Control!D85 -> Masterton districtResidential | E41: 2604255800 | F41: 2624397353 | G41: 0.2908228523 | H41: 763234723.7 | I41: 275144.7903 | J41: 0.01056519833
A42: =Control!A86 -> Masterton district | B42: =Control!B86 -> Masterton district | C42: =Control!C86 -> Rural | D42: =Control!D86 -> Masterton districtRural | E42: 2808895600 | F42: 2830619856 | G42: 0.1012741662 | H42: 286668665.8 | I42: 103343.5554 | J42: 0.003679152596
A43: =Control!A87 -> Carterton district | B43: =Control!B87 -> Carterton district | C43: =Control!C87 -> Business | D43: =Control!D87 -> Carterton districtBusiness | E43: 96652500 | F43: 97761867.84 | G43: 0.538918437 | H43: 52685673.01 | I43: 18993.09348 | J43: 0.01965090761
A44: =Control!A88 -> Carterton district | B44: =Control!B88 -> Carterton district | C44: =Control!C88 -> Residential | D44: =Control!D88 -> Carterton districtResidential | E44: 843913500 | F44: 853599855.7 | G44: 0.4555851037 | H44: 388887378.8 | I44: 140193.2236 | J44: 0.01661227408
A45: =Control!A89 -> Carterton district | B45: =Control!B89 -> Carterton district | C45: =Control!C89 -> Rural | D45: =Control!D89 -> Carterton districtRural | E45: 1744267200 | F45: 1764287726 | G45: 0.141430663 | H45: 249524382.9 | I45: 89953.10601 | J45: 0.005157071463
A46: =Control!A90 -> South Wairarapa district | B46: =Control!B90 -> South Wairarapa district | C46: =Control!C90 -> Business | D46: =Control!D90 -> South Wairarapa districtBusiness | E46: 206493600 | F46: 206789471.4 | G46: 0.6585414391 | H46: 136179436.1 | I46: 49092.44984 | J46: 0.02377432029
A47: =Control!A91 -> South Wairarapa district | B47: =Control!B91 -> South Wairarapa district | C47: =Control!C91 -> Residential | D47: =Control!D91 -> South Wairarapa districtResidential | E47: 1318886100 | F47: 1320775847 | G47: 0.5752081058 | H47: 759720973.2 | I47: 273878.0894 | J47: 0.02076586366
A48: =Control!A92 -> South Wairarapa district | B48: =Control!B92 -> South Wairarapa district | C48: =Control!C92 -> Rural | D48: =Control!D92 -> South Wairarapa districtRural | E48: 2982290600 | F48: 2986563732 | G48: 0.1695356303 | H48: 506328964.9 | I48: 182530.7111 | J48: 0.006120487089
A49: =Control!A93 -> Tararua district | B49: =Control!B93 -> Tararua district | C49: =Control!C93 -> Rural | D49: =Control!D93 -> Tararua districtRural | E49: 10760500 | F49: 7041800 | G49: 0 | H49: 0 | I49: 0 | J49: 0
A50: Region wide | E50: =SUM(E23:E49) -> 119678968561 | F50: =SUM(F23:F49) -> 1.415028274e+11 | H50: =SUM(H23:H49) -> 1.889320567e+11 | I50: =INDEX(ess_base_estract,MATCH(I6,ESSbase!$B$8:$B$25,0),MATCH(year_current,ESSbase!$F$6:$G$6,0)) -> 68109677.79
A53: Upper Hutt breakdown
A54: =$A$12 -> Upper Hutt city | B54: Trentham Military Camp | C54: Business | D54: =B54&C54 -> Trentham Military CampBusiness | E54: =SUMIFS('UHCC Adjustments'!$D$9:$D$27,'UHCC Adjustments'!$B$9:$B$27,C54,'UHCC Adjustments'!$C$9:$C$27,B54) -> 56325000 | I54: =SUMIFS($I$23:$I$49,$A$23:$A$49,A54,$C$23:$C$49,C54) * IF(B54="Trentham Military Camp", INDEX('UHCC Adjustments'!$E$30:$E$34,MATCH(C54,'UHCC Adjustments'!$B$30:$B$34,0),), 1-INDEX('UHCC Adjustments'!$E$30:$E$34,MATCH(C54,'UHCC Adjustments'!$B$30:$B$34,0),)) -> 49359.83798 | J54: =I54/E54*100 -> 0.08763397778
A55: Upper Hutt city | B55: Rest of Upper Hutt City | C55: Business | D55: =B55&C55 -> Rest of Upper Hutt CityBusiness | E55: =SUMIFS('UHCC Adjustments'!$D$9:$D$27,'UHCC Adjustments'!$B$9:$B$27,C55,'UHCC Adjustments'!$C$9:$C$27,B55) -> 1118351500 | I55: =SUMIFS($I$23:$I$49,$A$23:$A$49,A55,$C$23:$C$49,C55) * IF(B55="Trentham Military Camp", INDEX('UHCC Adjustments'!$E$30:$E$34,MATCH(C55,'UHCC Adjustments'!$B$30:$B$34,0),), 1-INDEX('UHCC Adjustments'!$E$30:$E$34,MATCH(C55,'UHCC Adjustments'!$B$30:$B$34,0),)) -> 692719.0713 | J55: 0.06194108662
A56: Upper Hutt city | B56: Trentham Military Camp | C56: Residential | D56: Trentham Military CampResidential | E56: =SUMIFS('UHCC Adjustments'!$D$9:$D$27,'UHCC Adjustments'!$B$9:$B$27,C56,'UHCC Adjustments'!$C$9:$C$27,B56) -> 26720000 | I56: =SUMIFS($I$23:$I$49,$A$23:$A$49,A56,$C$23:$C$49,C56) * IF(B56="Trentham Military Camp", INDEX('UHCC Adjustments'!$E$30:$E$34,MATCH(C56,'UHCC Adjustments'!$B$30:$B$34,0),), 1-INDEX('UHCC Adjustments'!$E$30:$E$34,MATCH(C56,'UHCC Adjustments'!$B$30:$B$34,0),)) -> 11884.7433 | J56: 0.04447882972
A57: Upper Hutt city | B57: Rest of Upper Hutt City | C57: Residential | D57: Rest of Upper Hutt CityResidential | E57: =SUMIFS('UHCC Adjustments'!$D$9:$D$27,'UHCC Adjustments'!$B$9:$B$27,C57,'UHCC Adjustments'!$C$9:$C$27,B57) -> 6130268420 | I57: =SUMIFS($I$23:$I$49,$A$23:$A$49,A57,$C$23:$C$49,C57) * IF(B57="Trentham Military Camp", INDEX('UHCC Adjustments'!$E$30:$E$34,MATCH(C57,'UHCC Adjustments'!$B$30:$B$34,0),), 1-INDEX('UHCC Adjustments'!$E$30:$E$34,MATCH(C57,'UHCC Adjustments'!$B$30:$B$34,0),)) -> 3711875.847 | J57: 0.06054997257
A58: Upper Hutt city | B58: Trentham Military Camp | C58: Rural | D58: Trentham Military CampRural | E58: =SUMIFS('UHCC Adjustments'!$D$9:$D$27,'UHCC Adjustments'!$B$9:$B$27,C58,'UHCC Adjustments'!$C$9:$C$27,B58) -> 4676000 | I58: =SUMIFS($I$23:$I$49,$A$23:$A$49,A58,$C$23:$C$49,C58) * IF(B58="Trentham Military Camp", INDEX('UHCC Adjustments'!$E$30:$E$34,MATCH(C58,'UHCC Adjustments'!$B$30:$B$34,0),), 1-INDEX('UHCC Adjustments'!$E$30:$E$34,MATCH(C58,'UHCC Adjustments'!$B$30:$B$34,0),)) -> 848.0420067 | J58: 0.0181360566
A59: Upper Hutt city | B59: Rest of Upper Hutt City | C59: Rural | D59: Rest of Upper Hutt CityRural | E59: =SUMIFS('UHCC Adjustments'!$D$9:$D$27,'UHCC Adjustments'!$B$9:$B$27,C59,'UHCC Adjustments'!$C$9:$C$27,B59) -> 850036340 | I59: =SUMIFS($I$23:$I$49,$A$23:$A$49,A59,$C$23:$C$49,C59) * IF(B59="Trentham Military Camp", INDEX('UHCC Adjustments'!$E$30:$E$34,MATCH(C59,'UHCC Adjustments'!$B$30:$B$34,0),), 1-INDEX('UHCC Adjustments'!$E$30:$E$34,MATCH(C59,'UHCC Adjustments'!$B$30:$B$34,0),)) -> 130618.65 | J59: 0.01536624304
A60: Total | E60: =SUM(E54:E59) -> 8186377260 | I60: =SUM(I54:I59) -> 4597306.191
A63: Check Upper Hutt total | E63: =E60-E12 -> 0 | I63: =I60-I12 -> 0
A64: Check TA totals | E64: =INDEX(capital_values,MATCH("Region wide",capital_values_rows,0),MATCH(E6&" "&year_current,capital_values_header,0))-SUM(E10:E18) -> 0 | F64: =INDEX(capital_values,MATCH("Region wide",capital_values_rows,0),MATCH(F6&" "&year_current,capital_values_header,0))-SUM(F10:F18) -> 0 | I64: =INDEX(ess_base_estract,MATCH(I6,ESSbase!$B$8:$B$25,0),MATCH(year_current,ESSbase!$F$6:$G$6,0))-SUM(I10:I18) -> 0
A65: Check category totals | E65: =INDEX(capital_values,MATCH("Region wide",capital_values_rows,0),MATCH(E6&" "&year_current,capital_values_header,0))-SUM(E23:E49) -> 0 | F65: =INDEX(capital_values,MATCH("Region wide",capital_values_rows,0),MATCH(F6&" "&year_current,capital_values_header,0))-SUM(F23:F49) -> 0 | H65: =H50-SUM(H23:H49) -> 0 | I65: =INDEX(ess_base_estract,MATCH(I6,ESSbase!$B$8:$B$25,0),MATCH(year_current,ESSbase!$F$6:$G$6,0))-SUM(I23:I49) -> 0
A66: Category matches TA | E66: =E50-E19 -> 0 | F66: =F50-F19 -> 0 | I66: =I50-I19 -> 0

Sheet >>Other rates & levies

Sheet Pest
A1: Wellington Regional Council
A2: ="Pest management rate "&year_current -> Pest management rate 2018/19
A3: Printed: | B3: =NOW() -> 2018-11-12T16:52:19.590
A4: =check_total -> 0
A6: TA full name | B6: Area ha | C6: $ per Hectare | D6: Pest management rate
B7: # | C7: $ | D7: Cents per $
A9: By TA
A10: =Control!A17 -> Wellington city | B10: =INDEX(Control!$D$164:$D$172,MATCH(Pest!A10,Control!$A$164:$A$172,0)) -> 34055 | C10: =$C$19 -> 0.8668236668 | D10: =B10*C10 -> 29519.67997
A11: =Control!A18 -> Hutt city | B11: =INDEX(Control!$D$164:$D$172,MATCH(Pest!A11,Control!$A$164:$A$172,0)) -> 15578 | C11: 0.8668236668 | D11: =B11*C11 -> 13503.37908
A12: =Control!A19 -> Upper Hutt city | B12: =INDEX(Control!$D$164:$D$172,MATCH(Pest!A12,Control!$A$164:$A$172,0)) -> 54326.2119 | C12: =$C$19 -> 0.8668236668 | D12: 47091.2462
A13: =Control!A20 -> Porirua city | B13: =INDEX(Control!$D$164:$D$172,MATCH(Pest!A13,Control!$A$164:$A$172,0)) -> 11858 | C13: 0.8668236668 | D13: 10278.79504
A14: =Control!A21 -> Kāpiti Coast district | B14: =INDEX(Control!$D$164:$D$172,MATCH(Pest!A14,Control!$A$164:$A$172,0)) -> 29205.9985 | C14: 0.8668236668 | D14: 25316.45071
A15: =Control!A22 -> Masterton district | B15: =INDEX(Control!$D$164:$D$172,MATCH(Pest!A15,Control!$A$164:$A$172,0)) -> 207207.7345 | C15: 0.8668236668 | D15: 179612.5682
A16: =Control!A23 -> Carterton district | B16: =INDEX(Control!$D$164:$D$172,MATCH(Pest!A16,Control!$A$164:$A$172,0)) -> 78106.069 | C16: 0.8668236668 | D16: 67704.18913
A17: =Control!A24 -> South Wairarapa district | B17: =INDEX(Control!$D$164:$D$172,MATCH(Pest!A17,Control!$A$164:$A$172,0)) -> 178090.1371 | C17: 0.8668236668 | D17: 154372.7457
A18: =Control!A25 -> Tararua district | B18: =INDEX(Control!$D$164:$D$172,MATCH(Pest!A18,Control!$A$164:$A$172,0)) -> 5307.8223 | C18: 0.8668236668 | D18: 4600.945989
A19: Region wide | B19: =SUM(B10:B18) -> 613734.9733 | C19: =D19/B19 -> 0.8668236668 | D19: =INDEX(ess_base_estract,MATCH(D6,ESSbase!$B$8:$B$25,0),MATCH(year_current,ESSbase!$F$6:$G$6,0)) -> 532000
A21: Check | B21: =Control!D173-Pest!B19 -> 0 | D21: =D19-SUM(D10:D18) -> 0

Sheet Water levy
A1: Wellington Regional Council
A2: ="Water supply levy "&year_current -> Water supply levy 2018/19
A3: Printed : | B3: =NOW() -> 2018-11-12T16:52:19.590
A4: =check_total -> 0
B6: Share | C6: Bulk Water Levies
B7: % | C7: $
A9: By TA
A10: Wellington city | B10: =INDEX(Control!$B$179:$B$187,MATCH(A10,Control!$A$179:$A$187,0),) -> 0.535142175 | C10: =B10*$C$19 -> 17696562.02
A11: Hutt city | B11: =INDEX(Control!$B$179:$B$187,MATCH(A11,Control!$A$179:$A$187,0),) -> 0.2481588591 | C11: 8206340.01
A12: Upper Hutt city | B12: =INDEX(Control!$B$179:$B$187,MATCH(A12,Control!$A$179:$A$187,0),) -> 0.1003228774 | C12: 3317567.004
A13: Porirua city | B13: =INDEX(Control!$B$179:$B$187,MATCH(A13,Control!$A$179:$A$187,0),) -> 0.1163760885 | C13: =B13*$C$19 -> 3848429.005
A14: Kāpiti Coast district | B14: =INDEX(Control!$B$179:$B$187,MATCH(A14,Control!$A$179:$A$187,0),) -> 0 | C14: 0
A15: Masterton district | B15: =INDEX(Control!$B$179:$B$187,MATCH(A15,Control!$A$179:$A$187,0),) -> 0 | C15: 0
A16: Carterton district | B16: =INDEX(Control!$B$179:$B$187,MATCH(A16,Control!$A$179:$A$187,0),) -> 0 | C16: 0
A17: South Wairarapa district | B17: =INDEX(Control!$B$179:$B$187,MATCH(A17,Control!$A$179:$A$187,0),) -> 0 | C17: 0
A18: Tararua district | B18: =INDEX(Control!$B$179:$B$187,MATCH(A18,Control!$A$179:$A$187,0),) -> 0 | C18: =B18*$C$19 -> 0
A19: Region wide | B19: =SUM(B10:B18) -> 1 | C19: =INDEX(ess_base_estract,MATCH(C6,ESSbase!$B$8:$B$25,0),MATCH(year_current,ESSbase!$F$6:$G$6,0)) -> 33068898.04
A21: Checks | B21: =1-B19 -> 0 | C21: =C19-SUM(C10:C18) -> 0

Sheet >>Output tabs

Sheet Comparison - TA
A1: Comparison of proposed vs current
A2: =check_total -> 0
A4: =year_previous&" rates" -> 2017/18 rates
B5: TA
B6: Wellington city | C6: Hutt city | D6: Upper Hutt city | E6: Porirua city | F6: Kāpiti Coast district | G6: Masterton District | H6: Carterton District | I6: South Wairarapa District | J6: Tararua District | K6: Other | L6: Region wide
A7: General rate | B7: 21189528.41 | C7: 7179456.053 | D7: 2718137.091 | E7: 3367756.606 | F7: 4329462.398 | G7: 1675353.225 | H7: 774173.169 | I7: 1245449.128 | J7: 2354.442882 | K7: 0 | L7: =INDEX(ess_base_estract,MATCH(A7,ESSbase!$B$8:$B$25,0),MATCH(year_previous,ESSbase!$F$6:$G$6,0)) -> 42481670.52 | M7: =ROUND(L7-SUM(B7:K7),-1) -> 0
A8: Remission of rates | B8: 0 | C8: 0 | D8: 0 | E8: 0 | F8: 0 | G8: 0 | H8: 0 | I8: 0 | J8: 0 | K8: 0 | L8: =INDEX(ess_base_estract,MATCH(A8,ESSbase!$B$8:$B$25,0),MATCH(year_previous,ESSbase!$F$6:$G$6,0)) -> 0 | M8: =ROUND(L8-SUM(B8:K8),-1) -> 0
A9: Public transport rate | B9: 38457358 | C9: 11536013.2 | D9: 4596383.562 | E9: 6066071.247 | F9: 3090620.087 | G9: 306748.566 | H9: 198788.9136 | I9: 404412.5484 | J9: 0 | K9: 0 | L9: =INDEX(ess_base_estract,MATCH(A9,ESSbase!$B$8:$B$25,0),MATCH(year_previous,ESSbase!$F$6:$G$6,0)) -> 64656396.13 | M9: 0
A10: River management rate | B10: 43255 | C10: 3685586 | D10: 678045 | E10: 28308 | F10: 1368226 | G10: 0 | H10: 23240 | I10: 0 | J10: 0 | K10: 0 | L10: =INDEX(ess_base_estract,MATCH(A10,ESSbase!$B$8:$B$25,0),MATCH(year_previous,ESSbase!$F$6:$G$6,0)) -> 5826660.417 | M10: =ROUND(L10-SUM(B10:K10),-1) -> 0
A11: Stadium purposes rate | B11: 580986 | C11: 190924 | D11: 51447 | E11: 70226 | F11: 47340 | G11: 19562 | H11: 6846 | I11: 10760 | J11: 0 | K11: 0 | L11: =INDEX(ess_base_estract,MATCH(A11,ESSbase!$B$8:$B$25,0),MATCH(year_previous,ESSbase!$F$6:$G$6,0)) -> 978091.35 | M11: 0
A12: Wellington regional strategy rate | B12: 2299850.973 | C12: 862252.3181 | D12: 343198.0108 | E12: 354526.1708 | F12: 491419.6459 | G12: 241562.2933 | H12: 90904.66358 | I12: 138051.1438 | J12: 252 | K12: 0 | L12: =INDEX(ess_base_estract,MATCH(A12,ESSbase!$B$8:$B$25,0),MATCH(year_previous,ESSbase!$F$6:$G$6,0)) -> 4822017.219 | M12: 0
A13: District-Wide Rates | B13: =SUM(B7:B12) -> 62570978.38 | C13: 23454231.57 | D13: 8387210.664 | E13: 9886888.025 | F13: 9327068.132 | G13: 2243226.084 | H13: 1093952.746 | I13: 1798672.82 | J13: 2606.442882 | K13: 0 | L13: =INDEX(ess_base_estract,MATCH(A13,ESSbase!$B$8:$B$25,0),MATCH(year_previous,ESSbase!$F$6:$G$6,0)) -> 118764835.6 | M13: =ROUND(L13-SUM(B13:K13),-1) -> 0
A14: Rates Penalties | B14: 0 | C14: 0 | D14: 0 | E14: 0 | F14: 0 | G14: 0 | H14: 0 | I14: 0 | J14: 0 | K14: 0 | L14: =INDEX(ess_base_estract,MATCH(A14,ESSbase!$B$8:$B$25,0),MATCH(year_previous,ESSbase!$F$6:$G$6,0)) -> 0 | M14: 0
A15: Remission of Rates Penalties | B15: 0 | C15: 0 | D15: 0 | E15: 0 | F15: 0 | G15: 0 | H15: 0 | I15: 0 | J15: 0 | K15: 0 | L15: =INDEX(ess_base_estract,MATCH(A15,ESSbase!$B$8:$B$25,0),MATCH(year_previous,ESSbase!$F$6:$G$6,0)) -> 0 | M15: 0
A16: Pest management rate | B16: 26190.39276 | C16: 11980.44159 | D16: 41780.2034 | E16: 9119.532442 | F16: 22461.21191 | G16: 159355.5116 | H16: 60068.37833 | I16: 136962.2856 | J16: 4082.042306 | K16: 0 | L16: =INDEX(ess_base_estract,MATCH(A16,ESSbase!$B$8:$B$25,0),MATCH(year_previous,ESSbase!$F$6:$G$6,0)) -> 472000 | M16: =ROUND(L16-SUM(B16:K16),-1) -> 0
A17: River management rate - Non district wide | B17: 0 | C17: 0 | D17: 0 | E17: 0 | F17: 0 | G17: 0 | H17: 0 | I17: 93297 | J17: 0 | K17: 0 | L17: =INDEX(ess_base_estract,MATCH(A17,ESSbase!$B$8:$B$25,0),MATCH(year_previous,ESSbase!$F$6:$G$6,0)) -> 93297.36 | M17: 0
A18: Special rates | B18: 0 | C18: 0 | D18: 0 | E18: 0 | F18: 0 | G18: 0 | H18: 0 | I18: 0 | J18: 0 | K18: 1451758 | L18: =INDEX(ess_base_estract,MATCH(A18,ESSbase!$B$8:$B$25,0),MATCH(year_previous,ESSbase!$F$6:$G$6,0)) -> 1451756.116 | M18: 0
A19: Total Other Rates | B19: =SUM(B14:B18) -> 26190.39276 | C19: 11980.44159 | D19: 41780.2034 | E19: 9119.532442 | F19: 22461.21191 | G19: 159355.5116 | H19: 60068.37833 | I19: 230259.2856 | J19: 4082.042306 | K19: 1451758 | L19: =INDEX(ess_base_estract,MATCH(A19,ESSbase!$B$8:$B$25,0),MATCH(year_previous,ESSbase!$F$6:$G$6,0)) -> 2017053.476 | M19: 0
A20: Total Regnl Rates | B20: =SUM(B19,B13) -> 62597168.78 | C20: 23466212.01 | D20: 8428990.867 | E20: 9896007.557 | F20: 9349529.343 | G20: 2402581.596 | H20: 1154021.125 | I20: 2028932.106 | J20: 6688.485187 | K20: 1451758 | L20: =INDEX(ess_base_estract,MATCH(A20,ESSbase!$B$8:$B$25,0),MATCH(year_previous,ESSbase!$F$6:$G$6,0)) -> 120781889.1 | M20: 0
A21: Bulk Water Levies | B21: 16514665.79 | C21: 7660138.382 | D21: 3095535.373 | E21: 3592425.897 | F21: 0 | G21: 0 | H21: 0 | I21: 0 | J21: 0 | K21: 0 | L21: =INDEX(ess_base_estract,MATCH(A21,ESSbase!$B$8:$B$25,0),MATCH(year_previous,ESSbase!$F$6:$G$6,0)) -> 30862765.44 | M21: 0
A22: Total Regnl Rates & levies | B22: =SUM(B20:B21) -> 79111834.56 | C22: =SUM(C20:C21) -> 31126350.39 | D22: 11524526.24 | E22: 13488433.45 | F22: 9349529.343 | G22: 2402581.596 | H22: 1154021.125 | I22: 2028932.106 | J22: 6688.485187 | K22: 1451758 | L22: =INDEX(ess_base_estract,MATCH(A22,ESSbase!$B$8:$B$25,0),MATCH(year_previous,ESSbase!$F$6:$G$6,0)) -> 151644654.5 | M22: 0
A23: Warm Greater Wellington rate | K23: 3181767.073 | L23: =INDEX(ess_base_estract,MATCH(A23,ESSbase!$B$8:$B$25,0),MATCH(year_previous,ESSbase!$F$6:$G$6,0)) -> 3181767 | M23: 0
A24: Total Rates & Levies | B24: =SUM(B22:B23) -> 79111834.56 | C24: 31126350.39 | D24: 11524526.24 | E24: 13488433.45 | F24: 9349529.343 | G24: 2402581.596 | H24: 1154021.125 | I24: 2028932.106 | J24: 6688.485187 | K24: 4633525.073 | L24: =INDEX(ess_base_estract,MATCH(A24,ESSbase!$B$8:$B$25,0),MATCH(year_previous,ESSbase!$F$6:$G$6,0)) -> 154826421.5 | M24: 0
A27: =year_current&" rates" -> 2018/19 rates
B28: TA
B29: Wellington city | C29: Hutt city | D29: Upper Hutt city | E29: Porirua city | F29: Kāpiti Coast district | G29: Masterton District | H29: Carterton District | I29: South Wairarapa District | J29: Tararua District | K29: Other | L29: Region wide
A30: General rate | B30: =IFERROR(INDEX(Gen!$D$10:$D$18,MATCH(B$29,Gen!$A$10:$A$18,0),),0) -> 23048092.38 | C30: =IFERROR(INDEX(Gen!$D$10:$D$18,MATCH(C$29,Gen!$A$10:$A$18,0),),0) -> 8059093.387 | D30: =IFERROR(INDEX(Gen!$D$10:$D$18,MATCH(D$29,Gen!$A$10:$A$18,0),),0) -> 3064993.246 | E30: =IFERROR(INDEX(Gen!$D$10:$D$18,MATCH(E$29,Gen!$A$10:$A$18,0),),0) -> 3819282.588 | F30: =IFERROR(INDEX(Gen!$D$10:$D$18,MATCH(F$29,Gen!$A$10:$A$18,0),),0) -> 4904933.192 | G30: =IFERROR(INDEX(Gen!$D$10:$D$18,MATCH(G$29,Gen!$A$10:$A$18,0),),0) -> 1968728.242 | H30: =IFERROR(INDEX(Gen!$D$10:$D$18,MATCH(H$29,Gen!$A$10:$A$18,0),),0) -> 907437.03 | I30: =IFERROR(INDEX(Gen!$D$10:$D$18,MATCH(I$29,Gen!$A$10:$A$18,0),),0) -> 1508400.821 | J30: =IFERROR(INDEX(Gen!$D$10:$D$18,MATCH(J$29,Gen!$A$10:$A$18,0),),0) -> 2353.024643 | K30: =IFERROR(INDEX(Gen!$D$10:$D$18,MATCH(K$29,Gen!$A$10:$A$18,0),),0) -> 0 | L30: =INDEX(ess_base_estract,MATCH(A30,ESSbase!$B$8:$B$25,0),MATCH(year_current,ESSbase!$F$6:$G$6,0)) -> 47283313.91 | M30: =ROUND(L30-SUM(B30:K30),-1) -> 0
A31: Remission of rates | B31: 0 | C31: 0 | D31: 0 | E31: 0 | F31: 0 | G31: 0 | H31: 0 | I31: 0 | J31: 0 | K31: 0 | L31: =INDEX(ess_base_estract,MATCH(A31,ESSbase!$B$8:$B$25,0),MATCH(year_current,ESSbase!$F$6:$G$6,0)) -> 0 | M31: 0
A32: Public transport rate | B32: =IFERROR(INDEX('Public transport'!$I$10:$I$18,MATCH(B$29,'Public transport'!$A$10:$A$18,0),),0) -> 40924832.41 | C32: =IFERROR(INDEX('Public transport'!$I$10:$I$18,MATCH(C$29,'Public transport'!$A$10:$A$18,0),),0) -> 11715213.08 | D32: =IFERROR(INDEX('Public transport'!$I$10:$I$18,MATCH(D$29,'Public transport'!$A$10:$A$18,0),),0) -> 4597306.191 | E32: =IFERROR(INDEX('Public transport'!$I$10:$I$18,MATCH(E$29,'Public transport'!$A$10:$A$18,0),),0) -> 6086081.306 | F32: =IFERROR(INDEX('Public transport'!$I$10:$I$18,MATCH(F$29,'Public transport'!$A$10:$A$18,0),),0) -> 3594210.545 | G32: =IFERROR(INDEX('Public transport'!$I$10:$I$18,MATCH(G$29,'Public transport'!$A$10:$A$18,0),),0) -> 437393.5929 | H32: =IFERROR(INDEX('Public transport'!$I$10:$I$18,MATCH(H$29,'Public transport'!$A$10:$A$18,0),),0) -> 249139.4231 | I32: =IFERROR(INDEX('Public transport'!$I$10:$I$18,MATCH(I$29,'Public transport'!$A$10:$A$18,0),),0) -> 505501.2503 | J32: =IFERROR(INDEX('Public transport'!$I$10:$I$18,MATCH(J$29,'Public transport'!$A$10:$A$18,0),),0) -> 0 | K32: =IFERROR(INDEX('Public transport'!$I$10:$I$18,MATCH(K$29,'Public transport'!$A$10:$A$18,0),),0) -> 0 | L32: =INDEX(ess_base_estract,MATCH(A32,ESSbase!$B$8:$B$25,0),MATCH(year_current,ESSbase!$F$6:$G$6,0)) -> 68109677.79 | M32: 0
A33: River management rate | B33: =IFERROR(INDEX('River management'!$C$10:$C$18,MATCH(B$29,'River management'!$A$10:$A$18,0),),0) -> 42679 | C33: =IFERROR(INDEX('River management'!$C$10:$C$18,MATCH(C$29,'River management'!$A$10:$A$18,0),),0) -> 4356562 | D33: =IFERROR(INDEX('River management'!$C$10:$C$18,MATCH(D$29,'River management'!$A$10:$A$18,0),),0) -> 667062 | E33: =IFERROR(INDEX('River management'!$C$10:$C$18,MATCH(E$29,'River management'!$A$10:$A$18,0),),0) -> 33588 | F33: =IFERROR(INDEX('River management'!$C$10:$C$18,MATCH(F$29,'River management'!$A$10:$A$18,0),),0) -> 1335375 | G33: =IFERROR(INDEX('River management'!$C$10:$C$18,MATCH(G$29,'River management'!$A$10:$A$18,0),),0) -> 0 | H33: =IFERROR(INDEX('River management'!$C$10:$C$18,MATCH(H$29,'River management'!$A$10:$A$18,0),),0) -> 23705 | I33: =IFERROR(INDEX('River management'!$C$10:$C$18,MATCH(I$29,'River management'!$A$10:$A$18,0),),0) -> 0 | J33: =IFERROR(INDEX('River management'!$C$10:$C$18,MATCH(J$29,'River management'!$A$10:$A$18,0),),0) -> 0 | K33: =IFERROR(INDEX('River management'!$C$10:$C$18,MATCH(K$29,'River management'!$A$10:$A$18,0),),0) -> 0 | L33: =INDEX(ess_base_estract,MATCH(A33,ESSbase!$B$8:$B$25,0),MATCH(year_current,ESSbase!$F$6:$G$6,0)) -> 6458970.807 | M33: 0
A34: Stadium purposes rate | B34: =IFERROR(INDEX(Stadium!$G$10:$G$18,MATCH(B$29,Stadium!$A$10:$A$18,0),),0) -> 0 | C34: =IFERROR(INDEX(Stadium!$G$10:$G$18,MATCH(C$29,Stadium!$A$10:$A$18,0),),0) -> 0 | D34: =IFERROR(INDEX(Stadium!$G$10:$G$18,MATCH(D$29,Stadium!$A$10:$A$18,0),),0) -> 0 | E34: =IFERROR(INDEX(Stadium!$G$10:$G$18,MATCH(E$29,Stadium!$A$10:$A$18,0),),0) -> 0 | F34: =IFERROR(INDEX(Stadium!$G$10:$G$18,MATCH(F$29,Stadium!$A$10:$A$18,0),),0) -> 0 | G34: =IFERROR(INDEX(Stadium!$G$10:$G$18,MATCH(G$29,Stadium!$A$10:$A$18,0),),0) -> 0 | H34: =IFERROR(INDEX(Stadium!$G$10:$G$18,MATCH(H$29,Stadium!$A$10:$A$18,0),),0) -> 0 | I34: =IFERROR(INDEX(Stadium!$G$10:$G$18,MATCH(I$29,Stadium!$A$10:$A$18,0),),0) -> 0 | J34: =IFERROR(INDEX(Stadium!$G$10:$G$18,MATCH(J$29,Stadium!$A$10:$A$18,0),),0) -> 0 | K34: =IFERROR(INDEX(Stadium!$G$10:$G$18,MATCH(K$29,Stadium!$A$10:$A$18,0),),0) -> 0 | L34: =INDEX(ess_base_estract,MATCH(A34,ESSbase!$B$8:$B$25,0),MATCH(year_current,ESSbase!$F$6:$G$6,0)) -> 0 | M34: 0
A35: Wellington regional strategy rate | B35: =IFERROR(INDEX(WRS!$K$10:$K$18,MATCH(B$29,WRS!$A$10:$A$18,0),),0) -> 2351472.423 | C35: =IFERROR(INDEX(WRS!$K$10:$K$18,MATCH(C$29,WRS!$A$10:$A$18,0),),0) -> 883091.458 | D35: =IFERROR(INDEX(WRS!$K$10:$K$18,MATCH(D$29,WRS!$A$10:$A$18,0),),0) -> 351106.9446 | E35: =IFERROR(INDEX(WRS!$K$10:$K$18,MATCH(E$29,WRS!$A$10:$A$18,0),),0) -> 362532.2064 | F35: =IFERROR(INDEX(WRS!$K$10:$K$18,MATCH(F$29,WRS!$A$10:$A$18,0),),0) -> 485529.9273 | G35: =IFERROR(INDEX(WRS!$K$10:$K$18,MATCH(G$29,WRS!$A$10:$A$18,0),),0) -> 243887.5806 | H35: =IFERROR(INDEX(WRS!$K$10:$K$18,MATCH(H$29,WRS!$A$10:$A$18,0),),0) -> 90214.33542 | I35: =IFERROR(INDEX(WRS!$K$10:$K$18,MATCH(I$29,WRS!$A$10:$A$18,0),),0) -> 139773.9458 | J35: =IFERROR(INDEX(WRS!$K$10:$K$18,MATCH(J$29,WRS!$A$10:$A$18,0),),0) -> 252 | K35: =IFERROR(INDEX(WRS!$K$10:$K$18,MATCH(K$29,WRS!$A$10:$A$18,0),),0) -> 0 | L35: =INDEX(ess_base_estract,MATCH(A35,ESSbase!$B$8:$B$25,0),MATCH(year_current,ESSbase!$F$6:$G$6,0)) -> 4907860.821 | M35: 0
A36: District-Wide Rates | B36: =SUM(B30:B35) -> 66367076.21 | C36: 25013959.92 | D36: 8680468.382 | E36: 10301484.1 | F36: 10320048.66 | G36: 2650009.416 | H36: 1270495.788 | I36: 2153676.017 | J36: 2605.024643 | K36: 0 | L36: =INDEX(ess_base_estract,MATCH(A36,ESSbase!$B$8:$B$25,0),MATCH(year_current,ESSbase!$F$6:$G$6,0)) -> 126759823.3 | M36: 0
A37: Rates Penalties | B37: 0 | C37: 0 | D37: 0 | E37: 0 | F37: 0 | G37: 0 | H37: 0 | I37: 0 | J37: 0 | K37: 0 | L37: =INDEX(ess_base_estract,MATCH(A37,ESSbase!$B$8:$B$25,0),MATCH(year_current,ESSbase!$F$6:$G$6,0)) -> 0 | M37: 0
A38: Remission of Rates Penalties | B38: 0 | C38: 0 | D38: 0 | E38: 0 | F38: 0 | G38: 0 | H38: 0 | I38: 0 | J38: 0 | K38: 0 | L38: =INDEX(ess_base_estract,MATCH(A38,ESSbase!$B$8:$B$25,0),MATCH(year_current,ESSbase!$F$6:$G$6,0)) -> 0 | M38: 0
A39: Pest management rate | B39: =IFERROR(INDEX(Pest!$D$10:$D$18,MATCH(B$29,Pest!$A$10:$A$18,0),),0) -> 29519.67997 | C39: =IFERROR(INDEX(Pest!$D$10:$D$18,MATCH(C$29,Pest!$A$10:$A$18,0),),0) -> 13503.37908 | D39: =IFERROR(INDEX(Pest!$D$10:$D$18,MATCH(D$29,Pest!$A$10:$A$18,0),),0) -> 47091.2462 | E39: =IFERROR(INDEX(Pest!$D$10:$D$18,MATCH(E$29,Pest!$A$10:$A$18,0),),0) -> 10278.79504 | F39: =IFERROR(INDEX(Pest!$D$10:$D$18,MATCH(F$29,Pest!$A$10:$A$18,0),),0) -> 25316.45071 | G39: =IFERROR(INDEX(Pest!$D$10:$D$18,MATCH(G$29,Pest!$A$10:$A$18,0),),0) -> 179612.5682 | H39: =IFERROR(INDEX(Pest!$D$10:$D$18,MATCH(H$29,Pest!$A$10:$A$18,0),),0) -> 67704.18913 | I39: =IFERROR(INDEX(Pest!$D$10:$D$18,MATCH(I$29,Pest!$A$10:$A$18,0),),0) -> 154372.7457 | J39: =IFERROR(INDEX(Pest!$D$10:$D$18,MATCH(J$29,Pest!$A$10:$A$18,0),),0) -> 4600.945989 | K39: =IFERROR(INDEX(Pest!$D$10:$D$18,MATCH(K$29,Pest!$A$10:$A$18,0),),0) -> 0 | L39: =INDEX(ess_base_estract,MATCH(A39,ESSbase!$B$8:$B$25,0),MATCH(year_current,ESSbase!$F$6:$G$6,0)) -> 532000 | M39: 0
A40: River management rate - Non district wide | B40: 0 | C40: 0 | D40: 0 | E40: 0 | F40: 0 | G40: 0 | H40: 0 | I40: ='River management'!C31 -> 95164 | J40: 0 | K40: 0 | L40: =INDEX(ess_base_estract,MATCH(A40,ESSbase!$B$8:$B$25,0),MATCH(year_current,ESSbase!$F$6:$G$6,0)) -> 95164 | M40: 0
A41: Special Rates | B41: 0 | C41: 0 | D41: 0 | E41: 0 | F41: 0 | G41: 0 | H41: 0 | I41: 0 | J41: 0 | K41: ='Class Rates'!B140 -> 1487363 | L41: =INDEX(ess_base_estract,MATCH(A41,ESSbase!$B$8:$B$25,0),MATCH(year_current,ESSbase!$F$6:$G$6,0)) -> 1487363 | M41: 0
A42: Total Other Rates | B42: =SUM(B37:B41) -> 29519.67997 | C42: 13503.37908 | D42: 47091.2462 | E42: 10278.79504 | F42: 25316.45071 | G42: 179612.5682 | H42: 67704.18913 | I42: 249536.7457 | J42: 4600.945989 | K42: 1487363 | L42: =INDEX(ess_base_estract,MATCH(A42,ESSbase!$B$8:$B$25,0),MATCH(year_current,ESSbase!$F$6:$G$6,0)) -> 2114527 | M42: 0
A43: Total Regnl Rates | B43: =SUM(B42,B36) -> 66396595.89 | C43: 25027463.3 | D43: 8727559.628 | E43: 10311762.9 | F43: 10345365.11 | G43: 2829621.984 | H43: 1338199.978 | I43: 2403212.762 | J43: 7205.970632 | K43: 1487363 | L43: =INDEX(ess_base_estract,MATCH(A43,ESSbase!$B$8:$B$25,0),MATCH(year_current,ESSbase!$F$6:$G$6,0)) -> 128874350.3 | M43: 0
A44: Bulk Water Levies | B44: =IFERROR(INDEX('Water levy'!$C$10:$C$18,MATCH('Comparison - TA'!B29,'Water levy'!$A$10:$A$18,0),),0) -> 17696562.02 | C44: =IFERROR(INDEX('Water levy'!$C$10:$C$18,MATCH('Comparison - TA'!C29,'Water levy'!$A$10:$A$18,0),),0) -> 8206340.01 | D44: =IFERROR(INDEX('Water levy'!$C$10:$C$18,MATCH('Comparison - TA'!D29,'Water levy'!$A$10:$A$18,0),),0) -> 3317567.004 | E44: =IFERROR(INDEX('Water levy'!$C$10:$C$18,MATCH('Comparison - TA'!E29,'Water levy'!$A$10:$A$18,0),),0) -> 3848429.005 | F44: =IFERROR(INDEX('Water levy'!$C$10:$C$18,MATCH('Comparison - TA'!F29,'Water levy'!$A$10:$A$18,0),),0) -> 0 | G44: =IFERROR(INDEX('Water levy'!$C$10:$C$18,MATCH('Comparison - TA'!G29,'Water levy'!$A$10:$A$18,0),),0) -> 0 | H44: =IFERROR(INDEX('Water levy'!$C$10:$C$18,MATCH('Comparison - TA'!H29,'Water levy'!$A$10:$A$18,0),),0) -> 0 | I44: =IFERROR(INDEX('Water levy'!$C$10:$C$18,MATCH('Comparison - TA'!I29,'Water levy'!$A$10:$A$18,0),),0) -> 0 | J44: =IFERROR(INDEX('Water levy'!$C$10:$C$18,MATCH('Comparison - TA'!J29,'Water levy'!$A$10:$A$18,0),),0) -> 0 | K44: =IFERROR(INDEX('Water levy'!$C$10:$C$18,MATCH('Comparison - TA'!K29,'Water levy'!$A$10:$A$18,0),),0) -> 0 | L44: =INDEX(ess_base_estract,MATCH(A44,ESSbase!$B$8:$B$25,0),MATCH(year_current,ESSbase!$F$6:$G$6,0)) -> 33068898.04 | M44: =ROUND(L44-SUM(B44:K44),-1) -> 0
A45: Total Regnl Rates & levies | B45: =SUM(B43:B44) -> 84093157.91 | C45: =SUM(C43:C44) -> 33233803.31 | D45: =SUM(D43:D44) -> 12045126.63 | E45: =SUM(E43:E44) -> 14160191.9 | F45: =SUM(F43:F44) -> 10345365.11 | G45: =SUM(G43:G44) -> 2829621.984 | H45: =SUM(H43:H44) -> 1338199.978 | I45: =SUM(I43:I44) -> 2403212.762 | J45: =SUM(J43:J44) -> 7205.970632 | K45: =SUM(K43:K44) -> 1487363 | L45: =INDEX(ess_base_estract,MATCH(A45,ESSbase!$B$8:$B$25,0),MATCH(year_current,ESSbase!$F$6:$G$6,0)) -> 161943248.4 | M45: 0
A46: Warm Greater Wellington rate | K46: =L46 -> 3237058 | L46: =INDEX(ess_base_estract,MATCH(A46,ESSbase!$B$8:$B$25,0),MATCH(year_current,ESSbase!$F$6:$G$6,0)) -> 3237058 | M46: 0
A47: Total Rates & Levies | B47: =SUM(B45:B46) -> 84093157.91 | C47: =SUM(C45:C46) -> 33233803.31 | D47: 12045126.63 | E47: 14160191.9 | F47: 10345365.11 | G47: 2829621.984 | H47: 1338199.978 | I47: 2403212.762 | J47: 7205.970632 | K47: 4724421 | L47: =INDEX(ess_base_estract,MATCH(A47,ESSbase!$B$8:$B$25,0),MATCH(year_current,ESSbase!$F$6:$G$6,0)) -> 165180306.4 | M47: 0
A50: Delta
B51: TA
B52: Wellington city | C52: Hutt city | D52: Upper Hutt city | E52: Porirua city | F52: Kāpiti Coast district | G52: Masterton District | H52: Carterton District | I52: South Wairarapa District | J52: Tararua District | K52: Other | L52: Region wide
A53: General rate | B53: =B30-B7 -> 1858563.97 | C53: 879637.334 | D53: 346856.1548 | E53: 451525.982 | F53: 575470.7937 | G53: 293375.0174 | H53: 133263.8609 | I53: 262951.6925 | J53: -1.418238552 | K53: 0 | L53: 4801643.387 | M53: =ROUND(L53-SUM(B53:K53),-1) -> 0
A54: Remission of rates | B54: =B31-B8 -> 0 | C54: 0 | D54: 0 | E54: 0 | F54: 0 | G54: 0 | H54: 0 | I54: 0 | J54: 0 | K54: 0 | L54: 0 | M54: 0
A55: Public transport rate | B55: =B32-B9 -> 2467474.404 | C55: 179199.879 | D55: 922.6290403 | E55: 20010.05825 | F55: 503590.4575 | G55: 130645.0269 | H55: 50350.50949 | I55: 101088.7019 | J55: 0 | K55: 0 | L55: 3453281.666 | M55: 0
A56: River management rate | B56: =B33-B10 -> -576 | C56: 670976 | D56: -10983 | E56: 5280 | F56: -32851 | G56: 0 | H56: 465 | I56: 0 | J56: 0 | K56: 0 | L56: 632310.3897 | M56: =ROUND(L56-SUM(B56:K56),-1) -> 0
A57: Stadium purposes rate | B57: =B34-B11 -> -580986 | C57: -190924 | D57: -51447 | E57: -70226 | F57: -47340 | G57: -19562 | H57: -6846 | I57: -10760 | J57: 0 | K57: 0 | L57: -978091.35 | M57: =ROUND(L57-SUM(B57:K57),-1) -> 0
A58: Wellington regional strategy rate | B58: =B35-B12 -> 51621.45009 | C58: 20839.13989 | D58: 7908.933816 | E58: 8006.035642 | F58: -5889.718646 | G58: 2325.287332 | H58: -690.3281549 | I58: 1722.802079 | J58: 0 | K58: 0 | L58: 85843.60205 | M58: =ROUND(L58-SUM(B58:K58),-1) -> 0
A59: District-Wide Rates | B59: =B36-B13 -> 3796097.824 | C59: 1559728.353 | D59: 293257.7176 | E59: 414596.0759 | F59: 992980.5325 | G59: 406783.3316 | H59: 176543.0422 | I59: 355003.1965 | J59: -1.418238552 | K59: 0 | L59: 7994987.695 | M59: 0
A60: Rates Penalties | B60: =B37-B14 -> 0 | C60: 0 | D60: 0 | E60: 0 | F60: 0 | G60: 0 | H60: 0 | I60: 0 | J60: 0 | K60: 0 | L60: 0 | M60: 0
A61: Remission of Rates Penalties | B61: =B38-B15 -> 0 | C61: 0 | D61: 0 | E61: 0 | F61: 0 | G61: 0 | H61: 0 | I61: 0 | J61: 0 | K61: 0 | L61: 0 | M61: 0
A62: Pest management rate | B62: =B39-B16 -> 3329.287215 | C62: 1522.93749 | D62: 5311.042805 | E62: 1159.262599 | F62: 2855.238802 | G62: 20257.05656 | H62: 7635.810804 | I62: 17410.46004 | J62: 518.9036829 | K62: 0 | L62: 60000 | M62: 0
A63: River management rate - Non district wide | B63: =B40-B17 -> 0 | C63: 0 | D63: 0 | E63: 0 | F63: 0 | G63: 0 | H63: 0 | I63: 1867 | J63: 0 | K63: 0 | L63: 1866.64 | M63: =ROUND(L63-SUM(B63:K63),-1) -> 0
A64: Special Rates | B64: =B41-B18 -> 0 | C64: 0 | D64: 0 | E64: 0 | F64: 0 | G64: 0 | H64: 0 | I64: 0 | J64: 0 | K64: 35605 | L64: 35606.884 | M64: =ROUND(L64-SUM(B64:K64),-1) -> 0
A65: Total Other Rates | B65: =B42-B19 -> 3329.287215 | C65: 1522.93749 | D65: 5311.042805 | E65: 1159.262599 | F65: 2855.238802 | G65: 20257.05656 | H65: 7635.810804 | I65: 19277.46004 | J65: 518.9036829 | K65: 35605 | L65: 97473.524 | M65: 0
A66: Total Regnl Rates | B66: =B43-B20 -> 3799427.111 | C66: 1561251.29 | D66: 298568.7604 | E66: 415755.3385 | F66: 995835.7713 | G66: 427040.3882 | H66: 184178.8531 | I66: 374280.6565 | J66: 517.4854444 | K66: 35605 | L66: 8092461.219 | M66: =ROUND(L66-SUM(B66:K66),-1) -> 0
A67: Bulk Water Levies | B67: =B44-B21 -> 1181896.236 | C67: 546201.6283 | D67: 222031.6306 | E67: 256003.1077 | F67: 0 | G67: 0 | H67: 0 | I67: 0 | J67: 0 | K67: 0 | L67: 2206132.603 | M67: 0
A68: Total Regnl Rates & levies | B68: =B45-B22 -> 4981323.347 | C68: 2107452.919 | D68: 520600.3911 | E68: 671758.4462 | F68: 995835.7713 | G68: 427040.3882 | H68: 184178.8531 | I68: 374280.6565 | J68: 517.4854444 | K68: 35605 | L68: 10298593.82 | M68: =ROUND(L68-SUM(B68:K68),-1) -> 0
A69: Warm Greater Wellington rate | B69: =B46-B23 -> 0 | C69: 0 | D69: 0 | E69: 0 | F69: 0 | G69: 0 | H69: 0 | I69: 0 | J69: 0 | K69: 55290.92744 | L69: 55291 | M69: 0
A70: Total Rates & Levies | B70: =B47-B24 -> 4981323.347 | C70: 2107452.919 | D70: 520600.3911 | E70: 671758.4462 | F70: 995835.7713 | G70: 427040.3882 | H70: 184178.8531 | I70: 374280.6565 | J70: 517.4854444 | K70: 90895.92744 | L70: 10353884.82 | M70: 0

Sheet Comparison - Category
A1: Comparison of proposed vs current
A2: =check_total -> 0
A5: =year_previous&" rates" -> 2017/18 rates
J6: Rates | Q6: Rates for average property | X6: Cents/$ OR Regional Strategy Rate $/property
A7: =Control!A$66 -> TA full name | B7: =Control!B$66 -> Rating area | C7: =Control!C$66 -> Category group | D7: =Control!D$66 -> Concatenated name | F7: CV | G7: CV Assessments | H7: Average CV | J7: General rate | K7: River management rate | L7: Public transport rate | M7: Stadium purposes rate | N7: Wellington regional strategy rate | O7: District-Wide rates | Q7: General rate | R7: River management rate | S7: Public transport rate | T7: Stadium purposes rate | U7: Wellington regional strategy rate | V7: District-Wide rates | X7: General rate | Y7: River management rate | Z7: Public transport rate | AA7: Stadium purposes rate | AB7: Wellington regional strategy rate | AC7: District-Wide rates
A9: By TA
A10: =Control!A42 -> Wellington city | C10: =Control!B42 -> District wide | D10: =Control!C42 -> Wellington cityDistrict wide | F10: 51319125451 | G10: 76971 | H10: 666733.256 | J10: 21189528.41 | K10: 43255.4241 | L10: 38457358 | M10: 580986.2619 | N10: 2299850.973 | O10: 62570979.07 | Q10: =J10/$F10*$H10 -> 275.2923621 | R10: =K10/$F10*$H10 -> 0.5619704058 | S10: =L10/$F10*$H10 -> 499.6343818 | T10: =M10/$F10*$H10 -> 7.548118927 | U10: =N10/$F10*$H10 -> 29.87944775 | V10: =IF('Comparison - Category'!C10="Residential",SUM(Q10:T10,Control!$B$103),IF('Comparison - Category'!C10="Rural",SUM(Q10:T10,Control!$B$104),O10/$F10*$H10)) -> 812.9162811
A11: =Control!A43 -> Hutt city | C11: =Control!B43 -> District wide | D11: =Control!C43 -> Hutt cityDistrict wide | F11: 21170821500 | G11: 39049 | H11: 542160.401 | J11: 7179456.053 | K11: 3685586.303 | L11: 11536013.2 | M11: 190923.4315 | N11: 862252.3181 | O11: 23454231.3 | Q11: 183.8576161 | R11: 94.38362834 | S11: 295.4240364 | T11: 4.889329599 | U11: 22.08129064 | V11: =IF('Comparison - Category'!C11="Residential",SUM(Q11:T11,Control!$B$103),IF('Comparison - Category'!C11="Rural",SUM(Q11:T11,Control!$B$104),O11/$F11*$H11)) -> 600.6359012
A12: =Control!A44 -> Upper Hutt city | C12: =Control!B44 -> District wide | D12: =Control!C44 -> Upper Hutt cityDistrict wide | F12: 8012247760 | G12: 16570 | H12: 483539.3941 | J12: 2718137.091 | K12: 678045.4338 | L12: 4596383.562 | M12: 51447.60501 | N12: 343198.0108 | O12: 8387211.703 | Q12: 164.0396555 | R12: 40.92006239 | S12: 277.3918867 | T12: 3.104864515 | U12: 20.71201031 | V12: =IF('Comparison - Category'!C12="Residential",SUM(Q12:T12,Control!$B$103),IF('Comparison - Category'!C12="Rural",SUM(Q12:T12,Control!$B$104),O12/$F12*$H12)) -> 506.1684794
A13: =Control!A45 -> Porirua city | C13: =Control!B45 -> District wide | D13: =Control!C45 -> Porirua cityDistrict wide | F13: 10044595300 | G13: 18514 | H13: 542540.5261 | J13: 3367756.606 | K13: 28307.67988 | L13: 6066071.247 | M13: 70226.95893 | N13: 354526.1708 | O13: 9886888.663 | Q13: 181.9032411 | R13: 1.528987786 | S13: 327.6477934 | T13: 3.793181318 | U13: 19.1490856 | V13: =IF('Comparison - Category'!C13="Residential",SUM(Q13:T13,Control!$B$103),IF('Comparison - Category'!C13="Rural",SUM(Q13:T13,Control!$B$104),O13/$F13*$H13)) -> 534.0222893
A14: =Control!A46 -> Kāpiti Coast district | C14: =Control!B46 -> District wide | D14: =Control!C46 -> Kāpiti Coast districtDistrict wide | F14: 10974506450 | G14: 24761 | H14: 443217.4165 | J14: 4329462.398 | K14: 1368225.795 | L14: 3090620.087 | M14: 47339.62134 | N14: 491419.6459 | O14: 9327067.548 | Q14: 174.8500625 | R14: 55.25729149 | S14: 124.8180642 | T14: 1.911862257 | U14: 19.84651855 | V14: =IF('Comparison - Category'!C14="Residential",SUM(Q14:T14,Control!$B$103),IF('Comparison - Category'!C14="Rural",SUM(Q14:T14,Control!$B$104),O14/$F14*$H14)) -> 376.683799
A15: =Control!A47 -> Masterton district | C15: =Control!B47 -> District wide | D15: =Control!C47 -> Masterton districtDistrict wide | F15: 4724008400 | G15: 12296 | H15: 384190.6636 | J15: 1675353.225 | K15: 0 | L15: 306748.566 | M15: 19561.827 | N15: 241562.2933 | O15: 2243225.911 | Q15: 136.2518888 | R15: 0 | S15: 24.94702066 | T15: 1.590909808 | U15: 19.64559965 | V15: =IF('Comparison - Category'!C15="Residential",SUM(Q15:T15,Control!$B$103),IF('Comparison - Category'!C15="Rural",SUM(Q15:T15,Control!$B$104),O15/$F15*$H15)) -> 182.4354189
A16: =Control!A48 -> Carterton district | C16: =Control!B48 -> District wide | D16: =Control!C48 -> Carterton districtDistrict wide | F16: 2188251200 | G16: 4561 | H16: 479774.4354 | J16: 774173.169 | K16: 23239.68 | L16: 198788.9136 | M16: 6846.63945 | N16: 90904.66358 | O16: 1093953.066 | Q16: 169.7375946 | R16: 5.095303661 | S16: 43.584502 | T16: 1.501126825 | U16: 19.93086244 | V16: =IF('Comparison - Category'!C16="Residential",SUM(Q16:T16,Control!$B$103),IF('Comparison - Category'!C16="Rural",SUM(Q16:T16,Control!$B$104),O16/$F16*$H16)) -> 239.8493895
A17: =Control!A49 -> South Wairarapa district | C17: =Control!B49 -> District wide | D17: =Control!C49 -> South Wairarapa districtDistrict wide | F17: 3612556200 | G17: 6598 | H17: 547522.916 | J17: 1245449.128 | K17: 0 | L17: 404412.5484 | M17: 10759.00485 | N17: 138051.1438 | O17: 1798671.825 | Q17: 188.7616138 | R17: 0 | S17: 61.29320225 | T17: 1.630646385 | U17: 20.92318032 | V17: =IF('Comparison - Category'!C17="Residential",SUM(Q17:T17,Control!$B$103),IF('Comparison - Category'!C17="Rural",SUM(Q17:T17,Control!$B$104),O17/$F17*$H17)) -> 272.6086428
A18: =Control!A50 -> Tararua district | C18: =Control!B50 -> District wide | D18: =Control!C50 -> Tararua districtDistrict wide | F18: 6806000 | G18: 12 | H18: 567166.6667 | J18: 2354.442882 | K18: 0 | L18: 0 | M18: 0 | N18: 252 | O18: 2606.442882 | Q18: 196.2035735 | R18: 0 | S18: 0 | T18: 0 | U18: 21 | V18: =IF('Comparison - Category'!C18="Residential",SUM(Q18:T18,Control!$B$103),IF('Comparison - Category'!C18="Rural",SUM(Q18:T18,Control!$B$104),O18/$F18*$H18)) -> 217.2035735
A19: =Control!A51 -> Region wide | C19: =Control!B51 -> 0 | D19: =Control!C51 -> Region wide | F19: 112052918261 | G19: 199332 | H19: 562142.1461 | J19: 42481670.52 | K19: 5826660.315 | L19: 64656396.13 | M19: 978091.35 | N19: 4822017.219 | O19: 118764835.5 | Q19: 213.120174 | R19: 29.23093289 | S19: 324.3653609 | T19: 4.906845614 | U19: 24.19088365 | V19: =IF('Comparison - Category'!C19="Residential",SUM(Q19:T19,Control!$B$103),IF('Comparison - Category'!C19="Rural",SUM(Q19:T19,Control!$B$104),O19/$F19*$H19)) -> 595.8141971
A21: By TA & Category
A22: =Control!A67 -> Wellington city | B22: =Control!B67 -> Wellington city | C22: =Control!C67 -> Regional CBD | D22: =Control!D67 -> Wellington cityRegional CBD | F22: 7854191500 | G22: 3401 | H22: 2309377.095 | J22: 3242974.475 | K22: 6620.073537 | L22: 25019166.07 | M22: 135230.613 | N22: 865036.7413 | O22: 29269027.98 | Q22: =J22/$F22*$H22 -> 953.5355703 | R22: =K22/$F22*$H22 -> 1.94650795 | S22: =L22/$F22*$H22 -> 7356.414605 | T22: =M22/$F22*$H22 -> 39.762015 | U22: =IF('Comparison - Category'!C22="Residential",Control!$B$103,IF('Comparison - Category'!C22="Rural",Control!$B$104,N22/$F22*$H22)) -> 254.3477628 | V22: =IF('Comparison - Category'!C22="Residential",SUM(Q22:T22,Control!$B$103),IF('Comparison - Category'!C22="Rural",SUM(Q22:T22,Control!$B$104),O22/$F22*$H22)) -> 8606.006461 | X22: =J22/$F22*100 -> 0.04128973014 | Y22: =K22/$F22*100 -> 8.428714193e-05 | Z22: =L22/$F22*100 -> 0.3185454044 | AA22: =M22/$F22*100 -> 0.001721763634 | AB22: =IF(OR('Comparison - Category'!C22="Residential",'Comparison - Category'!C22="Rural"),U22,N22/$F22*100) -> 0.01101369557 | AC22: =O22/$F22*100 -> 0.3726548808
A23: =Control!A68 -> Wellington city | B23: =Control!B68 -> Wellington city | C23: =Control!C68 -> Business | D23: =Control!D68 -> Wellington cityBusiness | F23: 3819755400 | G23: 1907 | H23: 2003018.039 | J23: 1577166.697 | K23: 3219.562655 | L23: 1192769.666 | M23: 65767.1594 | N23: 420696.2313 | O23: 3259619.316 | Q23: 827.0407428 | R23: 1.688286657 | S23: 625.4691483 | T23: 34.48723618 | U23: =IF('Comparison - Category'!C23="Residential",Control!$B$103,IF('Comparison - Category'!C23="Rural",Control!$B$104,N23/$F23*$H23)) -> 220.606309 | V23: =IF('Comparison - Category'!C23="Residential",SUM(Q23:T23,Control!$B$103),IF('Comparison - Category'!C23="Rural",SUM(Q23:T23,Control!$B$104),O23/$F23*$H23)) -> 1709.291723 | X23: 0.04128973014 | Y23: 8.428714193e-05 | Z23: 0.03122633627 | AA23: 0.001721763634 | AB23: =IF(OR('Comparison - Category'!C23="Residential",'Comparison - Category'!C23="Rural"),U23,N23/$F23*100) -> 0.01101369557 | AC23: 0.08533581275
A24: =Control!A69 -> Wellington city | B24: =Control!B69 -> Wellington city | C24: =Control!C69 -> Residential | D24: =Control!D69 -> Wellington cityResidential | F24: 39066389001 | G24: 70889 | H24: 551092.398 | J24: 16130406.59 | K24: 32927.94274 | L24: 12199002 | M24: 377152.0246 | N24: 992446 | O24: 29731934.56 | Q24: 227.5445639 | R24: 0.4645000316 | S24: 172.0859654 | T24: 5.320318026 | U24: =IF('Comparison - Category'!C24="Residential",Control!$B$103,IF('Comparison - Category'!C24="Rural",Control!$B$104,N24/$F24*$H24)) -> 14 | V24: =IF('Comparison - Category'!C24="Residential",SUM(Q24:T24,Control!$B$103),IF('Comparison - Category'!C24="Rural",SUM(Q24:T24,Control!$B$104),O24/$F24*$H24)) -> 419.4153473 | X24: 0.04128973014 | Y24: 8.428714193e-05 | Z24: 0.03122633627 | AA24: 0.0009654130679 | AB24: =IF(OR('Comparison - Category'!C24="Residential",'Comparison - Category'!C24="Rural"),U24,N24/$F24*100) -> 14 | AC24: 0.07610617546
A25: =Control!A70 -> Wellington city | B25: =Control!B70 -> Wellington city | C25: =Control!C70 -> Rural | D25: =Control!D70 -> Wellington cityRural | F25: 578789550 | G25: 774 | H25: 747790.1163 | J25: 238980.6433 | K25: 487.8451695 | L25: 46420.26679 | M25: 2836.464915 | N25: 21672 | O25: 310397.2201 | Q25: 308.760521 | R25: 0.6302909166 | S25: 59.9745049 | T25: 3.664683353 | U25: =IF('Comparison - Category'!C25="Residential",Control!$B$103,IF('Comparison - Category'!C25="Rural",Control!$B$104,N25/$F25*$H25)) -> 28 | V25: =IF('Comparison - Category'!C25="Residential",SUM(Q25:T25,Control!$B$103),IF('Comparison - Category'!C25="Rural",SUM(Q25:T25,Control!$B$104),O25/$F25*$H25)) -> 401.0300002 | X25: 0.04128973014 | Y25: 8.428714193e-05 | Z25: 0.008020232361 | AA25: 0.0004900684394 | AB25: =IF(OR('Comparison - Category'!C25="Residential",'Comparison - Category'!C25="Rural"),U25,N25/$F25*100) -> 28 | AC25: 0.05362868423
A26: =Control!A71 -> Hutt city | B26: =Control!B71 -> Hutt city | C26: =Control!C71 -> Business | D26: =Control!D71 -> Hutt cityBusiness | F26: 3796856000 | G26: 2357 | H26: 1610885.023 | J26: 1287591.074 | K26: 660987.1265 | L26: 2092334.59 | M26: 49784.84971 | N26: 343454.3181 | O26: 4434151.958 | Q26: 546.2838668 | R26: 280.435777 | S26: 887.7108994 | T26: 21.12212546 | U26: =IF('Comparison - Category'!C26="Residential",Control!$B$103,IF('Comparison - Category'!C26="Rural",Control!$B$104,N26/$F26*$H26)) -> 145.7167238 | V26: =IF('Comparison - Category'!C26="Residential",SUM(Q26:T26,Control!$B$103),IF('Comparison - Category'!C26="Rural",SUM(Q26:T26,Control!$B$104),O26/$F26*$H26)) -> 1881.269392 | X26: 0.03391203338 | Y26: 0.01740880156 | Z26: 0.05510703039 | AA26: 0.00131121248 | AB26: =IF(OR('Comparison - Category'!C26="Residential",'Comparison - Category'!C26="Rural"),U26,N26/$F26*100) -> 0.009045755701 | AC26: 0.1167848335
A27: =Control!A72 -> Hutt city | B27: =Control!B72 -> Hutt city | C27: =Control!C72 -> Residential | D27: =Control!D72 -> Hutt cityResidential | F27: 17055925500 | G27: 36202 | H27: 471132.1336 | J27: 5784011.148 | K27: 2969232.224 | L27: 9399014.049 | M27: 138888.9717 | N27: 505078 | O27: 18796224.39 | Q27: 159.7704864 | R27: 82.01845821 | S27: 259.626928 | T27: 3.836499964 | U27: =IF('Comparison - Category'!C27="Residential",Control!$B$103,IF('Comparison - Category'!C27="Rural",Control!$B$104,N27/$F27*$H27)) -> 14 | V27: =IF('Comparison - Category'!C27="Residential",SUM(Q27:T27,Control!$B$103),IF('Comparison - Category'!C27="Rural",SUM(Q27:T27,Control!$B$104),O27/$F27*$H27)) -> 519.2523726 | X27: 0.03391203338 | Y27: 0.01740880156 | Z27: 0.05510703039 | AA27: 0.0008143150701 | AB27: =IF(OR('Comparison - Category'!C27="Residential",'Comparison - Category'!C27="Rural"),U27,N27/$F27*100) -> 14 | AC27: 0.1102034855
A28: =Control!A73 -> Hutt city | B28: =Control!B73 -> Hutt city | C28: =Control!C73 -> Rural | D28: =Control!D73 -> Hutt cityRural | F28: 318040000 | G28: 490 | H28: 649061.2245 | J28: 107853.8309 | K28: 55366.95247 | L28: 44664.56015 | M28: 2249.610105 | N28: 13720 | O28: 223854.9537 | Q28: 220.1098591 | R28: 112.9937806 | S28: 91.15216357 | T28: 4.591041031 | U28: =IF('Comparison - Category'!C28="Residential",Control!$B$103,IF('Comparison - Category'!C28="Rural",Control!$B$104,N28/$F28*$H28)) -> 28 | V28: =IF('Comparison - Category'!C28="Residential",SUM(Q28:T28,Control!$B$103),IF('Comparison - Category'!C28="Rural",SUM(Q28:T28,Control!$B$104),O28/$F28*$H28)) -> 456.8468442 | X28: 0.03391203338 | Y28: 0.01740880156 | Z28: 0.01404369266 | AA28: 0.0007073355883 | AB28: =IF(OR('Comparison - Category'!C28="Residential",'Comparison - Category'!C28="Rural"),U28,N28/$F28*100) -> 28 | AC28: 0.07038578596
A29: =Control!A74 -> Upper Hutt city | B29: =Control!B74 -> Upper Hutt city | C29: =Control!C74 -> Business | D29: =Control!D74 -> Upper Hutt cityBusiness | F29: 1170562500 | G29: 722 | H29: 1621277.701 | J29: 397110.704 | K29: 99060.16162 | L29: 725473.2634 | M29: 7726.921665 | N29: 105926.0108 | O29: 1335297.061 | Q29: 550.0148255 | R29: 137.2024399 | S29: 1004.810614 | T29: 10.70210757 | U29: =IF('Comparison - Category'!C29="Residential",Control!$B$103,IF('Comparison - Category'!C29="Rural",Control!$B$104,N29/$F29*$H29)) -> 146.7119263 | V29: =IF('Comparison - Category'!C29="Residential",SUM(Q29:T29,Control!$B$103),IF('Comparison - Category'!C29="Rural",SUM(Q29:T29,Control!$B$104),O29/$F29*$H29)) -> 1849.441913 | X29: 0.03392477582 | Y29: 0.008462611917 | Z29: 0.06197646545 | AA29: 0.0006601032978 | AB29: =IF(OR('Comparison - Category'!C29="Residential",'Comparison - Category'!C29="Rural"),U29,N29/$F29*100) -> 0.009049154644 | AC29: 0.1140731111
A30: =Control!A75 -> Upper Hutt city | B30: =Control!B75 -> Upper Hutt city | C30: =Control!C75 -> Residential | D30: =Control!D75 -> Upper Hutt cityResidential | F30: 6041952920 | G30: 14604 | H30: 413719.0441 | J30: 2049718.983 | K30: 511307.0278 | L30: 3744588.864 | M30: 41764.50065 | N30: 204288 | O30: 6551667.376 | Q30: 140.3532582 | R30: 35.01143713 | S30: 256.4084404 | T30: 2.859798729 | U30: =IF('Comparison - Category'!C30="Residential",Control!$B$103,IF('Comparison - Category'!C30="Rural",Control!$B$104,N30/$F30*$H30)) -> 14 | V30: =IF('Comparison - Category'!C30="Residential",SUM(Q30:T30,Control!$B$103),IF('Comparison - Category'!C30="Rural",SUM(Q30:T30,Control!$B$104),O30/$F30*$H30)) -> 448.6329345 | X30: 0.03392477582 | Y30: 0.008462611917 | Z30: 0.06197646545 | AA30: 0.0006912417425 | AB30: =IF(OR('Comparison - Category'!C30="Residential",'Comparison - Category'!C30="Rural"),U30,N30/$F30*100) -> 14 | AC30: 0.1084362534
A31: =Control!A76 -> Upper Hutt city | B31: =Control!B76 -> Upper Hutt city | C31: =Control!C76 -> Rural | D31: =Control!D76 -> Upper Hutt cityRural | F31: 799732340 | G31: 1244 | H31: 642871.6559 | J31: 271307.4035 | K31: 67678.24431 | L31: 126321.4349 | M31: 1956.1827 | N31: 32984 | O31: 500247.2654 | Q31: 218.0927681 | R31: 54.40373337 | S31: 101.5445618 | T31: 1.572494132 | U31: =IF('Comparison - Category'!C31="Residential",Control!$B$103,IF('Comparison - Category'!C31="Rural",Control!$B$104,N31/$F31*$H31)) -> 28 | V31: =IF('Comparison - Category'!C31="Residential",SUM(Q31:T31,Control!$B$103),IF('Comparison - Category'!C31="Rural",SUM(Q31:T31,Control!$B$104),O31/$F31*$H31)) -> 403.6135574 | X31: 0.03392477582 | Y31: 0.008462611917 | Z31: 0.01579546413 | AA31: 0.0002446046761 | AB31: =IF(OR('Comparison - Category'!C31="Residential",'Comparison - Category'!C31="Rural"),U31,N31/$F31*100) -> 28 | AC31: 0.06255183646
A32: =Control!A77 -> Porirua city | B32: =Control!B77 -> Porirua city | C32: =Control!C77 -> Business | D32: =Control!D77 -> Porirua cityBusiness | F32: 1094739500 | G32: 796 | H32: 1375300.879 | J32: 367044.7712 | K32: 3085.195012 | L32: 691972.2212 | M32: 12128.33274 | N32: 97906.17079 | O32: 1172136.691 | Q32: 461.1115216 | R32: 3.87587313 | S32: 869.3118357 | T32: 15.23659892 | U32: =IF('Comparison - Category'!C32="Residential",Control!$B$103,IF('Comparison - Category'!C32="Rural",Control!$B$104,N32/$F32*$H32)) -> 122.997702 | V32: =IF('Comparison - Category'!C32="Residential",SUM(Q32:T32,Control!$B$103),IF('Comparison - Category'!C32="Rural",SUM(Q32:T32,Control!$B$104),O32/$F32*$H32)) -> 1472.533531 | X32: 0.03352804673 | Y32: 0.0002818200139 | Z32: 0.06320884751 | AA32: 0.001107873859 | AB32: =IF(OR('Comparison - Category'!C32="Residential",'Comparison - Category'!C32="Rural"),U32,N32/$F32*100) -> 0.008943330426 | AC32: 0.1070699185
A33: =Control!A78 -> Porirua city | B33: =Control!B78 -> Porirua city | C33: =Control!C78 -> Residential | D33: =Control!D78 -> Porirua cityResidential | F33: 8349049050 | G33: 17106 | H33: 488077.2273 | J33: 2799273.067 | K33: 23529.2912 | L33: 5277337.682 | M33: 56729.2983 | N33: 239484 | O33: 8396353.339 | Q33: 163.6427609 | R33: 1.37549931 | S33: 308.5079903 | T33: 3.316339197 | U33: =IF('Comparison - Category'!C33="Residential",Control!$B$103,IF('Comparison - Category'!C33="Rural",Control!$B$104,N33/$F33*$H33)) -> 14 | V33: =IF('Comparison - Category'!C33="Residential",SUM(Q33:T33,Control!$B$103),IF('Comparison - Category'!C33="Rural",SUM(Q33:T33,Control!$B$104),O33/$F33*$H33)) -> 490.8425897 | X33: 0.03352804673 | Y33: 0.0002818200139 | Z33: 0.06320884751 | AA33: 0.0006794701763 | AB33: =IF(OR('Comparison - Category'!C33="Residential",'Comparison - Category'!C33="Rural"),U33,N33/$F33*100) -> 14 | AC33: 0.100566583
A34: =Control!A79 -> Porirua city | B34: =Control!B79 -> Porirua city | C34: =Control!C79 -> Rural | D34: =Control!D79 -> Porirua cityRural | F34: 600806750 | G34: 612 | H34: 981710.3758 | J34: 201438.7679 | K34: 1693.193667 | L34: 96761.34373 | M34: 1369.32789 | N34: 17136 | O34: 318398.6332 | Q34: 329.1483136 | R34: 2.766656318 | S34: 158.1067708 | T34: 2.237463873 | U34: =IF('Comparison - Category'!C34="Residential",Control!$B$103,IF('Comparison - Category'!C34="Rural",Control!$B$104,N34/$F34*$H34)) -> 28 | V34: =IF('Comparison - Category'!C34="Residential",SUM(Q34:T34,Control!$B$103),IF('Comparison - Category'!C34="Rural",SUM(Q34:T34,Control!$B$104),O34/$F34*$H34)) -> 520.2592046 | X34: 0.03352804673 | Y34: 0.0002818200139 | Z34: 0.01610523579 | AA34: 0.0002279148645 | AB34: =IF(OR('Comparison - Category'!C34="Residential",'Comparison - Category'!C34="Rural"),U34,N34/$F34*100) -> 28 | AC34: 0.05299518243
A35: =Control!A80 -> Kāpiti Coast district | B35: =Control!B80 -> Kāpiti Coast district | C35: =Control!C80 -> Business | D35: =Control!D80 -> Kāpiti Coast districtBusiness | F35: 1268607000 | G35: 1389 | H35: 913323.9741 | J35: 500467.7276 | K35: 158161.1737 | L35: 403085.5328 | M35: 5889.225561 | N35: 133495.6459 | O35: 1201099.306 | Q35: 360.3079393 | R35: 113.8669357 | S35: 290.1983678 | T35: 4.239903212 | U35: =IF('Comparison - Category'!C35="Residential",Control!$B$103,IF('Comparison - Category'!C35="Rural",Control!$B$104,N35/$F35*$H35)) -> 96.10917634 | V35: =IF('Comparison - Category'!C35="Residential",SUM(Q35:T35,Control!$B$103),IF('Comparison - Category'!C35="Rural",SUM(Q35:T35,Control!$B$104),O35/$F35*$H35)) -> 864.7223223 | X35: 0.03945017863 | Y35: 0.0124673105 | Z35: 0.03177386951 | AA35: 0.0004642277365 | AB35: =IF(OR('Comparison - Category'!C35="Residential",'Comparison - Category'!C35="Rural"),U35,N35/$F35*100) -> 0.01052301035 | AC35: 0.09467859673
A36: =Control!A81 -> Kāpiti Coast district | B36: =Control!B81 -> Kāpiti Coast district excl Ōtaki | C36: =Control!C81 -> Residential | D36: =Control!D81 -> Kāpiti Coast district excl Ōtaki Residential | F36: 7258515350 | G36: 17518 | H36: 414346.1211 | J36: 2863497.272 | K36: 904941.6462 | L36: 2306311.196 | M36: 33696.04151 | N36: 241682 | O36: 6350128.155 | Q36: 163.4602849 | R36: 51.65781745 | S36: 131.6537959 | T36: 1.923509619 | U36: =IF('Comparison - Category'!C36="Residential",Control!$B$103,IF('Comparison - Category'!C36="Rural",Control!$B$104,N36/$F36*$H36)) -> 14 | V36: =IF('Comparison - Category'!C36="Residential",SUM(Q36:T36,Control!$B$103),IF('Comparison - Category'!C36="Rural",SUM(Q36:T36,Control!$B$104),O36/$F36*$H36)) -> 362.6954079 | X36: 0.03945017863 | Y36: 0.0124673105 | Z36: 0.03177386951 | AA36: 0.0004642277365 | AB36: =IF(OR('Comparison - Category'!C36="Residential",'Comparison - Category'!C36="Rural"),U36,N36/$F36*100) -> 14 | AC36: 0.08748522045
A37: =Control!A82 -> Kāpiti Coast district | B37: =Control!B82 -> Ōtaki rating area | C37: =Control!C82 -> Residential | D37: =Control!D82 -> Ōtaki rating areaResidential | F37: 764401000 | G37: 3065 | H37: 249396.7374 | J37: 301557.56 | K37: 95300.24611 | L37: 242879.7763 | M37: 3548.56146 | N37: 42910 | O37: 686196.1438 | Q37: =J37/$F37*$H37 -> 98.38745839 | R37: =K37/$F37*$H37 -> 31.09306562 | S37: =L37/$F37*$H37 -> 79.2429939 | T37: =M37/$F37*$H37 -> 1.157768829 | U37: =IF('Comparison - Category'!C37="Residential",Control!$B$103,IF('Comparison - Category'!C37="Rural",Control!$B$104,N37/$F37*$H37)) -> 14 | V37: =IF('Comparison - Category'!C37="Residential",SUM(Q37:T37,Control!$B$103),IF('Comparison - Category'!C37="Rural",SUM(Q37:T37,Control!$B$104),O37/$F37*$H37)) -> 223.8812867 | X37: =J37/$F37*100 -> 0.03945017863 | Y37: =K37/$F37*100 -> 0.0124673105 | Z37: =L37/$F37*100 -> 0.03177386951 | AA37: =M37/$F37*100 -> 0.0004642277365 | AB37: =IF(OR('Comparison - Category'!C37="Residential",'Comparison - Category'!C37="Rural"),U37,N37/$F37*100) -> 14 | AC37: =O37/$F37*100 -> 0.08976913215
A38: =Control!A83 -> Kāpiti Coast district | B38: =Control!B83 -> Kāpiti Coast district | C38: =Control!C83 -> Rural | D38: =Control!D83 -> Kāpiti Coast districtRural | F38: 1682983100 | G38: 2789 | H38: 603436.0344 | J38: 663939.8393 | K38: 209822.7287 | L38: 138343.5821 | M38: 4205.792805 | N38: 73332 | O38: 1089643.943 | Q38: 238.0565935 | R38: 75.23224406 | S38: 49.60329226 | T38: 1.507993118 | U38: =IF('Comparison - Category'!C38="Residential",Control!$B$103,IF('Comparison - Category'!C38="Rural",Control!$B$104,N38/$F38*$H38)) -> 28 | V38: =IF('Comparison - Category'!C38="Residential",SUM(Q38:T38,Control!$B$103),IF('Comparison - Category'!C38="Rural",SUM(Q38:T38,Control!$B$104),O38/$F38*$H38)) -> 392.4001229 | X38: 0.03945017863 | Y38: 0.0124673105 | Z38: 0.008220140898 | AA38: 0.0002499010718 | AB38: =IF(OR('Comparison - Category'!C38="Residential",'Comparison - Category'!C38="Rural"),U38,N38/$F38*100) -> 28 | AC38: 0.0647447941
A39: =Control!A84 -> Masterton district | B39: =Control!B84 -> Masterton district | C39: =Control!C84 -> Business | D39: =Control!D84 -> Masterton districtBusiness | F39: 381148600 | G39: 546 | H39: 698074.359 | J39: 135173.0315 | K39: 0 | L39: 38506.17602 | M39: 2325.988066 | N39: 36056.29325 | O39: 212061.4888 | Q39: 247.5696547 | R39: 0 | S39: 70.5241319 | T39: 4.260051403 | U39: =IF('Comparison - Category'!C39="Residential",Control!$B$103,IF('Comparison - Category'!C39="Rural",Control!$B$104,N39/$F39*$H39)) -> 66.03716713 | V39: =IF('Comparison - Category'!C39="Residential",SUM(Q39:T39,Control!$B$103),IF('Comparison - Category'!C39="Rural",SUM(Q39:T39,Control!$B$104),O39/$F39*$H39)) -> 388.3910052 | X39: 0.03546465381 | Y39: 0 | Z39: 0.01010266757 | AA39: 0.000610257539 | AB39: =IF(OR('Comparison - Category'!C39="Residential",'Comparison - Category'!C39="Rural"),U39,N39/$F39*100) -> 0.009459904418 | AC39: 0.05563748334
A40: =Control!A85 -> Masterton district | B40: =Control!B85 -> Masterton district | C40: =Control!C85 -> Residential | D40: =Control!D85 -> Masterton districtResidential | F40: 1974896500 | G40: 7842 | H40: 251835.8199 | J40: 700390.2068 | K40: 0 | L40: 199517.2283 | M40: 12051.95478 | N40: 109550 | O40: 1021509.39 | Q40: 89.31270171 | R40: 0 | S40: 25.44213572 | T40: 1.536847077 | U40: =IF('Comparison - Category'!C40="Residential",Control!$B$103,IF('Comparison - Category'!C40="Rural",Control!$B$104,N40/$F40*$H40)) -> 14 | V40: =IF('Comparison - Category'!C40="Residential",SUM(Q40:T40,Control!$B$103),IF('Comparison - Category'!C40="Rural",SUM(Q40:T40,Control!$B$104),O40/$F40*$H40)) -> 130.2916845 | X40: 0.03546465381 | Y40: 0 | Z40: 0.01010266757 | AA40: 0.000610257539 | AB40: =IF(OR('Comparison - Category'!C40="Residential",'Comparison - Category'!C40="Rural"),U40,N40/$F40*100) -> 14 | AC40: 0.05172470506
A41: =Control!A86 -> Masterton district | B41: =Control!B86 -> Masterton district | C41: =Control!C86 -> Rural | D41: =Control!D86 -> Masterton districtRural | F41: 2367963300 | G41: 3908 | H41: 605927.1494 | J41: 839789.9866 | K41: 0 | L41: 68725.1617 | M41: 5183.884155 | N41: 95956 | O41: 1009655.032 | Q41: 214.8899659 | R41: 0 | S41: 17.58576297 | T41: 1.326480081 | U41: =IF('Comparison - Category'!C41="Residential",Control!$B$103,IF('Comparison - Category'!C41="Rural",Control!$B$104,N41/$F41*$H41)) -> 28 | V41: =IF('Comparison - Category'!C41="Residential",SUM(Q41:T41,Control!$B$103),IF('Comparison - Category'!C41="Rural",SUM(Q41:T41,Control!$B$104),O41/$F41*$H41)) -> 261.8022089 | X41: 0.03546465381 | Y41: 0 | Z41: 0.002902289985 | AA41: 0.0002189174197 | AB41: =IF(OR('Comparison - Category'!C41="Residential",'Comparison - Category'!C41="Rural"),U41,N41/$F41*100) -> 28 | AC41: 0.04263811996
A42: =Control!A87 -> Carterton district | B42: =Control!B87 -> Carterton district | C42: =Control!C87 -> Business | D42: =Control!D87 -> Carterton districtBusiness | F42: 93045500 | G42: 225 | H42: 413535.5556 | J42: 32918.2178 | K42: 988.1624401 | L42: 16823.53517 | M42: 506.4623492 | N42: 8780.663578 | O42: 60017.04134 | Q42: 146.3031902 | R42: 4.391833067 | S42: 74.77126744 | T42: 2.250943774 | U42: =IF('Comparison - Category'!C42="Residential",Control!$B$103,IF('Comparison - Category'!C42="Rural",Control!$B$104,N42/$F42*$H42)) -> 39.02517146 | V42: =IF('Comparison - Category'!C42="Residential",SUM(Q42:T42,Control!$B$103),IF('Comparison - Category'!C42="Rural",SUM(Q42:T42,Control!$B$104),O42/$F42*$H42)) -> 266.742406 | X42: 0.03537862422 | Y42: 0.001062020667 | Z42: 0.0180809767 | AA42: 0.0005443168657 | AB42: =IF(OR('Comparison - Category'!C42="Residential",'Comparison - Category'!C42="Rural"),U42,N42/$F42*100) -> 0.009436956734 | AC42: 0.06450289519
A43: =Control!A88 -> Carterton district | B43: =Control!B88 -> Carterton district | C43: =Control!C88 -> Residential | D43: =Control!D88 -> Carterton districtResidential | F43: 607751500 | G43: 2299 | H43: 264354.7194 | J43: 215014.1194 | K43: 6454.446537 | L43: 109887.4071 | M43: 3308.093916 | N43: 31080 | O43: 365744.0669 | Q43: 93.5250628 | R43: 2.807501756 | S43: 47.79791522 | T43: 1.438927323 | U43: =IF('Comparison - Category'!C43="Residential",Control!$B$103,IF('Comparison - Category'!C43="Rural",Control!$B$104,N43/$F43*$H43)) -> 14 | V43: =IF('Comparison - Category'!C43="Residential",SUM(Q43:T43,Control!$B$103),IF('Comparison - Category'!C43="Rural",SUM(Q43:T43,Control!$B$104),O43/$F43*$H43)) -> 159.5694071 | X43: 0.03537862422 | Y43: 0.001062020667 | Z43: 0.0180809767 | AA43: 0.0005443168657 | AB43: =IF(OR('Comparison - Category'!C43="Residential",'Comparison - Category'!C43="Rural"),U43,N43/$F43*100) -> 14 | AC43: 0.06017987071
A44: =Control!A89 -> Carterton district | B44: =Control!B89 -> Carterton district | C44: =Control!C89 -> Rural | D44: =Control!D89 -> Carterton districtRural | F44: 1487454200 | G44: 2037 | H44: 730218.0658 | J44: 526240.8319 | K44: 15797.07102 | L44: 72077.97134 | M44: 3032.083185 | N44: 51044 | O44: 668191.9574 | Q44: 258.3411055 | R44: 7.755066776 | S44: 35.38437474 | T44: 1.488504264 | U44: =IF('Comparison - Category'!C44="Residential",Control!$B$103,IF('Comparison - Category'!C44="Rural",Control!$B$104,N44/$F44*$H44)) -> 28 | V44: =IF('Comparison - Category'!C44="Residential",SUM(Q44:T44,Control!$B$103),IF('Comparison - Category'!C44="Rural",SUM(Q44:T44,Control!$B$104),O44/$F44*$H44)) -> 330.9690513 | X44: 0.03537862422 | Y44: 0.001062020667 | Z44: 0.004845727105 | AA44: 0.0002038438014 | AB44: =IF(OR('Comparison - Category'!C44="Residential",'Comparison - Category'!C44="Rural"),U44,N44/$F44*100) -> 28 | AC44: 0.04492185087
A45: =Control!A90 -> South Wairarapa district | B45: =Control!B90 -> South Wairarapa district | C45: =Control!C90 -> Business | D45: =Control!D90 -> South Wairarapa districtBusiness | F45: 190419802 | G45: 312 | H45: 610319.8782 | J45: 65648.30088 | K45: 0 | L45: 44332.49902 | M45: 1243.692615 | N45: 17511.14377 | O45: 128735.6363 | Q45: 210.4112208 | R45: 0 | S45: 142.091343 | T45: 3.98619428 | U45: =IF('Comparison - Category'!C45="Residential",Control!$B$103,IF('Comparison - Category'!C45="Rural",Control!$B$104,N45/$F45*$H45)) -> 56.1254608 | V45: =IF('Comparison - Category'!C45="Residential",SUM(Q45:T45,Control!$B$103),IF('Comparison - Category'!C45="Rural",SUM(Q45:T45,Control!$B$104),O45/$F45*$H45)) -> 412.6142189 | X45: 0.03447556409 | Y45: 0 | Z45: 0.02328145422 | AA45: 0.000653131976 | AB45: =IF(OR('Comparison - Category'!C45="Residential",'Comparison - Category'!C45="Rural"),U45,N45/$F45*100) -> 0.00919607288 | AC45: 0.06760622316
A46: =Control!A91 -> South Wairarapa district | B46: =Control!B91 -> South Wairarapa district | C46: =Control!C91 -> Residential | D46: =Control!D91 -> South Wairarapa districtResidential | F46: 887809098 | G46: 3147 | H46: 282112.837 | J46: 306077.1946 | K46: 0 | L46: 206694.8687 | M46: 5798.565105 | N46: 43008 | O46: 561578.6284 | Q46: 97.25999193 | R46: 0 | S46: 65.67997098 | T46: 1.842569147 | U46: =IF('Comparison - Category'!C46="Residential",Control!$B$103,IF('Comparison - Category'!C46="Rural",Control!$B$104,N46/$F46*$H46)) -> 14 | V46: =IF('Comparison - Category'!C46="Residential",SUM(Q46:T46,Control!$B$103),IF('Comparison - Category'!C46="Rural",SUM(Q46:T46,Control!$B$104),O46/$F46*$H46)) -> 178.7825321 | X46: 0.03447556409 | Y46: 0 | Z46: 0.02328145422 | AA46: 0.000653131976 | AB46: =IF(OR('Comparison - Category'!C46="Residential",'Comparison - Category'!C46="Rural"),U46,N46/$F46*100) -> 14 | AC46: 0.06325443495
A47: =Control!A92 -> South Wairarapa district | B47: =Control!B92 -> South Wairarapa district | C47: =Control!C92 -> Rural | D47: =Control!D92 -> South Wairarapa districtRural | F47: 2534327300 | G47: 3139 | H47: 807367.7286 | J47: 873723.6326 | K47: 0 | L47: 153385.1807 | M47: 3716.74713 | N47: 77532 | O47: 1108357.56 | Q47: 278.3445787 | R47: 0 | S47: 48.86434556 | T47: 1.184054517 | U47: =IF('Comparison - Category'!C47="Residential",Control!$B$103,IF('Comparison - Category'!C47="Rural",Control!$B$104,N47/$F47*$H47)) -> 28 | V47: =IF('Comparison - Category'!C47="Residential",SUM(Q47:T47,Control!$B$103),IF('Comparison - Category'!C47="Rural",SUM(Q47:T47,Control!$B$104),O47/$F47*$H47)) -> 356.3929788 | X47: 0.03447556409 | Y47: 0 | Z47: 0.006052303533 | AA47: 0.0001466561612 | AB47: =IF(OR('Comparison - Category'!C47="Residential",'Comparison - Category'!C47="Rural"),U47,N47/$F47*100) -> 28 | AC47: 0.04373379715
A48: =Control!A93 -> Tararua district | B48: =Control!B93 -> Tararua district | C48: =Control!C93 -> Rural | D48: =Control!D93 -> Tararua districtRural | F48: 6806000 | G48: 12 | H48: 567166.6667 | J48: 2354.442882 | K48: 0 | L48: 0 | M48: 0 | N48: 252 | O48: 2606.442882 | Q48: 196.2035735 | R48: 0 | S48: 0 | T48: 0 | U48: =IF('Comparison - Category'!C48="Residential",Control!$B$103,IF('Comparison - Category'!C48="Rural",Control!$B$104,N48/$F48*$H48)) -> 28 | V48: =IF('Comparison - Category'!C48="Residential",SUM(Q48:T48,Control!$B$103),IF('Comparison - Category'!C48="Rural",SUM(Q48:T48,Control!$B$104),O48/$F48*$H48)) -> 224.2035735 | X48: 0.03459363623 | Y48: 0 | Z48: 0 | AA48: 0 | AB48: =IF(OR('Comparison - Category'!C48="Residential",'Comparison - Category'!C48="Rural"),U48,N48/$F48*100) -> 28 | AC48: 0.03829625157
A49: =Control!A94 -> Region wide | C49: =Control!C94 -> 0 | D49: =Control!D94 -> Region wide | F49: 112052918261 | G49: 199332 | H49: 562142.1461 | J49: 42481670.52 | K49: 5826660.315 | L49: 64656396.13 | M49: 978091.35 | N49: 4822017.219 | O49: 118764835.5 | Q49: 213.120174 | R49: 29.23093289 | S49: 324.3653609 | T49: 4.906845614 | U49: =N49/$F49*$H49 -> 24.19088365 | V49: =IF('Comparison - Category'!C49="Residential",SUM(Q49:T49,Control!$B$103),IF('Comparison - Category'!C49="Rural",SUM(Q49:T49,Control!$B$104),O49/$F49*$H49)) -> 595.8141971 | X49: 0.03791215006 | Y49: 0.005199918401 | Z49: 0.05770166197 | AA49: 0.0008728834243 | AB49: =IF(OR(C49="Residential",C49="Rural"),"n/a",N49/$F49*100) -> 0.004303339256 | AC49: 0.1059899531
A51: By category
A52: Region Wide | C52: =C22 -> Regional CBD | D52: =A52&C52 -> Region WideRegional CBD | F52: =SUMIF($C$22:$C$48,$C52,F$22:F$48) -> 7854191500 | G52: 3401 | H52: =F52/G52 -> 2309377.095 | J52: =SUMIF($C$22:$C$48,$C52,J$22:J$48) -> 3242974.475 | K52: 6620.073537 | L52: 25019166.07 | M52: 135230.613 | N52: 865036.7413 | O52: 29269027.98 | Q52: =J52/$F52*$H52 -> 953.5355703 | R52: 1.94650795 | S52: 7356.414605 | T52: 39.762015 | U52: 254.3477628 | V52: =IF('Comparison - Category'!C52="Residential",SUM(Q52:T52,Control!$B$103),IF('Comparison - Category'!C52="Rural",SUM(Q52:T52,Control!$B$104),O52/$F52*$H52)) -> 8606.006461
A53: Region Wide | C53: =C23 -> Business | D53: =A53&C53 -> Region WideBusiness | F53: 11815134302 | G53: 8254 | H53: 1431443.458 | J53: 4363120.523 | K53: 925501.3819 | L53: 5205297.483 | M53: 145372.6321 | N53: 1163826.478 | O53: 11803118.5 | Q53: 528.6067995 | R53: 112.1276208 | S53: 630.6393849 | T53: 17.61238577 | U53: 141.0015117 | V53: =IF('Comparison - Category'!C53="Residential",SUM(Q53:T53,Control!$B$103),IF('Comparison - Category'!C53="Rural",SUM(Q53:T53,Control!$B$104),O53/$F53*$H53)) -> 1429.987703
A54: Region Wide | C54: =C24 -> Residential | D54: =A54&C54 -> Region WideResidential | F54: 82006689919 | G54: 172672 | H54: 474927.55 | J54: 31149946.14 | K54: 4543692.825 | L54: 33685233.07 | M54: 672938.012 | N54: 2409526 | O54: 72461336.05 | Q54: 180.3995213 | R54: 26.31401052 | S54: 195.0821967 | T54: 3.897204017 | U54: 13.95435276 | V54: =IF('Comparison - Category'!C54="Residential",SUM(Q54:T54,Control!$B$103),IF('Comparison - Category'!C54="Rural",SUM(Q54:T54,Control!$B$104),O54/$F54*$H54)) -> 419.6929326
A55: Region Wide | C55: =C25 -> Rural | D55: =A55&C55 -> Region WideRural | F55: 10376902540 | G55: 15005 | H55: 691562.9817 | J55: 3725629.379 | K55: 350846.0353 | L55: 746699.5014 | M55: 24550.09288 | N55: 383628 | O55: 5231353.009 | Q55: 248.2925278 | R55: 23.38194171 | S55: 49.76337897 | T55: 1.636127483 | U55: 25.56667777 | V55: =IF('Comparison - Category'!C55="Residential",SUM(Q55:T55,Control!$B$103),IF('Comparison - Category'!C55="Rural",SUM(Q55:T55,Control!$B$104),O55/$F55*$H55)) -> 351.0739759
A56: Region Wide | C56: Total | D56: =A56&C56 -> Region WideTotal | F56: =SUM(F52:F55) -> 112052918261 | G56: =SUM(G52:G55) -> 199332 | H56: 562142.1461 | J56: =SUM(J52:J55) -> 42481670.52 | K56: 5826660.315 | L56: 64656396.13 | M56: 978091.35 | N56: 4822017.219 | O56: 118764835.5 | Q56: 213.120174 | R56: 29.23093289 | S56: 324.3653609 | T56: 4.906845614 | U56: 24.19088365 | V56: =IF('Comparison - Category'!C56="Residential",SUM(Q56:T56,Control!$B$103),IF('Comparison - Category'!C56="Rural",SUM(Q56:T56,Control!$B$104),O56/$F56*$H56)) -> 595.8141971
J59: =IF(ABS(J19-SUM(J10:J18))>tolerance_dollar,1,0) -> 0 | K59: 0 | L59: 0 | M59: 0 | N59: 0 | O59: 0
J60: =J49-SUM(J22:J48) -> 0 | K60: =K49-SUM(K22:K48) -> 0 | L60: =L49-SUM(L22:L48) -> 0 | M60: =M49-SUM(M22:M48) -> 0 | N60: 0 | O60: 0
F61: =F49-F19 -> 0 | G61: =G49-G19 -> 0 | J61: =IF(ABS(J49-J19)>tolerance_dollar,1,0) -> 0 | K61: 0 | L61: 0 | M61: 0 | N61: 0 | O61: 0 | Q61: =IF(ABS(Q49-Q19)>tolerance_dollar,1,0) -> 0 | R61: 0 | S61: 0 | T61: 0 | U61: 0 | V61: 0
A64: =year_current&" rates" -> 2018/19 rates
J65: Rates | Q65: Rates / average CV | X65: Cents/$ OR Regional Strategy Rate $/property
A66: =Control!A$66 -> TA full name | B66: =Control!B$66 -> Rating area | C66: =Control!C$66 -> Category group | D66: =Control!D$66 -> Concatenated name | F66: CV | G66: CV Assessments | H66: Average CV | J66: General rate | K66: River management rate | L66: Public transport rate | M66: Stadium purposes rate | N66: Wellington regional strategy rate | O66: District-Wide rates | Q66: General rate | R66: River management rate | S66: Public transport rate | T66: Stadium purposes rate | U66: Wellington regional strategy rate | V66: District-Wide rates | X66: General rate | Y66: River management rate | Z66: Public transport rate | AA66: Stadium purposes rate | AB66: Wellington regional strategy rate | AC66: District-Wide rates
A68: By TA
A69: =Control!A42 -> Wellington city | C69: =Control!B42 -> District wide | D69: =Control!C42 -> Wellington cityDistrict wide | F69: =INDEX(capital_values,MATCH($D69,capital_values_rows,0),MATCH(F$66&" "&year_current,capital_values_header,0)) -> 51992837451 | G69: =INDEX(assessments,MATCH($D69,assessments_rows,0),MATCH(G$66&" "&year_current,assessments_header,0)) -> 77369 | H69: =F69/G69 -> 672011.2377 | J69: =INDEX(Gen!$D$10:$D$18,MATCH($A69,Gen!$A$10:$A$18,0),) -> 23048092.38 | K69: =INDEX('River management'!$C$10:$C$18,MATCH($A69,'River management'!$A$10:$A$18,0),) -> 42679 | L69: =INDEX('Public transport'!$I$10:$I$18,MATCH($A69,'Public transport'!$A$10:$A$18,0),) -> 40924832.41 | M69: =INDEX(Stadium!$G$10:$G$18,MATCH($A69,Stadium!$A$10:$A$18,0),) -> 0 | N69: =INDEX(WRS!$K$10:$K$18,MATCH($A69,WRS!$A$10:$A$18,0),) -> 2351472.423 | O69: =SUM(J69:N69) -> 66367076.21 | Q69: =J69/$F69*$H69 -> 297.8982845 | R69: =K69/$F69*$H69 -> 0.5516292055 | S69: =L69/$F69*$H69 -> 528.9564607 | T69: =M69/$F69*$H69 -> 0 | U69: =N69/$F69*$H69 -> 30.39295354 | V69: =IF('Comparison - Category'!C69="Residential",SUM(Q69:T69,Control!$B$103),IF('Comparison - Category'!C69="Rural",SUM(Q69:T69,Control!$B$104),O69/$F69*$H69)) -> 857.799328
A70: =Control!A43 -> Hutt city | C70: =Control!B43 -> District wide | D70: =Control!C43 -> Hutt cityDistrict wide | F70: 21402530500 | G70: 39287 | H70: =F70/G70 -> 544773.8565 | J70: =INDEX(Gen!$D$10:$D$18,MATCH($A70,Gen!$A$10:$A$18,0),) -> 8059093.387 | K70: =INDEX('River management'!$C$10:$C$18,MATCH($A70,'River management'!$A$10:$A$18,0),) -> 4356562 | L70: =INDEX('Public transport'!$I$10:$I$18,MATCH($A70,'Public transport'!$A$10:$A$18,0),) -> 11715213.08 | M70: =INDEX(Stadium!$G$10:$G$18,MATCH($A70,Stadium!$A$10:$A$18,0),) -> 0 | N70: =INDEX(WRS!$K$10:$K$18,MATCH($A70,WRS!$A$10:$A$18,0),) -> 883091.458 | O70: 25013959.92 | Q70: 205.1338455 | R70: 110.8906763 | S70: 298.1956647 | T70: 0 | U70: 22.47795601 | V70: =IF('Comparison - Category'!C70="Residential",SUM(Q70:T70,Control!$B$103),IF('Comparison - Category'!C70="Rural",SUM(Q70:T70,Control!$B$104),O70/$F70*$H70)) -> 636.6981425
A71: =Control!A44 -> Upper Hutt city | C71: =Control!B44 -> District wide | D71: =Control!C44 -> Upper Hutt cityDistrict wide | F71: 8186377260 | G71: 16792 | H71: 487516.5114 | J71: =INDEX(Gen!$D$10:$D$18,MATCH($A71,Gen!$A$10:$A$18,0),) -> 3064993.246 | K71: =INDEX('River management'!$C$10:$C$18,MATCH($A71,'River management'!$A$10:$A$18,0),) -> 667062 | L71: =INDEX('Public transport'!$I$10:$I$18,MATCH($A71,'Public transport'!$A$10:$A$18,0),) -> 4597306.191 | M71: =INDEX(Stadium!$G$10:$G$18,MATCH($A71,Stadium!$A$10:$A$18,0),) -> 0 | N71: =INDEX(WRS!$K$10:$K$18,MATCH($A71,WRS!$A$10:$A$18,0),) -> 351106.9446 | O71: 8680468.382 | Q71: 182.5269918 | R71: 39.72498809 | S71: 273.7795493 | T71: 0 | U71: 20.90917965 | V71: =IF('Comparison - Category'!C71="Residential",SUM(Q71:T71,Control!$B$103),IF('Comparison - Category'!C71="Rural",SUM(Q71:T71,Control!$B$104),O71/$F71*$H71)) -> 516.9407088
A72: =Control!A45 -> Porirua city | C72: =Control!B45 -> District wide | D72: =Control!C45 -> Porirua cityDistrict wide | F72: 10277129250 | G72: 18675 | H72: 550314.8193 | J72: =INDEX(Gen!$D$10:$D$18,MATCH($A72,Gen!$A$10:$A$18,0),) -> 3819282.588 | K72: =INDEX('River management'!$C$10:$C$18,MATCH($A72,'River management'!$A$10:$A$18,0),) -> 33588 | L72: =INDEX('Public transport'!$I$10:$I$18,MATCH($A72,'Public transport'!$A$10:$A$18,0),) -> 6086081.306 | M72: =INDEX(Stadium!$G$10:$G$18,MATCH($A72,Stadium!$A$10:$A$18,0),) -> 0 | N72: =INDEX(WRS!$K$10:$K$18,MATCH($A72,WRS!$A$10:$A$18,0),) -> 362532.2064 | O72: 10301484.1 | Q72: 204.5131239 | R72: 1.798554217 | S72: 325.8945813 | T72: 0 | U72: 19.41270182 | V72: =IF('Comparison - Category'!C72="Residential",SUM(Q72:T72,Control!$B$103),IF('Comparison - Category'!C72="Rural",SUM(Q72:T72,Control!$B$104),O72/$F72*$H72)) -> 551.6189612
A73: =Control!A46 -> Kāpiti Coast district | C73: =Control!B46 -> District wide | D73: =Control!C46 -> Kāpiti Coast districtDistrict wide | F73: 14770315600 | G73: 25013 | H73: 590505.5611 | J73: =INDEX(Gen!$D$10:$D$18,MATCH($A73,Gen!$A$10:$A$18,0),) -> 4904933.192 | K73: =INDEX('River management'!$C$10:$C$18,MATCH($A73,'River management'!$A$10:$A$18,0),) -> 1335375 | L73: =INDEX('Public transport'!$I$10:$I$18,MATCH($A73,'Public transport'!$A$10:$A$18,0),) -> 3594210.545 | M73: =INDEX(Stadium!$G$10:$G$18,MATCH($A73,Stadium!$A$10:$A$18,0),) -> 0 | N73: =INDEX(WRS!$K$10:$K$18,MATCH($A73,WRS!$A$10:$A$18,0),) -> 485529.9273 | O73: 10320048.66 | Q73: 196.0953581 | R73: 53.38723864 | S73: 143.6937011 | T73: 0 | U73: 19.41110332 | V73: =IF('Comparison - Category'!C73="Residential",SUM(Q73:T73,Control!$B$103),IF('Comparison - Category'!C73="Rural",SUM(Q73:T73,Control!$B$104),O73/$F73*$H73)) -> 412.5874011
A74: =Control!A47 -> Masterton district | C74: =Control!B47 -> District wide | D74: =Control!C47 -> Masterton districtDistrict wide | F74: 5846514500 | G74: 12342 | H74: 473708.8397 | J74: =INDEX(Gen!$D$10:$D$18,MATCH($A74,Gen!$A$10:$A$18,0),) -> 1968728.242 | K74: =INDEX('River management'!$C$10:$C$18,MATCH($A74,'River management'!$A$10:$A$18,0),) -> 0 | L74: =INDEX('Public transport'!$I$10:$I$18,MATCH($A74,'Public transport'!$A$10:$A$18,0),) -> 437393.5929 | M74: =INDEX(Stadium!$G$10:$G$18,MATCH($A74,Stadium!$A$10:$A$18,0),) -> 0 | N74: =INDEX(WRS!$K$10:$K$18,MATCH($A74,WRS!$A$10:$A$18,0),) -> 243887.5806 | O74: 2650009.416 | Q74: 159.514523 | R74: 0 | S74: 35.43944198 | T74: 0 | U74: 19.76078274 | V74: =IF('Comparison - Category'!C74="Residential",SUM(Q74:T74,Control!$B$103),IF('Comparison - Category'!C74="Rural",SUM(Q74:T74,Control!$B$104),O74/$F74*$H74)) -> 214.7147477
A75: =Control!A48 -> Carterton district | C75: =Control!B48 -> District wide | D75: =Control!C48 -> Carterton districtDistrict wide | F75: 2684833200 | G75: 4662 | H75: 575897.2973 | J75: =INDEX(Gen!$D$10:$D$18,MATCH($A75,Gen!$A$10:$A$18,0),) -> 907437.03 | K75: =INDEX('River management'!$C$10:$C$18,MATCH($A75,'River management'!$A$10:$A$18,0),) -> 23705 | L75: =INDEX('Public transport'!$I$10:$I$18,MATCH($A75,'Public transport'!$A$10:$A$18,0),) -> 249139.4231 | M75: =INDEX(Stadium!$G$10:$G$18,MATCH($A75,Stadium!$A$10:$A$18,0),) -> 0 | N75: =INDEX(WRS!$K$10:$K$18,MATCH($A75,WRS!$A$10:$A$18,0),) -> 90214.33542 | O75: 1270495.788 | Q75: 194.6454376 | R75: 5.084727585 | S75: 53.4404597 | T75: 0 | U75: 19.3509943 | V75: =IF('Comparison - Category'!C75="Residential",SUM(Q75:T75,Control!$B$103),IF('Comparison - Category'!C75="Rural",SUM(Q75:T75,Control!$B$104),O75/$F75*$H75)) -> 272.5216192
A76: =Control!A49 -> South Wairarapa district | C76: =Control!B49 -> District wide | D76: =Control!C49 -> South Wairarapa districtDistrict wide | F76: 4507670300 | G76: 6657 | H76: 677132.387 | J76: =INDEX(Gen!$D$10:$D$18,MATCH($A76,Gen!$A$10:$A$18,0),) -> 1508400.821 | K76: =INDEX('River management'!$C$10:$C$18,MATCH($A76,'River management'!$A$10:$A$18,0),) -> 0 | L76: =INDEX('Public transport'!$I$10:$I$18,MATCH($A76,'Public transport'!$A$10:$A$18,0),) -> 505501.2503 | M76: =INDEX(Stadium!$G$10:$G$18,MATCH($A76,Stadium!$A$10:$A$18,0),) -> 0 | N76: =INDEX(WRS!$K$10:$K$18,MATCH($A76,WRS!$A$10:$A$18,0),) -> 139773.9458 | O76: 2153676.017 | Q76: 226.5886767 | R76: 0 | S76: 75.93529372 | T76: 0 | U76: 20.99653686 | V76: =IF('Comparison - Category'!C76="Residential",SUM(Q76:T76,Control!$B$103),IF('Comparison - Category'!C76="Rural",SUM(Q76:T76,Control!$B$104),O76/$F76*$H76)) -> 323.5205073
A77: =Control!A50 -> Tararua district | C77: =Control!B50 -> District wide | D77: =Control!C50 -> Tararua districtDistrict wide | F77: 10760500 | G77: 10 | H77: 1076050 | J77: =INDEX(Gen!$D$10:$D$18,MATCH($A77,Gen!$A$10:$A$18,0),) -> 2353.024643 | K77: =INDEX('River management'!$C$10:$C$18,MATCH($A77,'River management'!$A$10:$A$18,0),) -> 0 | L77: =INDEX('Public transport'!$I$10:$I$18,MATCH($A77,'Public transport'!$A$10:$A$18,0),) -> 0 | M77: =INDEX(Stadium!$G$10:$G$18,MATCH($A77,Stadium!$A$10:$A$18,0),) -> 0 | N77: =INDEX(WRS!$K$10:$K$18,MATCH($A77,WRS!$A$10:$A$18,0),) -> 252 | O77: 2605.024643 | Q77: 235.3024643 | R77: 0 | S77: 0 | T77: 0 | U77: 25.2 | V77: =IF('Comparison - Category'!C77="Residential",SUM(Q77:T77,Control!$B$103),IF('Comparison - Category'!C77="Rural",SUM(Q77:T77,Control!$B$104),O77/$F77*$H77)) -> 260.5024643
A78: Region wide | D78: =Control!C51 -> Region wide | F78: =SUM(F69:F77) -> 119678968561 | G78: =SUM(G69:G77) -> 200807 | H78: =F78/G78 -> 595990.0231 | J78: =INDEX(ess_base_estract,MATCH(J66,ESSbase!$B$8:$B$25,0),MATCH(year_current,ESSbase!$F$6:$G$6,0)) -> 47283313.91 | K78: =INDEX(ess_base_estract,MATCH(K66,ESSbase!$B$8:$B$25,0),MATCH(year_current,ESSbase!$F$6:$G$6,0)) -> 6458970.807 | L78: =INDEX(ess_base_estract,MATCH(L66,ESSbase!$B$8:$B$25,0),MATCH(year_current,ESSbase!$F$6:$G$6,0)) -> 68109677.79 | M78: =INDEX(ess_base_estract,MATCH(M66,ESSbase!$B$8:$B$25,0),MATCH(year_current,ESSbase!$F$6:$G$6,0)) -> 0 | N78: =INDEX(ess_base_estract,MATCH(N66,ESSbase!$B$8:$B$25,0),MATCH(year_current,ESSbase!$F$6:$G$6,0)) -> 4907860.821 | O78: =INDEX(ess_base_estract,MATCH(O66,ESSbase!$B$8:$B$25,0),MATCH(year_current,ESSbase!$F$6:$G$6,0)) -> 126759823.3 | Q78: 235.4664624 | R78: 32.16506799 | S78: 339.1797985 | T78: 0 | U78: 24.44068594 | V78: =IF('Comparison - Category'!C78="Residential",SUM(Q78:T78,Control!$B$103),IF('Comparison - Category'!C78="Rural",SUM(Q78:T78,Control!$B$104),O78/$F78*$H78)) -> 631.2520148
A80: By TA & Category
A81: =Control!A67 -> Wellington city | B81: =Control!B67 -> Wellington city | C81: =Control!C67 -> Regional CBD | D81: =Control!D67 -> Wellington cityRegional CBD | F81: =INDEX(capital_values,MATCH($D81,capital_values_rows,0),MATCH(F$66&" "&year_current,capital_values_header,0)) -> 7963363000 | G81: =INDEX(assessments,MATCH($D81,assessments_rows,0),MATCH(G$66&" "&year_current,assessments_header,0)) -> 3381 | H81: =F81/G81 -> 2355327.714 | J81: =($F81/INDEX($F$69:$F$77,MATCH($A81,$A$69:$A$77,0),)) * INDEX(J$69:J$77,MATCH($A81,$A$69:$A$77,0),) -> 3530107.897 | K81: =($F81/INDEX($F$69:$F$77,MATCH($A81,$A$69:$A$77,0),)) * INDEX(K$69:K$77,MATCH($A81,$A$69:$A$77,0),) -> 6536.830574 | L81: =INDEX('Public transport'!$I$23:$I$49,MATCH($D81,'Public transport'!$D$23:$D$49,0),) -> 25844164.27 | M81: =INDEX(Stadium!$G$23:$G$49,MATCH($D81,Stadium!$D$23:$D$49,0),) -> 0 | N81: =INDEX(WRS!$K$23:$K$49,MATCH($D81,WRS!$D$23:$D$49,0),) -> 893930.665 | O81: =SUM(J81:N81) -> 30274739.66 | Q81: =J81/$F81*$H81 -> 1044.101714 | R81: =K81/$F81*$H81 -> 1.93340153 | S81: =L81/$F81*$H81 -> 7643.940926 | T81: =M81/$F81*$H81 -> 0 | U81: =IF('Comparison - Category'!C81="Residential",Control!$B$103,IF('Comparison - Category'!C81="Rural",Control!$B$104,N81/$F81*$H81)) -> 264.3983037 | V81: =IF('Comparison - Category'!C81="Residential",SUM(Q81:T81,Control!$B$103),IF('Comparison - Category'!C81="Rural",SUM(Q81:T81,Control!$B$104),O81/$F81*$H81)) -> 8954.374345 | X81: =J81/$F81*100 -> 0.04432936056 | Y81: =K81/$F81*100 -> 8.208630668e-05 | Z81: =L81/$F81*100 -> 0.3245383172 | AA81: =M81/$F81*100 -> 0 | AB81: =IF(OR('Comparison - Category'!C81="Residential",'Comparison - Category'!C81="Rural"),U81,N81/$F81*100) -> 0.01122554209 | AC81: =O81/$F81*100 -> 0.3801753061
A82: =Control!A68 -> Wellington city | B82: =Control!B68 -> Wellington city | C82: =Control!C68 -> Business | D82: =Control!D68 -> Wellington cityBusiness | F82: 3896130400 | G82: 1899 | H82: 2051674.776 | J82: =($F82/INDEX($F$69:$F$77,MATCH($A82,$A$69:$A$77,0),)) * INDEX(J$69:J$77,MATCH($A82,$A$69:$A$77,0),) -> 1727129.693 | K82: =($F82/INDEX($F$69:$F$77,MATCH($A82,$A$69:$A$77,0),)) * INDEX(K$69:K$77,MATCH($A82,$A$69:$A$77,0),) -> 3198.189549 | L82: =INDEX('Public transport'!$I$23:$I$49,MATCH($D82,'Public transport'!$D$23:$D$49,0),) -> 1461180.837 | M82: =INDEX(Stadium!$G$23:$G$49,MATCH($D82,Stadium!$D$23:$D$49,0),) -> 0 | N82: =INDEX(WRS!$K$23:$K$49,MATCH($D82,WRS!$D$23:$D$49,0),) -> 437361.7578 | O82: 3628870.477 | Q82: 909.494309 | R82: 1.684144049 | S82: 769.4475183 | T82: 0 | U82: =IF('Comparison - Category'!C82="Residential",Control!$B$103,IF('Comparison - Category'!C82="Rural",Control!$B$104,N82/$F82*$H82)) -> 230.3116155 | V82: =IF('Comparison - Category'!C82="Residential",SUM(Q82:T82,Control!$B$103),IF('Comparison - Category'!C82="Rural",SUM(Q82:T82,Control!$B$104),O82/$F82*$H82)) -> 1910.937587 | X82: 0.04432936056 | Y82: 8.208630668e-05 | Z82: 0.03750338637 | AA82: 0 | AB82: =IF(OR('Comparison - Category'!C82="Residential",'Comparison - Category'!C82="Rural"),U82,N82/$F82*100) -> 0.01122554209 | AC82: 0.09314037531
A83: =Control!A69 -> Wellington city | B83: =Control!B69 -> Wellington city | C83: =Control!C69 -> Residential | D83: =Control!D69 -> Wellington cityResidential | F83: 39537398501 | G83: 71308 | H83: 554459.5067 | J83: 17526675.94 | K83: 32454.79019 | L83: =INDEX('Public transport'!$I$23:$I$49,MATCH($D83,'Public transport'!$D$23:$D$49,0),) -> 13567288.34 | M83: =INDEX(Stadium!$G$23:$G$49,MATCH($D83,Stadium!$D$23:$D$49,0),) -> 0 | N83: =INDEX(WRS!$K$23:$K$49,MATCH($D83,WRS!$D$23:$D$49,0),) -> 998312 | O83: 32124731.07 | Q83: 245.7883538 | R83: 0.455135331 | S83: 190.2632011 | T83: 0 | U83: =IF('Comparison - Category'!C83="Residential",Control!$B$103,IF('Comparison - Category'!C83="Rural",Control!$B$104,N83/$F83*$H83)) -> 14 | V83: =IF('Comparison - Category'!C83="Residential",SUM(Q83:T83,Control!$B$103),IF('Comparison - Category'!C83="Rural",SUM(Q83:T83,Control!$B$104),O83/$F83*$H83)) -> 450.5066902 | X83: 0.04432936056 | Y83: 8.208630668e-05 | Z83: 0.034315076 | AA83: 0 | AB83: =IF(OR('Comparison - Category'!C83="Residential",'Comparison - Category'!C83="Rural"),U83,N83/$F83*100) -> 14 | AC83: 0.08125150436
A84: =Control!A70 -> Wellington city | B84: =Control!B70 -> Wellington city | C84: =Control!C70 -> Rural | D84: =Control!D70 -> Wellington cityRural | F84: 595945550 | G84: 781 | H84: 763054.4814 | J84: 264178.8516 | K84: 489.1896918 | L84: =INDEX('Public transport'!$I$23:$I$49,MATCH($D84,'Public transport'!$D$23:$D$49,0),) -> 52198.95869 | M84: =INDEX(Stadium!$G$23:$G$49,MATCH($D84,Stadium!$D$23:$D$49,0),) -> 0 | N84: =INDEX(WRS!$K$23:$K$49,MATCH($D84,WRS!$D$23:$D$49,0),) -> 21868 | O84: 338735 | Q84: 338.2571723 | R84: 0.6263632417 | S84: 66.83605466 | T84: 0 | U84: =IF('Comparison - Category'!C84="Residential",Control!$B$103,IF('Comparison - Category'!C84="Rural",Control!$B$104,N84/$F84*$H84)) -> 28 | V84: =IF('Comparison - Category'!C84="Residential",SUM(Q84:T84,Control!$B$103),IF('Comparison - Category'!C84="Rural",SUM(Q84:T84,Control!$B$104),O84/$F84*$H84)) -> 433.7195902 | X84: 0.04432936056 | Y84: 8.208630668e-05 | Z84: 0.00875901476 | AA84: 0 | AB84: =IF(OR('Comparison - Category'!C84="Residential",'Comparison - Category'!C84="Rural"),U84,N84/$F84*100) -> 28 | AC84: 0.05683992438
A85: =Control!A71 -> Hutt city | B85: =Control!B71 -> Hutt city | C85: =Control!C71 -> Business | D85: =Control!D71 -> Hutt cityBusiness | F85: 3789029500 | G85: 2371 | H85: 1598072.332 | J85: 1426753.84 | K85: 771270.5718 | L85: =INDEX('Public transport'!$I$23:$I$49,MATCH($D85,'Public transport'!$D$23:$D$49,0),) -> 2181032.976 | M85: =INDEX(Stadium!$G$23:$G$49,MATCH($D85,Stadium!$D$23:$D$49,0),) -> 0 | N85: =INDEX(WRS!$K$23:$K$49,MATCH($D85,WRS!$D$23:$D$49,0),) -> 361297.458 | O85: 4740354.846 | Q85: 601.7519361 | R85: 325.2933664 | S85: 919.8789438 | T85: 0 | U85: =IF('Comparison - Category'!C85="Residential",Control!$B$103,IF('Comparison - Category'!C85="Rural",Control!$B$104,N85/$F85*$H85)) -> 152.3818886 | V85: =IF('Comparison - Category'!C85="Residential",SUM(Q85:T85,Control!$B$103),IF('Comparison - Category'!C85="Rural",SUM(Q85:T85,Control!$B$104),O85/$F85*$H85)) -> 1999.306135 | X85: 0.03765486229 | Y85: 0.02035535938 | Z85: 0.05756178398 | AA85: 0 | AB85: =IF(OR('Comparison - Category'!C85="Residential",'Comparison - Category'!C85="Rural"),U85,N85/$F85*100) -> 0.009535356163 | AC85: 0.1251073618
A86: =Control!A72 -> Hutt city | B86: =Control!B72 -> Hutt city | C86: =Control!C72 -> Residential | D86: =Control!D72 -> Hutt cityResidential | F86: 17301952000 | G86: 36436 | H86: 474858.7112 | J86: 6515026.2 | K86: 3521874.51 | L86: =INDEX('Public transport'!$I$23:$I$49,MATCH($D86,'Public transport'!$D$23:$D$49,0),) -> 9490730.569 | M86: =INDEX(Stadium!$G$23:$G$49,MATCH($D86,Stadium!$D$23:$D$49,0),) -> 0 | N86: =INDEX(WRS!$K$23:$K$49,MATCH($D86,WRS!$D$23:$D$49,0),) -> 508354 | O86: 20035985.28 | Q86: 178.8073938 | R86: 96.65919721 | S86: 260.4767419 | T86: 0 | U86: =IF('Comparison - Category'!C86="Residential",Control!$B$103,IF('Comparison - Category'!C86="Rural",Control!$B$104,N86/$F86*$H86)) -> 14 | V86: =IF('Comparison - Category'!C86="Residential",SUM(Q86:T86,Control!$B$103),IF('Comparison - Category'!C86="Rural",SUM(Q86:T86,Control!$B$104),O86/$F86*$H86)) -> 549.9433329 | X86: 0.03765486229 | Y86: 0.02035535938 | Z86: 0.05485352502 | AA86: 0 | AB86: =IF(OR('Comparison - Category'!C86="Residential",'Comparison - Category'!C86="Rural"),U86,N86/$F86*100) -> 14 | AC86: 0.1158018776
A87: =Control!A73 -> Hutt city | B87: =Control!B73 -> Hutt city | C87: =Control!C73 -> Rural | D87: =Control!D73 -> Hutt cityRural | F87: 311549000 | G87: 480 | H87: 649060.4167 | J87: 117313.3469 | K87: 63416.9186 | L87: =INDEX('Public transport'!$I$23:$I$49,MATCH($D87,'Public transport'!$D$23:$D$49,0),) -> 43449.53251 | M87: =INDEX(Stadium!$G$23:$G$49,MATCH($D87,Stadium!$D$23:$D$49,0),) -> 0 | N87: =INDEX(WRS!$K$23:$K$49,MATCH($D87,WRS!$D$23:$D$49,0),) -> 13440 | O87: 237619.798 | Q87: 244.4028061 | R87: 132.1185804 | S87: 90.51985939 | T87: 0 | U87: =IF('Comparison - Category'!C87="Residential",Control!$B$103,IF('Comparison - Category'!C87="Rural",Control!$B$104,N87/$F87*$H87)) -> 28 | V87: =IF('Comparison - Category'!C87="Residential",SUM(Q87:T87,Control!$B$103),IF('Comparison - Category'!C87="Rural",SUM(Q87:T87,Control!$B$104),O87/$F87*$H87)) -> 495.0412459 | X87: 0.03765486229 | Y87: 0.02035535938 | Z87: 0.01394629176 | AA87: 0 | AB87: =IF(OR('Comparison - Category'!C87="Residential",'Comparison - Category'!C87="Rural"),U87,N87/$F87*100) -> 28 | AC87: 0.07627044158
A88: =Control!A74 -> Upper Hutt city | B88: =Control!B74 -> Upper Hutt city | C88: =Control!C74 -> Business | D88: =Control!D74 -> Upper Hutt cityBusiness | F88: 1174676500 | G88: 716 | H88: 1640609.637 | J88: 439800.833 | K88: 95717.80417 | L88: =INDEX('Public transport'!$I$23:$I$49,MATCH($D88,'Public transport'!$D$23:$D$49,0),) -> 742078.9093 | M88: =INDEX(Stadium!$G$23:$G$49,MATCH($D88,Stadium!$D$23:$D$49,0),) -> 0 | N88: =INDEX(WRS!$K$23:$K$49,MATCH($D88,WRS!$D$23:$D$49,0),) -> 111370.9446 | O88: 1388968.491 | Q88: 614.2469735 | R88: 133.684084 | S88: 1036.423058 | T88: 0 | U88: =IF('Comparison - Category'!C88="Residential",Control!$B$103,IF('Comparison - Category'!C88="Rural",Control!$B$104,N88/$F88*$H88)) -> 155.5460121 | V88: =IF('Comparison - Category'!C88="Residential",SUM(Q88:T88,Control!$B$103),IF('Comparison - Category'!C88="Rural",SUM(Q88:T88,Control!$B$104),O88/$F88*$H88)) -> 1939.900127 | X88: 0.03744016612 | Y88: 0.008148439521 | Z88: 0.0631730446 | AA88: 0 | AB88: =IF(OR('Comparison - Category'!C88="Residential",'Comparison - Category'!C88="Rural"),U88,N88/$F88*100) -> 0.009480988565 | AC88: 0.1182426388
A89: =Control!A75 -> Upper Hutt city | B89: =Control!B75 -> Upper Hutt city | C89: =Control!C75 -> Residential | D89: =Control!D75 -> Upper Hutt cityResidential | F89: 6156988420 | G89: 14823 | H89: 415367.228 | J89: 2305186.693 | K89: 501698.4777 | L89: =INDEX('Public transport'!$I$23:$I$49,MATCH($D89,'Public transport'!$D$23:$D$49,0),) -> 3723760.59 | M89: =INDEX(Stadium!$G$23:$G$49,MATCH($D89,Stadium!$D$23:$D$49,0),) -> 0 | N89: =INDEX(WRS!$K$23:$K$49,MATCH($D89,WRS!$D$23:$D$49,0),) -> 206920 | O89: 6737565.761 | Q89: 155.5141802 | R89: 33.84594736 | S89: 251.2150435 | T89: 0 | U89: =IF('Comparison - Category'!C89="Residential",Control!$B$103,IF('Comparison - Category'!C89="Rural",Control!$B$104,N89/$F89*$H89)) -> 14 | V89: =IF('Comparison - Category'!C89="Residential",SUM(Q89:T89,Control!$B$103),IF('Comparison - Category'!C89="Rural",SUM(Q89:T89,Control!$B$104),O89/$F89*$H89)) -> 454.5751711 | X89: 0.03744016612 | Y89: 0.008148439521 | Z89: 0.06048022728 | AA89: 0 | AB89: =IF(OR('Comparison - Category'!C89="Residential",'Comparison - Category'!C89="Rural"),U89,N89/$F89*100) -> 14 | AC89: 0.1094295669
A90: =Control!A76 -> Upper Hutt city | B90: =Control!B76 -> Upper Hutt city | C90: =Control!C76 -> Rural | D90: =Control!D76 -> Upper Hutt cityRural | F90: 854712340 | G90: 1253 | H90: 682132.7534 | J90: 320005.72 | K90: 69645.7181 | L90: =INDEX('Public transport'!$I$23:$I$49,MATCH($D90,'Public transport'!$D$23:$D$49,0),) -> 131466.692 | M90: =INDEX(Stadium!$G$23:$G$49,MATCH($D90,Stadium!$D$23:$D$49,0),) -> 0 | N90: =INDEX(WRS!$K$23:$K$49,MATCH($D90,WRS!$D$23:$D$49,0),) -> 32816 | O90: 553934.1301 | Q90: 255.3916361 | R90: 55.58317486 | S90: 104.9215419 | T90: 0 | U90: =IF('Comparison - Category'!C90="Residential",Control!$B$103,IF('Comparison - Category'!C90="Rural",Control!$B$104,N90/$F90*$H90)) -> 28 | V90: =IF('Comparison - Category'!C90="Residential",SUM(Q90:T90,Control!$B$103),IF('Comparison - Category'!C90="Rural",SUM(Q90:T90,Control!$B$104),O90/$F90*$H90)) -> 443.8963528 | X90: 0.03744016612 | Y90: 0.008148439521 | Z90: 0.01538139627 | AA90: 0 | AB90: =IF(OR('Comparison - Category'!C90="Residential",'Comparison - Category'!C90="Rural"),U90,N90/$F90*100) -> 28 | AC90: 0.06480942232
A91: =Control!A77 -> Porirua city | B91: =Control!B77 -> Porirua city | C91: =Control!C77 -> Business | D91: =Control!D77 -> Porirua cityBusiness | F91: 1099995500 | G91: 797 | H91: 1380170.013 | J91: 408790.5833 | K91: 3595.035924 | L91: =INDEX('Public transport'!$I$23:$I$49,MATCH($D91,'Public transport'!$D$23:$D$49,0),) -> 708506.5518 | M91: =INDEX(Stadium!$G$23:$G$49,MATCH($D91,Stadium!$D$23:$D$49,0),) -> 0 | N91: =INDEX(WRS!$K$23:$K$49,MATCH($D91,WRS!$D$23:$D$49,0),) -> 103518.2064 | O91: 1224410.377 | Q91: 512.9116478 | R91: 4.510710068 | S91: 888.9668154 | T91: 0 | U91: =IF('Comparison - Category'!C91="Residential",Control!$B$103,IF('Comparison - Category'!C91="Rural",Control!$B$104,N91/$F91*$H91)) -> 129.8848261 | V91: =IF('Comparison - Category'!C91="Residential",SUM(Q91:T91,Control!$B$103),IF('Comparison - Category'!C91="Rural",SUM(Q91:T91,Control!$B$104),O91/$F91*$H91)) -> 1536.273999 | X91: 0.03716293233 | Y91: 0.0003268227847 | Z91: 0.06440995003 | AA91: 0 | AB91: =IF(OR('Comparison - Category'!C91="Residential",'Comparison - Category'!C91="Rural"),U91,N91/$F91*100) -> 0.009410784537 | AC91: 0.1113104897
A92: =Control!A78 -> Porirua city | B92: =Control!B78 -> Porirua city | C92: =Control!C78 -> Residential | D92: =Control!D78 -> Porirua cityResidential | F92: 8551317050 | G92: 17255 | H92: 495584.8768 | J92: 3177920.168 | K92: 27947.65251 | L92: =INDEX('Public transport'!$I$23:$I$49,MATCH($D92,'Public transport'!$D$23:$D$49,0),) -> 5279332.786 | M92: =INDEX(Stadium!$G$23:$G$49,MATCH($D92,Stadium!$D$23:$D$49,0),) -> 0 | N92: =INDEX(WRS!$K$23:$K$49,MATCH($D92,WRS!$D$23:$D$49,0),) -> 241570 | O92: 8726770.607 | Q92: 184.1738724 | R92: 1.619684295 | S92: 305.9595935 | T92: 0 | U92: =IF('Comparison - Category'!C92="Residential",Control!$B$103,IF('Comparison - Category'!C92="Rural",Control!$B$104,N92/$F92*$H92)) -> 14 | V92: =IF('Comparison - Category'!C92="Residential",SUM(Q92:T92,Control!$B$103),IF('Comparison - Category'!C92="Rural",SUM(Q92:T92,Control!$B$104),O92/$F92*$H92)) -> 505.7531502 | X92: 0.03716293233 | Y92: 0.0003268227847 | Z92: 0.06173707225 | AA92: 0 | AB92: =IF(OR('Comparison - Category'!C92="Residential",'Comparison - Category'!C92="Rural"),U92,N92/$F92*100) -> 14 | AC92: 0.1020517723
A93: =Control!A79 -> Porirua city | B93: =Control!B79 -> Porirua city | C93: =Control!C79 -> Rural | D93: =Control!D79 -> Porirua cityRural | F93: 625816700 | G93: 623 | H93: 1004521.188 | J93: 232571.8367 | K93: 2045.311566 | L93: =INDEX('Public transport'!$I$23:$I$49,MATCH($D93,'Public transport'!$D$23:$D$49,0),) -> 98241.96818 | M93: =INDEX(Stadium!$G$23:$G$49,MATCH($D93,Stadium!$D$23:$D$49,0),) -> 0 | N93: =INDEX(WRS!$K$23:$K$49,MATCH($D93,WRS!$D$23:$D$49,0),) -> 17444 | O93: 350303.1165 | Q93: 373.3095292 | R93: 3.283004119 | S93: 157.6917627 | T93: 0 | U93: =IF('Comparison - Category'!C93="Residential",Control!$B$103,IF('Comparison - Category'!C93="Rural",Control!$B$104,N93/$F93*$H93)) -> 28 | V93: =IF('Comparison - Category'!C93="Residential",SUM(Q93:T93,Control!$B$103),IF('Comparison - Category'!C93="Rural",SUM(Q93:T93,Control!$B$104),O93/$F93*$H93)) -> 562.2842961 | X93: 0.03716293233 | Y93: 0.0003268227847 | Z93: 0.01569820175 | AA93: 0 | AB93: =IF(OR('Comparison - Category'!C93="Residential",'Comparison - Category'!C93="Rural"),U93,N93/$F93*100) -> 28 | AC93: 0.05597535452
A94: =Control!A80 -> Kāpiti Coast district | B94: =Control!B80 -> Kāpiti Coast district | C94: =Control!C80 -> Business | D94: =Control!D80 -> Kāpiti Coast districtBusiness | F94: 1479149500 | G94: 1334 | H94: 1108807.721 | J94: 491196.6457 | K94: 133728.9816 | L94: =INDEX('Public transport'!$I$23:$I$49,MATCH($D94,'Public transport'!$D$23:$D$49,0),) -> 434529.5224 | M94: =INDEX(Stadium!$G$23:$G$49,MATCH($D94,Stadium!$D$23:$D$49,0),) -> 0 | N94: =INDEX(WRS!$K$23:$K$49,MATCH($D94,WRS!$D$23:$D$49,0),) -> 124385.9273 | O94: 1183841.077 | Q94: 368.2133776 | R94: 100.2466129 | S94: 325.7342746 | T94: 0 | U94: =IF('Comparison - Category'!C94="Residential",Control!$B$103,IF('Comparison - Category'!C94="Rural",Control!$B$104,N94/$F94*$H94)) -> 93.24282405 | V94: =IF('Comparison - Category'!C94="Residential",SUM(Q94:T94,Control!$B$103),IF('Comparison - Category'!C94="Rural",SUM(Q94:T94,Control!$B$104),O94/$F94*$H94)) -> 887.4370892 | X94: 0.03320804595 | Y94: 0.009040937487 | Z94: 0.0293769847 | AA94: 0 | AB94: =IF(OR('Comparison - Category'!C94="Residential",'Comparison - Category'!C94="Rural"),U94,N94/$F94*100) -> 0.008409287045 | AC94: 0.08003525519
A95: =Control!A81 -> Kāpiti Coast district | B95: =Control!B81 -> Kāpiti Coast district excl Ōtaki | C95: =Control!C81 -> Residential | D95: =Control!D81 -> Kāpiti Coast district excl Ōtaki Residential | F95: 10219999500 | G95: 17885 | H95: 571428.5435 | J95: 3393862.131 | K95: 923983.7659 | L95: =INDEX('Public transport'!$I$23:$I$49,MATCH($D95,'Public transport'!$D$23:$D$49,0),) -> 2758230.196 | M95: =INDEX(Stadium!$G$23:$G$49,MATCH($D95,Stadium!$D$23:$D$49,0),) -> 0 | N95: =INDEX(WRS!$K$23:$K$49,MATCH($D95,WRS!$D$23:$D$49,0),) -> 248066 | O95: 7324142.092 | Q95: 189.7602533 | R95: 51.6624974 | S95: 154.2203073 | T95: 0 | U95: =IF('Comparison - Category'!C95="Residential",Control!$B$103,IF('Comparison - Category'!C95="Rural",Control!$B$104,N95/$F95*$H95)) -> 14 | V95: =IF('Comparison - Category'!C95="Residential",SUM(Q95:T95,Control!$B$103),IF('Comparison - Category'!C95="Rural",SUM(Q95:T95,Control!$B$104),O95/$F95*$H95)) -> 409.643058 | X95: 0.03320804595 | Y95: 0.009040937487 | Z95: 0.02698855509 | AA95: 0 | AB95: =IF(OR('Comparison - Category'!C95="Residential",'Comparison - Category'!C95="Rural"),U95,N95/$F95*100) -> 14 | AC95: 0.07166479893
A96: =Control!A82 -> Kāpiti Coast district | B96: =Control!B82 -> Ōtaki rating area | C96: =Control!C82 -> Residential | D96: =Control!D82 -> Ōtaki rating areaResidential | F96: 1104760900 | G96: 3151 | H96: =F96/G96 -> 350606.4424 | J96: 366869.5074 | K96: 99880.74235 | L96: =INDEX('Public transport'!$I$23:$I$49,MATCH($D96,'Public transport'!$D$23:$D$49,0),) -> 265175.9586 | M96: =INDEX(Stadium!$G$23:$G$49,MATCH($D96,Stadium!$D$23:$D$49,0),) -> 0 | N96: =INDEX(WRS!$K$23:$K$49,MATCH($D96,WRS!$D$23:$D$49,0),) -> 43470 | O96: =SUM(J96:N96) -> 775396.2083 | Q96: =J96/$F96*$H96 -> 116.4295485 | R96: =K96/$F96*$H96 -> 31.69810928 | S96: =L96/$F96*$H96 -> 84.15612776 | T96: =M96/$F96*$H96 -> 0 | U96: =IF('Comparison - Category'!C96="Residential",Control!$B$103,IF('Comparison - Category'!C96="Rural",Control!$B$104,N96/$F96*$H96)) -> 14 | V96: =IF('Comparison - Category'!C96="Residential",SUM(Q96:T96,Control!$B$103),IF('Comparison - Category'!C96="Rural",SUM(Q96:T96,Control!$B$104),O96/$F96*$H96)) -> 246.2837856 | X96: =J96/$F96*100 -> 0.03320804595 | Y96: =K96/$F96*100 -> 0.009040937487 | Z96: =L96/$F96*100 -> 0.02400301808 | AA96: =M96/$F96*100 -> 0 | AB96: =IF(OR('Comparison - Category'!C96="Residential",'Comparison - Category'!C96="Rural"),U96,N96/$F96*100) -> 14 | AC96: =O96/$F96*100 -> 0.07018678958
A97: =Control!A83 -> Kāpiti Coast district | B97: =Control!B83 -> Kāpiti Coast district | C97: =Control!C83 -> Rural | D97: =Control!D83 -> Kāpiti Coast districtRural | F97: 1966405700 | G97: 2643 | H97: 744005.1835 | J97: 653004.9085 | K97: 177781.5101 | L97: =INDEX('Public transport'!$I$23:$I$49,MATCH($D97,'Public transport'!$D$23:$D$49,0),) -> 136274.8681 | M97: =INDEX(Stadium!$G$23:$G$49,MATCH($D97,Stadium!$D$23:$D$49,0),) -> 0 | N97: =INDEX(WRS!$K$23:$K$49,MATCH($D97,WRS!$D$23:$D$49,0),) -> 69608 | O97: 1036669.287 | Q97: 247.0695832 | R97: 67.26504354 | S97: 51.56067654 | T97: 0 | U97: =IF('Comparison - Category'!C97="Residential",Control!$B$103,IF('Comparison - Category'!C97="Rural",Control!$B$104,N97/$F97*$H97)) -> 28 | V97: =IF('Comparison - Category'!C97="Residential",SUM(Q97:T97,Control!$B$103),IF('Comparison - Category'!C97="Rural",SUM(Q97:T97,Control!$B$104),O97/$F97*$H97)) -> 393.8953033 | X97: 0.03320804595 | Y97: 0.009040937487 | Z97: 0.006930150177 | AA97: 0 | AB97: =IF(OR('Comparison - Category'!C97="Residential",'Comparison - Category'!C97="Rural"),U97,N97/$F97*100) -> 28 | AC97: 0.05271899317
A98: =Control!A84 -> Masterton district | B98: =Control!B84 -> Masterton district | C98: =Control!C84 -> Business | D98: =Control!D84 -> Masterton districtBusiness | F98: 433363100 | G98: 550 | H98: 787932.9091 | J98: 145928.6852 | K98: 0 | L98: =INDEX('Public transport'!$I$23:$I$49,MATCH($D98,'Public transport'!$D$23:$D$49,0),) -> 58905.24725 | M98: =INDEX(Stadium!$G$23:$G$49,MATCH($D98,Stadium!$D$23:$D$49,0),) -> 0 | N98: =INDEX(WRS!$K$23:$K$49,MATCH($D98,WRS!$D$23:$D$49,0),) -> 36953.58058 | O98: 241787.5131 | Q98: 265.3248822 | R98: 0 | S98: 107.1004495 | T98: 0 | U98: =IF('Comparison - Category'!C98="Residential",Control!$B$103,IF('Comparison - Category'!C98="Rural",Control!$B$104,N98/$F98*$H98)) -> 67.18832833 | V98: =IF('Comparison - Category'!C98="Residential",SUM(Q98:T98,Control!$B$103),IF('Comparison - Category'!C98="Rural",SUM(Q98:T98,Control!$B$104),O98/$F98*$H98)) -> 439.6136601 | X98: 0.03367353732 | Y98: 0 | Z98: 0.01359258489 | AA98: 0 | AB98: =IF(OR('Comparison - Category'!C98="Residential",'Comparison - Category'!C98="Rural"),U98,N98/$F98*100) -> 0.008527163615 | AC98: 0.05579328583
A99: =Control!A85 -> Masterton district | B99: =Control!B85 -> Masterton district | C99: =Control!C85 -> Residential | D99: =Control!D85 -> Masterton districtResidential | F99: 2604255800 | G99: 7912 | H99: 329152.6542 | J99: 876945.0488 | K99: 0 | L99: =INDEX('Public transport'!$I$23:$I$49,MATCH($D99,'Public transport'!$D$23:$D$49,0),) -> 275144.7903 | M99: =INDEX(Stadium!$G$23:$G$49,MATCH($D99,Stadium!$D$23:$D$49,0),) -> 0 | N99: =INDEX(WRS!$K$23:$K$49,MATCH($D99,WRS!$D$23:$D$49,0),) -> 110558 | O99: 1262647.839 | Q99: 110.8373419 | R99: 0 | S99: 34.77563073 | T99: 0 | U99: =IF('Comparison - Category'!C99="Residential",Control!$B$103,IF('Comparison - Category'!C99="Rural",Control!$B$104,N99/$F99*$H99)) -> 14 | V99: =IF('Comparison - Category'!C99="Residential",SUM(Q99:T99,Control!$B$103),IF('Comparison - Category'!C99="Rural",SUM(Q99:T99,Control!$B$104),O99/$F99*$H99)) -> 159.6129726 | X99: 0.03367353732 | Y99: 0 | Z99: 0.01056519833 | AA99: 0 | AB99: =IF(OR('Comparison - Category'!C99="Residential",'Comparison - Category'!C99="Rural"),U99,N99/$F99*100) -> 14 | AC99: 0.04848401755
A100: =Control!A86 -> Masterton district | B100: =Control!B86 -> Masterton district | C100: =Control!C86 -> Rural | D100: =Control!D86 -> Masterton districtRural | F100: 2808895600 | G100: 3880 | H100: 723942.1649 | J100: 945854.5082 | K100: 0 | L100: =INDEX('Public transport'!$I$23:$I$49,MATCH($D100,'Public transport'!$D$23:$D$49,0),) -> 103343.5554 | M100: =INDEX(Stadium!$G$23:$G$49,MATCH($D100,Stadium!$D$23:$D$49,0),) -> 0 | N100: =INDEX(WRS!$K$23:$K$49,MATCH($D100,WRS!$D$23:$D$49,0),) -> 96376 | O100: 1145574.064 | Q100: 243.7769351 | R100: 0 | S100: 26.63493695 | T100: 0 | U100: =IF('Comparison - Category'!C100="Residential",Control!$B$103,IF('Comparison - Category'!C100="Rural",Control!$B$104,N100/$F100*$H100)) -> 28 | V100: =IF('Comparison - Category'!C100="Residential",SUM(Q100:T100,Control!$B$103),IF('Comparison - Category'!C100="Rural",SUM(Q100:T100,Control!$B$104),O100/$F100*$H100)) -> 298.4118721 | X100: 0.03367353732 | Y100: 0 | Z100: 0.003679152596 | AA100: 0 | AB100: =IF(OR('Comparison - Category'!C100="Residential",'Comparison - Category'!C100="Rural"),U100,N100/$F100*100) -> 28 | AC100: 0.04078378932
A101: =Control!A87 -> Carterton district | B101: =Control!B87 -> Carterton district | C101: =Control!C87 -> Business | D101: =Control!D87 -> Carterton districtBusiness | F101: 96652500 | G101: 227 | H101: 425781.9383 | J101: 32667.22772 | K101: 853.3667985 | L101: =INDEX('Public transport'!$I$23:$I$49,MATCH($D101,'Public transport'!$D$23:$D$49,0),) -> 18993.09348 | M101: =INDEX(Stadium!$G$23:$G$49,MATCH($D101,Stadium!$D$23:$D$49,0),) -> 0 | N101: =INDEX(WRS!$K$23:$K$49,MATCH($D101,WRS!$D$23:$D$49,0),) -> 8272.335423 | O101: 60786.02342 | Q101: 143.9084922 | R101: 3.759325104 | S101: 83.67001533 | T101: 0 | U101: =IF('Comparison - Category'!C101="Residential",Control!$B$103,IF('Comparison - Category'!C101="Rural",Control!$B$104,N101/$F101*$H101)) -> 36.44200627 | V101: =IF('Comparison - Category'!C101="Residential",SUM(Q101:T101,Control!$B$103),IF('Comparison - Category'!C101="Rural",SUM(Q101:T101,Control!$B$104),O101/$F101*$H101)) -> 267.7798389 | X101: 0.0337986371 | Y101: 0.0008829226337 | Z101: 0.01965090761 | AA101: 0 | AB101: =IF(OR('Comparison - Category'!C101="Residential",'Comparison - Category'!C101="Rural"),U101,N101/$F101*100) -> 0.008558842682 | AC101: 0.06289131003
A102: =Control!A88 -> Carterton district | B102: =Control!B88 -> Carterton district | C102: =Control!C88 -> Residential | D102: =Control!D88 -> Carterton districtResidential | F102: 843913500 | G102: 2392 | H102: 352806.6472 | J102: 285231.2613 | K102: 7451.1033 | L102: =INDEX('Public transport'!$I$23:$I$49,MATCH($D102,'Public transport'!$D$23:$D$49,0),) -> 140193.2236 | M102: =INDEX(Stadium!$G$23:$G$49,MATCH($D102,Stadium!$D$23:$D$49,0),) -> 0 | N102: =INDEX(WRS!$K$23:$K$49,MATCH($D102,WRS!$D$23:$D$49,0),) -> 32970 | O102: 465845.5882 | Q102: 119.2438383 | R102: 3.115009741 | S102: 58.60920719 | T102: 0 | U102: =IF('Comparison - Category'!C102="Residential",Control!$B$103,IF('Comparison - Category'!C102="Rural",Control!$B$104,N102/$F102*$H102)) -> 14 | V102: =IF('Comparison - Category'!C102="Residential",SUM(Q102:T102,Control!$B$103),IF('Comparison - Category'!C102="Rural",SUM(Q102:T102,Control!$B$104),O102/$F102*$H102)) -> 194.9680553 | X102: 0.0337986371 | Y102: 0.0008829226337 | Z102: 0.01661227408 | AA102: 0 | AB102: =IF(OR('Comparison - Category'!C102="Residential",'Comparison - Category'!C102="Rural"),U102,N102/$F102*100) -> 14 | AC102: 0.05520063232
A103: =Control!A89 -> Carterton district | B103: =Control!B89 -> Carterton district | C103: =Control!C89 -> Rural | D103: =Control!D89 -> Carterton districtRural | F103: 1744267200 | G103: 2043 | H103: 853777.3862 | J103: 589538.5409 | K103: 15400.5299 | L103: =INDEX('Public transport'!$I$23:$I$49,MATCH($D103,'Public transport'!$D$23:$D$49,0),) -> 89953.10601 | M103: =INDEX(Stadium!$G$23:$G$49,MATCH($D103,Stadium!$D$23:$D$49,0),) -> 0 | N103: =INDEX(WRS!$K$23:$K$49,MATCH($D103,WRS!$D$23:$D$49,0),) -> 48972 | O103: 743864.1769 | Q103: 288.5651204 | R103: 7.538193784 | S103: 44.02990994 | T103: 0 | U103: =IF('Comparison - Category'!C103="Residential",Control!$B$103,IF('Comparison - Category'!C103="Rural",Control!$B$104,N103/$F103*$H103)) -> 28 | V103: =IF('Comparison - Category'!C103="Residential",SUM(Q103:T103,Control!$B$103),IF('Comparison - Category'!C103="Rural",SUM(Q103:T103,Control!$B$104),O103/$F103*$H103)) -> 368.1332241 | X103: 0.0337986371 | Y103: 0.0008829226337 | Z103: 0.005157071463 | AA103: 0 | AB103: =IF(OR('Comparison - Category'!C103="Residential",'Comparison - Category'!C103="Rural"),U103,N103/$F103*100) -> 28 | AC103: 0.04264622856
A104: =Control!A90 -> South Wairarapa district | B104: =Control!B90 -> South Wairarapa district | C104: =Control!C90 -> Business | D104: =Control!D90 -> South Wairarapa districtBusiness | F104: 206493600 | G104: 304 | H104: 679255.2632 | J104: 69098.91251 | K104: 0 | L104: =INDEX('Public transport'!$I$23:$I$49,MATCH($D104,'Public transport'!$D$23:$D$49,0),) -> 49092.44984 | M104: =INDEX(Stadium!$G$23:$G$49,MATCH($D104,Stadium!$D$23:$D$49,0),) -> 0 | N104: =INDEX(WRS!$K$23:$K$49,MATCH($D104,WRS!$D$23:$D$49,0),) -> 17497.94585 | O104: 135689.3082 | Q104: 227.2990543 | R104: 0 | S104: 161.4883218 | T104: 0 | U104: =IF('Comparison - Category'!C104="Residential",Control!$B$103,IF('Comparison - Category'!C104="Rural",Control!$B$104,N104/$F104*$H104)) -> 57.55903239 | V104: =IF('Comparison - Category'!C104="Residential",SUM(Q104:T104,Control!$B$103),IF('Comparison - Category'!C104="Rural",SUM(Q104:T104,Control!$B$104),O104/$F104*$H104)) -> 446.3464085 | X104: 0.03346298021 | Y104: 0 | Z104: 0.02377432029 | AA104: 0 | AB104: =IF(OR('Comparison - Category'!C104="Residential",'Comparison - Category'!C104="Rural"),U104,N104/$F104*100) -> 0.008473844152 | AC104: 0.06571114465
A105: =Control!A91 -> South Wairarapa district | B105: =Control!B91 -> South Wairarapa district | C105: =Control!C91 -> Residential | D105: =Control!D91 -> South Wairarapa districtResidential | F105: 1318886100 | G105: 3229 | H105: 408450.3252 | J105: 441338.5947 | K105: 0 | L105: =INDEX('Public transport'!$I$23:$I$49,MATCH($D105,'Public transport'!$D$23:$D$49,0),) -> 273878.0894 | M105: =INDEX(Stadium!$G$23:$G$49,MATCH($D105,Stadium!$D$23:$D$49,0),) -> 0 | N105: =INDEX(WRS!$K$23:$K$49,MATCH($D105,WRS!$D$23:$D$49,0),) -> 44240 | O105: 759456.6841 | Q105: 136.6796515 | R105: 0 | S105: 84.81823765 | T105: 0 | U105: =IF('Comparison - Category'!C105="Residential",Control!$B$103,IF('Comparison - Category'!C105="Rural",Control!$B$104,N105/$F105*$H105)) -> 14 | V105: =IF('Comparison - Category'!C105="Residential",SUM(Q105:T105,Control!$B$103),IF('Comparison - Category'!C105="Rural",SUM(Q105:T105,Control!$B$104),O105/$F105*$H105)) -> 235.4978891 | X105: 0.03346298021 | Y105: 0 | Z105: 0.02076586366 | AA105: 0 | AB105: =IF(OR('Comparison - Category'!C105="Residential",'Comparison - Category'!C105="Rural"),U105,N105/$F105*100) -> 14 | AC105: 0.05758318964
A106: =Control!A92 -> South Wairarapa district | B106: =Control!B92 -> South Wairarapa district | C106: =Control!C92 -> Rural | D106: =Control!D92 -> South Wairarapa districtRural | F106: 2982290600 | G106: 3124 | H106: 954638.4763 | J106: 997963.3134 | K106: 0 | L106: =INDEX('Public transport'!$I$23:$I$49,MATCH($D106,'Public transport'!$D$23:$D$49,0),) -> 182530.7111 | M106: =INDEX(Stadium!$G$23:$G$49,MATCH($D106,Stadium!$D$23:$D$49,0),) -> 0 | N106: =INDEX(WRS!$K$23:$K$49,MATCH($D106,WRS!$D$23:$D$49,0),) -> 78036 | O106: 1258530.025 | Q106: 319.4504844 | R106: 0 | S106: 58.42852469 | T106: 0 | U106: =IF('Comparison - Category'!C106="Residential",Control!$B$103,IF('Comparison - Category'!C106="Rural",Control!$B$104,N106/$F106*$H106)) -> 28 | V106: =IF('Comparison - Category'!C106="Residential",SUM(Q106:T106,Control!$B$103),IF('Comparison - Category'!C106="Rural",SUM(Q106:T106,Control!$B$104),O106/$F106*$H106)) -> 405.8790091 | X106: 0.03346298021 | Y106: 0 | Z106: 0.006120487089 | AA106: 0 | AB106: =IF(OR('Comparison - Category'!C106="Residential",'Comparison - Category'!C106="Rural"),U106,N106/$F106*100) -> 28 | AC106: 0.04220011372
A107: =Control!A93 -> Tararua district | B107: =Control!B93 -> Tararua district | C107: =Control!C93 -> Rural | D107: =Control!D93 -> Tararua districtRural | F107: 10760500 | G107: 10 | H107: 1076050 | J107: 2353.024643 | K107: 0 | L107: =INDEX('Public transport'!$I$23:$I$49,MATCH($D107,'Public transport'!$D$23:$D$49,0),) -> 0 | M107: =INDEX(Stadium!$G$23:$G$49,MATCH($D107,Stadium!$D$23:$D$49,0),) -> 0 | N107: =INDEX(WRS!$K$23:$K$49,MATCH($D107,WRS!$D$23:$D$49,0),) -> 252 | O107: 2605.024643 | Q107: 235.3024643 | R107: 0 | S107: 0 | T107: 0 | U107: =IF('Comparison - Category'!C107="Residential",Control!$B$103,IF('Comparison - Category'!C107="Rural",Control!$B$104,N107/$F107*$H107)) -> 28 | V107: =IF('Comparison - Category'!C107="Residential",SUM(Q107:T107,Control!$B$103),IF('Comparison - Category'!C107="Rural",SUM(Q107:T107,Control!$B$104),O107/$F107*$H107)) -> 263.3024643 | X107: 0.02186724263 | Y107: 0 | Z107: 0 | AA107: 0 | AB107: =IF(OR('Comparison - Category'!C107="Residential",'Comparison - Category'!C107="Rural"),U107,N107/$F107*100) -> 28 | AC107: 0.02420914124
A108: Region wide | D108: =Control!D94 -> Region wide | F108: =SUM(F81:F107) -> 119678968561 | G108: =SUM(G81:G107) -> 200807 | H108: 595990.0231 | J108: =SUM(J81:J107) -> 47283313.91 | K108: =SUM(K81:K107) -> 6458971 | L108: 68109677.79 | M108: 0 | N108: 4907860.821 | O108: 126759823.5 | Q108: 235.4664624 | R108: 32.16506895 | S108: 339.1797985 | T108: 0 | U108: =N108/$F108*$H108 -> 24.44068594 | V108: =IF('Comparison - Category'!C108="Residential",SUM(Q108:T108,Control!$B$103),IF('Comparison - Category'!C108="Rural",SUM(Q108:T108,Control!$B$104),O108/$F108*$H108)) -> 631.2520157 | X108: 0.03950845706 | Y108: 0.005396913992 | Z108: 0.05691031483 | AA108: 0 | AB108: =IF(OR(C108="Residential",C108="Rural"),U108,N108/$F108*100) -> 0.004100854879 | AC108: 0.1059165408
A110: By category
A111: Region Wide | C111: =C81 -> Regional CBD | D111: =A111&C111 -> Region WideRegional CBD | F111: =SUMIF($C$81:$C$107,$C111,F$81:F$107) -> 7963363000 | G111: 3381 | H111: =F111/G111 -> 2355327.714 | J111: =SUMIF($C$81:$C$107,$C111,J$81:J$107) -> 3530107.897 | K111: 6536.830574 | L111: 25844164.27 | M111: 0 | N111: 893930.665 | O111: 30274739.66 | Q111: =J111/$F111*$H111 -> 1044.101714 | R111: 1.93340153 | S111: 7643.940926 | T111: 0 | U111: 264.3983037 | V111: =IF('Comparison - Category'!C111="Residential",SUM(Q111:T111,Control!$B$103),IF('Comparison - Category'!C111="Rural",SUM(Q111:T111,Control!$B$104),O111/$F111*$H111)) -> 8954.374345
A112: Region Wide | C112: =C82 -> Business | D112: Region WideBusiness | F112: 12175490600 | G112: 8198 | H112: 1485178.165 | J112: 4741366.421 | K112: 1008363.95 | L112: 5654319.587 | M112: 0 | N112: 1200658.156 | O112: 12604708.11 | Q112: 578.3564797 | R112: 123.0012137 | S112: 689.7193934 | T112: 0 | U112: 146.4574477 | V112: =IF('Comparison - Category'!C112="Residential",SUM(Q112:T112,Control!$B$103),IF('Comparison - Category'!C112="Rural",SUM(Q112:T112,Control!$B$104),O112/$F112*$H112)) -> 1537.534534
A113: Region Wide | C113: =C83 -> Residential | D113: Region WideResidential | F113: 87639471771 | G113: 174391 | H113: 502545.8411 | J113: 34889055.54 | K113: 5115291.042 | L113: 35773734.55 | M113: 0 | N113: 2434460 | O113: 78212541.13 | Q113: 200.0622483 | R113: 29.33231097 | S113: 205.1352108 | T113: 0 | U113: 13.95978003 | V113: =IF('Comparison - Category'!C113="Residential",SUM(Q113:T113,Control!$B$103),IF('Comparison - Category'!C113="Rural",SUM(Q113:T113,Control!$B$104),O113/$F113*$H113)) -> 448.52977
A114: Region Wide | C114: =C84 -> Rural | D114: Region WideRural | F114: 11900643190 | G114: 14837 | H114: 802092.2821 | J114: 4122784.051 | K114: 328779.1779 | L114: 837459.392 | M114: 0 | N114: 378812 | O114: 5667834.621 | Q114: 277.8718104 | R114: 22.15941079 | S114: 56.44398409 | T114: 0 | U114: 25.53157646 | V114: =IF('Comparison - Category'!C114="Residential",SUM(Q114:T114,Control!$B$103),IF('Comparison - Category'!C114="Rural",SUM(Q114:T114,Control!$B$104),O114/$F114*$H114)) -> 384.4752053
A115: Region Wide | C115: Total | D115: Region WideTotal | F115: =SUM(F111:F114) -> 119678968561 | G115: =SUM(G111:G114) -> 200807 | H115: 595990.0231 | J115: =SUM(J111:J114) -> 47283313.91 | K115: =SUM(K111:K114) -> 6458971 | L115: 68109677.79 | M115: 0 | N115: 4907860.821 | O115: 126759823.5 | Q115: 235.4664624 | R115: 32.16506895 | S115: 339.1797985 | T115: 0 | U115: 24.44068594 | V115: =IF('Comparison - Category'!C115="Residential",SUM(Q115:T115,Control!$B$103),IF('Comparison - Category'!C115="Rural",SUM(Q115:T115,Control!$B$104),O115/$F115*$H115)) -> 631.2520157
J118: =IF(ABS(J78-SUM(J69:J77))>tolerance_dollar,1,0) -> 0 | K118: =IF(ABS(K78-SUM(K69:K77))>tolerance_dollar,1,0) -> 0 | L118: 0 | M118: 0 | N118: =IF(ABS(N78-SUM(N69:N77))>tolerance_dollar,1,0) -> 0 | O118: 0
J119: =J108-SUM(J81:J107) -> 0 | K119: =K108-SUM(K81:K107) -> 0 | L119: =L108-SUM(L81:L107) -> 0 | M119: =M108-SUM(M81:M107) -> 0 | N119: =N108-SUM(N81:N107) -> 0 | O119: 0
F120: =F108-F78 -> 0 | G120: =G108-G78 -> 0 | J120: =IF(ABS(J108-J78)>tolerance_dollar,1,0) -> 0 | K120: =IF(ABS(K108-K78)>tolerance_dollar,1,0) -> 0 | L120: 0 | M120: 0 | N120: =IF(ABS(N108-N78)>tolerance_dollar,1,0) -> 0 | O120: 0 | Q120: =IF(ABS(Q108-Q78)>tolerance_dollar,1,0) -> 0 | R120: 0 | S120: 0 | T120: 0 | U120: 0 | V120: 0
A123: Delta
J124: Rates | Q124: Rates / average CV | X124: Cents/$ OR Regional Strategy Rate $/property
A125: =Control!A$66 -> TA full name | B125: =Control!B$66 -> Rating area | C125: =Control!C$66 -> Category group | D125: =Control!D$66 -> Concatenated name | F125: CV | G125: CV Assessments | H125: Average CV | J125: General rate | K125: River management rate | L125: Public transport rate | M125: Stadium purposes rate | N125: Wellington regional strategy rate | O125: District-Wide rates | Q125: General rate | R125: River management rate | S125: Public transport rate | T125: Stadium purposes rate | U125: Wellington regional strategy rate | V125: District-Wide rates | X125: General rate | Y125: River management rate | Z125: Public transport rate | AA125: Stadium purposes rate | AB125: Wellington regional strategy rate | AC125: District-Wide rates
A127: By TA
A128: =Control!A42 -> Wellington city | C128: =Control!B42 -> District wide | D128: =Control!C42 -> Wellington cityDistrict wide | F128: =F69-F10 -> 673712000 | G128: 398 | H128: 5277.981673 | J128: =J69-J10 -> 1858563.97 | K128: =K69-K10 -> -576.4241039 | L128: =L69-L10 -> 2467474.404 | M128: -580986.2619 | N128: 51621.45012 | O128: 3796097.138 | Q128: =Q69-Q10 -> 22.60592239 | R128: -0.01034120029 | S128: 29.32207887 | T128: -7.548118927 | U128: 0.5135057958 | V128: 44.88304693
A129: =Control!A43 -> Hutt city | C129: =Control!B43 -> District wide | D129: =Control!C43 -> Hutt cityDistrict wide | F129: 231709000 | G129: 238 | H129: 2613.455457 | J129: 879637.334 | K129: =K70-K11 -> 670975.697 | L129: 179199.879 | M129: -190923.4315 | N129: 20839.13988 | O129: 1559728.618 | Q129: 21.27622932 | R129: 16.50704797 | S129: 2.771628231 | T129: -4.889329599 | U129: 0.3966653781 | V129: 36.0622413
A130: =Control!A44 -> Upper Hutt city | C130: =Control!B44 -> District wide | D130: =Control!C44 -> Upper Hutt cityDistrict wide | F130: 174129500 | G130: 222 | H130: 3977.117348 | J130: 346856.1548 | K130: =K71-K12 -> -10983.43377 | L130: 922.6290403 | M130: -51447.60501 | N130: 7908.933812 | O130: 293256.6789 | Q130: 18.48733631 | R130: -1.195074298 | S130: -3.612337411 | T130: -3.104864515 | U130: 0.197169338 | V130: 10.77222942
A131: =Control!A45 -> Porirua city | C131: =Control!B45 -> District wide | D131: =Control!C45 -> Porirua cityDistrict wide | F131: 232533950 | G131: 161 | H131: 7774.293189 | J131: 451525.982 | K131: =K72-K13 -> 5280.320125 | L131: 20010.05825 | M131: -70226.95893 | N131: 8006.035638 | O131: 414595.4371 | Q131: 22.60988274 | R131: 0.2695664306 | S131: -1.753212128 | T131: -3.793181318 | U131: 0.2636162172 | V131: 17.59667194
A132: =Control!A46 -> Kāpiti Coast district | C132: =Control!B46 -> District wide | D132: =Control!C46 -> Kāpiti Coast districtDistrict wide | F132: 3795809150 | G132: 252 | H132: 147288.1446 | J132: 575470.7937 | K132: =K73-K14 -> -32850.79463 | L132: 503590.4575 | M132: -47339.62134 | N132: -5889.718651 | O132: 992981.1165 | Q132: 21.24529556 | R132: -1.870052856 | S132: 18.87563688 | T132: -1.911862257 | U132: -0.4354152371 | V132: 35.90360209
A133: =Control!A47 -> Masterton district | C133: =Control!B47 -> District wide | D133: =Control!C47 -> Masterton districtDistrict wide | F133: 1122506100 | G133: 46 | H133: 89518.1761 | J133: 293375.0174 | K133: =K74-K15 -> 0 | L133: 130645.0269 | M133: -19561.827 | N133: 2325.287331 | O133: 406783.5046 | Q133: 23.26263413 | R133: 0 | S133: 10.49242132 | T133: -1.590909808 | U133: 0.1151830941 | V133: 32.27932874
A134: =Control!A48 -> Carterton district | C134: =Control!B48 -> District wide | D134: =Control!C48 -> Carterton districtDistrict wide | F134: 496582000 | G134: 101 | H134: 96122.86187 | J134: 133263.8609 | K134: =K75-K16 -> 465.32 | L134: 50350.50949 | M134: -6846.63945 | N134: -690.3281552 | O134: 176542.7228 | Q134: 24.90784295 | R134: -0.01057607675 | S134: 9.855957699 | T134: -1.501126825 | U134: -0.5798681384 | V134: 32.67222961
A135: =Control!A49 -> South Wairarapa district | C135: =Control!B49 -> District wide | D135: =Control!C49 -> South Wairarapa districtDistrict wide | F135: 895114100 | G135: 59 | H135: 129609.4709 | J135: 262951.6925 | K135: =K76-K17 -> 0 | L135: 101088.7019 | M135: -10759.00485 | N135: 1722.802078 | O135: 355004.1917 | Q135: 37.82706284 | R135: 0 | S135: 14.64209148 | T135: -1.630646385 | U135: 0.07335653281 | V135: 50.91186446
A136: =Control!A50 -> Tararua district | C136: =Control!B50 -> District wide | D136: =Control!C50 -> Tararua districtDistrict wide | F136: 3954500 | G136: -2 | H136: 508883.3333 | J136: -1.418238552 | K136: =K77-K18 -> 0 | L136: 0 | M136: 0 | N136: 0 | O136: -1.418238552 | Q136: 39.09889084 | R136: 0 | S136: 0 | T136: 0 | U136: 4.2 | V136: 43.29889084
A137: Region wide | D137: =Control!C51 -> Region wide | F137: 7626050300 | G137: 1475 | H137: 33847.87699 | J137: 4801643.387 | K137: =K78-K19 -> 632310.4917 | L137: 3453281.666 | M137: -978091.35 | N137: 85843.60205 | O137: 7994987.797 | Q137: 22.34628838 | R137: 2.934135093 | S137: 14.81443754 | T137: -4.906845614 | U137: 0.2498022911 | V137: 35.43781769
A139: By TA & Category
A140: =Control!A67 -> Wellington city | B140: =Control!B67 -> Wellington city | C140: =Control!C67 -> Regional CBD | D140: =Control!D67 -> Wellington cityRegional CBD | F140: =F81-F22 -> 109171500 | G140: -20 | H140: 45950.61872 | J140: =J81-J22 -> 287133.4219 | K140: =K81-K22 -> -83.24296276 | L140: =L81-L22 -> 824998.1965 | M140: -135230.613 | N140: 28893.92365 | O140: 1005711.686 | Q140: =Q81-Q22 -> 90.56614412 | R140: -0.01310641933 | S140: 287.5263202 | T140: -39.762015 | U140: 10.05054094 | V140: 348.3678839 | X140: =X81-X22 -> 0.003039630419 | Y140: -2.200835249e-06 | Z140: 0.005992912799 | AA140: -0.001721763634 | AB140: 0.000211846515 | AC140: 0.007520425263
A141: =Control!A68 -> Wellington city | B141: =Control!B68 -> Wellington city | C141: =Control!C68 -> Business | D141: =Control!D68 -> Wellington cityBusiness | F141: 76375000 | G141: -8 | H141: 48656.73739 | J141: 149962.9962 | K141: =K82-K23 -> -21.37310654 | L141: 268411.1714 | M141: -65767.1594 | N141: 16665.52646 | O141: 369251.1616 | Q141: 82.45356616 | R141: -0.004142608365 | S141: 143.97837 | T141: -34.48723618 | U141: 9.705306443 | V141: 201.6458638 | X141: 0.003039630419 | Y141: -2.200835249e-06 | Z141: 0.006277050097 | AA141: -0.001721763634 | AB141: 0.000211846515 | AC141: 0.007804562562
A142: =Control!A69 -> Wellington city | B142: =Control!B69 -> Wellington city | C142: =Control!C69 -> Residential | D142: =Control!D69 -> Wellington cityResidential | F142: 471009500 | G142: 419 | H142: 3367.108673 | J142: 1396269.343 | K142: =K83-K24 -> -473.152557 | L142: 1368286.345 | M142: -377152.0246 | N142: 5866 | O142: 2392796.511 | Q142: 18.24378991 | R142: -0.009364700598 | S142: 18.17723573 | T142: -5.320318026 | U142: 0 | V142: 31.09134291 | X142: 0.003039630419 | Y142: -2.200835249e-06 | Z142: 0.003088739726 | AA142: -0.0009654130679 | AB142: 0 | AC142: 0.005145328907
A143: =Control!A70 -> Wellington city | B143: =Control!B70 -> Wellington city | C143: =Control!C70 -> Rural | D143: =Control!D70 -> Wellington cityRural | F143: 17156000 | G143: 7 | H143: 15264.36515 | J143: 25198.20832 | K143: =K84-K25 -> 1.34452234 | L143: 5778.691897 | M143: -2836.464915 | N143: 196 | O143: 28337.77983 | Q143: 29.49665131 | R143: -0.003927674874 | S143: 6.86154976 | T143: -3.664683353 | U143: 0 | V143: 32.68959004 | X143: 0.003039630419 | Y143: -2.200835249e-06 | Z143: 0.0007387823994 | AA143: -0.0004900684394 | AB143: 0 | AC143: 0.003211240148
A144: =Control!A71 -> Hutt city | B144: =Control!B71 -> Hutt city | C144: =Control!C71 -> Business | D144: =Control!D71 -> Hutt cityBusiness | F144: -7826500 | G144: 14 | H144: -12812.69099 | J144: 139162.7665 | K144: =K85-K26 -> 110283.4453 | L144: 88698.38598 | M144: -49784.84971 | N144: 17843.13988 | O144: 306202.888 | Q144: 55.46806933 | R144: 44.8575894 | S144: 32.16804445 | T144: -21.12212546 | U144: 6.665164803 | V144: 118.0367425 | X144: 0.003742828917 | Y144: 0.002946557824 | Z144: 0.002454753591 | AA144: -0.00131121248 | AB144: 0.0004896004624 | AC144: 0.008322528315
A145: =Control!A72 -> Hutt city | B145: =Control!B72 -> Hutt city | C145: =Control!C72 -> Residential | D145: =Control!D72 -> Hutt cityResidential | F145: 246026500 | G145: 234 | H145: 3726.577581 | J145: 731015.0515 | K145: =K86-K27 -> 552642.2856 | L145: 91716.52065 | M145: -138888.9717 | N145: 3276 | O145: 1239760.886 | Q145: 19.03690739 | R145: 14.640739 | S145: 0.8498139062 | T145: -3.836499964 | U145: 0 | V145: 30.69096034 | X145: 0.003742828917 | Y145: 0.002946557824 | Z145: -0.0002535053703 | AA145: -0.0008143150701 | AB145: 0 | AC145: 0.005598392064
A146: =Control!A73 -> Hutt city | B146: =Control!B73 -> Hutt city | C146: =Control!C73 -> Rural | D146: =Control!D73 -> Hutt cityRural | F146: -6491000 | G146: -10 | H146: -0.8078231293 | J146: 9459.515977 | K146: =K87-K28 -> 8049.966127 | L146: -1215.027641 | M146: -2249.610105 | N146: -280 | O146: 13764.84436 | Q146: 24.29294702 | R146: 19.12479986 | S146: -0.6323041783 | T146: -4.591041031 | U146: 0 | V146: 38.19440167 | X146: 0.003742828917 | Y146: 0.002946557824 | Z146: -9.740090658e-05 | AA146: -0.0007073355883 | AB146: 0 | AC146: 0.005884655616
A147: =Control!A74 -> Upper Hutt city | B147: =Control!B74 -> Upper Hutt city | C147: =Control!C74 -> Business | D147: =Control!D74 -> Upper Hutt cityBusiness | F147: 4114000 | G147: -6 | H147: 19331.93604 | J147: 42690.12904 | K147: =K88-K29 -> -3342.357451 | L147: 16605.64589 | M147: -7726.921665 | N147: 5444.933812 | O147: 53671.42962 | Q147: 64.23214803 | R147: -3.518355883 | S147: 31.61244354 | T147: -10.70210757 | U147: 8.834085713 | V147: 90.45821383 | X147: 0.003515390302 | Y147: -0.000314172396 | Z147: 0.001196579152 | AA147: -0.0006601032978 | AB147: 0.0004318339211 | AC147: 0.004169527681
A148: =Control!A75 -> Upper Hutt city | B148: =Control!B75 -> Upper Hutt city | C148: =Control!C75 -> Residential | D148: =Control!D75 -> Upper Hutt cityResidential | F148: 115035500 | G148: 219 | H148: 1648.183859 | J148: 255467.7093 | K148: =K89-K30 -> -9608.550111 | L148: -20828.27391 | M148: -41764.50065 | N148: 2632 | O148: 185898.3846 | Q148: 15.16092193 | R148: -1.165489769 | S148: -5.193396908 | T148: -2.859798729 | U148: 0 | V148: 5.942236522 | X148: 0.003515390302 | Y148: -0.000314172396 | Z148: -0.001496238169 | AA148: -0.0006912417425 | AB148: 0 | AC148: 0.0009933135199
A149: =Control!A76 -> Upper Hutt city | B149: =Control!B76 -> Upper Hutt city | C149: =Control!C76 -> Rural | D149: =Control!D76 -> Upper Hutt cityRural | F149: 54980000 | G149: 9 | H149: 39261.09744 | J149: 48698.31646 | K149: =K90-K31 -> 1967.473794 | L149: 5145.257065 | M149: -1956.1827 | N149: -168 | O149: 53686.86461 | Q149: 37.29886795 | R149: 1.179441496 | S149: 3.376980054 | T149: -1.572494132 | U149: 0 | V149: 40.28279537 | X149: 0.003515390302 | Y149: -0.000314172396 | Z149: -0.0004140678623 | AA149: -0.0002446046761 | AB149: 0 | AC149: 0.00225758586
A150: =Control!A77 -> Porirua city | B150: =Control!B77 -> Porirua city | C150: =Control!C77 -> Business | D150: =Control!D77 -> Porirua cityBusiness | F150: 5256000 | G150: 1 | H150: 4869.13315 | J150: 41745.8121 | K150: =K91-K32 -> 509.8409129 | L150: 16534.33066 | M150: -12128.33274 | N150: 5612.035638 | O150: 52273.68656 | Q150: 51.80012619 | R150: 0.6348369382 | S150: 19.6549797 | T150: -15.23659892 | U150: 6.887124136 | V150: 63.74046805 | X150: 0.003634885594 | Y150: 4.500277073e-05 | Z150: 0.001201102516 | AA150: -0.001107873859 | AB150: 0.0004674541115 | AC150: 0.004240571134
A151: =Control!A78 -> Porirua city | B151: =Control!B78 -> Porirua city | C151: =Control!C78 -> Residential | D151: =Control!D78 -> Porirua cityResidential | F151: 202268000 | G151: 149 | H151: 7507.649559 | J151: 378647.1011 | K151: =K92-K33 -> 4418.361312 | L151: 1995.103145 | M151: -56729.2983 | N151: 2086 | O151: 330417.2672 | Q151: 20.53111155 | R151: 0.2441849849 | S151: -2.548396836 | T151: -3.316339197 | U151: 0 | V151: 14.9105605 | X151: 0.003634885594 | Y151: 4.500277073e-05 | Z151: -0.001471775258 | AA151: -0.0006794701763 | AB151: 0 | AC151: 0.001485189363
A152: =Control!A79 -> Porirua city | B152: =Control!B79 -> Porirua city | C152: =Control!C79 -> Rural | D152: =Control!D79 -> Porirua cityRural | F152: 25009950 | G152: 11 | H152: 22810.81198 | J152: 31133.0688 | K152: =K93-K34 -> 352.1178993 | L152: 1480.624453 | M152: -1369.32789 | N152: 308 | O152: 31904.48326 | Q152: 44.16121564 | R152: 0.5163478006 | S152: -0.4150080678 | T152: -2.237463873 | U152: 0 | V152: 42.0250915 | X152: 0.003634885594 | Y152: 4.500277073e-05 | Z152: -0.000407034035 | AA152: -0.0002279148645 | AB152: 0 | AC152: 0.00298017209
A153: =Control!A80 -> Kāpiti Coast district | B153: =Control!B80 -> Kāpiti Coast district | C153: =Control!C80 -> Business | D153: =Control!D80 -> Kāpiti Coast districtBusiness | F153: 210542500 | G153: -55 | H153: 195483.7471 | J153: -9271.081933 | K153: =K94-K35 -> -24432.19204 | L153: 31443.98953 | M153: -5889.225561 | N153: -9109.718651 | O153: -17258.22866 | Q153: 7.905438326 | R153: -13.62032277 | S153: 35.53590687 | T153: -4.239903212 | U153: -2.866352288 | V153: 22.71476692 | X153: -0.006242132677 | Y153: -0.00342637301 | Z153: -0.00239688481 | AA153: -0.0004642277365 | AB153: -0.002113723307 | AC153: -0.01464334154
A154: =Control!A81 -> Kāpiti Coast district | B154: =Control!B81 -> Kāpiti Coast district excl Ōtaki | C154: =Control!C81 -> Residential | D154: =Control!D81 -> Kāpiti Coast district excl Ōtaki Residential | F154: =F95-F36 -> 2961484150 | G154: 367 | H154: 157082.4223 | J154: =J95-J36 -> 530364.859 | K154: 19042.11979 | L154: 451918.9997 | M154: -33696.04151 | N154: 6384 | O154: 974013.9369 | Q154: =Q95-Q36 -> 26.29996838 | R154: 0.004679943378 | S154: 22.56651141 | T154: -1.923509619 | U154: 0 | V154: 46.94765011 | X154: =X95-X36 -> -0.006242132677 | Y154: -0.00342637301 | Z154: -0.00478531442 | AA154: -0.0004642277365 | AB154: 0 | AC154: -0.01582042152
A155: =Control!A82 -> Kāpiti Coast district | B155: =Control!B82 -> Ōtaki rating area | C155: =Control!C82 -> Residential | D155: =Control!D82 -> Ōtaki rating areaResidential | F155: =F96-F37 -> 340359900 | G155: 86 | H155: 101209.705 | J155: 65311.9474 | K155: 4580.496236 | L155: 22296.18229 | M155: -3548.56146 | N155: 560 | O155: 89200.06446 | Q155: =Q96-Q37 -> 18.04209012 | R155: 0.6050436664 | S155: 4.913133866 | T155: -1.157768829 | U155: 0 | V155: 22.40249883 | X155: =X96-X37 -> -0.006242132677 | Y155: -0.00342637301 | Z155: -0.007770851432 | AA155: -0.0004642277365 | AB155: 0 | AC155: -0.01958234256
A156: =Control!A83 -> Kāpiti Coast district | B156: =Control!B83 -> Kāpiti Coast district | C156: =Control!C83 -> Rural | D156: =Control!D83 -> Kāpiti Coast districtRural | F156: =F97-F38 -> 283422600 | G156: -146 | H156: 140569.1491 | J156: -10934.93078 | K156: -32041.21861 | L156: -2068.71401 | M156: -4205.792805 | N156: -3724 | O156: -52974.6562 | Q156: =Q97-Q38 -> 9.012989738 | R156: -7.967200523 | S156: 1.957384283 | T156: -1.507993118 | U156: 0 | V156: 1.49518038 | X156: =X97-X38 -> -0.006242132677 | Y156: -0.00342637301 | Z156: -0.001289990721 | AA156: -0.0002499010718 | AB156: 0 | AC156: -0.01202580093
A157: =Control!A84 -> Masterton district | B157: =Control!B84 -> Masterton district | C157: =Control!C84 -> Business | D157: =Control!D84 -> Masterton districtBusiness | F157: =F98-F39 -> 52214500 | G157: 4 | H157: 89858.55012 | J157: 10755.65374 | K157: 0 | L157: 20399.07123 | M157: -2325.988066 | N157: 897.2873307 | O157: 29726.02424 | Q157: =Q98-Q39 -> 17.7552275 | R157: 0 | S157: 36.57631765 | T157: -4.260051403 | U157: 1.151161204 | V157: 51.22265494 | X157: =X98-X39 -> -0.001791116484 | Y157: 0 | Z157: 0.003489917317 | AA157: -0.000610257539 | AB157: -0.0009327408037 | AC157: 0.0001558024901
A158: =Control!A85 -> Masterton district | B158: =Control!B85 -> Masterton district | C158: =Control!C85 -> Residential | D158: =Control!D85 -> Masterton districtResidential | F158: =F99-F40 -> 629359300 | G158: 70 | H158: 77316.83425 | J158: =J99-J40 -> 176554.842 | K158: =K99-K40 -> 0 | L158: =L99-L40 -> 75627.56199 | M158: -12051.95478 | N158: 1008 | O158: 241138.4492 | Q158: =Q99-Q40 -> 21.52464015 | R158: 0 | S158: 9.333495007 | T158: -1.536847077 | U158: 0 | V158: 29.32128808 | X158: =X99-X40 -> -0.001791116484 | Y158: 0 | Z158: 0.0004625307572 | AA158: -0.000610257539 | AB158: 0 | AC158: -0.003240687511
A159: =Control!A86 -> Masterton district | B159: =Control!B86 -> Masterton district | C159: =Control!C86 -> Rural | D159: =Control!D86 -> Masterton districtRural | F159: 440932300 | G159: -28 | H159: 118015.0155 | J159: 106064.5216 | K159: =K100-K41 -> 0 | L159: 34618.39367 | M159: -5183.884155 | N159: 420 | O159: 135919.0311 | Q159: 28.88696924 | R159: 0 | S159: 9.049173979 | T159: -1.326480081 | U159: 0 | V159: 36.60966314 | X159: -0.001791116484 | Y159: 0 | Z159: 0.0007768626108 | AA159: -0.0002189174197 | AB159: 0 | AC159: -0.001854330645
A160: =Control!A87 -> Carterton district | B160: =Control!B87 -> Carterton district | C160: =Control!C87 -> Business | D160: =Control!D87 -> Carterton districtBusiness | F160: 3607000 | G160: 2 | H160: 12246.38277 | J160: -250.9900778 | K160: =K101-K42 -> -134.7956416 | L160: 2169.558306 | M160: -506.4623492 | N160: -508.3281552 | O160: 768.9820825 | Q160: -2.394698054 | R160: -0.6325079636 | S160: 8.898747892 | T160: -2.250943774 | U160: -2.58316519 | V160: 1.03743291 | X160: -0.001579987122 | Y160: -0.0001790980338 | Z160: 0.001569930914 | AA160: -0.0005443168657 | AB160: -0.0008781140525 | AC160: -0.00161158516
A161: =Control!A88 -> Carterton district | B161: =Control!B88 -> Carterton district | C161: =Control!C88 -> Residential | D161: =Control!D88 -> Carterton districtResidential | F161: 236162000 | G161: 93 | H161: 88451.92771 | J161: 70217.14191 | K161: =K102-K43 -> 996.6567636 | L161: 30305.81651 | M161: -3308.093916 | N161: 1890 | O161: 100101.5213 | Q161: 25.71877553 | R161: 0.3075079851 | S161: 10.81129197 | T161: -1.438927323 | U161: 0 | V161: 35.39864816 | X161: -0.001579987122 | Y161: -0.0001790980338 | Z161: -0.001468702619 | AA161: -0.0005443168657 | AB161: 0 | AC161: -0.004979238393
A162: =Control!A89 -> Carterton district | B162: =Control!B89 -> Carterton district | C162: =Control!C89 -> Rural | D162: =Control!D89 -> Carterton districtRural | F162: 256813000 | G162: 6 | H162: 123559.3204 | J162: 63297.70908 | K162: =K103-K44 -> -396.541122 | L162: 17875.13467 | M162: -3032.083185 | N162: -2072 | O162: 75672.21945 | Q162: 30.2240149 | R162: -0.216872992 | S162: 8.645535206 | T162: -1.488504264 | U162: 0 | V162: 37.16417285 | X162: -0.001579987122 | Y162: -0.0001790980338 | Z162: 0.0003113443585 | AA162: -0.0002038438014 | AB162: 0 | AC162: -0.002275622302
A163: =Control!A90 -> South Wairarapa district | B163: =Control!B90 -> South Wairarapa district | C163: =Control!C90 -> Business | D163: =Control!D90 -> South Wairarapa districtBusiness | F163: 16073798 | G163: -8 | H163: 68935.38495 | J163: 3450.61163 | K163: =K104-K45 -> 0 | L163: 4759.950815 | M163: -1243.692615 | N163: -13.19792202 | O163: 6953.671908 | Q163: 16.88783354 | R163: 0 | S163: 19.39697881 | T163: -3.98619428 | U163: 1.433571593 | V163: 33.73218967 | X163: -0.001012583877 | Y163: 0 | Z163: 0.0004928660709 | AA163: -0.000653131976 | AB163: -0.000722228728 | AC163: -0.00189507851
A164: =Control!A91 -> South Wairarapa district | B164: =Control!B91 -> South Wairarapa district | C164: =Control!C91 -> Residential | D164: =Control!D91 -> South Wairarapa districtResidential | F164: 431077002 | G164: 82 | H164: 126337.4882 | J164: 135261.4001 | K164: =K105-K46 -> 0 | L164: 67183.22067 | M164: -5798.565105 | N164: 1232 | O164: 197878.0557 | Q164: 39.41965957 | R164: 0 | S164: 19.13826666 | T164: -1.842569147 | U164: 0 | V164: 56.71535709 | X164: -0.001012583877 | Y164: 0 | Z164: -0.002515590557 | AA164: -0.000653131976 | AB164: 0 | AC164: -0.005671245315
A165: =Control!A92 -> South Wairarapa district | B165: =Control!B92 -> South Wairarapa district | C165: =Control!C92 -> Rural | D165: =Control!D92 -> South Wairarapa districtRural | F165: 447963300 | G165: -15 | H165: 147270.7477 | J165: 124239.6808 | K165: =K106-K47 -> 0 | L165: 29145.5304 | M165: -3716.74713 | N165: 504 | O165: 150172.4641 | Q165: 41.10590573 | R165: 0 | S165: 9.564179126 | T165: -1.184054517 | U165: 0 | V165: 49.48603033 | X165: -0.001012583877 | Y165: 0 | Z165: 6.81835557e-05 | AA165: -0.0001466561612 | AB165: 0 | AC165: -0.001533683432
A166: =Control!A93 -> Tararua district | B166: =Control!B93 -> Tararua district | C166: =Control!C93 -> Rural | D166: =Control!D93 -> Tararua districtRural | F166: 3954500 | G166: -2 | H166: 508883.3333 | J166: -1.418238552 | K166: =K107-K48 -> 0 | L166: 0 | M166: 0 | N166: 0 | O166: -1.418238552 | Q166: 39.09889084 | R166: 0 | S166: 0 | T166: 0 | U166: 0 | V166: 39.09889084 | X166: -0.0127263936 | Y166: 0 | Z166: 0 | AA166: 0 | AB166: 0 | AC166: -0.01408711033
A167: Region wide | D167: =Control!D94 -> Region wide | F167: 7626050300 | G167: 1475 | H167: 33847.87699 | J167: 4801643.387 | K167: =K108-K49 -> 632310.6846 | L167: 3453281.666 | M167: -978091.35 | N167: 85843.60205 | O167: 7994987.99 | Q167: 22.34628838 | R167: 2.934136054 | S167: 14.81443754 | T167: -4.906845614 | U167: 0.2498022911 | V167: 35.43781865 | X167: 0.001596307 | Y167: 0.0001969955913 | Z167: -0.0007913471439 | AA167: -0.0008728834243 | AB167: -0.0002024843772 | AC167: -7.341235386e-05
A169: By category
A170: Region Wide | C170: =C140 -> Regional CBD | D170: =A170&C170 -> Region WideRegional CBD | F170: =F111-F52 -> 109171500 | G170: -20 | H170: 45950.61872 | J170: =J111-J52 -> 287133.4219 | K170: =K111-K52 -> -83.24296276 | L170: 824998.1965 | M170: -135230.613 | N170: 28893.92365 | O170: 1005711.686 | Q170: =Q111-Q52 -> 90.56614412 | R170: -0.01310641933 | S170: 287.5263202 | T170: -39.762015 | U170: 10.05054094 | V170: 348.3678839
A171: Region Wide | C171: =C141 -> Business | D171: Region WideBusiness | F171: =F112-F53 -> 360356298 | G171: -56 | H171: 53734.70745 | J171: =J112-J53 -> 378245.8972 | K171: =K112-K53 -> 82862.56801 | L171: 449022.1038 | M171: -145372.6321 | N171: 36831.6784 | O171: 801589.6153 | Q171: =Q112-Q53 -> 49.74968016 | R171: 10.87359292 | S171: 59.08000846 | T171: -17.61238577 | U171: 5.455935966 | V171: 107.5468317
A172: Region Wide | C172: =C142 -> Residential | D172: Region WideResidential | F172: =F113-F54 -> 5632781852 | G172: 1719 | H172: 27618.29104 | J172: =J113-J54 -> 3739109.396 | K172: =K113-K54 -> 571598.217 | L172: 2088501.476 | M172: -672938.012 | N172: 24934 | O172: 5751205.076 | Q172: =Q113-Q54 -> 19.66272697 | R172: 3.018300445 | S172: 10.05301409 | T172: -3.897204017 | U172: 0.005427273215 | V172: 28.83683748
A173: Region Wide | C173: =C143 -> Rural | D173: Region WideRural | F173: =F114-F55 -> 1523740650 | G173: -168 | H173: 110529.3005 | J173: =J114-J55 -> 397154.672 | K173: =K114-K55 -> -22066.85739 | L173: 90759.89052 | M173: -24550.09288 | N173: -4816 | O173: 436481.6123 | Q173: =Q114-Q55 -> 29.57928265 | R173: -1.222530915 | S173: 6.680605121 | T173: -1.636127483 | U173: -0.03510130983 | V173: 33.40122937
A174: Region Wide | C174: Total | D174: Region WideTotal | F174: =F115-F56 -> 7626050300 | G174: 1475 | H174: 33847.87699 | J174: =J115-J56 -> 4801643.387 | K174: =K115-K56 -> 632310.6846 | L174: 3453281.666 | M174: -978091.35 | N174: 85843.60205 | O174: 7994987.99 | Q174: =Q115-Q56 -> 22.34628838 | R174: 2.934136054 | S174: 14.81443754 | T174: -4.906845614 | U174: 0.2498022911 | V174: 35.43781865
J177: =IF(ABS(J137-SUM(J128:J136))>tolerance_dollar,1,0) -> 0 | K177: =IF(ABS(K137-SUM(K128:K136))>tolerance_dollar,1,0) -> 0 | L177: 0 | M177: 0 | N177: 0 | O177: 0
J178: =IF(ABS(J167-SUM(J140:J166))>tolerance_dollar,1,0) -> 0 | K178: =IF(ABS(K167-SUM(K140:K166))>tolerance_dollar,1,0) -> 0 | L178: 0 | M178: 0 | N178: 0 | O178: 0
F179: =F167-F137 -> 0 | G179: =G167-G137 -> 0 | J179: =IF(ABS(J167-J137)>tolerance_dollar,1,0) -> 0 | K179: =IF(ABS(K167-K137)>tolerance_dollar,1,0) -> 0 | L179: 0 | M179: 0 | N179: 0 | O179: 0 | Q179: =IF(ABS(Q167-Q137)>tolerance_dollar,1,0) -> 0 | R179: 0 | S179: 0 | T179: 0 | U179: 0 | V179: 0

Sheet Rates Check - ex-KCDC & UHC
A1: Wellington Regional Council
A2: =B5&" Check "&year_current -> Wellington city Check 2018/19
A3: =check_total -> 0
A4: Printed: | B4: =NOW() -> 2018-11-12T16:52:19.590
A5: TA to view | B5: Wellington city
D7: Excluding GST | H7: Including GST
A9: Total
A10: Rate | B10: Categories | D10: Rateable Capital Value | E10: Cents in Dollar | F10: Rates Set | H10: Cents in Dollar | I10: Rates Set
D11: $ | E11: Cents / $ | F11: $ | H11: Cents / $ | I11: $
A12: General rate | B12: District wide | D12: =INDEX(capital_values,MATCH($B$5&B12,capital_values_rows,0),MATCH("CV "&year_current,capital_values_header,0)) -> 51992837451 | E12: =INDEX(Gen!$E$10:$E$19,MATCH(B5,Gen!$A$10:$A$19,0),) -> 0.04432936056 | F12: =+E12*D12/100 -> 23048092.38 | H12: =+E12*(1+GST) -> 0.05097876464 | I12: =+F12*(1+GST) -> 26505306.23
A13: River management rate | B13: District wide | D13: =INDEX(capital_values,MATCH($B$5&B13,capital_values_rows,0),MATCH("CV "&year_current,capital_values_header,0)) -> 51992837451 | E13: =INDEX('River management'!$D$10:$D$19,MATCH(B5,'River management'!$A$10:$A$19,0),) -> 8.208630668e-05 | F13: =+E13*D13/100 -> 42679 | H13: 9.439925268e-05 | I13: 49080.85
A14: Public transport rate | B14: Regional CBD | D14: =IFERROR(INDEX(capital_values,MATCH($B$5&B14,capital_values_rows,0),MATCH("CV "&year_current,capital_values_header,0)),0) -> 7963363000 | E14: =IFERROR(INDEX('Public transport'!$J$23:$J$50,MATCH($B$5&B14,'Public transport'!$D$23:$D$50,0),),0) -> 0.3245383172 | F14: 25844164.27 | H14: 0.3732190647 | I14: 29720788.91
B15: Business | D15: 3896130400 | E15: =IFERROR(INDEX('Public transport'!$J$23:$J$50,MATCH($B$5&B15,'Public transport'!$D$23:$D$50,0),),0) -> 0.03750338637 | F15: 1461180.837 | H15: 0.04312889432 | I15: 1680357.963
B16: Residential | D16: 39537398501 | E16: =IFERROR(INDEX('Public transport'!$J$23:$J$50,MATCH($B$5&B16,'Public transport'!$D$23:$D$50,0),),0) -> 0.034315076 | F16: 13567288.34 | H16: 0.0394623374 | I16: 15602381.59
B17: Rural | D17: 595945550 | E17: =IFERROR(INDEX('Public transport'!$J$23:$J$50,MATCH($B$5&B17,'Public transport'!$D$23:$D$50,0),),0) -> 0.00875901476 | F17: 52198.95869 | H17: 0.01007286697 | I17: 60028.80249
A18: Stadium purposes rate | B18: Regional CBD | D18: 7963363000 | E18: =IFERROR(INDEX(Stadium!$H$23:$H$49,MATCH($B$5&B18,Stadium!$D$23:$D$49,0),),0) -> 0 | F18: 0 | H18: 0 | I18: 0
B19: Business | D19: 3896130400 | E19: =IFERROR(INDEX(Stadium!$H$23:$H$49,MATCH($B$5&B19,Stadium!$D$23:$D$49,0),),0) -> 0 | F19: 0 | H19: 0 | I19: 0
B20: Residential | D20: 39537398501 | E20: =IFERROR(INDEX(Stadium!$H$23:$H$49,MATCH($B$5&B20,Stadium!$D$23:$D$49,0),),0) -> 0 | F20: 0 | H20: 0 | I20: 0
B21: Rural | D21: 595945550 | E21: =IFERROR(INDEX(Stadium!$H$23:$H$49,MATCH($B$5&B21,Stadium!$D$23:$D$49,0),),0) -> 0 | F21: 0 | H21: 0 | I21: 0
A22: Wellington regional strategy rate | B22: Regional CBD | D22: 7963363000 | E22: =IFERROR(INDEX(WRS!$L$23:$L$49,MATCH($B$5&B22,WRS!$D$23:$D$49,0),),0) -> 0.01122554209 | F22: 893930.665 | H22: 0.0129093734 | I22: 1028020.265
B23: Business | D23: 3896130400 | E23: =IFERROR(INDEX(WRS!$L$23:$L$49,MATCH($B$5&B23,WRS!$D$23:$D$49,0),),0) -> 0.01122554209 | F23: 437361.7578 | H23: 0.0129093734 | I23: 502966.0214
A25: Rate | B25: Categories | D25: Number of assessments | E25: Amount per rating unit | F25: Rates Set | H25: Amount per rating unit | I25: Rates Set
D26: # | E26: $ | F26: $ | H26: $ | I26: $
A27: =+A22 -> Wellington regional strategy rate | B27: Residential | D27: =IFERROR(INDEX(WRS!$G$23:$G$49,MATCH($B$5&B27,WRS!$D$23:$D$49,0),),0) -> 71308 | E27: =INDEX(WRS_value,MATCH(B27,WRS_categories,0),) -> 14 | F27: =D27*E27 -> 998312 | H27: =+E27*(1+GST) -> 16.1 | I27: =+F27*(1+GST) -> 1148058.8
B28: Rural | D28: =IFERROR(INDEX(WRS!$G$23:$G$49,MATCH($B$5&B28,WRS!$D$23:$D$49,0),),0) -> 781 | E28: =INDEX(WRS_value,MATCH(B28,WRS_categories,0),) -> 28 | F28: =D28*E28 -> 21868 | H28: =+E28*(1+GST) -> 32.2 | I28: =+F28*(1+GST) -> 25148.2
A31: District-Wide Rates | F31: =SUM(F12:F29) -> 66367076.21 | I31: =SUM(I12:I29) -> 76322137.64
A34: Rate | B34: Categories | D34: No of Hectares | E34: Cents Per | F34: Rates | H34: Cents Per | I34: Rates
D35: # | E35: $ | F35: $ | H35: $ | I35: $
A36: Pest management rate | D36: =INDEX(Pest!$B$10:$B$18,MATCH(B5,Pest!$A$10:$A$18,0),) -> 34055 | E36: =INDEX(Pest!$C$10:$C$18,MATCH(B5,Pest!$A$10:$A$18,0),) -> 0.8668236668 | F36: =+D36*E36 -> 29519.67997 | H36: =+E36*(1+GST) -> 0.9968472168 | I36: =+F36*(1+GST) -> 33947.63197
A39: Rate | B39: Categories | D39: Rateable Capital Value or Land Value | E39: Cents in Dollar | F39: Rates Set | H39: Cents in Dollar | I39: Rates Set
D40: $ | E40: Cents / $ | F40: $ | H40: Cents / $ | I40: $
A41: Greytown river management rate | B41: Greytown Urban -CV | D41: =INDEX('Capital values'!$E$48:$F$49,MATCH(B41,'Capital values'!$A$48:$A$49,0),MATCH("CV "&year_current,capital_values_header,0)) -> 739130000 | E41: =IF($B$5="South Wairarapa District",INDEX('River management'!$D$29:$D$30,MATCH(A41,'River management'!$A$29:$A$30,0),),0) -> 0 | F41: =+E41*D41/100 -> 0 | H41: =+E41*(1+GST) -> 0 | I41: =+F41*(1+GST) -> 0
A42: Donalds Creek stopbank river management rate | B42: Featherston Urban - LV | D42: =INDEX('Capital values'!$E$48:$F$49,MATCH(B42,'Capital values'!$A$48:$A$49,0),MATCH("CV "&year_current,capital_values_header,0)) -> 162213500 | E42: =IF($B$5="South Wairarapa District",INDEX('River management'!$D$29:$D$30,MATCH(A42,'River management'!$A$29:$A$30,0),),0) -> 0 | F42: 0 | H42: =+E42*(1+GST) -> 0 | I42: =+F42*(1+GST) -> 0
A45: Total regional rates (excl special rates) | F45: =SUM(F31:F44) -> 66396595.89 | I45: =SUM(I31:I44) -> 76356085.27
A47: Check | F47: =INDEX('Comparison - TA'!$B$43:$L$43,,MATCH(B5,'Comparison - TA'!$B$29:$L$29,0))-F45 -> 0

Sheet Rates Check - UHC
A1: Wellington Regional Council
A2: =B5&" Check "&year_current -> Upper Hutt city Check 2018/19
A3: =check_total -> 0
A4: Printed: | B4: =NOW() -> 2018-11-12T16:52:19.590
A5: TA to view | B5: Upper Hutt city
D7: Excluding GST | H7: Including GST
A10: Rate | B10: Categories | D10: Rateable Capital Value | E10: Cents in Dollar | F10: Rates Set | H10: Cents in Dollar | I10: Rates Set
D11: $ | E11: Cents / $ | F11: $ | H11: Cents / $ | I11: $
A12: General rate | B12: District wide | D12: ='UHCC Adjustments'!$D$20 -> 8098656260 | E12: =Gen!E24 -> 0.03752277891 | F12: =+E12*D12/100 -> 3038840.883 | H12: =+E12*(1+GST) -> 0.04315119575 | I12: 3494667.016
A13: River management rate | B13: District wide | D13: ='UHCC Adjustments'!$D$20 -> 8098656260 | E13: ='River management'!D24 -> 0.008166419283 | F13: =+E13*D13/100 -> 661370.2265 | H13: 0.009391382176 | I13: 760575.7605
A14: Public transport rate | B14: Regional CBD | D14: 0 | E14: 0 | F14: 0 | H14: 0 | I14: 0
B15: Business | D15: ='UHCC Adjustments'!D16 -> 1118351500 | E15: ='Public transport'!J55 -> 0.06194108662 | F15: 692719.0713 | H15: 0.07123224961 | I15: 796626.932
B16: Residential | D16: ='UHCC Adjustments'!D17 -> 6130268420 | E16: ='Public transport'!J57 -> 0.06054997257 | F16: 3711875.847 | H16: 0.06963246846 | I16: 4268657.224
B17: Rural | D17: ='UHCC Adjustments'!D18 -> 850036340 | E17: ='Public transport'!J59 -> 0.01536624304 | F17: 130618.65 | H17: 0.0176711795 | I17: 150211.4475
A18: Stadium purposes rate | B18: Regional CBD | D18: 0 | E18: 0 | F18: 0 | H18: 0 | I18: 0
B19: Business | D19: ='UHCC Adjustments'!D16 -> 1118351500 | E19: =Stadium!H55 -> 0 | F19: 0 | H19: 0 | I19: 0
B20: Residential | D20: ='UHCC Adjustments'!D17 -> 6130268420 | E20: =Stadium!H57 -> 0 | F20: 0 | H20: 0 | I20: 0
B21: Rural | D21: ='UHCC Adjustments'!D18 -> 850036340 | E21: =Stadium!H59 -> 0 | F21: 0 | H21: 0 | I21: 0
A22: Wellington regional strategy rate | B22: Regional CBD | D22: 0 | E22: =IFERROR(INDEX(WRS!$L$23:$L$49,MATCH($B$5&B22,WRS!$D$23:$D$49,0),),0) -> 0 | F22: 0 | H22: 0 | I22: 0
B23: Business | D23: ='UHCC Adjustments'!D16 -> 1118351500 | E23: =IFERROR(INDEX(WRS!$L$23:$L$49,MATCH($B$5&B23,WRS!$D$23:$D$49,0),),0) -> 0.009480988565 | F23: 106030.7778 | H23: 0.01090313685 | I23: 121935.3945
A25: Rate | B25: Categories | D25: Number of assessments | E25: Amount per rating unit | F25: Rates Set | H25: Amount per rating unit | I25: Rates Set
D26: # | E26: $ | F26: $ | H26: $ | I26: $
A27: =+A22 -> Wellington regional strategy rate | B27: Residential | D27: =IFERROR(INDEX(WRS!$G$23:$G$49,MATCH($B$5&B27,WRS!$D$23:$D$49,0),),0) -> 14780 | E27: =INDEX(WRS_value,MATCH(B27,WRS_categories,0),) -> 14 | F27: =D27*E27 -> 206920 | H27: =+E27*(1+GST) -> 16.1 | I27: =+F27*(1+GST) -> 237958
B28: Rural | D28: =IFERROR(INDEX(WRS!$G$23:$G$49,MATCH($B$5&B28,WRS!$D$23:$D$49,0),),0) -> 1172 | E28: =INDEX(WRS_value,MATCH(B28,WRS_categories,0),) -> 28 | F28: =D28*E28 -> 32816 | H28: =+E28*(1+GST) -> 32.2 | I28: =+F28*(1+GST) -> 37738.4
A31: District-Wide Rates | F31: =SUM(F12:F29) -> 8581191.456 | I31: =SUM(I12:I29) -> 9868370.174
A34: Rate | B34: Categories | D34: No of Hectares | E34: Cents Per | F34: Rates | H34: Cents Per | I34: Rates
D35: # | E35: $ | F35: $ | H35: $ | I35: $
A36: Pest management rate | D36: =INDEX(Pest!$B$10:$B$18,MATCH(B5,Pest!$A$10:$A$18,0),) -> 54326.2119 | E36: =INDEX(Pest!$C$10:$C$18,MATCH(B5,Pest!$A$10:$A$18,0),) -> 0.8668236668 | F36: =+D36*E36 -> 47091.2462 | H36: =+E36*(1+GST) -> 0.9968472168 | I36: =+F36*(1+GST) -> 54154.93313
A39: Total regional rates (excl special rates) | F39: =SUM(F31:F38) -> 8628282.702 | I39: =SUM(I31:I38) -> 9922525.107
A43: Trentham Military Camp
A44: Rate | B44: Categories | D44: Rateable Capital Value | E44: Cents in Dollar | F44: Rates Set | H44: Cents in Dollar | I44: Rates Set
D45: $ | E45: Cents / $ | F45: $ | H45: Cents / $ | I45: $
A46: General rate | B46: Trentham Military Camp | D46: =Gen!B23 -> 87721000 | E46: =IF(B5="Upper Hutt City",Gen!E23,0) -> 0.02981311494 | F46: =+E46*D46/100 -> 26152.36256 | H46: =+E46*(1+GST) -> 0.03428508218 | I46: 30075.21694
A47: River management rate | B47: Trentham Military Camp | D47: ='River management'!B23 -> 87721000 | E47: =IF(B5="Upper Hutt City",'River management'!D23,0) -> 0.006488495891 | F47: 5691.77348 | H47: 0.007461770274 | I47: 6545.539502
A48: Public transport rate | B48: Business | D48: ='Public transport'!E54 -> 56325000 | E48: =IF(B5="Upper Hutt City",'Public transport'!J54,0) -> 0.08763397778 | F48: 49359.83798 | H48: 0.1007790744 | I48: 56763.81368
B49: Residential | D49: ='Public transport'!E56 -> 26720000 | E49: =IF(B5="Upper Hutt City",'Public transport'!J56,0) -> 0.04447882972 | F49: 11884.7433 | H49: 0.05115065418 | I49: 13667.4548
B50: Rural | D50: ='Public transport'!E58 -> 4676000 | E50: =IF(B5="Upper Hutt City",'Public transport'!J58,0) -> 0.0181360566 | F50: 848.0420067 | H50: 0.02085646509 | I50: 975.2483077
A51: Stadium purposes Rate | B51: Business | D51: =Stadium!F54 -> 56325000 | E51: =IF(B5="Upper Hutt City",Stadium!H54,0) -> 0 | F51: 0 | H51: 0 | I51: 0
B52: Residential | D52: =Stadium!F56 -> 26720000 | E52: =IF(B5="Upper Hutt City",Stadium!H56,0) -> 0 | F52: 0 | H52: 0 | I52: 0
B53: Rural | D53: =Stadium!F58 -> 4676000 | E53: =IF(B5="Upper Hutt City",Stadium!H58,0) -> 0 | F53: 0 | H53: 0 | I53: 0
A54: Wellington regional strategy rate | B54: Business | D54: ='UHCC Adjustments'!D9 -> 56325000 | E54: =IF(B5="Upper Hutt City",WRS!L30,0) -> 0.009480988565 | F54: 5340.166809 | H54: 0.01090313685 | I54: 6141.19183
B55: No change for residential or rural as it is a fixed charge per property
A56: Trentham Military Camp | F56: =SUM(F46:F55) -> 99276.92614 | I56: =SUM(I46:I55) -> 114168.4651
A58: Check | F58: =ROUND(INDEX('Comparison - TA'!$B$43:$L$43,,MATCH(B5,'Comparison - TA'!$B$29:$L$29,0))-F39-F56,0) -> 0

Sheet Rates Check - KCDC
A1: Wellington Regional Council
A2: =B5&" Check "&year_current -> Kāpiti Coast district Check 2018/19
A3: =check_total -> 0
A4: Printed: | B4: =NOW() -> 2018-11-12T16:52:19.590
A5: TA to view | B5: Kāpiti Coast district
D7: Excluding GST | H7: Including GST
A9: Total
A10: Rate | B10: Categories | D10: Rateable Capital Value | E10: Cents in Dollar | F10: Rates Set | H10: Cents in Dollar | I10: Rates Set
D11: $ | E11: Cents / $ | F11: $ | H11: Cents / $ | I11: $
A12: General rate | B12: District wide | D12: =INDEX(capital_values,MATCH($B$5&B12,capital_values_rows,0),MATCH("CV "&year_current,capital_values_header,0)) -> 14770315600 | E12: =INDEX(Gen!$E$10:$E$19,MATCH(B5,Gen!$A$10:$A$19,0),) -> 0.03320804595 | F12: =+E12*D12/100 -> 4904933.192 | H12: =+E12*(1+GST) -> 0.03818925285 | I12: 5640673.171
A13: River management rate | B13: District wide | D13: =INDEX(capital_values,MATCH($B$5&B13,capital_values_rows,0),MATCH("CV "&year_current,capital_values_header,0)) -> 14770315600 | E13: =INDEX('River management'!$D$10:$D$19,MATCH(B5,'River management'!$A$10:$A$19,0),) -> 0.009040937487 | F13: =+E13*D13/100 -> 1335375 | H13: 0.01039707811 | I13: 1535681.25
A14: Public transport rate | B14: Regional CBD | D14: =IFERROR(INDEX(capital_values,MATCH($B$5&B14,capital_values_rows,0),MATCH("CV "&year_current,capital_values_header,0)),0) -> 0 | E14: =IFERROR(INDEX('Public transport'!$J$23:$J$52,MATCH($B$5&B14,'Public transport'!$D$23:$D$52,0),),0) -> 0 | F14: 0 | H14: 0 | I14: 0
B15: Business | D15: 1479149500 | E15: =IFERROR(INDEX('Public transport'!$J$23:$J$52,MATCH($B$5&B15,'Public transport'!$D$23:$D$52,0),),0) -> 0.0293769847 | F15: 434529.5224 | H15: 0.03378353241 | I15: 499708.9507
B16: Residential - excl-Otaki | D16: =IFERROR(INDEX(capital_values,MATCH("Kāpiti Coast district excl Ōtaki Residential",capital_values_rows,0),MATCH("CV "&year_current,capital_values_header,0)),0) -> 10219999500 | E16: =IFERROR(INDEX('Public transport'!$J$23:$J$52,MATCH("Kāpiti Coast district excl Ōtaki Residential",'Public transport'!$D$23:$D$52,0),),0) -> 0.02698855509 | F16: 2758230.196 | H16: 0.03103683836 | I16: 3171964.725
B17: Residential - Otaki | D17: =IFERROR(INDEX(capital_values,MATCH("Ōtaki rating areaResidential",capital_values_rows,0),MATCH("CV "&year_current,capital_values_header,0)),0) -> 1104760900 | E17: =IFERROR(INDEX('Public transport'!$J$23:$J$52,MATCH("Ōtaki rating areaResidential",'Public transport'!$D$23:$D$52,0),),0) -> 0.02400301808 | F17: 265175.9586 | H17: =+E17*(1+GST) -> 0.02760347079 | I17: =+F17*(1+GST) -> 304952.3524
B18: Rural | D18: 1966405700 | E18: =IFERROR(INDEX('Public transport'!$J$23:$J$52,MATCH($B$5&B18,'Public transport'!$D$23:$D$52,0),),0) -> 0.006930150177 | F18: 136274.8681 | H18: =+E18*(1+GST) -> 0.007969672704 | I18: =+F18*(1+GST) -> 156716.0983
A19: Stadium purposes rate | B19: Regional CBD | D19: 0 | E19: =IFERROR(INDEX(Stadium!$H$23:$H$49,MATCH($B$5&B19,Stadium!$D$23:$D$49,0),),0) -> 0 | F19: 0 | H19: 0 | I19: 0
B20: Business | D20: 1479149500 | E20: =IFERROR(INDEX(Stadium!$H$23:$H$49,MATCH($B$5&B20,Stadium!$D$23:$D$49,0),),0) -> 0 | F20: 0 | H20: 0 | I20: 0
B21: Residential - excl-Otaki | D21: =IFERROR(INDEX(capital_values,MATCH("Kāpiti Coast district excl Ōtaki Residential",capital_values_rows,0),MATCH("CV "&year_current,capital_values_header,0)),0) -> 10219999500 | E21: =IFERROR(INDEX(Stadium!$H$23:$H$49,MATCH("Kāpiti Coast district excl Ōtaki Residential",Stadium!$D$23:$D$49,0),),0) -> 0 | F21: 0 | H21: 0 | I21: 0
B22: Residential - Otaki | D22: =IFERROR(INDEX(capital_values,MATCH("Ōtaki rating areaResidential",capital_values_rows,0),MATCH("CV "&year_current,capital_values_header,0)),0) -> 1104760900 | E22: =IFERROR(INDEX(Stadium!$H$23:$H$49,MATCH("Ōtaki rating areaResidential",Stadium!$D$23:$D$49,0),),0) -> 0 | F22: =+E22*D22/100 -> 0 | H22: =+E22*(1+GST) -> 0 | I22: =+F22*(1+GST) -> 0
B23: Rural | D23: 1966405700 | E23: =IFERROR(INDEX(Stadium!$H$23:$H$49,MATCH($B$5&B23,Stadium!$D$23:$D$49,0),),0) -> 0 | F23: 0 | H23: 0 | I23: 0
A24: Wellington regional strategy rate | B24: Regional CBD | D24: 0 | E24: =IFERROR(INDEX(WRS!$L$23:$L$49,MATCH($B$5&B24,WRS!$D$23:$D$49,0),),0) -> 0 | F24: 0 | H24: 0 | I24: 0
B25: Business | D25: 1479149500 | E25: =IFERROR(INDEX(WRS!$L$23:$L$49,MATCH($B$5&B25,WRS!$D$23:$D$49,0),),0) -> 0.008409287045 | F25: 124385.9273 | H25: 0.009670680102 | I25: 143043.8164
A27: Rate | B27: Categories | D27: Number of assessments | E27: Amount per rating unit | F27: Rates Set | H27: Amount per rating unit | I27: Rates Set
D28: # | E28: $ | F28: $ | H28: $ | I28: $
A29: =+A24 -> Wellington regional strategy rate | B29: Residential | D29: =SUMIFS(WRS!$G$23:$G$49,WRS!$A$23:$A$49,$B$5,WRS!$C$23:$C$49,$B29) -> 20824 | E29: =F29/D29 -> 14 | F29: =SUMIFS(WRS!$K$23:$K$49,WRS!$A$23:$A$49,$B$5,WRS!$C$23:$C$49,$B29) -> 291536 | H29: =+E29*(1+GST) -> 16.1 | I29: 335266.4
B30: Rural | D30: =SUMIFS(WRS!$G$23:$G$49,WRS!$A$23:$A$49,$B$5,WRS!$C$23:$C$49,$B30) -> 2486 | E30: =F30/D30 -> 28 | F30: =SUMIFS(WRS!$K$23:$K$49,WRS!$A$23:$A$49,$B$5,WRS!$C$23:$C$49,$B30) -> 69608 | H30: 32.2 | I30: 80049.2
A33: District-Wide Rates | F33: =SUM(F12:F31) -> 10320048.66 | I33: =SUM(I12:I31) -> 11868055.96
A36: Rate | B36: Categories | D36: No of Hectares | E36: Cents Per | F36: Rates | H36: Cents Per | I36: Rates
D37: # | E37: $ | F37: $ | H37: $ | I37: $
A38: Pest management rate | D38: =INDEX(Pest!$B$10:$B$18,MATCH(B5,Pest!$A$10:$A$18,0),) -> 29205.9985 | E38: =INDEX(Pest!$C$10:$C$18,MATCH(B5,Pest!$A$10:$A$18,0),) -> 0.8668236668 | F38: =+D38*E38 -> 25316.45071 | H38: =+E38*(1+GST) -> 0.9968472168 | I38: =+F38*(1+GST) -> 29113.91832
A41: Total regional rates (excl special rates) | F41: =SUM(F33:F40) -> 10345365.11 | I41: =SUM(I33:I40) -> 11897169.88
A43: Check | F43: =INDEX('Comparison - TA'!$B$43:$L$43,,MATCH(B5,'Comparison - TA'!$B$29:$L$29,0))-F41 -> 0

Sheet Checks
A1: Wellington Regional Council
A2: Value checks
A3: =check_total -> 0
A5: Tab/component | B5: Check | D5: Check notes
A7: OVERALL | B7: =SUM(B9:B47) -> 0 | D7: checked ok
A10: Capital values tab
A11: Populated | B11: =SUM('Capital values'!J8:K140) -> 0
A12: TA total matches category
A13: Capital values | B13: =SUM('Capital values'!E51:F51) -> 0
A14: No. of Assessments (#) | B14: =SUM('Capital values'!E97:F97) -> 0
A15: Number of Assessments Contiguous for WRS | B15: =SUM('Capital values'!E143:F143) -> 0
A17: Rate model checks
A18: General rate | B18: =SUM(Gen!B28:D29) -> 0
A19: River management rate | B19: =SUM('River management'!B34:C36) -> 0
A20: Stadium rate | B20: =SUM(Stadium!E63:G66) -> 0
A21: Wellington regional strategy rate | B21: =SUM(WRS!E52:K54) -> 0
A22: Public transport rate | B22: =SUM('Public transport'!E63:I66) -> 0
A23: Pest management rate | B23: =SUM(Pest!B21:D21) -> 0
A24: Water Levy | B24: =SUM('Water levy'!B21:C21) -> 0
A25: Class rates - schemes | B25: =SUM('Class Rates'!B141:H141) -> 0
A27: Comparison - TA | B27: =SUM('Comparison - TA'!M7:M68) -> 0
A29: Comparison - category
A30: Previous year | B30: =SUM('Comparison - Category'!F59:V61) -> 0
A31: Current year | B31: =SUM('Comparison - Category'!F118:V120) -> 0
A32: Delta | B32: =SUM('Comparison - Category'!F177:V179) -> 0
A34: Rates check
A35: ex-KCDC & UHC | B35: ='Rates Check - ex-KCDC & UHC'!F47 -> 0
A36: UHC | B36: ='Rates Check - UHC'!F58 -> 0
A37: KCDC | B37: ='Rates Check - KCDC'!F43 -> 0
A39: Rates
A40: 1 | B40: =SUM('1'!J19:K42) -> 0
A41: 2 | B41: =SUM('2'!J21:K40) -> 0
A42: 3 - changes | B42: =SUM('3'!V14:Y39) -> 0
A43: 3 - inputs | B43: =SUM('3'!V64:V124) -> 0
A44: 4 | B44: =SUM('4'!T16:U24) -> 0
A45: 5 | B45: =SUM('5'!P20:Q42) -> 0
A46: Impact for annual plan | B46: =Impact!L258+Impact!L262 -> 0

Sheet >>Rates

Sheet 1
A1: Summary of Rates and Water Levies
A3: Rates for Greater Wellington are mostly allocated to ratepayers on the basis of their capital values. Within the region, different territorial authorities undertake general revaluations at different times. To equalise the values, each year Council gets Quotable Value or another registered valuer to estimate the projected valuations of all the rateable land in the districts within the region. This means that rates are assessed on a consistent valuation basis, regardless of the timing of individual territorial authority revaluations.
A4: The summary information in this section should be read in conjunction with the Funding Impact Statement and the Revenue and Financing policy.
A5: All figures on this page exclude GST.
A6: ="This table shows the rates and levies for GWRC in "&year_current&", with the changes from last year "&year_previous&". Rates comprise the general rate and various targeted rates. GWRC also charges a water supply levy directly to the four city councils in the region, and they set their own rates to cover the cost of this levy." -> This table shows the rates and levies for GWRC in 2018/19, with the changes from last year 2017/18. Rates comprise the general rate and various targeted rates. GWRC also charges a water supply levy directly to the four city councils in the region, and they set their own rates to cover the cost of this levy.
A8: ="The total rate increase in regional rates for "&year_current&" is "&ROUND(E34*100,1)&"%. The water supply levy, which is charged to the four metropolitan city councils is proposed to increase by "&ROUND(E36*100,1)&"% compared to 2017/18. When the water supply levy is included, Greater Wellington Regional Council's overall increase is "&ROUND(E38*100,1)&"%" -> The total rate increase in regional rates for 2018/19 is 6.7%. The water supply levy, which is charged to the four metropolitan city councils is proposed to increase by 7.1% compared to 2017/18. When the water supply levy is included, Greater Wellington Regional Council's overall increase is 6.8%
A10: Summary of rates and levies
B11: =year_previous -> 2017/18 | C11: =year_current -> 2018/19
B12: Plan | C12: Plan | D12: Change | E12: Change
B13: $000s | C13: $000s | D13: $000s | E13: % | G13: Row lookup | H13: Column lookup
A14: General rates
A15: =ESSbase!C38 -> Catchment Management (excluding forests) | B15: =ESSbase!F38/1000 -> 21662.71948 | C15: =ESSbase!G38/1000 -> 22664.84533 | D15: =C15-B15 -> 1002.125855 | E15: =ROUND(D15/B15,4) -> 0.0463
A16: Other | B16: =ESSbase!F43/1000-SUM(B15,B17:B18) -> 25441.15385 | C16: =ESSbase!G43/1000-SUM(C15,C17:C18) -> 27399.39315 | D16: 1958.239298 | E16: =ROUND(D16/B16,4) -> 0.077
A17: =ESSbase!C39 -> Strategy Group | B17: =ESSbase!F39/1000 -> 5273.359228 | C17: =ESSbase!G39/1000 -> 6358.568064 | D17: 1085.208836 | E17: =ROUND(D17/B17,4) -> 0.2058
A18: =ESSbase!C41 -> Investment Management. | B18: =ESSbase!F41/1000 -> -9897.893768 | C18: =ESSbase!G41/1000 -> -9139.492638 | D18: 758.4011302 | E18: =-ROUND(D18/B18,4) -> 0.0766
A19: General rate | B19: =INDEX('Comparison - TA'!$B$7:$L$24,MATCH(G19,'Comparison - TA'!$A$7:$A$24,0),MATCH(H19,'Comparison - TA'!$B$6:$L$6,0))/1000 -> 42481.67052 | C19: =INDEX('Comparison - TA'!$B$30:$L$47,MATCH(G19,'Comparison - TA'!$A$30:$A$47,0),MATCH(H19,'Comparison - TA'!$B$29:$L$29,0))/1000 -> 47283.31391 | D19: 4801.643387 | E19: =ROUND(D19/B19,4) -> 0.113 | G19: General rate | H19: Region wide | J19: =INDEX(ess_base_estract,MATCH($A19,ESSbase!$B$8:$B$25,0),MATCH(B$11,ESSbase!$F$6:$G$6,0))/1000-B19 -> 0 | K19: =INDEX(ess_base_estract,MATCH($A19,ESSbase!$B$8:$B$25,0),MATCH(C$11,ESSbase!$F$6:$G$6,0))/1000-C19 -> 0
A21: Targeted rates
A22: Region wide targeted rates1
A23: River management rate | B23: =INDEX('Comparison - TA'!$B$7:$L$24,MATCH(G23,'Comparison - TA'!$A$7:$A$24,0),MATCH(H23,'Comparison - TA'!$B$6:$L$6,0))/1000 -> 5826.660417 | C23: =INDEX('Comparison - TA'!$B$30:$L$47,MATCH(G23,'Comparison - TA'!$A$30:$A$47,0),MATCH(H23,'Comparison - TA'!$B$29:$L$29,0))/1000 -> 6458.970807 | D23: =C23-B23 -> 632.3103897 | E23: =ROUND(D23/B23,4) -> 0.1085 | G23: River management rate | H23: Region wide | J23: =INDEX(ess_base_estract,MATCH($A23,ESSbase!$B$8:$B$25,0),MATCH(B$11,ESSbase!$F$6:$G$6,0))/1000-B23 -> 0 | K23: =INDEX(ess_base_estract,MATCH($A23,ESSbase!$B$8:$B$25,0),MATCH(C$11,ESSbase!$F$6:$G$6,0))/1000-C23 -> 0
A24: Public transport rate | B24: =INDEX('Comparison - TA'!$B$7:$L$24,MATCH(G24,'Comparison - TA'!$A$7:$A$24,0),MATCH(H24,'Comparison - TA'!$B$6:$L$6,0))/1000 -> 64656.39613 | C24: =INDEX('Comparison - TA'!$B$30:$L$47,MATCH(G24,'Comparison - TA'!$A$30:$A$47,0),MATCH(H24,'Comparison - TA'!$B$29:$L$29,0))/1000 -> 68109.67779 | D24: 3453.281666 | E24: =ROUND(D24/B24,4) -> 0.0534 | G24: Public transport rate | H24: Region wide | J24: =INDEX(ess_base_estract,MATCH($A24,ESSbase!$B$8:$B$25,0),MATCH(B$11,ESSbase!$F$6:$G$6,0))/1000-B24 -> 0 | K24: =INDEX(ess_base_estract,MATCH($A24,ESSbase!$B$8:$B$25,0),MATCH(C$11,ESSbase!$F$6:$G$6,0))/1000-C24 -> 0
A25: Stadium purposes rate | B25: =INDEX('Comparison - TA'!$B$7:$L$24,MATCH(G25,'Comparison - TA'!$A$7:$A$24,0),MATCH(H25,'Comparison - TA'!$B$6:$L$6,0))/1000 -> 978.09135 | C25: =INDEX('Comparison - TA'!$B$30:$L$47,MATCH(G25,'Comparison - TA'!$A$30:$A$47,0),MATCH(H25,'Comparison - TA'!$B$29:$L$29,0))/1000 -> 0 | D25: -978.09135 | E25: -1 | G25: Stadium purposes rate | H25: Region wide | J25: =INDEX(ess_base_estract,MATCH($A25,ESSbase!$B$8:$B$25,0),MATCH(B$11,ESSbase!$F$6:$G$6,0))/1000-B25 -> 0 | K25: =INDEX(ess_base_estract,MATCH($A25,ESSbase!$B$8:$B$25,0),MATCH(C$11,ESSbase!$F$6:$G$6,0))/1000-C25 -> 0
A26: Wellington regional strategy rate | B26: =INDEX('Comparison - TA'!$B$7:$L$24,MATCH(G26,'Comparison - TA'!$A$7:$A$24,0),MATCH(H26,'Comparison - TA'!$B$6:$L$6,0))/1000 -> 4822.017219 | C26: =INDEX('Comparison - TA'!$B$30:$L$47,MATCH(G26,'Comparison - TA'!$A$30:$A$47,0),MATCH(H26,'Comparison - TA'!$B$29:$L$29,0))/1000 -> 4907.860821 | D26: 85.84360205 | E26: 0.0178 | G26: Wellington regional strategy rate | H26: Region wide | J26: =INDEX(ess_base_estract,MATCH($A26,ESSbase!$B$8:$B$25,0),MATCH(B$11,ESSbase!$F$6:$G$6,0))/1000-B26 -> 0 | K26: =INDEX(ess_base_estract,MATCH($A26,ESSbase!$B$8:$B$25,0),MATCH(C$11,ESSbase!$F$6:$G$6,0))/1000-C26 -> 0
A28: Specific area targeted rates:
A29: Pest management rate | B29: =INDEX('Comparison - TA'!$B$7:$L$24,MATCH(G29,'Comparison - TA'!$A$7:$A$24,0),MATCH(H29,'Comparison - TA'!$B$6:$L$6,0))/1000 -> 472 | C29: =INDEX('Comparison - TA'!$B$30:$L$47,MATCH(G29,'Comparison - TA'!$A$30:$A$47,0),MATCH(H29,'Comparison - TA'!$B$29:$L$29,0))/1000 -> 532 | D29: =C29-B29 -> 60 | E29: =ROUND(D29/B29,4) -> 0.1271 | G29: Pest management rate | H29: Region wide | J29: =INDEX(ess_base_estract,MATCH($A29,ESSbase!$B$8:$B$25,0),MATCH(B$11,ESSbase!$F$6:$G$6,0))/1000-B29 -> 0 | K29: =INDEX(ess_base_estract,MATCH($A29,ESSbase!$B$8:$B$25,0),MATCH(C$11,ESSbase!$F$6:$G$6,0))/1000-C29 -> 0
A30: South Wairarapa district – river rates | B30: =INDEX('Comparison - TA'!$B$7:$L$24,MATCH(G30,'Comparison - TA'!$A$7:$A$24,0),MATCH(H30,'Comparison - TA'!$B$6:$L$6,0))/1000 -> 93.29736 | C30: =INDEX('Comparison - TA'!$B$30:$L$47,MATCH(G30,'Comparison - TA'!$A$30:$A$47,0),MATCH(H30,'Comparison - TA'!$B$29:$L$29,0))/1000 -> 95.164 | D30: =C30-B30 -> 1.86664 | E30: =ROUND(D30/B30,4) -> 0.02 | G30: River management rate - Non district wide | H30: Region wide | J30: =INDEX(ess_base_estract,MATCH($G30,ESSbase!$B$8:$B$25,0),MATCH(B$11,ESSbase!$F$6:$G$6,0))/1000-B30 -> 0 | K30: =INDEX(ess_base_estract,MATCH($G30,ESSbase!$B$8:$B$25,0),MATCH(C$11,ESSbase!$F$6:$G$6,0))/1000-C30 -> 0
A31: Wairarapa scheme and stopbank rates | B31: =INDEX('Comparison - TA'!$B$7:$L$24,MATCH(G31,'Comparison - TA'!$A$7:$A$24,0),MATCH(H31,'Comparison - TA'!$B$6:$L$6,0))/1000 -> 1451.756116 | C31: =INDEX('Comparison - TA'!$B$30:$L$47,MATCH(G31,'Comparison - TA'!$A$30:$A$47,0),MATCH(H31,'Comparison - TA'!$B$29:$L$29,0))/1000 -> 1487.363 | D31: 35.606884 | E31: 0.0245 | G31: Special Rates | H31: Region wide | J31: =INDEX(ess_base_estract,MATCH($G31,ESSbase!$B$8:$B$25,0),MATCH(B$11,ESSbase!$F$6:$G$6,0))/1000-B31 -> 0 | K31: =INDEX(ess_base_estract,MATCH($G31,ESSbase!$B$8:$B$25,0),MATCH(C$11,ESSbase!$F$6:$G$6,0))/1000-C31 -> 0
A32: Total targeted rates 2 | B32: =SUM(B23:B31) -> 78300.21859 | C32: =SUM(C23:C31) -> 81591.03642 | D32: =SUM(D23:D31) -> 3290.817832 | E32: =ROUND(D32/B32,4) -> 0.042
A34: Total regional rates | B34: =INDEX('Comparison - TA'!$B$7:$L$24,MATCH(G34,'Comparison - TA'!$A$7:$A$24,0),MATCH(H34,'Comparison - TA'!$B$6:$L$6,0))/1000 -> 120781.8891 | C34: =INDEX('Comparison - TA'!$B$30:$L$47,MATCH(G34,'Comparison - TA'!$A$30:$A$47,0),MATCH(H34,'Comparison - TA'!$B$29:$L$29,0))/1000 -> 128874.3503 | D34: =C34-B34 -> 8092.461219 | E34: =ROUND(D34/B34,6) -> 0.067001 | G34: Total Regnl Rates | H34: Region wide | J34: =INDEX(ess_base_estract,MATCH($G34,ESSbase!$B$8:$B$25,0),MATCH(B$11,ESSbase!$F$6:$G$6,0))/1000-B34 -> 0 | K34: =INDEX(ess_base_estract,MATCH($G34,ESSbase!$B$8:$B$25,0),MATCH(C$11,ESSbase!$F$6:$G$6,0))/1000-C34 -> 0
A36: Water supply levy | B36: =INDEX('Comparison - TA'!$B$7:$L$24,MATCH(G36,'Comparison - TA'!$A$7:$A$24,0),MATCH(H36,'Comparison - TA'!$B$6:$L$6,0))/1000 -> 30862.76544 | C36: =INDEX('Comparison - TA'!$B$30:$L$47,MATCH(G36,'Comparison - TA'!$A$30:$A$47,0),MATCH(H36,'Comparison - TA'!$B$29:$L$29,0))/1000 -> 33068.89804 | D36: =C36-B36 -> 2206.132603 | E36: =ROUND(D36/B36,6) -> 0.071482 | G36: Bulk Water Levies | H36: Region wide | J36: =INDEX(ess_base_estract,MATCH($G36,ESSbase!$B$8:$B$25,0),MATCH(B$11,ESSbase!$F$6:$G$6,0))/1000-B36 -> 0 | K36: =INDEX(ess_base_estract,MATCH($G36,ESSbase!$B$8:$B$25,0),MATCH(C$11,ESSbase!$F$6:$G$6,0))/1000-C36 -> 0
A38: Total regional rates and levies | B38: =INDEX('Comparison - TA'!$B$7:$L$24,MATCH(G38,'Comparison - TA'!$A$7:$A$24,0),MATCH(H38,'Comparison - TA'!$B$6:$L$6,0))/1000 -> 151644.6545 | C38: =INDEX('Comparison - TA'!$B$30:$L$47,MATCH(G38,'Comparison - TA'!$A$30:$A$47,0),MATCH(H38,'Comparison - TA'!$B$29:$L$29,0))/1000 -> 161943.2484 | D38: =C38-B38 -> 10298.59382 | E38: =ROUND(D38/B38,6) -> 0.067913 | G38: Total Regnl Rates & levies | H38: Region wide | J38: =INDEX(ess_base_estract,MATCH($G38,ESSbase!$B$8:$B$25,0),MATCH(B$11,ESSbase!$F$6:$G$6,0))/1000-B38 -> 0 | K38: =INDEX(ess_base_estract,MATCH($G38,ESSbase!$B$8:$B$25,0),MATCH(C$11,ESSbase!$F$6:$G$6,0))/1000-C38 -> 0
A40: Warm Greater Wellington rates 3 | B40: =INDEX('Comparison - TA'!$B$7:$L$24,MATCH(G40,'Comparison - TA'!$A$7:$A$24,0),MATCH(H40,'Comparison - TA'!$B$6:$L$6,0))/1000 -> 3181.767 | C40: =INDEX('Comparison - TA'!$B$30:$L$47,MATCH(G40,'Comparison - TA'!$A$30:$A$47,0),MATCH(H40,'Comparison - TA'!$B$29:$L$29,0))/1000 -> 3237.058 | G40: Warm Greater Wellington rate | H40: Region wide | J40: =INDEX(ess_base_estract,MATCH($G40,ESSbase!$B$8:$B$25,0),MATCH(B$11,ESSbase!$F$6:$G$6,0))/1000-B40 -> 0 | K40: =INDEX(ess_base_estract,MATCH($G40,ESSbase!$B$8:$B$25,0),MATCH(C$11,ESSbase!$F$6:$G$6,0))/1000-C40 -> 0
A42: Total rates and levies | B42: =INDEX('Comparison - TA'!$B$7:$L$24,MATCH(G42,'Comparison - TA'!$A$7:$A$24,0),MATCH(H42,'Comparison - TA'!$B$6:$L$6,0))/1000 -> 154826.4215 | C42: =INDEX('Comparison - TA'!$B$30:$L$47,MATCH(G42,'Comparison - TA'!$A$30:$A$47,0),MATCH(H42,'Comparison - TA'!$B$29:$L$29,0))/1000 -> 165180.3064 | G42: Total Rates & Levies | H42: Region wide | J42: =INDEX(ess_base_estract,MATCH($G42,ESSbase!$B$8:$B$25,0),MATCH(B$11,ESSbase!$F$6:$G$6,0))/1000-B42 -> 0 | K42: =INDEX(ess_base_estract,MATCH($G42,ESSbase!$B$8:$B$25,0),MATCH(C$11,ESSbase!$F$6:$G$6,0))/1000-C42 -> 0
A45: 1 Region-wide rates are charged to all ratepayers in the region. They exclude targeted rates for pest management, Wairarapa river and drainage schemes, and "Warm Greater Wellington", because those rates only apply to highly specific ratepayers in those work programmes.
A46: 2 This total excludes "Warm Greater Wellington" targeted rates because they only apply to ratepayers who participate in the scheme.
A47: 3 The Warm Greater Wellington scheme assists regional ratepayers to insulate thier homes. Only ratepayers who participate in the scheme are charged this rate.

Sheet 2
A1: Impact on each City and District
A3: Rates increases vary among cities and districts because of differing equalised capital values. Targeted rates are applied according to the Revenue and Financing policy. The next page shows the different rates paid in each city and district.
A6: All figures on this page exclude GST.
A8: Impact on each city and district
B9: =year_previous -> 2017/18 | C9: =year_current -> 2018/19
B10: Plan | C10: Plan | D10: Change | E10: Change | G10: Row lookup | H10: Column lookup
A11: Region-wide rates1 | B11: $000s | C11: $000s | D11: $000s | E11: %
A12: Wellington city | B12: =INDEX('Comparison - TA'!$B$7:$L$24,MATCH(G12,'Comparison - TA'!$A$7:$A$24,0),MATCH(H12,'Comparison - TA'!$B$6:$L$6,0))/1000 -> 62570.97838 | C12: =INDEX('Comparison - TA'!$B$30:$L$47,MATCH(G12,'Comparison - TA'!$A$30:$A$47,0),MATCH($H12,'Comparison - TA'!$B$29:$L$29,0))/1000 -> 66367.07621 | D12: =C12-B12 -> 3796.097824 | E12: =ROUND(+D12/B12,4) -> 0.0607 | G12: District-wide rates | H12: Wellington city
A13: Hutt city | B13: =INDEX('Comparison - TA'!$B$7:$L$24,MATCH(G13,'Comparison - TA'!$A$7:$A$24,0),MATCH(H13,'Comparison - TA'!$B$6:$L$6,0))/1000 -> 23454.23157 | C13: =INDEX('Comparison - TA'!$B$30:$L$47,MATCH(G13,'Comparison - TA'!$A$30:$A$47,0),MATCH($H13,'Comparison - TA'!$B$29:$L$29,0))/1000 -> 25013.95992 | D13: =C13-B13 -> 1559.728353 | E13: =ROUND(+D13/B13,4) -> 0.0665 | G13: District-wide rates | H13: Hutt city
A14: Upper Hutt city | B14: =INDEX('Comparison - TA'!$B$7:$L$24,MATCH(G14,'Comparison - TA'!$A$7:$A$24,0),MATCH(H14,'Comparison - TA'!$B$6:$L$6,0))/1000 -> 8387.210664 | C14: =INDEX('Comparison - TA'!$B$30:$L$47,MATCH(G14,'Comparison - TA'!$A$30:$A$47,0),MATCH($H14,'Comparison - TA'!$B$29:$L$29,0))/1000 -> 8680.468382 | D14: 293.2577176 | E14: =ROUND(+D14/B14,4) -> 0.035 | G14: District-wide rates | H14: Upper Hutt city
A15: Porirua city | B15: =INDEX('Comparison - TA'!$B$7:$L$24,MATCH(G15,'Comparison - TA'!$A$7:$A$24,0),MATCH(H15,'Comparison - TA'!$B$6:$L$6,0))/1000 -> 9886.888025 | C15: =INDEX('Comparison - TA'!$B$30:$L$47,MATCH(G15,'Comparison - TA'!$A$30:$A$47,0),MATCH($H15,'Comparison - TA'!$B$29:$L$29,0))/1000 -> 10301.4841 | D15: 414.5960759 | E15: 0.0419 | G15: District-wide rates | H15: Porirua city
A16: Kāpiti Coast district | B16: =INDEX('Comparison - TA'!$B$7:$L$24,MATCH(G16,'Comparison - TA'!$A$7:$A$24,0),MATCH(H16,'Comparison - TA'!$B$6:$L$6,0))/1000 -> 9327.068132 | C16: =INDEX('Comparison - TA'!$B$30:$L$47,MATCH(G16,'Comparison - TA'!$A$30:$A$47,0),MATCH($H16,'Comparison - TA'!$B$29:$L$29,0))/1000 -> 10320.04866 | D16: 992.9805325 | E16: 0.1065 | G16: District-wide rates | H16: Kāpiti Coast district
A17: Masterton district | B17: =INDEX('Comparison - TA'!$B$7:$L$24,MATCH(G17,'Comparison - TA'!$A$7:$A$24,0),MATCH(H17,'Comparison - TA'!$B$6:$L$6,0))/1000 -> 2243.226084 | C17: =INDEX('Comparison - TA'!$B$30:$L$47,MATCH(G17,'Comparison - TA'!$A$30:$A$47,0),MATCH($H17,'Comparison - TA'!$B$29:$L$29,0))/1000 -> 2650.009416 | D17: 406.7833316 | E17: 0.1813 | G17: District-wide rates | H17: Masterton district
A18: Carterton district | B18: =INDEX('Comparison - TA'!$B$7:$L$24,MATCH(G18,'Comparison - TA'!$A$7:$A$24,0),MATCH(H18,'Comparison - TA'!$B$6:$L$6,0))/1000 -> 1093.952746 | C18: =INDEX('Comparison - TA'!$B$30:$L$47,MATCH(G18,'Comparison - TA'!$A$30:$A$47,0),MATCH($H18,'Comparison - TA'!$B$29:$L$29,0))/1000 -> 1270.495788 | D18: 176.5430422 | E18: 0.1614 | G18: District-wide rates | H18: Carterton district
A19: South Wairarapa district | B19: =INDEX('Comparison - TA'!$B$7:$L$24,MATCH(G19,'Comparison - TA'!$A$7:$A$24,0),MATCH(H19,'Comparison - TA'!$B$6:$L$6,0))/1000 -> 1798.67282 | C19: =INDEX('Comparison - TA'!$B$30:$L$47,MATCH(G19,'Comparison - TA'!$A$30:$A$47,0),MATCH($H19,'Comparison - TA'!$B$29:$L$29,0))/1000 -> 2153.676017 | D19: 355.0031965 | E19: =ROUND(+D19/B19,4) -> 0.1974 | G19: District-wide rates | H19: South Wairarapa district
A20: Tararua district | B20: =INDEX('Comparison - TA'!$B$7:$L$24,MATCH(G20,'Comparison - TA'!$A$7:$A$24,0),MATCH(H20,'Comparison - TA'!$B$6:$L$6,0))/1000 -> 2.606442882 | C20: =INDEX('Comparison - TA'!$B$30:$L$47,MATCH(G20,'Comparison - TA'!$A$30:$A$47,0),MATCH($H20,'Comparison - TA'!$B$29:$L$29,0))/1000 -> 2.605024643 | D20: -0.001418238552 | E20: -0.0005 | G20: District-wide rates | H20: Tararua district
A21: Total region-wide rates | B21: =INDEX('Comparison - TA'!$B$7:$L$24,MATCH(G21,'Comparison - TA'!$A$7:$A$24,0),MATCH(H21,'Comparison - TA'!$B$6:$L$6,0))/1000 -> 118764.8356 | C21: =INDEX('Comparison - TA'!$B$30:$L$47,MATCH(G21,'Comparison - TA'!$A$30:$A$47,0),MATCH($H21,'Comparison - TA'!$B$29:$L$29,0))/1000 -> 126759.8233 | D21: =C21-B21 -> 7994.987695 | E21: =ROUND(+D21/B21,6) -> 0.067318 | G21: District-wide rates | H21: Region wide | J21: =INDEX(ess_base_estract,MATCH($G21,ESSbase!$B$8:$B$25,0),MATCH(B$9,ESSbase!$F$6:$G$6,0))/1000-B21 -> 0 | K21: =INDEX(ess_base_estract,MATCH($G21,ESSbase!$B$8:$B$25,0),MATCH(C$9,ESSbase!$F$6:$G$6,0))/1000-C21 -> 0
A23: Specific area targeted rates
A24: Pest management rate | B24: =INDEX('Comparison - TA'!$B$7:$L$24,MATCH(G24,'Comparison - TA'!$A$7:$A$24,0),MATCH(H24,'Comparison - TA'!$B$6:$L$6,0))/1000 -> 472 | C24: =INDEX('Comparison - TA'!$B$30:$L$47,MATCH(G24,'Comparison - TA'!$A$30:$A$47,0),MATCH($H24,'Comparison - TA'!$B$29:$L$29,0))/1000 -> 532 | D24: =ROUND(C24-B24,0) -> 60 | E24: =ROUND(+D24/B24,6) -> 0.127119 | G24: Pest management rate | H24: Region wide | J24: =INDEX(ess_base_estract,MATCH($G24,ESSbase!$B$8:$B$25,0),MATCH(B$9,ESSbase!$F$6:$G$6,0))/1000-B24 -> 0 | K24: =INDEX(ess_base_estract,MATCH($G24,ESSbase!$B$8:$B$25,0),MATCH(C$9,ESSbase!$F$6:$G$6,0))/1000-C24 -> 0
A25: South Wairarapa district – river rates | B25: =INDEX('Comparison - TA'!$B$7:$L$24,MATCH(G25,'Comparison - TA'!$A$7:$A$24,0),MATCH(H25,'Comparison - TA'!$B$6:$L$6,0))/1000 -> 93.29736 | C25: =INDEX('Comparison - TA'!$B$30:$L$47,MATCH(G25,'Comparison - TA'!$A$30:$A$47,0),MATCH($H25,'Comparison - TA'!$B$29:$L$29,0))/1000 -> 95.164 | D25: 2 | E25: =ROUND(+D25/B25,6) -> 0.021437 | G25: River management rate - Non district wide | H25: Region wide | J25: =INDEX(ess_base_estract,MATCH($G25,ESSbase!$B$8:$B$25,0),MATCH(B$9,ESSbase!$F$6:$G$6,0))/1000-B25 -> 0 | K25: =INDEX(ess_base_estract,MATCH($G25,ESSbase!$B$8:$B$25,0),MATCH(C$9,ESSbase!$F$6:$G$6,0))/1000-C25 -> 0
A26: Wairarapa scheme and stopbank rates | B26: =INDEX('Comparison - TA'!$B$7:$L$24,MATCH(G26,'Comparison - TA'!$A$7:$A$24,0),MATCH(H26,'Comparison - TA'!$B$6:$L$6,0))/1000 -> 1451.756116 | C26: =INDEX('Comparison - TA'!$B$30:$L$47,MATCH(G26,'Comparison - TA'!$A$30:$A$47,0),MATCH($H26,'Comparison - TA'!$B$29:$L$29,0))/1000 -> 1487.363 | D26: 36 | E26: =ROUND(+D26/B26,6) -> 0.024798 | G26: Special Rates | H26: Region wide | J26: =INDEX(ess_base_estract,MATCH($G26,ESSbase!$B$8:$B$25,0),MATCH(B$9,ESSbase!$F$6:$G$6,0))/1000-B26 -> 0 | K26: =INDEX(ess_base_estract,MATCH($G26,ESSbase!$B$8:$B$25,0),MATCH(C$9,ESSbase!$F$6:$G$6,0))/1000-C26 -> 0
A27: Total regional rates | B27: =INDEX('Comparison - TA'!$B$7:$L$24,MATCH(G27,'Comparison - TA'!$A$7:$A$24,0),MATCH(H27,'Comparison - TA'!$B$6:$L$6,0))/1000 -> 120781.8891 | C27: =INDEX('Comparison - TA'!$B$30:$L$47,MATCH(G27,'Comparison - TA'!$A$30:$A$47,0),MATCH($H27,'Comparison - TA'!$B$29:$L$29,0))/1000 -> 128874.3503 | D27: 8092 | E27: =ROUND(+D27/B27,6) -> 0.066997 | G27: Total Regnl Rates | H27: Region wide | J27: =INDEX(ess_base_estract,MATCH($G27,ESSbase!$B$8:$B$25,0),MATCH(B$9,ESSbase!$F$6:$G$6,0))/1000-B27 -> 0 | K27: =INDEX(ess_base_estract,MATCH($G27,ESSbase!$B$8:$B$25,0),MATCH(C$9,ESSbase!$F$6:$G$6,0))/1000-C27 -> 0
A29: Water supply levy
A30: Wellington City Council | B30: =INDEX('Comparison - TA'!$B$7:$L$24,MATCH(G30,'Comparison - TA'!$A$7:$A$24,0),MATCH(H30,'Comparison - TA'!$B$6:$L$6,0))/1000 -> 16514.66579 | C30: =INDEX('Comparison - TA'!$B$30:$L$47,MATCH(G30,'Comparison - TA'!$A$30:$A$47,0),MATCH($H30,'Comparison - TA'!$B$29:$L$29,0))/1000 -> 17696.56202 | D30: =ROUND(C30-B30,0) -> 1182 | E30: =ROUND(+D30/B30,6) -> 0.071573 | G30: Bulk Water Levies | H30: Wellington city
A31: Hutt City Council | B31: =INDEX('Comparison - TA'!$B$7:$L$24,MATCH(G31,'Comparison - TA'!$A$7:$A$24,0),MATCH(H31,'Comparison - TA'!$B$6:$L$6,0))/1000 -> 7660.138382 | C31: =INDEX('Comparison - TA'!$B$30:$L$47,MATCH(G31,'Comparison - TA'!$A$30:$A$47,0),MATCH($H31,'Comparison - TA'!$B$29:$L$29,0))/1000 -> 8206.34001 | D31: 546 | E31: =ROUND(+D31/B31,6) -> 0.071278 | G31: Bulk Water Levies | H31: Hutt city
A32: Upper Hutt City Council | B32: =INDEX('Comparison - TA'!$B$7:$L$24,MATCH(G32,'Comparison - TA'!$A$7:$A$24,0),MATCH(H32,'Comparison - TA'!$B$6:$L$6,0))/1000 -> 3095.535373 | C32: =INDEX('Comparison - TA'!$B$30:$L$47,MATCH(G32,'Comparison - TA'!$A$30:$A$47,0),MATCH($H32,'Comparison - TA'!$B$29:$L$29,0))/1000 -> 3317.567004 | D32: 222 | E32: =ROUND(+D32/B32,6) -> 0.071716 | G32: Bulk Water Levies | H32: Upper Hutt city
A33: Porirua City Council | B33: =INDEX('Comparison - TA'!$B$7:$L$24,MATCH(G33,'Comparison - TA'!$A$7:$A$24,0),MATCH(H33,'Comparison - TA'!$B$6:$L$6,0))/1000 -> 3592.425897 | C33: =INDEX('Comparison - TA'!$B$30:$L$47,MATCH(G33,'Comparison - TA'!$A$30:$A$47,0),MATCH($H33,'Comparison - TA'!$B$29:$L$29,0))/1000 -> 3848.429005 | D33: 256 | E33: =ROUND(+D33/B33,6) -> 0.071261 | G33: Bulk Water Levies | H33: Porirua city
A34: Water supply levy | B34: =INDEX('Comparison - TA'!$B$7:$L$24,MATCH(G34,'Comparison - TA'!$A$7:$A$24,0),MATCH(H34,'Comparison - TA'!$B$6:$L$6,0))/1000 -> 30862.76544 | C34: =INDEX('Comparison - TA'!$B$30:$L$47,MATCH(G34,'Comparison - TA'!$A$30:$A$47,0),MATCH($H34,'Comparison - TA'!$B$29:$L$29,0))/1000 -> 33068.89804 | D34: 2206 | E34: =ROUND(+D34/B34,6) -> 0.071478 | G34: Bulk Water Levies | H34: Region wide | J34: =INDEX(ess_base_estract,MATCH($G34,ESSbase!$B$8:$B$25,0),MATCH(B$9,ESSbase!$F$6:$G$6,0))/1000-B34 -> 0 | K34: =INDEX(ess_base_estract,MATCH($G34,ESSbase!$B$8:$B$25,0),MATCH(C$9,ESSbase!$F$6:$G$6,0))/1000-C34 -> 0
A36: Total regional rates and levies 2 | B36: =INDEX('Comparison - TA'!$B$7:$L$24,MATCH(G36,'Comparison - TA'!$A$7:$A$24,0),MATCH(H36,'Comparison - TA'!$B$6:$L$6,0))/1000 -> 151644.6545 | C36: =INDEX('Comparison - TA'!$B$30:$L$47,MATCH(G36,'Comparison - TA'!$A$30:$A$47,0),MATCH($H36,'Comparison - TA'!$B$29:$L$29,0))/1000 -> 161943.2484 | D36: =ROUND(C36-B36,0) -> 10299 | E36: =ROUND(+D36/B36,6) -> 0.067915 | G36: Total Regnl Rates & levies | H36: Region wide | J36: =INDEX(ess_base_estract,MATCH($G36,ESSbase!$B$8:$B$25,0),MATCH(B$9,ESSbase!$F$6:$G$6,0))/1000-B36 -> 0 | K36: =INDEX(ess_base_estract,MATCH($G36,ESSbase!$B$8:$B$25,0),MATCH(C$9,ESSbase!$F$6:$G$6,0))/1000-C36 -> 0
